Workbook

Sheet INDICE
F1: AMÉRICA DO SUL
F2: Trocas comerciais com Portugal (PT) 2018-2022 Setores agrícola e agroalimentar, do mar e das florestas
C3: Fonte
D4: Estatísticas do Comércio Internacional | F4: América do Sul - Síntese
D5: dados: 2022 definitivos | F5: 1. Evolução da balança comercial
F6: 2. Ranking dos parceiros comerciais de Portugal por país
C7: Data | D7: 2023-12-27 | F7: 3. Principais produtos transacionados (NC a 2 e 4 dígitos)
F8: 3A Principais produtos transacionados (sem mar nem florestas)
F9: 3B Principais origens e destinos
F10: 3C Principais origens e destinos (sem mar nem florestas)
F11: 4. Evolução da balança comercial por país x produto
F12: 4A Evolução da balança comercial por produto
F13: 5.1. Trocas comerciais por país
F14: 5.1A Trocas comerciais por país (sem mar nem florestas)
F15: 5.2. Trocas comerciais por produto (NC 2 dígitos)
C22: Lista de países
D23: Argentina, Bolívia, Brasil, Chile, Colômbia, Equador, Guiana, Paraguai, Peru, Suriname, Uruguai, Venezuela

Sheet Sintese
A1: América do Sul - Síntese (2018-2022)
A3: • As trocas comerciais de bens transacionáveis (excluindo serviços) entre Portugal e América do Sul representam um total de 1,1 mil milhões de € em exportações e 2,7 mil milhões de € em importações, na média do período 2018-2022, correspondendo a um saldo negativo da balança comercial de cerca de -1,6 mil milhões.
A4: • No que respeita aos produtos dos setores agrícola e agroalimentar, mar e florestas, Portugal exportou para América do Sul 0,53 mil milhões de € em média anual, no mesmo período, enquanto as importações ascenderam a 1,11 mil milhões de €, resultando num saldo negativo de -0,6 mil M€. Estes setores representam perto de 47% do total de exportações de bens transacionáveis e 41% das correspondentes importações. Se nos referirmos apenas ao setor agrícola e agroalimentar, as exportações representam, em média, 0,4 mil milhões de € e as importações 0,8 mil milhões, ou seja, um saldo negativo de -0,4 mil M€.
A5: • As principais exportações agrícolas e agroalimentares (NC 4 dígitos) neste período são Azeite (processos mecânicos ou físicos) (65%), Vinhos de uvas frescas (17%) e Maçãs, peras e marmelos, frescos (8%). As importações agrícolas e agroalimentares mais relevantes referem-se a Soja, mesmo triturada (30%), Milho (22%) e Arroz (6%). Se considerarmos também os produtos do mar e da floresta, merecem particular destaque, em termos de exportações, Azeite (processos mecânicos ou físicos) (48%), Vinhos de uvas frescas (13%) e Peixes congelados (6%). Nas importações destes setores, destacam-se Soja, mesmo triturada (21%), Milho (15%) e Lenha, resíduos de madeira, etc. (10%).
A6: • Os principais destinos das exportações do setor agrícola e agroalimentar no mesmo período são Brasil (95%), Colômbia (2%) e Chile (1%), sendo as principais origens das importações Brasil (72%), Argentina (9%) e Colômbia (4%). Incluindo os setores do mar e das florestas, os principais destinos são Brasil (85%), Chile (7%) e Argentina (3%), enquanto as principais origens das importações são Brasil (64%), Uruguai (9%) e Argentina (9%).
A8: Trocas PT-América do Sul (milhões de euros) produtos agrícolas e agroalimentares, do mar e da floresta | J8: Trocas PT-América do Sul (milhões de euros) produtos agrícolas e agroalimentares
B10: 2018 | C10: 2019 | D10: 2020 | E10: 2021 | F10: 2022 | G10: média 2018-2022 | H10: TVMA* 2018-2022 | I10: TVT* 2018-2022 | K10: 2018 | L10: 2019 | M10: 2020 | N10: 2021 | O10: 2022 | P10: média 2018-2022 | Q10: TVMA* 2018-2022 | R10: TVT* 2018-2022
A11: Exportações | B11: 513.006998 | C11: 548.965963 | D11: 503.884945 | E11: 501.271985 | F11: 592.430379 | G11: 531.912054 | H11: 0.03664130125 | I11: 0.1548192935 | J11: Exportações | K11: 356.582098 | L11: 400.590768 | M11: 385.145299 | N11: 359.540636 | O11: 453.463472 | P11: 391.0644546 | Q11: 0.06192951897 | R11: 0.2716944416
A12: Importações | B12: 795.3922 | C12: 881.677108 | D12: 823.506434 | E12: 1137.994499 | F12: 1887.355469 | G12: 1105.185142 | H12: 0.2411323455 | I12: 1.372861425 | J12: Importações | K12: 547.416048 | L12: 584.266454 | M12: 632.977733 | N12: 796.535452 | O12: 1294.348529 | P12: 771.1088432 | Q12: 0.2400335269 | R12: 1.364469463
A13: Saldo | B13: -282.385202 | C13: -332.711145 | D13: -319.621489 | E13: -636.722514 | F13: -1294.92509 | G13: -573.273088 | J13: Saldo | K13: -190.83395 | L13: -183.675686 | M13: -247.832434 | N13: -436.994816 | O13: -840.885057 | P13: -380.0443886
A14: *TVMA - Taxa de variação média anual; TVT - Taxa de variação total
E15: Saldo da Balança Comercial PT-América do Sul (milhões de euros)
G16: 2018 | H16: 2019 | I16: 2020 | J16: 2021 | K16: 2022 | L16: média 2018-2022
F17: Total de Bens Transacionáveis* | G17: -517.349127 | H17: -565.825758 | I17: -934.677984 | J17: -1900.104889 | K17: -3894.799034 | L17: -1562.551358
D18: Agrícola e Agroalimentar (AA) | G18: -190.83395 | H18: -183.675686 | I18: -247.832434 | J18: -436.994816 | K18: -840.885057 | L18: -380.0443886
F19: Mar (M) | G19: 0.7692 | H19: 9.357185 | I19: -7.297988 | J19: -13.157494 | K19: -42.634006 | L19: -10.5926206 | M19: 0
F20: Florestas (F) | G20: -92.320452 | H20: -158.392644 | I20: -64.491067 | J20: -186.570204 | K20: -411.406027 | L20: -182.6360788 | M20: 0
F21: AA + M + F | G21: -282.385202 | H21: -332.711145 | I21: -319.621489 | J21: -636.722514 | K21: -1294.92509 | L21: -573.273088
G22: *exclui serviços
A23: Evolução das trocas comerciais PT-América do Sul (em milhões de euros 2018-2022)
H32: Exportações | J32: Importações | L32: Saldo
A33: Principais produtos agrícolas e agroalimentares (NC 4 dígitos)
A51: Principais origens e destinos em América do Sul dos produtos agrícolas e agroalimentares (média 2018-2022)
A65: Principais produtos agrícolas e agroalimentares transacionados (NC 4 dígitos - média 2018-2022)
A87: Fonte: GPP a partir de dados INE/Comércio Internacional (2022 definitivos) | P87: 2023-12-27

Sheet 1
A1: Evolução da balança comercial Portugal-América do Sul 2018-2022 em milhões de euros
A3: Total de Bens Transacionáveis (BT)(1) | B3: 2018 | C3: 2019 | D3: 2020 | E3: 2021 | F3: 2022 | G3: média quinquénio | H3: var. 18/19 | I3: var. 19/20 | J3: var. 20/21 | K3: var. 21/22 | L3: TVMA* 2018-2022 | M3: TVT* 2018-2022
A4: Exportações | B4: 1196.01256 | C4: 1040.488603 | D4: 1025.648344 | E4: 1082.971157 | F4: 1309.508891 | G4: 1130.925911 | H4: -0.1300353878 | I4: -0.014262779 | J4: 0.05588934388 | K4: 0.2091816874 | L4: 0.02292355139 | M4: 0.09489560126
A5: Importações | B5: 1713.361687 | C5: 1606.314361 | D5: 1960.326328 | E5: 2983.076046 | F5: 5204.307925 | G5: 2693.477269 | H5: -0.06247795011 | I5: 0.2203877246 | J5: 0.5217242167 | K5: 0.744611215 | L5: 0.3201658169 | M5: 2.037483542
A6: Saldo (exp-imp) | B6: -517.349127 | C6: -565.825758 | D6: -934.677984 | E6: -1900.104889 | F6: -3894.799034 | G6: -1562.551358
A7: Cobertura (exp/imp) | B7: 0.6980502535 | C7: 0.647749051 | D7: 0.5232028614 | E7: 0.3630384007 | F7: 0.2516201789 | G7: 0.4198757954
A8: Exp BT América do Sul / Exp BT Mundo | B8: 0.02067437741 | C8: 0.01736961261 | D8: 0.01907920558 | E8: 0.01702288999 | F8: 0.01671610801 | G8: 0.01803900252 | L8: Exportações
A9: Imp BT América do Sul / Imp BT Mundo | B9: 0.02271180812 | C9: 0.02008467163 | D9: 0.02876674722 | E9: 0.03587768838 | F9: 0.04753408987 | G9: 0.03235847671 | L9: Importações
A10: Exp BT América do Sul / Exp TE Mundo | B10: 0.013416678 | C10: 0.01115554081 | D10: 0.01380679446 | E10: 0.01211313316 | F10: 0.010935194 | G10: 0.01213812334
A11: Imp BT América do Sul / Imp TE Mundo | B11: 0.01942710778 | C11: 0.01740285545 | D11: 0.02494537113 | E11: 0.03122636442 | F11: 0.04140329127 | G11: 0.02803897349
A12: (1) Todos os produtos transacionados entre PT e América do Sul (exclui serviços) | D12: TE - Total da Economia (bens e serviços) Fonte: INE/Contas Nacionais | H12: *TVMA - Taxa de variação média anual; TVT - Taxa de variação total
A24: Agro(1) + Mar + Florestas (AMF) | B24: 2018 | C24: 2019 | D24: 2020 | E24: 2021 | F24: 2022 | G24: média quinquénio | H24: var. 18/19 | I24: var. 19/20 | J24: var. 20/21 | K24: var. 21/22 | L24: TVMA* 2018-2022 | M24: TVT* 2018-2022
A25: Exportações | B25: 513.006998 | C25: 548.965963 | D25: 503.884945 | E25: 501.271985 | F25: 592.430379 | G25: 531.912054 | H25: 0.07009449216 | I25: -0.08211987817 | J25: -0.005185628239 | K25: 0.1818541565 | L25: 0.03664130125 | M25: 0.1548192935
A26: Importações | B26: 795.3922 | C26: 881.677108 | D26: 823.506434 | E26: 1137.994499 | F26: 1887.355469 | G26: 1105.185142 | H26: 0.1084809582 | I26: -0.0659772988 | J26: 0.3818890199 | K26: 0.6584926119 | L26: 0.2411323455 | M26: 1.372861425
A27: Saldo (exp-imp) | B27: -282.385202 | C27: -332.711145 | D27: -319.621489 | E27: -636.722514 | F27: -1294.92509 | G27: -573.273088
A28: Cobertura (exp/imp) | B28: 0.6449736344 | C28: 0.622638331 | D28: 0.6118773627 | E28: 0.4404871776 | F28: 0.3138944352 | G28: 0.4812877352
A29: Exp AMF / Exp BT | B29: 0.4289311126 | C29: 0.5276040136 | D29: 0.4912843159 | E29: 0.4628673458 | F29: 0.4524065343 | G29: 0.4703332454 | L29: Exportações
A30: Imp AMF / Imp BT | B30: 0.4642290102 | C30: 0.5488820429 | D30: 0.4200864021 | E30: 0.3814835698 | F30: 0.3626525364 | G30: 0.41031909 | L30: Importações
A31: Exp AMF América do Sul / Exp AMF Mundo | B31: 0.04403225348 | C31: 0.04641309324 | D31: 0.0436814709 | E31: 0.03741793621 | F31: 0.03614945017 | G31: 0.04104328813
A32: Imp AMF América do Sul / Imp AMF Mundo | B32: 0.05835343911 | C32: 0.06373554609 | D32: 0.06312625162 | E32: 0.07614748161 | F32: 0.09772295183 | G32: 0.07390833248
A33: (1) Produtos agrícolas e agroalimentares | B33: BT - Total de Bens Transacionáveis (exclui serviços) | H33: *TVMA - Taxa de variação média anual; TVT - Taxa de variação total
A45: Agroalimentar (AA)(1) | B45: 2018 | C45: 2019 | D45: 2020 | E45: 2021 | F45: 2022 | G45: média quinquénio | H45: var. 18/19 | I45: var. 19/20 | J45: var. 20/21 | K45: var. 21/22 | L45: TVMA* 2018-2022 | M45: TVT* 2018-2022
A46: Exportações | B46: 356.582098 | C46: 400.590768 | D46: 385.145299 | E46: 359.540636 | F46: 453.463472 | G46: 391.0644546 | H46: 0.1234180579 | I46: -0.0385567273 | J46: -0.06648052843 | K46: 0.2612300992 | L46: 0.06192951897 | M46: 0.2716944416
A47: Importações | B47: 547.416048 | C47: 584.266454 | D47: 632.977733 | E47: 796.535452 | F47: 1294.348529 | G47: 771.1088432 | H47: 0.06731699981 | I47: 0.08337168541 | J47: 0.2583941116 | K47: 0.624972907 | L47: 0.2400335269 | M47: 1.364469463
A48: Saldo (exp-imp) | B48: -190.83395 | C48: -183.675686 | D48: -247.832434 | E48: -436.994816 | F48: -840.885057 | G48: -380.0443886
A49: Cobertura (exp/imp) | B49: 0.6513913856 | C49: 0.6856302724 | D49: 0.6084657942 | E49: 0.4513805821 | F49: 0.3503410881 | G49: 0.507145597
A50: Exp AA / Exp AMF | B50: 0.6950823271 | C50: 0.7297187713 | D50: 0.7643516696 | E50: 0.7172565927 | F50: 0.7654291341 | G50: 0.7352050995 | L50: Exportações
A51: Imp AA / Imp AMF | B51: 0.6882341165 | C51: 0.6626762209 | D51: 0.7686372648 | E51: 0.6999466629 | F51: 0.6858000786 | G51: 0.6977191548 | L51: Importações
A52: Exp AA / Exp BT | B52: 0.2981424359 | C52: 0.3850025525 | D52: 0.3755139871 | E52: 0.3319946553 | F52: 0.3462851418 | G52: 0.3457914005
A53: Imp AA / Imp BT | B53: 0.3194982426 | C53: 0.3637310779 | D53: 0.3228940631 | E53: 0.2670181516 | F53: 0.2487071379 | G53: 0.2862874887
A54: Exp AA América do Sul / Exp AA Mundo | B54: 0.0583902556 | C54: 0.06367012901 | D54: 0.0582047072 | E54: 0.04824881245 | F54: 0.05108068639 | G54: 0.05532133042
A55: Imp AA América do Sul / Imp AA Mundo | B55: 0.06018287997 | C55: 0.0627092269 | D55: 0.06967704711 | E55: 0.0775530707 | F55: 0.09778113558 | G55: 0.07559083542
A56: (1) Produtos agrícolas e agroalimentares | B56: AMF - Agroalimentar, Mar e Florestas; BT - Total de Bens Transacionáveis (exclui serviços) | H56: *TVMA - Taxa de variação média anual; TVT - Taxa de variação total
A67: Mar (M) | B67: 2018 | C67: 2019 | D67: 2020 | E67: 2021 | F67: 2022 | G67: média quinquénio | H67: var. 18/19 | I67: var. 19/20 | J67: var. 20/21 | K67: var. 21/22 | L67: TVMA* 2018-2022 | M67: TVT* 2018-2022
A68: Exportações | B68: 75.768267 | C68: 78.496323 | D68: 58.983261 | E68: 65.778329 | F68: 79.718637 | G68: 71.7489634 | H68: 0.03600525798 | I68: -0.2485856822 | J68: 0.1152033286 | K68: 0.2119285821 | L68: 0.01278702216 | M68: 0.05213752612
A69: Importações | B69: 74.999067 | C69: 69.139138 | D69: 66.281249 | E69: 78.935823 | F69: 122.352643 | G69: 82.341584 | H69: -0.07813335865 | I69: -0.04133532877 | J69: 0.1909223829 | K69: 0.5500268237 | L69: 0.1301585465
A70: Saldo (exp-imp) | B70: 0.7692 | C70: 9.357185 | D70: -7.297988 | E70: -13.157494 | F70: -42.634006 | G70: -10.5926206
A71: Cobertura (exp/imp) | B71: 1.010256128 | C71: 1.135338468 | D71: 0.8898936259 | E71: 0.8333140328 | F71: 0.6515481402 | G71: 0.8713575804
A72: Exp M / Exp AMF | B72: 0.1476944122 | C72: 0.142989417 | D72: 0.117057002 | E72: 0.1312228311 | F72: 0.1345620343 | G72: 0.1348887713 | L72: Exportações
A73: Imp M / Imp AMF | B73: 0.0942919317 | C73: 0.07841775336 | D73: 0.08048661949 | E73: 0.0693639759 | F73: 0.06482755634 | G73: 0.07450478736 | L73: Importações
A74: Exp M / Exp BT | B74: 0.06335072852 | C74: 0.0754417903 | D74: 0.05750826913 | E74: 0.06073876352 | F74: 0.0608767436 | G74: 0.06344267357
A75: Imp M / Imp BT | B75: 0.04377305012 | C75: 0.04304209666 | D75: 0.0338113344 | E75: 0.02646121714 | F75: 0.02350987773 | G75: 0.03057073655
A76: Exp M América do Sul / Exp M Mundo | B76: 0.06946073958 | C76: 0.07347181097 | D76: 0.06556101822 | E76: 0.06004816845 | F76: 0.06232294771 | G76: 0.06602570336
A77: Imp M América do Sul / Imp M Mundo | B77: 0.03402498905 | C77: 0.03172477304 | D77: 0.03443419847 | E77: 0.03773124429 | F77: 0.04705088919 | G77: 0.03742482621
A78: AMF - Agroalimentar, Mar e Florestas; BT - Total de Bens Transacionáveis (exclui serviços) | H78: *TVMA - Taxa de variação média anual; TVT - Taxa de variação total
A90: Florestas (F) | B90: 2018 | C90: 2019 | D90: 2020 | E90: 2021 | F90: 2022 | G90: média quinquénio | H90: var. 18/19 | I90: var. 19/20 | J90: var. 20/21 | K90: var. 21/22 | L90: TVMA* 2018-2022 | M90: TVT* 2018-2022
A91: Exportações | B91: 80.656633 | C91: 69.878872 | D91: 59.756385 | E91: 75.95302 | F91: 59.24827 | G91: 69.098636 | H91: -0.1336252283 | I91: -0.1448576188 | J91: 0.2710444248 | K91: -0.2199352968 | L91: -0.07421765082 | M91: -0.2654259446
A92: Importações | B92: 172.977085 | C92: 228.271516 | D92: 124.247452 | E92: 262.523224 | F92: 470.654297 | G92: 251.7347148 | H92: 0.31966333 | I92: -0.4557032162 | J92: 1.112906299 | K92: 0.7928101363 | L92: 0.2843351349 | M92: 1.720905471
A93: Saldo (exp-imp) | B93: -92.320452 | C93: -158.392644 | D93: -64.491067 | E93: -186.570204 | F93: -411.406027 | G93: -182.6360788
A94: Cobertura (exp/imp) | B94: 0.4662850747 | C94: 0.3061217327 | D94: 0.480946563 | E94: 0.2893192413 | F94: 0.1258849019 | G94: 0.2744898973
A95: Exp F / Exp AMF | B95: 0.1572232607 | C95: 0.1272918117 | D95: 0.1185913284 | E95: 0.1515205762 | F95: 0.1000088316 | G95: 0.1299061292 | L95: Exportações
A96: Imp F / Imp AMF | B96: 0.2174739518 | C96: 0.2589060257 | D96: 0.1508761157 | E96: 0.2306893612 | F96: 0.2493723651 | G96: 0.2277760578 | L96: Importações
A97: Exp F / Exp BT | B97: 0.06743794814 | C97: 0.06715967075 | D97: 0.05826205965 | E97: 0.07013392694 | F97: 0.0452446489 | G97: 0.06109917133
A98: Imp F / Imp BT | B98: 0.1009577174 | C98: 0.1421088683 | D98: 0.06338100459 | E98: 0.08800420102 | F98: 0.09043552068 | G98: 0.09346086476
A99: Exp F América do Sul / Exp F Mundo | B99: 0.01811277063 | C99: 0.01564062851 | D99: 0.01486962639 | E99: 0.01566254569 | F99: 0.009507336605 | G99: 0.01438315543
A100: Imp F América do Sul / Imp F Mundo | B100: 0.07422363089 | C100: 0.0976792399 | D100: 0.06102318105 | E100: 0.1016856727 | F100: 0.1354129816 | G100: 0.09863506584
A101: AMF - Agroalimentar, Mar e Florestas; BT - Total de Bens Transacionáveis (exclui serviços) | H101: *TVMA - Taxa de variação média anual; TVT - Taxa de variação total
A111: Fonte: GPP a partir de dados INE/Comércio Internacional (2022 definitivos) | H111: 2023-12-27

Sheet 2
A1: Ranking dos parceiros comerciais de Portugal por país (média 2018-2022 em milhares de euros) produtos agrícolas e agroalimentares, do mar e da floresta
A2: Exportações | F2: Importações | K2: Trocas comerciais (total e saldo)
A3: P | B3: País | C3: média quinquénio | D3: % do Total | F3: P | G3: País | H3: média quinquénio | I3: % do Total | K3: P | L3: País | M3: Total (exp+imp) | N3: % do Total | O3: Saldo (exp-imp)
A4: 1 | B4: Espanha | C4: 4148750.739 | D4: 0.3201250482 | F4: 1 | G4: Espanha | H4: 6893783.417 | I4: 0.4610160031 | K4: 1 | L4: Espanha | M4: 11042534.16 | N4: 0.395602026 | O4: -2745032.678
A5: 2 | B5: França | C5: 1358886.663 | D5: 0.1048541322 | F5: 2 | G5: França | H5: 986144.9388 | I5: 0.06594761841 | K5: 2 | L5: França | M5: 2345031.602 | N5: 0.08401144518 | O5: 372741.7244
A6: 3 | B6: Itália | C6: 876413.3826 | D6: 0.06762562854 | F6: 3 | G6: Alemanha | H6: 882996.1958 | I6: 0.05904963245 | K6: 3 | L6: Alemanha | M6: 1518197.709 | N6: 0.05438987836 | O6: -247794.6828
A7: 4 | B7: Alemanha | C7: 635201.513 | D7: 0.04901328804 | F7: 4 | G7: Países Baixos | H7: 837622.6294 | I7: 0.05601531312 | K7: 4 | L7: Países Baixos | M7: 1425039.699 | N7: 0.05105246534 | O7: -250205.5596
A8: 5 | B8: Países Baixos | C8: 587417.0698 | D8: 0.0453261547 | F8: 5 | G8: Brasil | H8: 705232.1134 | I8: 0.04716180804 | K8: 5 | L8: Itália | M8: 1326247.626 | N8: 0.04751321033 | O8: 426579.139
A9: 6 | B9: Estados Unidos | C9: 554009.1122 | D9: 0.04274833677 | F9: 6 | G9: Itália | H9: 449834.2436 | I9: 0.030082289 | K9: 6 | L9: Brasil | M9: 1157937.372 | N9: 0.04148344611 | O9: -252526.8544 | P9: Nota: Nesta listagem, o Reino Unido passa a ser constituído por três componentes: Reino Unido [até 2020] ; Reino Unido (sem Irlanda do Norte) pós-2020 e Reino Unido (Irlanda do Norte) pós-2020. Estas componentes são calculadas igualmente como média do quinquénio, embora a primeira corresponda apenas a 2018-2020 e as duas últimas a 2021-2022.
A10: 7 | B10: Brasil | C10: 452705.259 | D10: 0.03493154976 | F10: 7 | G10: Suécia | H10: 342054.8722 | I10: 0.02287463364 | K10: 7 | L10: Estados Unidos | M10: 835402.1152 | N10: 0.02992852589 | O10: 272616.1092
A11: 8 | B11: Reino Unido | C11: 382822.421 | D11: 0.02953926464 | F11: 8 | G11: Bélgica | H11: 286674.3358 | I11: 0.01917110656 | K11: 8 | L11: Reino Unido | M11: 527725.3878 | N11: 0.01890591685 | O11: 237919.4542
A12: 9 | B12: Angola | C12: 331091.7324 | D12: 0.02554763192 | F12: 9 | G12: Estados Unidos | H12: 281393.003 | I12: 0.01881792184 | K12: 9 | L12: Bélgica | M12: 526747.6872 | N12: 0.01887089044 | O12: -46600.9844
A13: 10 | B13: Reino Unido (sem Irlanda do Norte) pós 2020 | C13: 297693.4518 | D13: 0.02297056069 | F13: 10 | G13: Polónia | H13: 206886.255 | I13: 0.01383534536 | K13: 10 | L13: Polónia | M13: 458140.6776 | N13: 0.0164130242 | O13: 44368.1676
A14: 11 | B14: Polónia | C14: 251254.4226 | D14: 0.0193872419 | F14: 11 | G14: Ucrânia | H14: 195333.6414 | I14: 0.01306277398 | K14: 11 | L14: Suécia | M14: 435988.145 | N14: 0.01561940322 | O14: -248121.5994
A15: 12 | B15: Bélgica | C15: 240073.3514 | D15: 0.01852449039 | F15: 12 | G15: China, República Popular da | H15: 173665.6746 | I15: 0.01161374681 | K15: 12 | L15: China, República Popular da | M15: 367334.7522 | N15: 0.01315987528 | O15: 20003.403
A16: 13 | B16: Israel | C16: 214331.8496 | D16: 0.01653822994 | F16: 13 | G16: África do Sul | H16: 145344.1816 | I16: 0.009719770643 | K16: 13 | L16: Reino Unido (sem Irlanda do Norte) pós 2020 | M16: 358748.5572 | N16: 0.01285227232 | O16: 236638.3464
A17: 14 | B17: China, República Popular da | C17: 193669.0776 | D17: 0.01494385339 | F17: 14 | G17: Reino Unido | H17: 144902.9668 | I17: 0.009690264772 | K17: 14 | L17: Angola | M17: 346515.8172 | N17: 0.01241403082 | O17: 315667.6476
A18: 15 | B18: Turquia | C18: 167223.9134 | D18: 0.01290329709 | F18: 15 | G18: Dinamarca | H18: 144508.7452 | I18: 0.009663901532 | K18: 15 | L18: Dinamarca | M18: 229058.3694 | N18: 0.00820608329 | O18: -59959.121
A19: 16 | B19: Suíça | C19: 143369.888 | D19: 0.01106267771 | F19: 16 | G19: Roménia | H19: 138998.2312 | I19: 0.009295390515 | K19: 16 | L19: Turquia | M19: 223211.8948 | N19: 0.007996631622 | O19: 111235.932
A20: 17 | B20: Marrocos | C20: 109026.8306 | D20: 0.0084127058 | F20: 17 | G20: Irlanda | H20: 115719.6518 | I20: 0.007738654977 | K20: 17 | L20: Israel | M20: 222680.6996 | N20: 0.007977601399 | O20: 205982.9996
A21: 18 | B21: Cabo Verde | C21: 100863.1066 | D21: 0.007782778214 | F21: 18 | G21: Canadá | H21: 108524.1664 | I21: 0.007257462906 | K21: 18 | L21: Ucrânia | M21: 209671.7124 | N21: 0.007511550615 | O21: -180995.5704
A22: 19 | B22: Canadá | C22: 96453.797 | D22: 0.007442547977 | F22: 19 | G22: Rússia, Federação da | H22: 105950.8246 | I22: 0.007085372825 | K22: 19 | L22: Canadá | M22: 204977.9634 | N22: 0.00734339568 | O22: -12070.3694
A23: 20 | B23: Suécia | C23: 93933.2728 | D23: 0.007248059809 | F23: 20 | G23: Uruguai | H23: 102112.0792 | I23: 0.006828659935 | K23: 20 | L23: Rússia, Federação da | M23: 185978.7022 | N23: 0.006662741573 | O23: -25922.947
A24: 21 | B24: Dinamarca | C24: 84549.6242 | D24: 0.006524000652 | F24: 21 | G24: Argentina | H24: 97727.8454 | I24: 0.006535467965 | K24: 21 | L24: África do Sul | M24: 182499.4124 | N24: 0.006538094995 | O24: -108188.9508
A25: 22 | B25: Egito | C25: 83372.4854 | D25: 0.006433170511 | F25: 22 | G25: Índia | H25: 75558.034 | I25: 0.00505288036 | K25: 22 | L25: Irlanda | M25: 179693.3864 | N25: 0.006437568291 | O25: -51745.9172
A26: 23 | B26: Rússia, Federação da | C26: 80027.8776 | D26: 0.006175094574 | F26: 23 | G26: Finlândia | H26: 73941.3526 | I26: 0.004944766143 | K26: 23 | L26: Roménia | M26: 164861.988 | N26: 0.005906229091 | O26: -113134.4744
A27: 24 | B27: Argélia | C27: 78380.8918 | D27: 0.006048010196 | F27: 24 | G27: Vietname | H27: 70011.1556 | I27: 0.004681937504 | K27: 24 | L27: Marrocos | M27: 151643.736 | N27: 0.005432681335 | O27: 66409.9252
A28: 25 | B28: México | C28: 73493.3644 | D28: 0.005670879815 | F28: 25 | G28: Costa Rica | H28: 69969.0578 | I28: 0.004679122249 | K28: 25 | L28: Suíça | M28: 147880.9734 | N28: 0.005297879261 | O28: 138858.8026
A29: 26 | B29: Japão | C29: 66606.0156 | D29: 0.005139439629 | F29: 26 | G29: Áustria | H29: 63908.1406 | I29: 0.004273803478 | K29: 26 | L29: Grécia | M29: 116697.7842 | N29: 0.004180732359 | O29: -11083.3998
A30: 27 | B30: Irlanda | C30: 63973.7346 | D30: 0.004936328105 | F30: 27 | G30: Grécia | H30: 63890.592 | I30: 0.00427262993 | K30: 27 | L30: Argentina | M30: 113763.425 | N30: 0.004075608079 | O30: -81692.2658
A31: 28 | B31: Luxemburgo | C31: 54794.7774 | D31: 0.004228063304 | F31: 28 | G31: Reino Unido (sem Irlanda do Norte) pós 2020 | H31: 61055.1054 | I31: 0.004083009134 | K31: 28 | L31: Uruguai | M31: 105101.1588 | N31: 0.003765279851 | O31: -99122.9996
A32: 29 | B32: Grécia | C32: 52807.1922 | D32: 0.004074697665 | F32: 29 | G32: Turquia | H32: 55987.9814 | I32: 0.003744149453 | K32: 29 | L32: Finlândia | M32: 103158.5318 | N32: 0.003695684669 | O32: -44724.1734
A33: 30 | B33: Áustria | C33: 39217.279 | D33: 0.003026075588 | F33: 30 | G33: Equador | H33: 48767.8678 | I33: 0.003261310391 | K33: 30 | L33: Áustria | M33: 103125.4196 | N33: 0.003694498415 | O33: -24690.8616
A34: 31 | B34: Moçambique | C34: 37446.547 | D34: 0.002889442731 | F34: 31 | G34: Chile | H34: 47784.2222 | I34: 0.003195529914 | K34: 31 | L34: Cabo Verde | M34: 101700.8832 | N34: 0.00364346398 | O34: 100025.33
A35: 32 | B35: África do Sul | C35: 37155.2308 | D35: 0.00286696425 | F35: 32 | G35: Bulgária | H35: 46240.758 | I35: 0.003092312036 | K35: 32 | L35: Índia | M35: 100022.4076 | N35: 0.003583332099 | O35: -51093.6604
A36: 33 | B36: Chile | C36: 36026.5554 | D36: 0.002779873632 | F36: 33 | G36: Cuba | H36: 43073.1354 | I36: 0.002880479923 | K36: 33 | L36: Egito | M36: 93738.5794 | N36: 0.00335821211 | O36: 73006.3914
A37: 34 | B37: Austrália | C37: 34889.2592 | D37: 0.002692117817 | F37: 34 | G37: Marrocos | H37: 42616.9054 | I37: 0.002849969923 | K37: 34 | L37: México | M37: 93580.153 | N37: 0.003352536438 | O37: 53406.5758
A38: 35 | B38: Arábia Saudita | C38: 32818.8452 | D38: 0.00253236096 | F38: 35 | G38: Moçambique | H38: 40008.831 | I38: 0.002675557127 | K38: 35 | L38: Chile | M38: 83810.7776 | N38: 0.003002545698 | O38: -11757.6668
A39: 36 | B39: Guiné-Bissau | C39: 32182.3082 | D39: 0.002483244623 | F39: 36 | G39: Checa, República | H39: 35780.8524 | I39: 0.002392814593 | K39: 36 | L39: Argélia | M39: 83294.638 | N39: 0.002984054845 | O39: 73467.1456
A40: 37 | B40: Finlândia | C40: 29217.1792 | D40: 0.002254449951 | F40: 37 | G40: Colômbia | H40: 29157.4358 | I40: 0.001949879145 | K40: 37 | L40: Japão | M40: 82993.326 | N40: 0.002973260255 | O40: 50218.7052
A41: 38 | B41: Checa, República | C41: 29096.25 | D41: 0.002245118837 | F41: 38 | G41: Indonésia | H41: 28526.3034 | I41: 0.001907672693 | K41: 38 | L41: Moçambique | M41: 77455.378 | N41: 0.002774861643 | O41: -2562.284
A42: 39 | B42: Emirados Árabes Unidos | C42: 29052.9664 | D42: 0.002241778997 | F42: 39 | G42: Guiana | H42: 28025.2924 | I42: 0.001874168001 | K42: 39 | L42: Vietname | M42: 75958.0768 | N42: 0.002721220388 | O42: -64064.2344
A43: 40 | B43: São Tomé e Príncipe | C43: 26792.4812 | D43: 0.002067355905 | F43: 40 | G43: Hungria | H43: 24242.0034 | I43: 0.001621163712 | K43: 40 | L43: Costa Rica | M43: 73986.347 | N43: 0.002650582589 | O43: -65951.7686
A44: 41 | B44: Jordânia | C44: 26642.1032 | D44: 0.002055752468 | F44: 41 | G44: Namíbia | H44: 22831.866 | I44: 0.001526861952 | K44: 41 | L44: Checa, República | M44: 64877.1024 | N44: 0.002324241229 | O44: -6684.6024
A45: 42 | B45: Roménia | C45: 25863.7568 | D45: 0.001995693864 | F45: 42 | G45: Costa do Marfim | H45: 22796.209 | I45: 0.00152447742 | K45: 42 | L45: Luxemburgo | M45: 63347.0378 | N45: 0.002269426215 | O45: 46242.517
A46: 43 | B46: Tunísia | C46: 24967.3514 | D46: 0.001926525616 | F46: 43 | G46: Uganda | H46: 22685.1228 | I46: 0.001517048623 | K46: 43 | L46: Bulgária | M46: 59231.1196 | N46: 0.002121972238 | O46: -33250.3964
A47: 44 | B47: Índia | C47: 24464.3736 | D47: 0.001887714946 | F47: 44 | G47: México | H47: 20086.7886 | I47: 0.001343287196 | K47: 44 | L47: Equador | M47: 51817.4262 | N47: 0.001856374497 | O47: -45718.3094
A48: 45 | B48: Noruega | C48: 22053.074 | D48: 0.001701654744 | F48: 45 | G48: Peru | H48: 19493.8856 | I48: 0.001303637303 | K48: 45 | L48: Austrália | M48: 48712.5526 | N48: 0.001745141489 | O48: 21065.9658
A49: 46 | B49: Coreia, República da | C49: 18924.4824 | D49: 0.001460247005 | F49: 46 | G49: Paraguai | H49: 18840.7592 | I49: 0.001259960021 | K49: 46 | L49: Cuba | M49: 48369.362 | N49: 0.001732846585 | O49: -37776.9088
A50: 47 | B50: Hungria | C50: 18306.327 | D50: 0.001412549026 | F50: 47 | G50: Senegal | H50: 17576.5504 | I50: 0.001175417115 | K50: 47 | L50: Hungria | M50: 42548.3304 | N50: 0.00152430642 | O50: -5935.6764
A51: 48 | B51: Nigéria | C51: 16216.7282 | D51: 0.001251311834 | F51: 48 | G51: Nova Zelânda | H51: 17377.015 | I51: 0.001162073352 | K51: 48 | L51: Colômbia | M51: 37490.321 | N51: 0.00134310175 | O51: -20824.5506
A52: 49 | B52: Argentina | C52: 16035.5796 | D52: 0.001237334083 | F52: 49 | G52: Japão | H52: 16387.3104 | I52: 0.001095887684 | K52: 49 | L52: Tunísia | M52: 35510.5226 | N52: 0.001272174891 | O52: 14424.1802
A53: 50 | B53: Lituânia | C53: 14426.2296 | D53: 0.001113153751 | F53: 50 | G53: Lituânia | H53: 15822.4366 | I53: 0.001058112221 | K53: 50 | L53: Noruega | M53: 34932.4536 | N53: 0.0012514654 | O53: 9173.6944
A54: 51 | B54: Ucrânia | C54: 14338.071 | D54: 0.001106351275 | F54: 51 | G54: Angola | H54: 15424.0848 | I54: 0.001031472777 | K54: 51 | L54: Costa do Marfim | M54: 32973.8046 | N54: 0.001181296224 | O54: -12618.6134
A55: 52 | B55: Macau | C55: 14162.3328 | D55: 0.001092791001 | F55: 52 | G55: Mauritânia | H55: 14124.4552 | I55: 0.0009445611341 | K55: 52 | L55: Arábia Saudita | M55: 32855.5924 | N55: 0.001177061238 | O55: 32782.098
A56: 53 | B56: Síria, República Árabe da | C56: 13309.7072 | D56: 0.00102700088 | F56: 53 | G56: Austrália | H56: 13823.2934 | I56: 0.0009244211904 | K56: 53 | L56: Guiné-Bissau | M56: 32561.5128 | N56: 0.00116652575 | O56: 31803.1036
A57: 54 | B57: Iraque | C57: 13216.9518 | D57: 0.001019843707 | F57: 54 | G57: Tanzânia, República Unida da | H57: 13711.0264 | I57: 0.0009169134287 | K57: 54 | L57: Indonésia | M57: 32128.1024 | N57: 0.001150998695 | O57: -24924.5044
A58: 55 | B58: Bulgária | C58: 12990.3616 | D58: 0.001002359601 | F58: 55 | G58: Eslovénia | H58: 13709.4752 | I58: 0.0009168096935 | K58: 55 | L58: Coreia, República da | M58: 31301.2172 | N58: 0.00112137529 | O58: 6547.7476
A59: 56 | B59: HongKong | C59: 12801.5844 | D59: 0.0009877932133 | F59: 56 | G59: Suazilândia | H59: 13238.7086 | I59: 0.0008853275706 | K59: 56 | L59: Lituânia | M59: 30248.6662 | N59: 0.001083667342 | O59: -1396.207
A60: 57 | B60: Eslováquia | C60: 12740.7416 | D60: 0.0009830984737 | F60: 57 | G60: Noruega | H60: 12879.3796 | I60: 0.0008612977441 | K60: 57 | L60: Emirados Árabes Unidos | M60: 29704.259 | N60: 0.001064163794 | O60: 28401.6738
A61: 58 | B61: Letónia | C61: 11849.96 | D61: 0.0009143641678 | F61: 58 | G61: Tailândia | H61: 12766.4348 | I61: 0.0008537446551 | K61: 58 | L61: Senegal | M61: 28854.894 | N61: 0.001033735044 | O61: -6298.2068
A62: 59 | B62: Croácia | C62: 11388.7032 | D62: 0.0008787727658 | F62: 59 | G62: Camarões | H62: 12420.4028 | I62: 0.0008306040543 | K62: 59 | L62: Guiana | M62: 28164.8726 | N62: 0.001009014825 | O62: -27885.7122
A63: 60 | B63: Senegal | C63: 11278.3436 | D63: 0.0008702572211 | F63: 60 | G63: Coreia, República da | H63: 12376.7348 | I63: 0.0008276837933 | K63: 60 | L63: São Tomé e Príncipe | M63: 27846.3486 | N63: 0.0009976036088 | O63: 25738.6138
A64: 61 | B64: Dominicana, República | C64: 11211.5302 | D64: 0.0008651017793 | F64: 61 | G64: Estónia | H64: 12113.6096 | I64: 0.0008100875155 | K64: 61 | L64: Jordânia | M64: 26699.1202 | N64: 0.0009565038148 | O64: 26585.0862
A65: 62 | B65: Líbia, Jamahira Árabe da | C65: 11110.2892 | D65: 0.0008572898422 | F65: 62 | G65: Moldava, República de | H65: 11911.9324 | I65: 0.0007966005214 | K65: 62 | L65: Peru | M65: 25631.4274 | N65: 0.000918253407 | O65: -13356.3438
A66: 63 | B66: Costa do Marfim | C66: 10177.5956 | D66: 0.0007853215311 | F66: 63 | G66: Sérvia | H66: 11557.857 | I66: 0.000772922025 | K66: 63 | L66: Uganda | M66: 23651.4418 | N66: 0.0008473198419 | O66: -21718.8038
A67: 64 | B67: Malta | C67: 10082.9972 | D67: 0.0007780221489 | F67: 64 | G67: Tunísia | H67: 10543.1712 | I67: 0.0007050657604 | K67: 64 | L67: Namíbia | M67: 23571.3778 | N67: 0.0008444515256 | O67: -22092.3542
A68: 65 | B68: Território Palestiniano Ocupado | C68: 9895.7186 | D68: 0.0007635713962 | F68: 65 | G68: Paquistão | H68: 10440.9988 | I68: 0.0006982330665 | K68: 65 | L68: Tailândia | M68: 22048.0496 | N68: 0.0007898778459 | O68: -3484.82
A69: 66 | B69: Líbano | C69: 9880.5148 | D69: 0.0007623982437 | F69: 66 | G69: Egito | H69: 10366.094 | I69: 0.0006932238706 | K69: 66 | L69: Eslovénia | M69: 22027.284 | N69: 0.0007891339122 | O69: -5391.6664
A70: 67 | B70: Chipre | C70: 9763.9754 | D70: 0.0007534058546 | F70: 67 | G70: Islândia | H70: 10004.441 | I70: 0.0006690386286 | K70: 67 | L70: Nigéria | M70: 21603.5138 | N70: 0.0007739522204 | O70: 10829.9426
A71: 68 | B71: Tailândia | C71: 9281.6148 | D71: 0.0007161860455 | F71: 68 | G71: Maurícias | H71: 9636.4388 | I71: 0.0006444287891 | K71: 68 | L71: Nova Zelânda | M71: 21601.671 | N71: 0.0007738862016 | O71: -13152.359
A72: 69 | B72: Kuwait | C72: 9121.1468 | D72: 0.0007038040468 | F72: 69 | G72: Letónia | H72: 9340.8474 | I72: 0.0006246613613 | K72: 69 | L72: Camarões | M72: 21512.3584 | N72: 0.0007706865515 | O72: -3328.4472
A73: 70 | B73: Camarões | C73: 9091.9556 | D73: 0.0007015516015 | F73: 70 | G73: Luxemburgo | H73: 8552.2604 | I73: 0.0005719252649 | K73: 70 | L73: Letónia | M73: 21190.8074 | N73: 0.0007591668926 | O73: 2509.1126
A74: 71 | B74: Colômbia | C74: 8332.8852 | D74: 0.000642980368 | F74: 71 | G74: Israel | H74: 8348.85 | I74: 0.0005583223645 | K74: 71 | L74: Estónia | M74: 20382.3 | N74: 0.0007302018777 | O74: -3844.9192
A75: 72 | B75: Eslovénia | C75: 8317.8088 | D75: 0.0006418170459 | F75: 72 | G75: Filipinas | H75: 8338.4466 | I75: 0.0005576266458 | K75: 72 | L75: Paraguai | M75: 20050.052 | N75: 0.0007182989957 | O75: -17631.4664
A76: 73 | B76: Estónia | C76: 8268.6904 | D76: 0.000638026982 | F76: 73 | G76: Belize | H76: 8129.6594 | I76: 0.0005436641763 | K76: 73 | L76: Croácia | M76: 18469.8002 | N76: 0.0006616860113 | O76: 4307.6062
A77: 74 | B77: Geórgia | C77: 8048.6886 | D77: 0.0006210512486 | F77: 74 | G77: Malásia | H77: 8113.8152 | I77: 0.0005426046087 | K77: 74 | L77: Eslováquia | M77: 18139.0792 | N77: 0.0006498378344 | O77: 7342.404
A78: 75 | B78: Gibraltar | C78: 7970.9208 | D78: 0.0006150505456 | F78: 75 | G78: Bangladesh | H78: 7929.0306 | I78: 0.000530247293 | K78: 75 | L78: Sérvia | M78: 17502.4848 | N78: 0.0006270316533 | O78: -5613.2292
A79: 76 | B79: Gana | C79: 7307.4466 | D79: 0.0005638556863 | F79: 76 | G79: Croácia | H79: 7081.097 | I79: 0.0004735424424 | K79: 76 | L79: Mauritânia | M79: 16931.2984 | N79: 0.0006065687329 | O79: -11317.612
A80: 77 | B80: Taiwan | C80: 6603.7526 | D80: 0.0005095573952 | F80: 77 | G80: Quénia | H80: 6721.3334 | I80: 0.0004494835524 | K80: 77 | L80: HongKong | M80: 15600.7076 | N80: 0.0005588999271 | O80: 10002.4612
A81: 78 | B81: Belarus | C81: 6189.2796 | D81: 0.0004775759151 | F81: 78 | G81: Gana | H81: 6621.1502 | I81: 0.0004427838846 | K81: 78 | L81: Maurícias | M81: 15492.987 | N81: 0.000555040805 | O81: -3779.8906
A82: 79 | B82: Guatemala | C82: 6179.6032 | D82: 0.0004768292667 | F82: 79 | G82: Panamá | H82: 6513.4974 | I82: 0.0004355846936 | K82: 79 | L82: Suazilândia | M82: 15229.8654 | N82: 0.0005456143965 | O82: -11247.5518
A83: 80 | B83: Peru | C83: 6137.5418 | D83: 0.0004735837336 | F83: 80 | G83: Honduras | H83: 6221.5346 | I83: 0.0004160599254 | K83: 80 | L83: Moldava, República de | M83: 14881.0396 | N83: 0.0005331176098 | O83: -8942.8252
A84: 81 | B84: Vietname | C84: 5946.9212 | D84: 0.0004588751062 | F84: 81 | G84: Suriname | H84: 5829.6302 | I84: 0.0003898516463 | K84: 81 | L84: Síria, República Árabe da | M84: 14259.5412 | N84: 0.0005108522473 | O84: 12359.8732
A85: 82 | B85: Sérvia | C85: 5944.6278 | D85: 0.0004586981434 | F85: 82 | G85: Eslováquia | H85: 5398.3376 | I85: 0.0003610093142 | K85: 82 | L85: Tanzânia, República Unida da | M85: 14227.4986 | N85: 0.0005097043117 | O85: -13194.5542
A86: 83 | B86: Maurícias | C86: 5856.5482 | D86: 0.0004519017635 | F86: 83 | G86: Nigéria | H86: 5386.7856 | I86: 0.0003602367839 | K86: 83 | L86: Macau | M86: 14182.009 | N86: 0.0005080746335 | O86: 14142.6566
A87: 84 | B87: Andorra | C87: 5401.2632 | D87: 0.0004167711563 | F87: 84 | G87: Etiópia | H87: 5332.9722 | I87: 0.0003566380577 | K87: 84 | L87: Gana | M87: 13928.5968 | N87: 0.0004989960671 | O87: 686.2964
A88: 85 | B88: Cuba | C88: 5296.2266 | D88: 0.0004086663438 | F88: 85 | G88: Congo | H88: 5207.279 | I88: 0.0003482324301 | K88: 85 | L88: Paquistão | M88: 13696.3036 | N88: 0.000490674095 | O88: -7185.694
A89: 86 | B89: Singapura | C89: 4670.5802 | D89: 0.0003603903454 | F89: 86 | G89: Guatemala | H89: 5139.0112 | I89: 0.000343667078 | K89: 86 | L89: Dominicana, República | M89: 13463.2218 | N89: 0.0004823238711 | O89: 8959.8386
A90: 87 | B90: Omã | C90: 4393.4536 | D90: 0.0003390067599 | F90: 87 | G90: Camboja | H90: 4965.3018 | I90: 0.0003320504071 | K90: 87 | L90: Iraque | M90: 13230.1254 | N90: 0.0004739731242 | O90: 13203.7782
A91: 88 | B91: Nova Zelânda | C91: 4224.656 | D91: 0.0003259820343 | F91: 88 | G91: Argélia | H91: 4913.7462 | I91: 0.0003286026694 | K91: 88 | L91: Chipre | M91: 13179.1368 | N91: 0.0004721464427 | O91: 6348.814
A92: 89 | B92: Panamá | C92: 4203.97 | D92: 0.0003243858655 | F92: 89 | G92: Reino Unido (Irlanda do Norte) pós-2020 | H92: 4864.879 | I92: 0.0003253347163 | K92: 89 | L92: Filipinas | M92: 11817.2578 | N92: 0.0004233567279 | O92: -4859.6354
A93: 90 | B93: Costa Rica | C93: 4017.2892 | D93: 0.0003099812401 | F93: 90 | G93: Macedónia, Antiga República jugoslava da | H93: 4838.7308 | I93: 0.0003235860773 | K93: 90 | L93: Islândia | M93: 11807.9024 | N93: 0.000423021568 | O93: -8200.9796
A94: 91 | B94: Catar | C94: 3814.9902 | D94: 0.0002943714864 | F94: 91 | G94: Zimbabwe | H94: 4709.246 | I94: 0.0003149268895 | K94: 91 | L94: Malta | M94: 11740.4076 | N94: 0.000420603547 | O94: 8425.5868
A95: 92 | B95: Burquina Faso | C95: 3646.8948 | D95: 0.0002814009439 | F95: 92 | G95: Suíça | H95: 4511.0854 | I95: 0.0003016750651 | K95: 92 | L95: Malásia | M95: 11542.323 | N95: 0.000413507108 | O95: -4685.3074
A96: 93 | B96: Indonésia | C96: 3601.799 | D96: 0.0002779212711 | F96: 93 | G96: Sri Lanca | H96: 4405.8098 | I96: 0.0002946348473 | K96: 93 | L96: Guatemala | M96: 11318.6144 | N96: 0.0004054926818 | O96: 1040.592
A97: 94 | B97: Sudão | C97: 3570.9408 | D97: 0.000275540197 | F97: 94 | G97: Madagáscar | H97: 3797.7566 | I97: 0.0002539717979 | K97: 94 | L97: Líbia, Jamahira Árabe da | M97: 11116.3092 | N97: 0.0003982450387 | O97: 11104.2692
A98: 95 | B98: Filipinas | C98: 3478.8112 | D98: 0.0002684313118 | F98: 95 | G98: Mali | H98: 3762.6334 | I98: 0.0002516229632 | K98: 95 | L98: Panamá | M98: 10717.4674 | N98: 0.0003839564142 | O98: -2309.5274
A99: 96 | B99: Mali | C99: 3441.82 | D99: 0.0002655770045 | F99: 96 | G99: Myanmar | H99: 3487.5672 | I99: 0.000233228141 | K99: 96 | L99: Líbano | M99: 10422.5976 | N99: 0.0003733926171 | O99: 9338.432
A100: 97 | B100: Malásia | C100: 3428.5078 | D100: 0.0002645498112 | F100: 97 | G100: Nicarágua | H100: 3458.6704 | I100: 0.0002312956917 | K100: 97 | L100: Kuwait | M100: 10304.9986 | N100: 0.0003691795984 | O100: 7937.295
A101: 98 | B101: Venezuela | C101: 3292.1542 | D101: 0.0002540285229 | F101: 98 | G101: Taiwan | H101: 3425.7168 | I101: 0.0002290919472 | K101: 98 | L101: Taiwan | M101: 10029.4694 | N101: 0.0003593086839 | O101: 3178.0358
A102: 99 | B102: Paquistão | C102: 3255.3048 | D102: 0.0002511851571 | F102: 99 | G102: Chipre | H102: 3415.1614 | I102: 0.0002283860637 | K102: 99 | L102: Território Palestiniano Ocupado | M102: 9896.2038 | N102: 0.0003545344047 | O102: 9895.2334
A103: 100 | B103: Irão, República Islâmica do | C103: 3151.3458 | D103: 0.0002431634942 | F103: 100 | G103: Congo, República Democrática do | H103: 3287.5926 | I103: 0.0002198550068 | K103: 100 | L103: Bangladesh | M103: 9893.849 | N103: 0.0003544500433 | O103: -5964.2122
A104: 101 | B104: Equador | C104: 3049.5584 | D104: 0.0002353093959 | F104: 101 | G104: Malavi | H104: 3258.3272 | I104: 0.0002178979077 | K104: 101 | L104: Quénia | M104: 9768.3614 | N104: 0.0003499544132 | O104: -3674.3054
A105: 102 | B105: Quénia | C105: 3047.028 | D105: 0.0002351141457 | F105: 102 | G105: Papuásia-Nova Guiné | H105: 3105.1676 | I105: 0.0002076554875 | K105: 102 | L105: Geórgia | M105: 8359.5618 | N105: 0.0002994837542 | O105: 7737.8154
A106: 103 | B106: Uruguai | C106: 2989.0796 | D106: 0.0002306427432 | F106: 103 | G106: HongKong | H106: 2799.1232 | I106: 0.0001871890241 | K106: 103 | L106: Belize | M106: 8131.84 | N106: 0.0002913255539 | O106: -8127.4788
A107: 104 | B107: Moldava, República de | C107: 2969.1072 | D107: 0.000229101637 | F107: 104 | G107: Gabão | H107: 2643.292 | I107: 0.0001767679428 | K107: 104 | L107: Gibraltar | M107: 8002.9498 | N107: 0.0002867080247 | O107: 7938.8918
A108: 105 | B108: Mauritânia | C108: 2806.8432 | D108: 0.0002165810557 | F108: 105 | G108: Centro-Africana, República | H108: 2579.2684 | I108: 0.0001724864181 | K108: 105 | L108: Congo | M108: 7636.6094 | N108: 0.0002735837724 | O108: -2777.9486
A109: 106 | B109: Timor-Leste | C109: 2726.394 | D109: 0.0002103734511 | F109: 106 | G109: Gâmbia | H109: 2389.373 | I109: 0.000159787322 | K109: 106 | L109: Honduras | M109: 7591.1752 | N109: 0.0002719560788 | O109: -4851.894
A110: 107 | B110: Guiné | C110: 2700.6706 | D110: 0.0002083885874 | F110: 107 | G110: Dominicana, República | H110: 2251.6916 | I110: 0.0001505799934 | K110: 107 | L110: Etiópia | M110: 7365.0862 | N110: 0.0002638563741 | O110: -3300.8582
A111: 108 | B111: Arménia | C111: 2588.4812 | D111: 0.0001997318521 | F111: 108 | G111: Serra Leoa | H111: 1997.9044 | I111: 0.0001336081866 | K111: 108 | L111: Reino Unido (Irlanda do Norte) pós-2020 | M111: 7284.542 | N111: 0.0002609708545 | O111: -2445.216
A112: 109 | B112: Gabão | C112: 2550.5466 | D112: 0.0001968047503 | F112: 109 | G112: Benim | H112: 1832.1494 | I112: 0.0001225234595 | K112: 109 | L112: Mali | M112: 7204.4534 | N112: 0.0002581016569 | O112: -320.8134
A113: 110 | B113: Congo | C113: 2429.3304 | D113: 0.0001874514909 | F113: 110 | G113: El Salvador | H113: 1779.7304 | I113: 0.0001190179827 | K113: 110 | L113: Belarus | M113: 7048.5194 | N113: 0.0002525152756 | O113: 5330.0398
A114: 111 | B114: Reino Unido (Irlanda do Norte) pós-2020 | C114: 2419.663 | D114: 0.000186705537 | F114: 111 | G114: Burquina Faso | H114: 1725.7576 | I114: 0.0001154085968 | K114: 111 | L114: Suriname | M114: 6411.9606 | N114: 0.0002297103698 | O114: -5247.2998
A115: 112 | B115: Albânia | C115: 2229.7502 | D115: 0.0001720515247 | F115: 112 | G115: Malta | H115: 1657.4104 | I115: 0.000110837935 | K115: 112 | L115: Singapura | M115: 5982.0136 | N115: 0.0002143073924 | O115: 3359.1468
A116: 113 | B116: Seychelles | C116: 2209.8298 | D116: 0.0001705144309 | F116: 113 | G116: Laos, República Democrática Popular do | H116: 1570.485 | I116: 0.0001050248715 | K116: 113 | L116: Camboja | M116: 5868.6792 | N116: 0.0002102471542 | O116: -4061.9244
A117: 114 | B117: Guiné Equatorial | C117: 2176.263 | D117: 0.0001679243564 | F117: 114 | G117: Singapura | H117: 1311.4334 | I117: 8.770101232e-05 | K117: 114 | L117: Sri Lanca | M117: 5846.5976 | N117: 0.0002094560744 | O117: -2965.022
A118: 115 | B118: Etiópia | C118: 2032.114 | D118: 0.0001568015611 | F118: 115 | G118: Seychelles | H118: 1264.2444 | I118: 8.45452874e-05 | K118: 115 | L118: Macedónia, Antiga República jugoslava da | M118: 5789.6166 | N118: 0.0002074147134 | O118: -3887.845
A119: 116 | B119: Suazilândia | C119: 1991.1568 | D119: 0.00015364123 | F119: 116 | G119: Kuwait | H119: 1183.8518 | I119: 7.916909948e-05 | K119: 116 | L119: Andorra | M119: 5443.4826 | N119: 0.0001950143613 | O119: 5359.0438
A120: 117 | B120: Bangladesh | C120: 1964.8184 | D120: 0.0001516089119 | F120: 117 | G120: Bolívia | H120: 1171.3558 | I120: 7.833343992e-05 | K120: 117 | L120: Burquina Faso | M120: 5372.6524 | N120: 0.0001924768486 | O120: 1921.1372
A121: 118 | B121: Islândia | C121: 1803.4614 | D121: 0.0001391583163 | F121: 118 | G121: Togo | H121: 1123.3282 | I121: 7.512163432e-05 | K121: 118 | L121: Gabão | M121: 5193.8386 | N121: 0.0001860707917 | O121: -92.7454
A122: 119 | B122: Benim | C122: 1771.8166 | D122: 0.0001367165468 | F122: 119 | G122: São Tomé e Príncipe | H122: 1053.8674 | I122: 7.047650139e-05 | K122: 119 | L122: Nicarágua | M122: 5085.114 | N122: 0.000182175701 | O122: -1832.2268
A123: 120 | B123: Congo, República Democrática do | C123: 1727.181 | D123: 0.0001332723838 | F123: 120 | G123: Venezuela | H123: 1042.655 | I123: 6.972668151e-05 | K123: 120 | L123: Congo, República Democrática do | M123: 5014.7736 | N123: 0.0001796557356 | O123: -1560.4116
A124: 121 | B124: Jamaica | C124: 1687.498 | D124: 0.0001302103724 | F124: 121 | G124: Iémen | H124: 1024.4982 | I124: 6.851246069e-05 | K124: 121 | L124: Omã | M124: 4885.6232 | N124: 0.0001750288846 | O124: 3901.284
A125: 122 | B125: Nicarágua | C125: 1626.4436 | D125: 0.0001254993054 | F125: 122 | G125: Síria, República Árabe da | H125: 949.834 | I125: 6.351935473e-05 | K125: 122 | L125: Zimbabwe | M125: 4774.2052 | N125: 0.0001710373021 | O125: -4644.2868
A126: 123 | B126: Togo | C126: 1570.864 | D126: 0.0001212106838 | F126: 123 | G126: Belarus | H126: 859.2398 | I126: 5.746094334e-05 | K126: 123 | L126: Venezuela | M126: 4334.8092 | N126: 0.0001552958114 | O126: 2249.4992
A127: 124 | B127: El Salvador | C127: 1565.6294 | D127: 0.0001208067726 | F127: 124 | G127: Cabo Verde | H127: 837.7766 | I127: 5.602560978e-05 | K127: 124 | L127: Madagáscar | M127: 4107.7518 | N127: 0.0001471614135 | O127: -3487.7614
A128: 125 | B128: Cazaquistão | C128: 1534.519 | D128: 0.0001184062384 | F128: 125 | G128: Bósnia-Herzegovina | H128: 758.2198 | I128: 5.070531529e-05 | K128: 125 | L128: Myanmar | M128: 3979.95 | N128: 0.0001425828765 | O128: -2995.1844
A129: 126 | B129: Sri Lanca | C129: 1440.7878 | D129: 0.0001111737709 | F129: 126 | G129: Turquemenistão | H129: 720.6558 | I129: 4.819325419e-05 | K129: 126 | L129: Catar | M129: 3836.467 | N129: 0.0001374425559 | O129: 3793.5134
A130: 127 | B130: Azerbaijão | C130: 1435.1898 | D130: 0.0001107418191 | F130: 127 | G130: Chade | H130: 675.9004 | I130: 4.520027423e-05 | K130: 127 | L130: Benim | M130: 3603.966 | N130: 0.0001291131394 | O130: -60.3328
A131: 128 | B131: Bolívia | C131: 1412.2374 | D131: 0.0001089707708 | F131: 128 | G131: Emirados Árabes Unidos | H131: 651.2926 | I131: 4.355464817e-05 | K131: 128 | L131: Sudão | M131: 3591.4234 | N131: 0.000128663797 | O131: 3550.4582
A132: 129 | B132: Honduras | C132: 1369.6406 | D132: 0.0001056839253 | F132: 129 | G132: Timor-Leste | H132: 614.587 | I132: 4.109999186e-05 | K132: 129 | L132: Seychelles | M132: 3474.0742 | N132: 0.0001244597275 | O132: 945.5854
A133: 130 | B133: São Bartolomeu | C133: 1280.9726 | D133: 9.884214338e-05 | F133: 130 | G133: Faroé, Ilhas | H133: 597.6172 | I133: 3.996515067e-05 | K133: 130 | L133: Irão, República Islâmica do | M133: 3375.8844 | N133: 0.0001209420491 | O133: 2926.8072
A134: 131 | B134: Ruanda | C134: 1241.1874 | D134: 9.577224599e-05 | F134: 131 | G134: Líbano | H134: 542.0828 | I134: 3.625133409e-05 | K134: 131 | L134: El Salvador | M134: 3345.3598 | N134: 0.0001198484964 | O134: -214.101
A135: 132 | B135: Paraguai | C135: 1209.2928 | D135: 9.331120144e-05 | F135: 132 | G135: Omã | H135: 492.1696 | I135: 3.291343057e-05 | K135: 132 | L135: Timor-Leste | M135: 3340.981 | N135: 0.0001196916246 | O135: 2111.807
A136: 133 | B136: Iémen | C136: 1145.3826 | D136: 8.837977578e-05 | F136: 133 | G136: Gronelândia | H136: 481.3548 | I136: 3.219019986e-05 | K136: 133 | L136: Malavi | M136: 3267.4564 | N136: 0.0001170575842 | O136: -3249.198
A137: 134 | B137: Montenegro | C137: 1046.3476 | D137: 8.073805755e-05 | F137: 134 | G137: Guiné-Bissau | H137: 379.2046 | I137: 2.535899063e-05 | K137: 134 | L137: Papuásia-Nova Guiné | M137: 3108.0532 | N137: 0.0001113469178 | O137: -3102.282
A138: 135 | B138: Uganda | C138: 966.319 | D138: 7.456290724e-05 | F138: 135 | G138: Geórgia | H138: 310.8732 | I138: 2.078938537e-05 | K138: 135 | L138: Guiné | M138: 3003.4878 | N138: 0.0001076008317 | O138: 2397.8534
A139: 136 | B139: Macedónia, Antiga República jugoslava da | C139: 950.8858 | D139: 7.337205384e-05 | F139: 136 | G139: Usbequistão | H139: 308.419 | I139: 2.06252628e-05 | K139: 136 | L139: Gâmbia | M139: 2880.9438 | N139: 0.0001032106569 | O139: -1897.8022
A140: 137 | B140: Bermudas | C140: 907.5284 | D140: 7.002651909e-05 | F140: 137 | G140: Guiné | H140: 302.8172 | I140: 2.025064711e-05 | K140: 137 | L140: Togo | M140: 2694.1922 | N140: 9.652022605e-05 | O140: 447.5358
A141: 138 | B141: Camboja | C141: 903.3774 | D141: 6.970622049e-05 | F141: 138 | G141: Irão, República Islâmica do | H141: 224.5386 | I141: 1.501583117e-05 | K141: 138 | L141: Centro-Africana, República | M141: 2675.6308 | N141: 9.585525845e-05 | O141: -2482.906
A142: 139 | B142: Barbados | C142: 889.1274 | D142: 6.860666493e-05 | F142: 139 | G142: Zâmbia | H142: 199.3992 | I142: 1.333465481e-05 | K142: 139 | L142: Arménia | M142: 2615.5848 | N142: 9.370409288e-05 | O142: 2561.3776
A143: 140 | B143: Trindade e Tobago | C143: 876.5142 | D143: 6.763340779e-05 | F143: 140 | G143: Azerbaijão | H143: 125.9264 | I143: 8.421222731e-06 | K143: 140 | L143: Bolívia | M143: 2583.5932 | N143: 9.255798443e-05 | O143: 240.8816
A144: 141 | B144: Namíbia | C144: 739.5118 | D144: 5.706205688e-05 | F144: 141 | G144: Fiji, Ilhas | H144: 123.8396 | I144: 8.281669725e-06 | K144: 141 | L144: Serra Leoa | M144: 2504.721 | N144: 8.973236472e-05 | O144: -1491.0878
A145: 142 | B145: Turquemenistão | C145: 730.8192 | D145: 5.639132027e-05 | F145: 142 | G145: Maldivas | H145: 106.2128 | I145: 7.102892211e-06 | K145: 142 | L145: Albânia | M145: 2335.6576 | N145: 8.367561881e-05 | O145: 2123.8428
A146: 143 | B146: Barém | C146: 714.5288 | D146: 5.513432379e-05 | F146: 143 | G146: Albânia | H146: 105.9074 | I146: 7.082468841e-06 | K146: 143 | L146: Guiné Equatorial | M146: 2182.2494 | N146: 7.817972504e-05 | O146: 2170.2766
A147: 144 | B147: Burundi | C147: 677.1012 | D147: 5.224634305e-05 | F147: 144 | G147: Tajiquistão | H147: 59.4122 | I147: 3.973141209e-06 | K147: 144 | L147: Iémen | M147: 2169.8808 | N147: 7.773661631e-05 | O147: 120.8844
A148: 145 | B148: Aruba | C148: 656.9934 | D148: 5.069478913e-05 | F148: 145 | G148: Jordânia | H148: 57.017 | I148: 3.812964211e-06 | K148: 145 | L148: Jamaica | M148: 1698.661 | N148: 6.085502872e-05 | O148: 1676.335
A149: 146 | B149: Niger | C149: 652.165 | D149: 5.032222113e-05 | F149: 146 | G149: Andorra | H149: 42.2194 | I149: 2.823387081e-06 | K149: 146 | L149: Laos, República Democrática Popular do | M149: 1586.3348 | N149: 5.683090965e-05 | O149: -1554.6352
A150: 147 | B150: São Martinho (parte holandesa) | C150: 597.7744 | D150: 4.612534488e-05 | F150: 147 | G150: Libéria | H150: 38.8276 | I150: 2.596563292e-06 | K150: 147 | L150: Azerbaijão | M150: 1561.1162 | N150: 5.59274459e-05 | O150: 1309.2634
A151: 148 | B151: Suriname | C151: 582.3304 | D151: 4.493365814e-05 | F151: 148 | G151: Falkland Ilhas (Malvinas) | H151: 38.0622 | I151: 2.545377807e-06 | K151: 148 | L151: Cazaquistão | M151: 1551.583 | N151: 5.558591622e-05 | O151: 1517.455
A152: 149 | B152: Bósnia-Herzegovina | C152: 535.6404 | D152: 4.133097399e-05 | F152: 149 | G152: Aruba | H152: 38.0518 | I152: 2.544682315e-06 | K152: 149 | L152: Turquemenistão | M152: 1451.475 | N152: 5.199951774e-05 | O152: 10.1634
A153: 150 | B153: Tanzânia, República Unida da | C153: 516.4722 | D153: 3.98519213e-05 | F153: 150 | G153: Arábia Saudita | H153: 36.7472 | I153: 2.457438281e-06 | K153: 150 | L153: Bósnia-Herzegovina | M153: 1293.8602 | N153: 4.635292129e-05 | O153: -222.5794
A154: 151 | B154: Ceuta e Melilha | C154: 507.8786 | D154: 3.918882371e-05 | F154: 151 | G154: São Marino | H154: 32.7702 | I154: 2.191479731e-06 | K154: 151 | L154: São Bartolomeu | M154: 1281.3282 | N154: 4.590395871e-05 | O154: 1280.617
A155: 152 | B155: Serra Leoa | C155: 506.8166 | D155: 3.910687789e-05 | F155: 152 | G155: Gibraltar | H155: 32.029 | I155: 2.1419126e-06 | K155: 152 | L155: Ruanda | M155: 1241.8574 | N155: 4.448990572e-05 | O155: 1240.5174
A156: 153 | B156: Myanmar | C156: 492.3828 | D156: 3.799313999e-05 | F156: 153 | G156: Botswana | H156: 30.0284 | I156: 2.008124148e-06 | K156: 153 | L156: Montenegro | M156: 1046.7 | N156: 3.749833461e-05 | O156: 1045.9952
A157: 154 | B157: Gâmbia | C157: 491.5708 | D157: 3.793048461e-05 | F157: 154 | G157: São Pedro e Miquelon | H157: 28.9156 | I157: 1.933706578e-06 | K157: 154 | L157: Bermudas | M157: 908.3498 | N157: 3.25418981e-05 | O157: 906.707
A158: 155 | B158: Curaçau | C158: 479.6396 | D158: 3.700985182e-05 | F158: 155 | G158: Arménia | H158: 27.1036 | I158: 1.812530593e-06 | K158: 155 | L158: Barbados | M158: 899.4474 | N158: 3.222296701e-05 | O158: 878.8074
A159: 156 | B159: Kosovo | C159: 471.1818 | D159: 3.63572328e-05 | F159: 156 | G159: Catar | H159: 21.4768 | I159: 1.436243046e-06 | K159: 156 | L159: Trindade e Tobago | M159: 876.838 | N159: 3.141297862e-05 | O159: 876.1904
A160: 157 | B160: Polinésia Francesa | C160: 366.6458 | D160: 2.829104755e-05 | F160: 157 | G160: Sudão | H160: 20.4826 | I160: 1.369756752e-06 | K160: 157 | L160: Barém | M160: 719.1302 | N160: 2.576305041e-05 | O160: 709.9274
A161: 158 | B161: Antígua e Barbuda | C161: 363.7054 | D161: 2.806416101e-05 | F161: 158 | G161: Macau | H161: 19.6762 | I161: 1.315829427e-06 | K161: 158 | L161: Aruba | M161: 695.0452 | N161: 2.490019822e-05 | O161: 618.9416
A162: 159 | B162: Haiti | C162: 328.5232 | D162: 2.534943935e-05 | F162: 159 | G162: Quirguizistão | H162: 17.4758 | I162: 1.168679516e-06 | K162: 159 | L162: Burundi | M162: 677.2152 | N162: 2.426143324e-05 | O162: 676.9872
A163: 160 | B163: Comores | C163: 311.607 | D163: 2.404415502e-05 | F163: 160 | G163: Cazaquistão | H163: 17.064 | I163: 1.141140735e-06 | K163: 160 | L163: Chade | M163: 676.014 | N163: 2.42183999e-05 | O163: -675.7868
A164: 161 | B164: Madagáscar | C164: 309.9952 | D164: 2.391978564e-05 | F164: 161 | G164: Salomão, Ilhas | H164: 16.0532 | I164: 1.07354433e-06 | K164: 161 | L164: Niger | M164: 655.4318 | N164: 2.348103654e-05 | O164: 648.8982
A165: 162 | B165: Nova Caledónia | C165: 302.6442 | D165: 2.33525693e-05 | F165: 162 | G165: Santa Helena | H165: 15.7338 | I165: 1.052184722e-06 | K165: 162 | L165: Faroé, Ilhas | M165: 598.4668 | N165: 2.14402487e-05 | O165: -596.7676
A166: 163 | B166: Libéria | C166: 295.8354 | D166: 2.282719008e-05 | F166: 163 | G166: Marshall, Ilhas | H166: 13.4098 | I166: 8.96769165e-07 | K166: 163 | L166: São Martinho (parte holandesa) | M166: 597.7772 | N166: 2.141554358e-05 | O166: 597.7716
A167: 164 | B167: Somália | C167: 292.9902 | D167: 2.260764934e-05 | F167: 164 | G167: Iraque | H167: 13.1736 | I167: 8.809734874e-07 | K167: 164 | L167: Usbequistão | M167: 531.501 | N167: 1.904117927e-05 | O167: -85.337
A168: 165 | B168: Bahamas | C168: 280.4744 | D168: 2.164190776e-05 | F168: 165 | G168: Curaçau | H168: 12.9632 | I168: 8.669031633e-07 | K168: 165 | L168: Ceuta e Melilha | M168: 507.8786 | N168: 1.819489986e-05 | O168: 507.8786
A169: 166 | B169: Usbequistão | C169: 223.082 | D169: 1.721340724e-05 | F169: 166 | G169: Jamaica | H169: 11.163 | I169: 7.465162932e-07 | K169: 166 | L169: Curaçau | M169: 492.6028 | N169: 1.764763984e-05 | O169: 466.6764
A170: 167 | B170: São Marino | C170: 219.9688 | D170: 1.697318715e-05 | F170: 167 | G170: Nepal | H170: 11.0964 | I170: 7.420624739e-07 | K170: 167 | L170: Gronelândia | M170: 481.9304 | N170: 1.726529798e-05 | O170: -480.7792
A171: 168 | B171: Bonaire, Santo Eustáquio e Saba | C171: 206.5448 | D171: 1.593736723e-05 | F171: 168 | G171: Barbados | H171: 10.32 | I171: 6.901413729e-07 | K171: 168 | L171: Kosovo | M171: 479.738 | N171: 1.718675461e-05 | O171: 462.6256
A172: 169 | B172: Guiana | C172: 139.5802 | D172: 1.077025858e-05 | F172: 169 | G172: Antígua e Barbuda | H172: 9.2324 | I172: 6.174090321e-07 | K172: 169 | L172: Antígua e Barbuda | M172: 372.9378 | N172: 1.336060611e-05 | O172: 354.473
A173: 170 | B173: Zâmbia | C173: 138.1944 | D173: 1.066332777e-05 | F173: 170 | G173: Kosovo | H173: 8.5562 | I173: 5.721887224e-07 | K173: 170 | L173: Polinésia Francesa | M173: 367.1436 | N173: 1.315302719e-05 | O173: 366.148
A174: 171 | B174: Maldivas | C174: 129.0678 | D174: 9.959102945e-06 | F174: 171 | G174: Jibuti | H174: 7.3022 | I174: 4.883285207e-07 | K174: 171 | L174: Zâmbia | M174: 337.5936 | N174: 1.209438977e-05 | O174: -61.2048
A175: 172 | B175: Santa Lúcia | C175: 120.252 | D175: 9.278860005e-06 | F175: 172 | G175: Líbia, Jamahira Árabe da | H175: 6.02 | I175: 4.025824675e-07 | K175: 172 | L175: Libéria | M175: 334.663 | N175: 1.198940017e-05 | O175: 257.0078
A176: 173 | B176: Liechtenstein | C176: 119.4194 | D176: 9.214615095e-06 | F176: 173 | G176: Guiné Equatorial | H176: 5.9864 | I176: 4.003354956e-07 | K176: 173 | L176: Haiti | M176: 328.8052 | N176: 1.177954276e-05 | O176: 328.2412
A177: 174 | B177: Afeganistão | C177: 109.4574 | D177: 8.445929308e-06 | F177: 174 | G177: Barém | H177: 4.6014 | I177: 3.077147784e-07 | K177: 174 | L177: Comores | M177: 311.607 | N177: 1.11634122e-05 | O177: 311.607
A178: 175 | B178: Quirguizistão | C178: 109.2342 | D178: 8.428706795e-06 | F178: 175 | G178: São Cristovão e Nevis | H178: 4.4456 | I178: 2.972957837e-07 | K178: 175 | L178: Nova Caledónia | M178: 303.3516 | N178: 1.086766007e-05 | O178: 301.9368
A179: 176 | B179: Virgens Britânicas, Ilhas | C179: 102.589 | D179: 7.915951244e-06 | F179: 176 | G179: Afeganistão | H179: 4.3746 | I179: 2.92547718e-07 | K179: 176 | L179: Somália | M179: 292.9902 | N179: 1.049645988e-05 | O179: 292.9902
A180: 177 | B180: Botswana | C180: 98.1832 | D180: 7.575991814e-06 | F180: 177 | G180: Niger | H180: 3.2668 | I180: 2.184645191e-07 | K180: 177 | L180: Bahamas | M180: 280.4744 | N180: 1.004807767e-05 | O180: 280.4744
A181: 178 | B181: Jibuti | C181: 96.957 | D181: 7.481376023e-06 | F181: 178 | G181: Liechtenstein | H181: 1.8556 | I181: 1.240916988e-07 | K181: 178 | L181: São Marino | M181: 252.739 | N181: 9.05444883e-06 | O181: 187.1986
A182: 179 | B182: Centro-Africana, República | C182: 96.3624 | D182: 7.43549562e-06 | F182: 179 | G182: Lesoto | H182: 1.7136 | I182: 1.145955675e-07 | K182: 179 | L182: Maldivas | M182: 235.2806 | N182: 8.428996527e-06 | O182: 22.855
A183: 180 | B183: Nepal | C183: 77.231 | D183: 5.959282482e-06 | F183: 180 | G183: Butão | H183: 1.2178 | I183: 8.143935697e-08 | K183: 180 | L183: Bonaire, Santo Eustáquio e Saba | M183: 206.5448 | N183: 7.399528061e-06 | O183: 206.5448
A184: 181 | B184: Zimbabwe | C184: 64.9592 | D184: 5.012368383e-06 | F184: 181 | G184: Bermudas | H184: 0.8214 | I184: 5.493043835e-08 | K184: 181 | L184: Fiji, Ilhas | M184: 135.9458 | N184: 4.870298172e-06 | O184: -111.7334
A185: 182 | B185: Caimão, Ilhas | C185: 51.6906 | D185: 3.988539409e-06 | F185: 182 | G185: Nova Caledónia | H185: 0.7074 | I185: 4.730678364e-08 | K185: 182 | L185: Botswana | M185: 128.2116 | N185: 4.593218188e-06 | O185: 68.1548
A186: 183 | B186: Mongólia | C186: 37.8358 | D186: 2.919478191e-06 | F186: 183 | G186: Ruanda | H186: 0.67 | I186: 4.480568991e-08 | K186: 183 | L186: Quirguizistão | M186: 126.71 | N186: 4.539422927e-06 | O186: 91.7584
A187: 184 | B187: Turcas e Caicos, Ilhas | C187: 19.071 | D187: 1.471552566e-06 | F187: 184 | G187: Polinésia Francesa | H187: 0.4978 | I187: 3.328995886e-08 | K187: 184 | L187: Liechtenstein | M187: 121.275 | N187: 4.344712458e-06 | O187: 117.5638
A188: 185 | B188: Laos, República Democrática Popular do | C188: 15.8498 | D188: 1.222998996e-06 | F188: 185 | G188: Território Palestiniano Ocupado | H188: 0.4852 | I188: 3.244734439e-08 | K188: 185 | L188: Santa Lúcia | M188: 120.2746 | N188: 4.308872834e-06 | O188: 120.2294
A189: 186 | B189: Fiji, Ilhas | C189: 12.1062 | D189: 9.341361058e-07 | F189: 186 | G189: São Bartolomeu | H189: 0.3556 | I189: 2.378045273e-08 | K189: 186 | L189: Afeganistão | M189: 113.832 | N189: 4.078064799e-06 | O189: 105.0828
A190: 187 | B190: Anguila | C190: 10.0614 | D190: 7.763556702e-07 | F190: 187 | G190: Montenegro | H190: 0.3524 | I190: 2.356645541e-08 | K190: 187 | L190: Jibuti | M190: 104.2592 | N190: 3.73511643e-06 | O190: 89.6548
A191: 188 | B191: Malavi | C191: 9.1292 | D191: 7.044254462e-07 | F191: 188 | G191: Micronésia, Estados Federados da | H191: 0.3438 | I191: 2.29913376e-08 | K191: 188 | L191: Virgens Britânicas, Ilhas | M191: 102.596 | N191: 3.675531802e-06 | O191: 102.582
A192: 189 | B192: Brunei Darussalam | C192: 7.7238 | D192: 5.959822615e-07 | F192: 189 | G192: Trindade e Tobago | H192: 0.3238 | I192: 2.165385432e-08 | K192: 189 | L192: Nepal | M192: 88.3274 | N192: 3.164355021e-06 | O192: 66.1346
A193: 190 | B193: São Vicente e Granadinas | C193: 7.6034 | D193: 5.866919815e-07 | F193: 190 | G193: Haiti | H193: 0.282 | I193: 1.885851426e-08 | K193: 190 | L193: Tajiquistão | M193: 59.4122 | N193: 2.128459497e-06 | O193: -59.4122
A194: 191 | B194: Guam | C194: 6.6636 | D194: 5.141753279e-07 | F194: 191 | G194: Oceano Indico, Território Britânico do | H194: 0.128 | I194: 8.559892998e-09 | K194: 191 | L194: Caimão, Ilhas | M194: 51.6906 | N194: 1.851830911e-06 | O194: 51.6906
A195: 192 | B195: Territórios Franceses do Sul | C195: 6.3102 | D195: 4.8690635e-07 | F195: 192 | G195: Burundi | H195: 0.114 | I195: 7.623654701e-09 | K195: 192 | L195: Falkland Ilhas (Malvinas) | M195: 38.0622 | N195: 1.363589483e-06 | O195: -38.0622
A196: 193 | B196: Menores distantes dos Estados Unidos, lhas | C196: 4.5544 | D196: 3.514256728e-07 | F196: 193 | G196: Nauru | H196: 0.0694 | I196: 4.641066985e-09 | K196: 193 | L196: Mongólia | M196: 37.85 | N196: 1.355987355e-06 | O196: 37.8216
A197: 194 | B197: Sudão do Sul | C197: 3.771 | D197: 2.909771237e-07 | F197: 194 | G197: Vanuatu | H197: 0.065 | I197: 4.346820663e-09 | K197: 194 | L197: São Pedro e Miquelon | M197: 29.2314 | N197: 1.047223482e-06 | O197: -28.5998
A198: 195 | B198: Melilha | C198: 3.6164 | D198: 2.790479104e-07 | F198: 195 | G198: Santa Lúcia | H198: 0.0226 | I198: 1.511356107e-09 | K198: 195 | L198: Turcas e Caicos, Ilhas | M198: 19.071 | N198: 6.832241705e-07 | O198: 19.071
A199: 196 | B199: Marianas do Norte, Ilhas | C199: 2.9244 | D199: 2.256519492e-07 | F199: 196 | G199: São Vicente e Granadinas | H199: 0.0144 | I199: 9.629879622e-10 | K199: 196 | L199: Salomão, Ilhas | M199: 16.0532 | N199: 5.751106001e-07 | O199: -16.0532
A200: 197 | B200: Papuásia-Nova Guiné | C200: 2.8856 | D200: 2.226580716e-07 | F200: 197 | G200: Mongólia | H200: 0.0142 | I200: 9.496131294e-10 | K200: 197 | L200: Santa Helena | M200: 15.7338 | N200: 5.636680014e-07 | O200: -15.7338
... 58 more rows

Sheet 2AA
A1: Ranking dos parceiros comerciais de Portugal por país (média 2018-2022 em milhares de euros) produtos agrícolas e agroalimentares
A2: Exportações | F2: Importações | K2: Trocas comerciais (total e saldo)
A3: P | B3: País | C3: média quinquénio | D3: % do Total | F3: P | G3: País | H3: média quinquénio | I3: % do Total | K3: P | L3: País | M3: Total (exp+imp) | N3: % do Total | O3: Saldo (exp-imp)
A4: 1 | B4: Espanha | C4: 2415706.759 | D4: 0.3417342339 | F4: 1 | G4: Espanha | H4: 4700233.367 | I4: 0.4607579981 | K4: 1 | L4: Espanha | M4: 7115940.126 | N4: 0.4120392909 | O4: -2284526.609
A5: 2 | B5: França | C5: 675806.7388 | D5: 0.09560195886 | F5: 2 | G5: França | H5: 803086.6822 | I5: 0.07872558298 | K5: 2 | L5: França | M5: 1478893.421 | N5: 0.08563340693 | O5: -127279.9434
A6: 3 | B6: Itália | C6: 450048.5236 | D6: 0.06366542085 | F6: 3 | G6: Alemanha | H6: 693242.9014 | I6: 0.06795773454 | K6: 3 | L6: Alemanha | M6: 953060.8432 | N6: 0.05518575298 | O6: -433424.9596
A7: 4 | B7: Brasil | C7: 371201.5514 | D7: 0.05251145543 | F7: 4 | G7: Países Baixos | H7: 600479.2596 | I7: 0.05886423076 | K7: 4 | L7: Países Baixos | M7: 932127.81 | N7: 0.05397365282 | O7: -268830.7092
A8: 5 | B8: Países Baixos | C8: 331648.5504 | D8: 0.0469161511 | F8: 5 | G8: Brasil | H8: 551829.2644 | I8: 0.05409513258 | K8: 5 | L8: Brasil | M8: 923030.8158 | N8: 0.05344690316 | O8: -180627.713
A9: 6 | B9: Angola | C9: 270788.7526 | D9: 0.03830671359 | F9: 6 | G9: Itália | H9: 327446.3636 | I9: 0.03209915746 | K9: 6 | L9: Itália | M9: 777494.8872 | N9: 0.04501983383 | O9: 122602.16 | P9: Nota: Nesta listagem, o Reino Unido passa a ser constituído por três componentes: Reino Unido [até 2020] ; Reino Unido (sem Irlanda do Norte) pós-2020 e Reino Unido (Irlanda do Norte) pós-2020. Estas componentes são calculadas igualmente como média do quinquénio, embora a primeira corresponda apenas a 2018-2020 e as duas últimas a 2021-2022.
A10: 7 | B10: Alemanha | C10: 259817.9418 | D10: 0.03675474475 | F10: 7 | G10: Bélgica | H10: 257333.6916 | I10: 0.02522609992 | K10: 7 | L10: Bélgica | M10: 424096.2578 | N10: 0.02455674419 | O10: -90571.1254
A11: 8 | B11: Reino Unido | C11: 202835.6198 | D11: 0.02869382838 | F11: 8 | G11: Estados Unidos | H11: 216724.4778 | I11: 0.02124522949 | K11: 8 | L11: Estados Unidos | M11: 400307.8654 | N11: 0.02317930816 | O11: -33141.0902
A12: 9 | B12: Estados Unidos | C12: 183583.3876 | D12: 0.02597034102 | F12: 9 | G12: Ucrânia | H12: 191922.8274 | I12: 0.01881395472 | K12: 9 | L12: Polónia | M12: 317334.5188 | N12: 0.01837484405 | O12: -48783.4444
A13: 10 | B13: Israel | C13: 169488.4306 | D13: 0.02397641965 | F13: 10 | G13: Polónia | H13: 183058.9816 | I13: 0.017945043 | K13: 10 | L13: Reino Unido | M13: 313115.4092 | N13: 0.01813054198 | O13: 92555.8304
A14: 11 | B14: Bélgica | C14: 166762.5662 | D14: 0.02359080944 | F14: 11 | G14: Roménia | H14: 135395.1758 | I14: 0.01327261974 | K14: 11 | L14: Angola | M14: 277910.725 | N14: 0.01609206036 | O14: 263666.7802
A15: 12 | B15: Reino Unido (sem Irlanda do Norte) pós 2020 | C15: 153037.8236 | D15: 0.02164925988 | F15: 12 | G15: África do Sul | H15: 112521.5396 | I15: 0.01103034579 | K15: 12 | L15: Reino Unido (sem Irlanda do Norte) pós 2020 | M15: 202616.3834 | N15: 0.01173223909 | O15: 103459.2638
A16: 13 | B16: Polónia | C16: 134275.5372 | D16: 0.01899508195 | F16: 13 | G16: Reino Unido | H16: 110279.7894 | I16: 0.01081058982 | K16: 13 | L16: Ucrânia | M16: 198678.0056 | N16: 0.01150419243 | O16: -185167.6492
A17: 14 | B17: Suíça | C17: 91992.068 | D17: 0.01301351614 | F17: 14 | G17: Irlanda | H17: 108062.8466 | I17: 0.01059326569 | K17: 14 | L17: Canadá | M17: 175329.8698 | N17: 0.01015224889 | O17: -30892.3678
A18: 15 | B18: Cabo Verde | C18: 85414.0192 | D18: 0.0120829626 | F18: 15 | G18: Canadá | H18: 103111.1188 | I18: 0.01010785401 | K18: 15 | L18: Israel | M18: 174655.5912 | N18: 0.01011320566 | O18: 164321.27
A19: 16 | B19: Canadá | C19: 72218.751 | D19: 0.01021631432 | F19: 16 | G19: Argentina | H19: 72787.4116 | I19: 0.007135258919 | K19: 16 | L19: Roménia | M19: 151197.393 | N19: 0.008754889093 | O19: -119592.9586
A20: 17 | B20: China, República Popular da | C20: 72213.4462 | D20: 0.01021556388 | F20: 17 | G20: Dinamarca | H20: 70233.1534 | I20: 0.006884868183 | K20: 17 | L20: Irlanda | M20: 134807.959 | N20: 0.007805880158 | O20: -81317.7342
A21: 18 | B21: Japão | C21: 54923.0146 | D21: 0.007769599622 | F21: 18 | G21: Costa Rica | H21: 69966.4334 | I21: 0.006858721955 | K21: 18 | L21: África do Sul | M21: 134356.7194 | N21: 0.007779751714 | O21: -90686.3598
A22: 19 | B22: Suécia | C22: 50793.0088 | D22: 0.007185354716 | F22: 19 | G22: Reino Unido (sem Irlanda do Norte) pós 2020 | H22: 49578.5598 | I22: 0.004860124206 | K22: 19 | L22: Dinamarca | M22: 117665.3674 | N22: 0.006813260608 | O22: -22800.9394
A23: 20 | B23: Rússia, Federação da | C23: 48391.7838 | D23: 0.006845669122 | F23: 20 | G23: China, República Popular da | H23: 45047.8158 | I23: 0.004415981039 | K23: 20 | L23: China, República Popular da | M23: 117261.262 | N23: 0.006789861408 | O23: 27165.6304
A24: 21 | B24: Dinamarca | C24: 47432.214 | D24: 0.006709925059 | F24: 21 | G24: Bulgária | H24: 43907.4694 | I24: 0.004304194307 | K24: 21 | L24: Suíça | M24: 94990.5356 | N24: 0.005500303858 | O24: 88993.6004
A25: 22 | B25: Luxemburgo | C25: 45125.6972 | D25: 0.006383637214 | F25: 22 | G25: Cuba | H25: 35799.7426 | I25: 0.00350940399 | K25: 22 | L25: Cabo Verde | M25: 85541.4296 | N25: 0.004953165621 | O25: 85286.6088
A26: 23 | B26: Marrocos | C26: 40786.9258 | D26: 0.005769859604 | F26: 23 | G26: Grécia | H26: 30645.8102 | I26: 0.003004170443 | K26: 23 | L26: Argentina | M26: 73024.74 | N26: 0.004228402931 | O26: -72550.0832
A27: 24 | B27: Guiné-Bissau | C27: 30105.237 | D27: 0.004258790959 | F27: 24 | G27: Vietname | H27: 28845.3448 | I27: 0.002827673072 | K27: 24 | L27: Costa Rica | M27: 71166.1566 | N27: 0.004120784068 | O27: -68766.7102
A28: 25 | B28: Irlanda | C28: 26745.1124 | D28: 0.00378345611 | F28: 25 | G28: Colômbia | H28: 28227.4602 | I28: 0.002767102617 | K28: 25 | L28: Japão | M28: 68496.2538 | N28: 0.003966186807 | O28: 41349.7754
A29: 26 | B29: São Tomé e Príncipe | C29: 25259.196 | D29: 0.003573253237 | F29: 26 | G29: Guiana | H29: 28025.2924 | I29: 0.002747284361 | K29: 26 | L29: Suécia | M29: 64449.5152 | N29: 0.003731865653 | O29: 37136.5024
A30: 27 | B30: Arábia Saudita | C30: 25195.0996 | D30: 0.003564185938 | F30: 27 | G30: Chile | H30: 24583.4362 | I30: 0.002409883503 | K30: 27 | L30: Rússia, Federação da | M30: 60550.976 | N30: 0.003506125793 | O30: 36232.5916
A31: 28 | B31: Moçambique | C31: 25036.1622 | D31: 0.003541702104 | F31: 28 | G31: Áustria | H31: 23718.0114 | I31: 0.002325046992 | K31: 28 | L31: Luxemburgo | M31: 53191.4828 | N31: 0.003079983877 | O31: 37059.9116
A32: 29 | B32: Grécia | C32: 22444.1484 | D32: 0.003175026866 | F32: 29 | G32: Uruguai | H32: 22544.1794 | I32: 0.002209977709 | K32: 29 | L32: Grécia | M32: 53089.9586 | N32: 0.003074105249 | O32: -8201.6618
A33: 30 | B33: África do Sul | C33: 21835.1798 | D33: 0.003088880062 | F33: 30 | G33: Checa, República | H33: 21986.3926 | I33: 0.002155298567 | K33: 30 | L33: Bulgária | M33: 52078.8802 | N33: 0.003015560065 | O33: -35736.0586
A34: 31 | B34: Finlândia | C34: 19871.7108 | D34: 0.002811120945 | F34: 31 | G34: Costa do Marfim | H34: 21706.691 | I34: 0.002127879769 | K34: 31 | L34: Marrocos | M34: 50674.6404 | N34: 0.002934249379 | O34: 30899.2112
A35: 32 | B35: Checa, República | C35: 18184.9724 | D35: 0.002572509097 | F35: 32 | G35: Índia | H35: 20830.7032 | I35: 0.00204200778 | K35: 32 | L35: Checa, República | M35: 40171.365 | N35: 0.002326070829 | O35: -3801.4202
A36: 33 | B36: Jordânia | C36: 17519.4376 | D36: 0.002478360242 | F36: 33 | G36: Paraguai | H36: 18542.9402 | I36: 0.001817741235 | K36: 33 | L36: Cuba | M36: 38669.2808 | N36: 0.00223909459 | O36: -32930.2044
A37: 34 | B37: Noruega | C37: 16995.9884 | D37: 0.002404311308 | F37: 34 | G37: Turquia | H37: 17991.0046 | I37: 0.001763635678 | K37: 34 | L37: Áustria | M37: 38078.486 | N37: 0.002204885383 | O37: -9357.5368
A38: 35 | B38: Roménia | C38: 15802.2172 | D38: 0.002235436304 | F38: 35 | G38: Hungria | H38: 16792.9934 | I38: 0.001646196139 | K38: 35 | L38: Moçambique | M38: 35149.7218 | N38: 0.002035299088 | O38: 14922.6026
A39: 36 | B39: Austrália | C39: 14444.222 | D39: 0.002043329606 | F39: 36 | G39: Uganda | H39: 16711.9036 | I39: 0.001638247007 | K39: 36 | L39: Colômbia | M39: 34588.8908 | N39: 0.002002824895 | O39: -21866.0296
A40: 37 | B40: Áustria | C40: 14360.4746 | D40: 0.002031482409 | F40: 37 | G40: Suécia | H40: 13656.5064 | I40: 0.001338730241 | K40: 37 | L40: Vietname | M40: 30879.9888 | N40: 0.001788065732 | O40: -26810.7008
A41: 38 | B41: Coreia, República da | C41: 13720.4568 | D41: 0.001940943277 | F41: 38 | G41: Japão | H41: 13573.2392 | I41: 0.001330567662 | K41: 38 | L41: Guiné-Bissau | M41: 30466.6832 | N41: 0.001764133807 | O41: 29743.7908
A42: 39 | B42: Iraque | C42: 12397.914 | D42: 0.001753851798 | F42: 39 | G42: Suazilândia | H42: 13238.5804 | I42: 0.001297761478 | K42: 39 | L42: Chile | M42: 30213.2108 | N42: 0.001749456816 | O42: -18953.6616
A43: 40 | B43: Emirados Árabes Unidos | C43: 11828.644 | D43: 0.001673320895 | F43: 40 | G43: Indonésia | H43: 13212.7406 | I43: 0.001295228435 | K43: 40 | L43: Guiana | M43: 28043.5358 | N43: 0.001623824597 | O43: -28007.049
A44: 41 | B44: Argélia | C44: 11256.5744 | D44: 0.001592393951 | F44: 41 | G44: México | H44: 13063.7214 | I44: 0.001280620269 | K44: 41 | L44: Hungria | M44: 28003.0576 | N44: 0.001621480759 | O44: -5582.9292
A45: 42 | B45: Macau | C45: 11226.3746 | D45: 0.001588121783 | F45: 42 | G45: Austrália | H45: 12930.0706 | I45: 0.001267518648 | K45: 42 | L45: Turquia | M45: 27957.3216 | N45: 0.001618832475 | O45: -8024.6876
A46: 43 | B46: Hungria | C46: 11210.0642 | D46: 0.001585814457 | F46: 43 | G46: Rússia, Federação da | H46: 12159.1922 | I46: 0.001191950403 | K46: 43 | L46: Finlândia | M46: 27396.6714 | N46: 0.001586368752 | O46: 12346.7502
A47: 44 | B47: Nigéria | C47: 10936.4444 | D47: 0.001547107254 | F47: 44 | G47: Moldava, República de | H47: 11903.439 | I47: 0.001166879237 | K47: 44 | L47: Austrália | M47: 27374.2926 | N47: 0.001585072937 | O47: 1514.1514
A48: 45 | B48: Turquia | C48: 9966.317 | D48: 0.001409869676 | F48: 45 | G48: Lituânia | H48: 11893.779 | I48: 0.001165932279 | K48: 45 | L48: Costa do Marfim | M48: 27312.2412 | N48: 0.001581479931 | O48: -16101.1408
A49: 46 | B49: Território Palestiniano Ocupado | C49: 9369.3582 | D49: 0.001325421819 | F49: 46 | G49: Peru | H49: 11310.0138 | I49: 0.001108706507 | K49: 46 | L49: São Tomé e Príncipe | M49: 26312.808 | N49: 0.001523609046 | O49: 24205.584
A50: 47 | B50: Eslováquia | C50: 9079.0046 | D50: 0.001284347395 | F50: 47 | G50: Paquistão | H50: 10304.445 | I50: 0.001010131855 | K50: 47 | L50: Arábia Saudita | M50: 25220.0634 | N50: 0.001460335087 | O50: 25170.1358
A51: 48 | B51: Senegal | C51: 8493.732 | D51: 0.001201552708 | F51: 48 | G51: Tailândia | H51: 10200.8142 | I51: 0.0009999730572 | K51: 48 | L51: Uruguai | M51: 24295.8202 | N51: 0.001406817982 | O51: -20792.5386
A52: 49 | B52: Bulgária | C52: 8171.4108 | D52: 0.001155956036 | F52: 49 | G52: Moçambique | H52: 10113.5596 | I52: 0.0009914195979 | K52: 49 | L52: Índia | M52: 23845.568 | N52: 0.001380746712 | O52: -17815.8384
A53: 50 | B53: Líbia, Jamahira Árabe da | C53: 7994.4952 | D53: 0.001130928944 | F53: 50 | G53: Marrocos | H53: 9887.7146 | I53: 0.000969280295 | K53: 50 | L53: Paraguai | M53: 19187.5668 | N53: 0.001111031189 | O53: -17898.3136
A54: 51 | B54: Gibraltar | C54: 7555.2434 | D54: 0.001068790865 | F54: 51 | G54: Egito | H54: 9790.5476 | I54: 0.0009597551355 | K54: 51 | L54: México | M54: 18719.3066 | N54: 0.001083917189 | O54: -7408.1362
A55: 52 | B55: Kuwait | C55: 7350.4748 | D55: 0.00103982359 | F55: 52 | G55: Sérvia | H55: 8809.786 | I55: 0.0008636123026 | K55: 52 | L55: Noruega | M55: 18007.7536 | N55: 0.001042715635 | O55: 15984.2232
A56: 53 | B56: Ucrânia | C56: 6755.1782 | D56: 0.0009556108741 | F56: 53 | G56: Equador | H56: 8208.356 | I56: 0.0008046548719 | K56: 53 | L56: Jordânia | M56: 17549.35 | N56: 0.001016172368 | O56: 17489.5252
A57: 54 | B57: Colômbia | C57: 6361.4306 | D57: 0.0008999099766 | F57: 54 | G57: Luxemburgo | H57: 8065.7856 | I57: 0.000790678874 | K57: 54 | L57: Uganda | M57: 17196.9522 | N57: 0.0009957672303 | O57: -16226.855
A58: 55 | B58: Letónia | C58: 5847.3278 | D58: 0.0008271832163 | F58: 55 | G58: Nova Zelânda | H58: 7880.7508 | I58: 0.0007725401439 | K58: 55 | L58: Lituânia | M58: 16927.7228 | N58: 0.0009801778508 | O58: -6859.8352
A59: 56 | B59: HongKong | C59: 5831.0346 | D59: 0.0008248783238 | F59: 56 | G59: Finlândia | H59: 7524.9606 | I59: 0.0007376624757 | K59: 56 | L59: Suazilândia | M59: 15229.1586 | N59: 0.0008818246921 | O59: -11248.0022
A60: 57 | B60: Maurícias | C60: 5663.2906 | D60: 0.0008011486774 | F60: 57 | G60: Letónia | H60: 7523.6884 | I60: 0.0007375377635 | K60: 57 | L60: Coreia, República da | M60: 14661.023 | N60: 0.0008489275365 | O60: 12779.8906
A61: 58 | B61: México | C61: 5655.5852 | D61: 0.0008000586448 | F61: 58 | G61: Malásia | H61: 7403.8212 | I61: 0.0007257873318 | K61: 58 | L61: Indonésia | M61: 14350.1382 | N61: 0.000830926155 | O61: -12075.343
A62: 59 | B62: Chile | C62: 5629.7746 | D62: 0.0007964073881 | F62: 59 | G62: Angola | H62: 7121.9724 | I62: 0.0006981580464 | K62: 59 | L62: Letónia | M62: 13371.0162 | N62: 0.0007742313645 | O62: -1676.3606
A63: 60 | B63: Costa do Marfim | C63: 5605.5502 | D63: 0.0007929805207 | F63: 60 | G63: Camarões | H63: 6330.963 | I63: 0.0006206163843 | K63: 60 | L63: Tailândia | M63: 13287.6996 | N63: 0.0007694070248 | O63: -7113.9288
A64: 61 | B64: Andorra | C64: 5268.3636 | D64: 0.0007452809379 | F64: 61 | G64: Honduras | H64: 6193.8364 | I64: 0.0006071740352 | K64: 61 | L64: Peru | M64: 13096.7276 | N64: 0.0007583490386 | O64: -9523.3
A65: 62 | B65: Lituânia | C65: 5033.9438 | D65: 0.0007121191022 | F65: 62 | G65: Etiópia | H65: 5332.904 | I65: 0.0005227779089 | K65: 62 | L65: Eslováquia | M65: 12639.492 | N65: 0.0007318734038 | O65: 5518.5172
A66: 63 | B66: Malta | C66: 4911.2352 | D66: 0.0006947603192 | F66: 63 | G66: Israel | H66: 5167.1606 | I66: 0.0005065302907 | K66: 63 | L66: Iraque | M66: 12410.178 | N66: 0.0007185952738 | O66: 12385.65
A67: 64 | B67: Estónia | C67: 4891.9612 | D67: 0.0006920337525 | F67: 64 | G67: Belize | H67: 5153.7922 | I67: 0.0005052198032 | K67: 64 | L67: Emirados Árabes Unidos | M67: 12284.869 | N67: 0.0007113394185 | O67: 11372.419
A68: 65 | B68: Síria, República Árabe da | C68: 4399.3294 | D68: 0.000622344354 | F68: 65 | G68: Camboja | H68: 4964.3942 | I68: 0.0004866533541 | K68: 65 | L68: Moldava, República de | M68: 12104.827 | N68: 0.0007009143198 | O68: -11702.051
A69: 66 | B69: Chipre | C69: 4051.8682 | D69: 0.0005731912908 | F69: 66 | G69: Zimbabwe | H69: 4709.0808 | I69: 0.0004616253009 | K69: 66 | L69: Argélia | M69: 11803.9212 | N69: 0.0006834907595 | O69: 10709.2276
A70: 67 | B70: Omã | C70: 3805.6814 | D70: 0.0005383648545 | F70: 67 | G70: Guatemala | H70: 4635.2426 | I70: 0.0004543870345 | K70: 67 | L70: Sérvia | M70: 11344.2962 | N70: 0.0006568767695 | O70: -6275.2758
A71: 68 | B71: Eslovénia | C71: 3315.0192 | D71: 0.0004689540826 | F71: 68 | G71: Suriname | H71: 4613.819 | I71: 0.0004522869058 | K71: 68 | L71: Egito | M71: 11329.12 | N71: 0.0006559980113 | O71: -8251.9752
A72: 69 | B72: Mali | C72: 3288.1148 | D72: 0.0004651480931 | F72: 69 | G72: Macedónia, Antiga República jugoslava da | H72: 4601.7574 | I72: 0.0004511045222 | K72: 69 | L72: Macau | M72: 11244.0184 | N72: 0.0006510703135 | O72: 11208.7308
A73: 70 | B73: Tailândia | C73: 3086.8854 | D73: 0.0004366814861 | F73: 70 | G73: Tanzânia, República Unida da | H73: 4539.7292 | I73: 0.0004450239753 | K73: 70 | L73: Nigéria | M73: 11134.6158 | N73: 0.0006447354977 | O73: 10738.273
A74: 71 | B74: Índia | C74: 3014.8648 | D74: 0.0004264932029 | F74: 71 | G74: Eslovénia | H74: 4539.0796 | I74: 0.0004449602959 | K74: 71 | L74: Paquistão | M74: 10571.2956 | N74: 0.0006121171716 | O74: -10037.5944
A75: 72 | B75: Singapura | C75: 2938.7244 | D75: 0.0004157221186 | F75: 72 | G75: Filipinas | H75: 4493.8362 | I75: 0.0004405251419 | K75: 72 | L75: Nova Zelânda | M75: 10270.7832 | N75: 0.0005947163905 | O75: -5490.7184
A76: 73 | B76: Cuba | C76: 2869.5382 | D76: 0.0004059347994 | F76: 73 | G76: Tunísia | H76: 4123.8374 | I76: 0.0004042546224 | K76: 73 | L76: Território Palestiniano Ocupado | M76: 9369.8434 | N76: 0.000542548639 | O76: 9368.873
A77: 74 | B77: Gana | C77: 2746.7854 | D77: 0.0003885697637 | F77: 74 | G77: Estónia | H77: 4040.7446 | I77: 0.0003961091391 | K77: 74 | L77: Senegal | M77: 9057.1362 | N77: 0.0005244417338 | O77: 7930.3278
A78: 75 | B78: Taiwan | C78: 2744.6238 | D78: 0.0003882639763 | F78: 75 | G78: Mali | H78: 3761.0172 | I78: 0.000368687812 | K78: 75 | L78: Equador | M78: 9035.7916 | N78: 0.0005232058024 | O78: -7380.9204
A79: 76 | B79: Sérvia | C79: 2534.5102 | D79: 0.0003585405797 | F79: 76 | G79: Eslováquia | H79: 3560.4874 | I79: 0.0003490301265 | K79: 76 | L79: Estónia | M79: 8932.7058 | N79: 0.0005172367528 | O79: 851.2166
A80: 77 | B80: Líbano | C80: 2490.8708 | D80: 0.0003523671992 | F80: 77 | G80: Myanmar | H80: 3336.3804 | I80: 0.0003270611976 | K80: 77 | L80: Malásia | M80: 8922.5932 | N80: 0.0005166511958 | O80: -5885.0492
A81: 78 | B81: Timor-Leste | C81: 2471.9198 | D81: 0.0003496863252 | F81: 78 | G81: Quénia | H81: 3256.788 | I81: 0.0003192588542 | K81: 78 | L81: Camarões | M81: 8612.0928 | N81: 0.0004986720725 | O81: -4049.8332
A82: 79 | B82: Belarus | C82: 2455.9286 | D82: 0.0003474241547 | F82: 79 | G82: Malavi | H82: 3254.1854 | I82: 0.0003190037245 | K82: 79 | L82: Kuwait | M82: 8534.0068 | N82: 0.0004941506039 | O82: 6166.9428
A83: 80 | B83: Nova Zelânda | C83: 2390.0324 | D83: 0.0003381022503 | F83: 80 | G83: Nicarágua | H83: 3164.5168 | I83: 0.0003102136238 | K83: 80 | L83: Líbia, Jamahira Árabe da | M83: 8000.447 | N83: 0.0004632555151 | O83: 7988.5434
A84: 81 | B84: Filipinas | C84: 2342.9576 | D84: 0.0003314428863 | F84: 81 | G84: Chipre | H84: 3103.6452 | I84: 0.000304246457 | K84: 81 | L84: Eslovénia | M84: 7854.0988 | N84: 0.0004547814123 | O84: -1224.0604
A85: 82 | B85: Guiné | C85: 2294.4076 | D85: 0.0003245748354 | F85: 82 | G85: Sri Lanca | H85: 3086.3876 | I85: 0.0003025547161 | K85: 82 | L85: Gibraltar | M85: 7555.2434 | N85: 0.0004374765776 | O85: 7555.2434
A86: 83 | B86: Camarões | C86: 2281.1298 | D86: 0.0003226965118 | F86: 83 | G86: Suíça | H86: 2998.4676 | I86: 0.0002939360284 | K86: 83 | L86: Maurícias | M86: 7215.0914 | N86: 0.0004177805169 | O86: 4111.4898
A87: 84 | B87: Irão, República Islâmica do | C87: 2234.7082 | D87: 0.0003161295517 | F87: 84 | G87: Taiwan | H87: 2719.0514 | I87: 0.0002665452078 | K87: 84 | L87: Chipre | M87: 7155.5134 | N87: 0.00041433073 | O87: 948.223
A88: 85 | B88: Congo | C88: 2180.7492 | D88: 0.000308496325 | F88: 85 | G88: Reino Unido (Irlanda do Norte) pós-2020 | H88: 2486.6052 | I88: 0.0002437587976 | K88: 85 | L88: Mali | M88: 7049.132 | N88: 0.0004081708529 | O88: -472.9024
A89: 86 | B89: Seychelles | C89: 2103.9052 | D89: 0.0002976257069 | F89: 86 | G89: Dominicana, República | H89: 2224.7388 | I89: 0.0002180883619 | K89: 86 | L89: HongKong | M89: 7034.0506 | N89: 0.000407297584 | O89: 4628.0186
A90: 87 | B90: Gabão | C90: 2079.6516 | D90: 0.0002941947088 | F90: 87 | G90: Serra Leoa | H90: 1997.841 | I90: 0.0001958458544 | K90: 87 | L90: Honduras | M90: 7007.5386 | N90: 0.000405762441 | O90: -5380.1342
A91: 88 | B91: Venezuela | C91: 2058.4802 | D91: 0.0002911997293 | F91: 88 | G91: Benim | H91: 1817.5436 | I91: 0.0001781715258 | K91: 88 | L91: Filipinas | M91: 6836.7938 | N91: 0.0003958756847 | O91: -2150.8786
A92: 89 | B92: Vietname | C92: 2034.644 | D92: 0.000287827778 | F92: 89 | G92: Croácia | H92: 1794.8456 | I92: 0.0001759464692 | K92: 89 | L92: Etiópia | M92: 6077.3128 | N92: 0.0003518989216 | O92: -4588.4952
A93: 90 | B93: Suazilândia | C93: 1990.5782 | D93: 0.0002815940775 | F93: 90 | G93: Burquina Faso | H93: 1725.7566 | I93: 0.000169173761 | K93: 90 | L93: Taiwan | M93: 5463.6752 | N93: 0.0003163670317 | O93: 25.5724
A94: 91 | B94: Sudão | C94: 1865.0268 | D94: 0.0002638331422 | F94: 91 | G94: Gana | H94: 1658.8832 | I94: 0.0001626182452 | K94: 91 | L94: Malta | M94: 5451.155 | N94: 0.0003156420657 | O94: 4371.3154
A95: 92 | B95: Burquina Faso | C95: 1848.8938 | D95: 0.0002615509122 | F95: 92 | G95: Laos, República Democrática Popular do | H95: 1570.3752 | I95: 0.0001539419167 | K95: 92 | L95: Camboja | M95: 5365.826 | N95: 0.0003107012005 | O95: -4562.9624
A96: 93 | B96: Guiné Equatorial | C96: 1818.0792 | D96: 0.0002571917723 | F96: 93 | G96: Maurícias | H96: 1551.8008 | I96: 0.0001521210915 | K96: 93 | L96: Síria, República Árabe da | M96: 5349.1634 | N96: 0.0003097363743 | O96: 3449.4954
A97: 94 | B97: Peru | C97: 1786.7138 | D97: 0.0002527547143 | F97: 94 | G97: Madagáscar | H97: 1535.4408 | I97: 0.0001505173411 | K97: 94 | L97: Andorra | M97: 5273.09 | N97: 0.0003053314426 | O97: 5263.6372
A98: 95 | B98: Croácia | C98: 1762.667 | D98: 0.0002493529708 | F98: 95 | G98: Panamá | H98: 1513.6732 | I98: 0.0001483834905 | K98: 95 | L98: Belize | M98: 5155.9728 | N98: 0.000298549923 | O98: -5151.6116
A99: 96 | B99: Uruguai | C99: 1751.6408 | D99: 0.0002477931664 | F99: 96 | G99: Congo, República Democrática do | H99: 1226.6954 | I99: 0.0001202514158 | K99: 96 | L99: Guatemala | M99: 5127.1054 | N99: 0.0002968783936 | O99: -4143.3798
A100: 97 | B100: Dominicana, República | C100: 1708.9932 | D100: 0.0002417600894 | F100: 97 | G100: HongKong | H100: 1203.016 | I100: 0.0001179301538 | K100: 97 | L100: Tanzânia, República Unida da | M100: 4910.617 | N100: 0.0002843429133 | O100: -4168.8414
A101: 98 | B101: Benim | C101: 1572.4166 | D101: 0.0002224394912 | F101: 98 | G101: Kuwait | H101: 1183.532 | I101: 0.0001160201616 | K101: 98 | L101: Macedónia, Antiga República jugoslava da | M101: 4874.4688 | N101: 0.0002822497987 | O101: -4329.046
A102: 99 | B102: Bangladesh | C102: 1558.9346 | D102: 0.0002205322808 | F102: 99 | G102: Togo | H102: 1123.3282 | I102: 0.0001101184584 | K102: 99 | L102: Tunísia | M102: 4849.4484 | N102: 0.0002808010248 | O102: -3398.2264
A103: 100 | B103: Egito | C103: 1538.5724 | D103: 0.0002176517736 | F103: 100 | G103: Singapura | H103: 1066.466 | I103: 0.0001045443281 | K103: 100 | L103: Zimbabwe | M103: 4772.3634 | N103: 0.0002763375178 | O103: -4645.7982
A104: 101 | B104: Malásia | C104: 1518.772 | D104: 0.0002148507405 | F104: 101 | G104: São Tomé e Príncipe | H104: 1053.612 | I104: 0.0001032842665 | K104: 101 | L104: Suriname | M104: 4769.9158 | N104: 0.0002761957927 | O104: -4457.7222
A105: 102 | B105: Catar | C105: 1515.1716 | D105: 0.0002143414155 | F105: 102 | G105: Noruega | H105: 1011.7652 | I105: 9.918207707e-05 | K105: 102 | L105: Gana | M105: 4405.6686 | N105: 0.0002551045306 | O105: 1087.9022
A106: 103 | B106: Geórgia | C106: 1344.215 | D106: 0.0001901573035 | F106: 103 | G106: Síria, República Árabe da | H106: 949.834 | I106: 9.3111039e-05 | K106: 103 | L106: Omã | M106: 4283.851 | N106: 0.0002480508404 | O106: 3327.5118
A107: 104 | B107: Albânia | C107: 1266.1722 | D107: 0.0001791170991 | F107: 104 | G107: Coreia, República da | H107: 940.5662 | I107: 9.220252816e-05 | K107: 104 | L107: Singapura | M107: 4005.1904 | N107: 0.0002319153595 | O107: 1872.2584
A108: 105 | B108: Reino Unido (Irlanda do Norte) pós-2020 | C108: 1227.8066 | D108: 0.0001736897686 | F108: 105 | G108: El Salvador | H108: 728.093 | I108: 7.137404612e-05 | K108: 105 | L108: Dominicana, República | M108: 3933.732 | N108: 0.0002277776534 | O108: -515.7456
A109: 106 | B109: Costa Rica | C109: 1199.7232 | D109: 0.0001697169937 | F109: 106 | G109: Turquemenistão | H109: 720.6558 | I109: 7.06449867e-05 | K109: 106 | L109: Myanmar | M109: 3786.5898 | N109: 0.000219257575 | O109: -2886.171
A110: 107 | B110: Indonésia | C110: 1137.3976 | D110: 0.0001609001987 | F110: 107 | G110: Chade | H110: 675.9004 | I110: 6.625767082e-05 | K110: 107 | L110: Reino Unido (Irlanda do Norte) pós-2020 | M110: 3714.4118 | N110: 0.0002150782015 | O110: -1258.7986
A111: 108 | B111: Islândia | C111: 1133.5366 | D111: 0.0001603540083 | F111: 108 | G111: Timor-Leste | H111: 614.309 | I111: 6.021994291e-05 | K111: 108 | L111: Quénia | M111: 3707.2604 | N111: 0.0002146641089 | O111: -2806.3156
A112: 109 | B112: Congo, República Democrática do | C112: 1102.9278 | D112: 0.0001560239816 | F112: 109 | G112: Senegal | H112: 563.4042 | I112: 5.522980904e-05 | K112: 109 | L112: Nicarágua | M112: 3581.5684 | N112: 0.0002073860766 | O112: -2747.4652
A113: 110 | B113: Togo | C113: 886.836 | D113: 0.0001254548881 | F113: 110 | G113: Argélia | H113: 547.3468 | I113: 5.36557222e-05 | K113: 110 | L113: Burquina Faso | M113: 3574.6504 | N113: 0.0002069854987 | O113: 123.1372
A114: 111 | B114: Panamá | C114: 853.2114 | D114: 0.0001206982359 | F114: 111 | G114: Malta | H114: 539.9198 | I114: 5.292766268e-05 | K114: 111 | L114: Croácia | M114: 3557.5126 | N114: 0.0002059931566 | O114: -32.1786
A115: 112 | B115: Equador | C115: 827.4356 | D115: 0.000117051902 | F115: 112 | G115: Líbano | H115: 532.182 | I115: 5.216913582e-05 | K115: 112 | L115: Sri Lanca | M115: 3479.4264 | N115: 0.0002014716764 | O115: -2693.3488
A116: 113 | B116: Ruanda | C116: 825.8566 | D116: 0.0001168285312 | F116: 113 | G116: Omã | H116: 478.1696 | I116: 4.687436781e-05 | K116: 113 | L116: Benim | M116: 3389.9602 | N116: 0.0001962912521 | O116: -245.127
A117: 114 | B117: Honduras | C117: 813.7022 | D117: 0.0001151091278 | F117: 114 | G117: Emirados Árabes Unidos | H117: 456.225 | I117: 4.472316612e-05 | K117: 114 | L117: Malavi | M117: 3260.7888 | N117: 0.0001888117496 | O117: -3247.582
A118: 115 | B118: Bermudas | C118: 793.1712 | D118: 0.0001122047415 | F118: 115 | G118: Belarus | H118: 370.985 | I118: 3.636719553e-05 | K118: 115 | L118: Timor-Leste | M118: 3086.2288 | N118: 0.000178704079 | O118: 1857.6108
A119: 116 | B119: Etiópia | C119: 744.4088 | D119: 0.0001053066437 | F119: 116 | G119: Guiné-Bissau | H119: 361.4462 | I119: 3.54321189e-05 | K119: 116 | L119: Líbano | M119: 3023.0528 | N119: 0.0001750459546 | O119: 1958.6888
A120: 117 | B120: Tunísia | C120: 725.611 | D120: 0.0001026474419 | F120: 117 | G120: Usbequistão | H120: 308.3676 | I120: 3.022889013e-05 | K120: 117 | L120: Belarus | M120: 2826.9136 | N120: 0.0001636887684 | O120: 2084.9436
A121: 118 | B121: Burundi | C121: 677.0954 | D121: 9.578425733e-05 | F121: 118 | G121: Guiné | H121: 302.1342 | I121: 2.961783773e-05 | K121: 118 | L121: Guiné | M121: 2596.5418 | N121: 0.0001503493879 | O121: 1992.2734
A122: 119 | B122: Iémen | C122: 670.7886 | D122: 9.489207559e-05 | F122: 119 | G122: Geórgia | H122: 294.6596 | I122: 2.888511204e-05 | K122: 119 | L122: Serra Leoa | M122: 2499.2974 | N122: 0.0001447185769 | O122: -1496.3846
A123: 120 | B123: Paraguai | C123: 644.6266 | D123: 9.119110857e-05 | F123: 120 | G123: Bolívia | H123: 281.7088 | I123: 2.761556131e-05 | K123: 120 | L123: Irão, República Islâmica do | M123: 2440.2744 | N123: 0.0001413009266 | O123: 2029.142
A124: 121 | B124: Namíbia | C124: 633.7298 | D124: 8.964960955e-05 | F124: 121 | G124: Bangladesh | H124: 280.8088 | I124: 2.752733544e-05 | K124: 121 | L124: Congo | M124: 2380.0768 | N124: 0.0001378152626 | O124: 1981.4216
A125: 122 | B125: Azerbaijão | C125: 594.9756 | D125: 8.416730637e-05 | F125: 122 | G125: Irão, República Islâmica do | H125: 205.5662 | I125: 2.015139747e-05 | K125: 122 | L125: Panamá | M125: 2366.8846 | N125: 0.0001370513853 | O125: -660.4618
A126: 123 | B126: Arménia | C126: 559.6906 | D126: 7.917576822e-05 | F126: 123 | G126: Congo | H126: 199.3276 | I126: 1.953983532e-05 | K126: 123 | L126: Congo, República Democrática do | M126: 2329.6232 | N126: 0.0001348938123 | O126: -123.7676
A127: 124 | B127: Cazaquistão | C127: 531.8816 | D127: 7.524181089e-05 | F127: 124 | G127: Zâmbia | H127: 199.294 | I127: 1.953654155e-05 | K127: 124 | L127: Venezuela | M127: 2213.4414 | N127: 0.0001281664557 | O127: 1903.519
A128: 125 | B128: Aruba | C128: 522.985 | D128: 7.398326708e-05 | F128: 125 | G128: Nigéria | H128: 198.1714 | I128: 1.942649448e-05 | K128: 125 | L128: Seychelles | M128: 2103.9052 | N128: 0.000121823904 | O128: 2103.9052
A129: 126 | B129: Serra Leoa | C129: 501.4564 | D129: 7.093775686e-05 | F129: 126 | G129: Islândia | H129: 193.9226 | I129: 1.900998993e-05 | K129: 126 | L129: Gabão | M129: 2079.9016 | N129: 0.0001204340066 | O129: 2079.4016
A130: 127 | B130: Guatemala | C130: 491.8628 | D130: 6.958061302e-05 | F130: 127 | G130: Venezuela | H130: 154.9612 | I130: 1.519065262e-05 | K130: 127 | L130: Togo | M130: 2010.1642 | N130: 0.0001163959529 | O130: -236.4922
A131: 128 | B131: Uganda | C131: 485.0486 | D131: 6.861665272e-05 | F131: 128 | G131: Cabo Verde | H131: 127.4104 | I131: 1.248988215e-05 | K131: 128 | L131: Sudão | M131: 1881.5594 | N131: 0.0001089492586 | O131: 1848.4942
A132: 129 | B132: São Bartolomeu | C132: 472.0258 | D132: 6.677440239e-05 | F132: 129 | G132: Azerbaijão | H132: 124.836 | I132: 1.223751694e-05 | K132: 129 | L132: Bangladesh | M132: 1839.7434 | N132: 0.0001065279573 | O132: 1278.1258
A133: 130 | B133: Mauritânia | C133: 470.2498 | D133: 6.652316328e-05 | F133: 130 | G133: Albânia | H133: 104.1554 | I133: 1.021022359e-05 | K133: 130 | L133: Guiné Equatorial | M133: 1818.0792 | N133: 0.0001052735199 | O133: 1818.0792
A134: 131 | B134: Barém | C134: 469.46 | D134: 6.641143544e-05 | F134: 131 | G134: Namíbia | H134: 70.1862 | I134: 6.880265399e-06 | K134: 131 | L134: Madagáscar | M134: 1665.0982 | N134: 9.641535334e-05 | O134: -1405.7834
A135: 132 | B135: Gâmbia | C135: 455.249 | D135: 6.440109823e-05 | F135: 132 | G135: Tajiquistão | H135: 59.4122 | I135: 5.824103655e-06 | K135: 132 | L135: Geórgia | M135: 1638.8746 | N135: 9.489690977e-05 | O135: 1049.5554
A136: 133 | B136: Quénia | C136: 450.4724 | D136: 6.372538387e-05 | F136: 133 | G136: Iémen | H136: 45.76 | I136: 4.485795565e-06 | K136: 133 | L136: Laos, República Democrática Popular do | M136: 1584.7624 | N136: 9.176361296e-05 | O136: -1555.988
A137: 134 | B137: Myanmar | C137: 450.2094 | D137: 6.368817898e-05 | F137: 134 | G137: Libéria | H137: 38.8276 | I137: 3.806221064e-06 | K137: 134 | L137: Catar | M137: 1531.2412 | N137: 8.866453723e-05 | O137: 1499.102
A138: 135 | B138: Kosovo | C138: 418.4652 | D138: 5.919753465e-05 | F138: 135 | G138: Aruba | H138: 38.0318 | I138: 3.728209785e-06 | K138: 135 | L138: Albânia | M138: 1370.3276 | N138: 7.934704376e-05 | O138: 1162.0168
A139: 136 | B139: Nicarágua | C139: 417.0516 | D139: 5.89975619e-05 | F139: 136 | G139: São Marino | H139: 32.7702 | I139: 3.212421718e-06 | K139: 136 | L139: Islândia | M139: 1327.4592 | N139: 7.686480462e-05 | O139: 939.614
A140: 137 | B140: Camboja | C140: 401.4318 | D140: 5.678793097e-05 | F140: 137 | G140: Botswana | H140: 30.0284 | I140: 2.943646493e-06 | K140: 137 | L140: El Salvador | M140: 1020.6408 | N140: 5.90988828e-05 | O140: -435.5452
A141: 138 | B141: Sri Lanca | C141: 393.0388 | D141: 5.560062815e-05 | F141: 138 | G141: Jordânia | H141: 29.9124 | I141: 2.932275159e-06 | K141: 138 | L141: Ruanda | M141: 826.094 | N141: 4.783390247e-05 | O141: 825.6192
A142: 139 | B142: Bolívia | C142: 391.1324 | D142: 5.533094222e-05 | F142: 139 | G142: Bósnia-Herzegovina | H142: 27.8982 | I142: 2.734825652e-06 | K142: 139 | L142: Bermudas | M142: 793.8626 | N142: 4.596758502e-05 | O142: 792.4798
A143: 140 | B143: Tanzânia, República Unida da | C143: 370.8878 | D143: 5.246707107e-05 | F143: 140 | G143: Papuásia-Nova Guiné | H143: 25.837 | I143: 2.532768794e-06 | K143: 140 | L143: Turquemenistão | M143: 732.4956 | N143: 4.241420842e-05 | O143: -708.816
A144: 141 | B144: São Martinho (parte holandesa) | C144: 349.244 | D144: 4.940526426e-05 | F144: 141 | G144: Arábia Saudita | H144: 24.9638 | I144: 2.44717009e-06 | K144: 141 | L144: Azerbaijão | M144: 719.8116 | N144: 4.167975784e-05 | O144: 470.1396
A145: 142 | B145: Comores | C145: 311.607 | D145: 4.408100406e-05 | F145: 142 | G145: Macau | H145: 17.6438 | I145: 1.729599646e-06 | K145: 142 | L145: Iémen | M145: 716.5486 | N145: 4.149081805e-05 | O145: 625.0286
A146: 143 | B146: Libéria | C146: 294.774 | D146: 4.169974965e-05 | F146: 143 | G146: Quirguizistão | H146: 17.4758 | I146: 1.713130816e-06 | K146: 143 | L146: Namíbia | M146: 703.916 | N146: 4.075934372e-05 | O146: 563.5436
A147: 144 | B147: Somália | C147: 292.8146 | D147: 4.142256615e-05 | F147: 144 | G147: Sudão | H147: 16.5326 | I147: 1.6206701e-06 | K147: 144 | L147: Burundi | M147: 677.2094 | N147: 3.921293266e-05 | O147: 676.9814
A148: 145 | B148: El Salvador | C148: 292.5478 | D148: 4.13848237e-05 | F148: 145 | G148: Catar | H148: 16.0696 | I148: 1.575282789e-06 | K148: 145 | L148: Chade | M148: 675.9044 | N148: 3.913736832e-05 | O148: -675.8964
A149: 146 | B149: Jamaica | C149: 276.7996 | D149: 3.915702886e-05 | F149: 146 | G149: Arménia | H149: 15.3428 | I149: 1.504035494e-06 | K149: 146 | L149: Bolívia | M149: 672.8412 | N149: 3.89599977e-05 | O149: 109.4236
A150: 147 | B150: Macedónia, Antiga República jugoslava da | C150: 272.7114 | D150: 3.857869794e-05 | F150: 147 | G150: Curaçau | H150: 12.9632 | I150: 1.270766282e-06 | K150: 147 | L150: Arménia | M150: 575.0334 | N150: 3.32965638e-05 | O150: 544.3478
A151: 148 | B151: Paquistão | C151: 266.8506 | D151: 3.77496089e-05 | F151: 148 | G151: Iraque | H151: 12.264 | I151: 1.202224581e-06 | K151: 148 | L151: Aruba | M151: 561.0168 | N151: 3.248495074e-05 | O151: 484.9532
A152: 149 | B152: Antígua e Barbuda | C152: 264.4064 | D152: 3.740384392e-05 | F152: 149 | G152: Jamaica | H152: 11.1274 | I152: 1.090805104e-06 | K152: 149 | L152: Cazaquistão | M152: 538.873 | N152: 3.12027427e-05 | O152: 524.8902
A153: 150 | B153: Argentina | C153: 237.3284 | D153: 3.357329637e-05 | F153: 150 | G153: Kosovo | H153: 8.3722 | I153: 8.207162943e-07 | K153: 150 | L153: Barém | M153: 473.8092 | N153: 2.743530768e-05 | O153: 465.1108
A154: 151 | B154: Curaçau | C154: 224.0074 | D154: 3.168886164e-05 | F154: 151 | G154: Cazaquistão | H154: 6.9914 | I154: 6.853581974e-07 | K154: 151 | L154: São Bartolomeu | M154: 472.3088 | N154: 2.734842896e-05 | O154: 471.7428
A155: 152 | B155: Moldava, República de | C155: 201.388 | D155: 2.848904307e-05 | F155: 152 | G155: Líbia, Jamahira Árabe da | H155: 5.9518 | I155: 5.834475097e-07 | K155: 152 | L155: Mauritânia | M155: 471.8238 | N155: 2.732034567e-05 | O155: 468.6758
A156: 153 | B156: Haiti | C156: 195.7344 | D156: 2.768926526e-05 | F156: 153 | G156: Andorra | H156: 4.7264 | I156: 4.633230804e-07 | K156: 153 | L156: Gâmbia | M156: 455.249 | N156: 2.636060335e-05 | O156: 455.249
A157: 154 | B157: Ceuta e Melilha | C157: 191.5534 | D157: 2.709780654e-05 | F157: 154 | G157: São Cristovão e Nevis | H157: 4.4456 | I157: 4.357966076e-07 | K157: 154 | L157: Kosovo | M157: 426.8374 | N157: 2.471546648e-05 | O157: 410.093
A158: 155 | B158: Suriname | C158: 156.0968 | D158: 2.208199326e-05 | F158: 155 | G158: Afeganistão | H158: 4.3746 | I158: 4.288365664e-07 | K158: 155 | L158: São Martinho (parte holandesa) | M158: 349.244 | N158: 2.022252121e-05 | O158: 349.244
A159: 156 | B159: Nova Caledónia | C159: 140.1192 | D159: 1.98217467e-05 | F159: 156 | G159: Barém | H159: 4.3492 | I159: 4.263466362e-07 | K159: 156 | L159: Usbequistão | M159: 348.7024 | N159: 2.019116056e-05 | O159: -268.0328
A160: 157 | B160: Trindade e Tobago | C160: 140.025 | D160: 1.980842084e-05 | F160: 157 | G160: Nepal | H160: 2.446 | I160: 2.397783206e-07 | K160: 157 | L160: Zâmbia | M160: 336.52 | N160: 1.948575448e-05 | O160: -62.068
A161: 158 | B161: Zâmbia | C161: 137.226 | D161: 1.941246462e-05 | F161: 158 | G161: Liechtenstein | H161: 1.7982 | I161: 1.762752969e-07 | K161: 158 | L161: Libéria | M161: 333.6016 | N161: 1.931676831e-05 | O161: 255.9464
A162: 159 | B162: Polinésia Francesa | C162: 133.1554 | D162: 1.883662346e-05 | F162: 159 | G162: Lesoto | H162: 1.7136 | I162: 1.679820647e-07 | K162: 159 | L162: Comores | M162: 311.607 | N162: 1.80431995e-05 | O162: 311.607
A163: 160 | B163: Madagáscar | C163: 129.6574 | D163: 1.834178428e-05 | F163: 160 | G163: Mauritânia | H163: 1.574 | I163: 1.542972513e-07 | K163: 160 | L163: Somália | M163: 292.8146 | N163: 1.695504993e-05 | O163: 292.8146
A164: 161 | B164: Maldivas | C164: 127.1794 | D164: 1.799123783e-05 | F164: 161 | G164: Fiji, Ilhas | H164: 1.3818 | I164: 1.354561257e-07 | K164: 161 | L164: Jamaica | M164: 287.927 | N164: 1.667203979e-05 | O164: 265.6722
A165: 162 | B165: Niger | C165: 113.05 | D165: 1.599244404e-05 | F165: 162 | G165: Bermudas | H165: 0.6914 | I165: 6.777707722e-08 | K165: 162 | L165: Antígua e Barbuda | M165: 264.426 | N165: 1.531124484e-05 | O165: 264.3868
A166: 163 | B166: Liechtenstein | C166: 106.2456 | D166: 1.502987008e-05 | F166: 163 | G166: Território Palestiniano Ocupado | H166: 0.4852 | I166: 4.756354913e-08 | K166: 163 | L166: Curaçau | M166: 236.9706 | N166: 1.372147548e-05 | O166: 211.0442
A167: 164 | B167: Centro-Africana, República | C167: 83.0308 | D167: 1.174582417e-05 | F167: 164 | G167: Montenegro | H167: 0.3086 | I167: 3.025167201e-08 | K167: 164 | L167: Haiti | M167: 195.7358 | N167: 1.133382783e-05 | O167: 195.733
A168: 165 | B168: Jibuti | C168: 77.3086 | D168: 1.093634196e-05 | F168: 165 | G168: São Bartolomeu | H168: 0.283 | I168: 2.774213603e-08 | K168: 165 | L168: Ceuta e Melilha | M168: 191.5534 | N168: 1.109165138e-05 | O168: 191.5534
A169: 166 | B169: Nepal | C169: 76.6542 | D169: 1.084376828e-05 | F169: 166 | G169: Gabão | H169: 0.25 | I169: 2.450718731e-08 | K169: 166 | L169: Nova Caledónia | M169: 140.1192 | N169: 8.113420685e-06 | O169: 140.1192
A170: 167 | B170: Zimbabwe | C170: 63.2826 | D170: 8.952175488e-06 | F170: 167 | G170: Ruanda | H170: 0.2374 | I170: 2.327202507e-08 | K170: 167 | L170: Trindade e Tobago | M170: 140.0354 | N170: 8.108568354e-06 | O170: 140.0146
A171: 168 | B171: Caimão, Ilhas | C171: 51.4562 | D171: 7.279172037e-06 | F171: 168 | G171: Barbados | H171: 0.1378 | I171: 1.350836164e-08 | K171: 168 | L171: Polinésia Francesa | M171: 133.1554 | N171: 7.710190871e-06 | O171: 133.1554
A172: 169 | B172: Bósnia-Herzegovina | C172: 50.6168 | D172: 7.16042761e-06 | F172: 169 | G172: Oceano Indico, Território Britânico do | H172: 0.128 | I172: 1.25476799e-08 | K172: 169 | L172: Maldivas | M172: 127.183 | N172: 7.364366789e-06 | O172: 127.1758
A173: 170 | B173: Montenegro | C173: 46.101 | D173: 6.521606922e-06 | F173: 170 | G173: Niger | H173: 0.1252 | I173: 1.22731994e-08 | K173: 170 | L173: Niger | M173: 113.1752 | N173: 6.553263283e-06 | O173: 112.9248
A174: 171 | B174: Bahamas | C174: 42.9652 | D174: 6.078005807e-06 | F174: 171 | G174: Burundi | H174: 0.114 | I174: 1.117527741e-08 | K174: 171 | L174: Liechtenstein | M174: 108.0438 | N174: 6.256136217e-06 | O174: 104.4474
A175: 172 | B175: Usbequistão | C175: 40.3348 | D175: 5.705900325e-06 | F175: 172 | G175: Antígua e Barbuda | H175: 0.0196 | I175: 1.921363485e-09 | K175: 172 | L175: Centro-Africana, República | M175: 83.0308 | N175: 4.807790868e-06 | O175: 83.0308
A176: 173 | B176: Mongólia | C176: 30.8452 | D176: 4.363468684e-06 | F176: 173 | G176: São Vicente e Granadinas | H176: 0.0144 | I176: 1.411613989e-09 | K176: 173 | L176: Nepal | M176: 79.1002 | N176: 4.580194569e-06 | O176: 74.2082
A177: 174 | B177: Afeganistão | C177: 18.9718 | D177: 2.683816451e-06 | F177: 174 | G177: Mongólia | H177: 0.0112 | I177: 1.097921991e-09 | K177: 174 | L177: Bósnia-Herzegovina | M177: 78.515 | N177: 4.546309321e-06 | O177: 22.7186
A178: 175 | B178: Guiana | C178: 18.2434 | D178: 2.580774467e-06 | F178: 175 | G178: Trindade e Tobago | H178: 0.0104 | I178: 1.019498992e-09 | K178: 175 | L178: Jibuti | M178: 77.3086 | N178: 4.476454293e-06 | O178: 77.3086
A179: 176 | B179: Turcas e Caicos, Ilhas | C179: 18.0666 | D179: 2.555763728e-06 | F179: 176 | G179: Virgens Britânicas, Ilhas | H179: 0.007 | I179: 6.862012446e-10 | K179: 176 | L179: Tajiquistão | M179: 59.4122 | N179: 3.440186444e-06 | O179: -59.4122
A180: 177 | B180: Laos, República Democrática Popular do | C180: 14.3872 | D180: 2.035263077e-06 | F180: 177 | G180: Santa Lúcia | H180: 0.004 | I180: 3.921149969e-10 | K180: 177 | L180: Caimão, Ilhas | M180: 51.4562 | N180: 2.979504575e-06 | O180: 51.4562
A181: 178 | B181: Barbados | C181: 14.032 | D181: 1.985015256e-06 | F181: 178 | G181: Maldivas | H181: 0.0036 | I181: 3.529034972e-10 | K181: 178 | L181: Montenegro | M181: 46.4096 | N181: 2.687287742e-06 | O181: 45.7924
A182: 179 | B182: Turquemenistão | C182: 11.8398 | D182: 1.674899061e-06 | F182: 179 | G182: Haiti | H182: 0.0014 | I182: 1.372402489e-10 | K182: 179 | L182: Bahamas | M182: 42.9652 | N182: 2.487844224e-06 | O182: 42.9652
A183: 180 | B183: Virgens Britânicas, Ilhas | C183: 9.9272 | D183: 1.40433605e-06 | F183: 180 | G183: Anguila | H183: 0 | I183: 0 | K183: 180 | L183: São Marino | M183: 32.7902 | N183: 1.898674036e-06 | O183: -32.7502
A184: 181 | B184: Fiji, Ilhas | C184: 8.1268 | D184: 1.149645238e-06 | F184: 181 | G184: Antárctica | H184: 0 | I184: 0 | K184: 181 | L184: Mongólia | M184: 30.8564 | N184: 1.786699853e-06 | O184: 30.834
A185: 182 | B185: Santa Lúcia | C185: 7.138 | D185: 1.00976617e-06 | F185: 182 | G185: Antilhas Holandesas | H185: 0 | I185: 0 | K185: 182 | L185: Botswana | M185: 30.1228 | N185: 1.744221696e-06 | O185: -29.934
A186: 183 | B186: Brunei Darussalam | C186: 6.98 | D186: 9.874149436e-07 | F186: 183 | G186: Bahamas | H186: 0 | I186: 0 | K186: 183 | L186: Papuásia-Nova Guiné | M186: 28.7226 | N186: 1.663144929e-06 | O186: -22.9514
A187: 184 | B187: Malavi | C187: 6.6034 | D187: 9.341398049e-07 | F187: 184 | G187: Bonaire, Santo Eustáquio e Saba | H187: 0 | I187: 0 | K187: 184 | L187: Afeganistão | M187: 23.3464 | N187: 1.351843036e-06 | O187: 14.5972
A188: 185 | B188: Guam | C188: 6.5774 | D188: 9.30461755e-07 | F188: 185 | G188: Bouvet, Ilha | H188: 0 | I188: 0 | K188: 185 | L188: Quirguizistão | M188: 22.1324 | N188: 1.281547939e-06 | O188: -12.8192
A189: 186 | B189: São Vicente e Granadinas | C189: 5.6654 | D189: 8.014470804e-07 | F189: 186 | G189: Brunei Darussalam | H189: 0 | I189: 0 | K189: 186 | L189: Turcas e Caicos, Ilhas | M189: 18.0666 | N189: 1.046123059e-06 | O189: 18.0666
A190: 187 | B190: Quirguizistão | C190: 4.6566 | D190: 6.58738743e-07 | F190: 187 | G190: Butão | H190: 0 | I190: 0 | K190: 187 | L190: Barbados | M190: 14.1698 | N190: 8.204839053e-07 | O190: 13.8942
A191: 188 | B191: Menores distantes dos Estados Unidos, lhas | C191: 4.5542 | D191: 6.442528848e-07 | F191: 188 | G191: Caimão, Ilhas | H191: 0 | I191: 0 | K191: 188 | L191: Virgens Britânicas, Ilhas | M191: 9.9342 | N191: 5.752269765e-07 | O191: 9.9202
A192: 189 | B192: Sudão do Sul | C192: 3.771 | D192: 5.334587037e-07 | F192: 189 | G192: Centro-Africana, República | H192: 0 | I192: 0 | K192: 189 | L192: Fiji, Ilhas | M192: 9.5086 | N192: 5.505831601e-07 | O192: 6.745
A193: 190 | B193: Bonaire, Santo Eustáquio e Saba | C193: 3.1276 | D193: 4.424411142e-07 | F193: 190 | G193: Ceuta | H193: 0 | I193: 0 | K193: 190 | L193: Santa Lúcia | M193: 7.142 | N193: 4.135482541e-07 | O193: 7.134
A194: 191 | B194: Marianas do Norte, Ilhas | C194: 2.9244 | D194: 4.136957394e-07 | F194: 191 | G194: Ceuta e Melilha | H194: 0 | I194: 0 | K194: 191 | L194: Brunei Darussalam | M194: 6.98 | N194: 4.041678541e-07 | O194: 6.98
A195: 192 | B195: Papuásia-Nova Guiné | C195: 2.8856 | D195: 4.082069572e-07 | F195: 192 | G195: Christmas, Ilha | H195: 0 | I195: 0 | K195: 192 | L195: Guam | M195: 6.5774 | N195: 3.808558228e-07 | O195: 6.5774
A196: 193 | B196: Belize | C196: 2.1806 | D196: 3.084752186e-07 | F196: 193 | G196: Cocos (Keeling), Ilhas | H196: 0 | I196: 0 | K196: 193 | L196: São Vicente e Granadinas | M196: 5.6798 | N196: 3.288814581e-07 | O196: 5.651
A197: 194 | B197: Melilha | C197: 1.3464 | D197: 1.904664011e-07 | F197: 194 | G197: Comores | H197: 0 | I197: 0 | K197: 194 | L197: Menores distantes dos Estados Unidos, lhas | M197: 4.5542 | N197: 2.637050489e-07 | O197: 4.5542
A198: 195 | B198: Granada | C198: 0.6866 | D198: 9.712881092e-08 | F198: 195 | G198: Cook, Ilhas | H198: 0 | I198: 0 | K198: 195 | L198: São Cristovão e Nevis | M198: 4.4456 | N198: 2.574167066e-07 | O198: -4.4456
A199: 196 | B199: Virgens dos Estados Unidos, Ilhas | C199: 0.295 | D199: 4.173172039e-08 | F199: 196 | G199: Coreia, República Popular Democrática da | H199: 0 | I199: 0 | K199: 196 | L199: Sudão do Sul | M199: 3.771 | N199: 2.183548679e-07 | O199: 3.771
A200: 197 | B200: Botswana | C200: 0.0944 | D200: 1.335415053e-08 | F200: 197 | G200: Domínica | H200: 0 | I200: 0 | K200: 197 | L200: Bonaire, Santo Eustáquio e Saba | M200: 3.1276 | N200: 1.810996247e-07 | O200: 3.1276
... 58 more rows

Sheet 3
A1: Principais produtos agrícolas e agroalimentares, do mar e da floresta transacionados entre Portugal e América do Sul em 2018-2022 (NC a 2 e 4 dígitos) em milhões de euros
AC4: P | AE4: Cód.NC | AF4: Descritivo | AG4: Média export quinquénio | AH4: % do total | AI4: % acumulada | AN4: P | AO4: NC | AP4: Exportações | AQ4: 2018 | AR4: 2019 | AS4: 2020 | AT4: 2021 | AU4: 2022 | AV4: média quinquénio
AC5: 1 | AD5: º | AE5: 15 | AF5: Gorduras e óleos animais ou vegetais | AG5: 254.1433 | AH5: 0.4777919547 | AN5: 1º | AO5: 15 | AP5: Gorduras e óleos animais ou vegetais | AQ5: 227.886826 | AR5: 243.503032 | AS5: 256.59433 | AT5: 237.451828 | AU5: 305.280484 | AV5: 254.1433
AC6: 2 | AD6: º | AE6: 22 | AF6: Bebidas, líquidos alcoólicos e vinagres | AG6: 69.2733058 | AH6: 0.1302345102 | AN6: 2º | AO6: 22 | AP6: Bebidas, líquidos alcoólicos e vinagres | AQ6: 56.732855 | AR6: 60.714903 | AS6: 71.6648 | AT6: 78.242232 | AU6: 79.011739 | AV6: 69.2733058
AC7: 3 | AD7: º | AE7: 03 | AF7: Peixes e crustáceos | AG7: 66.0205048 | AH7: 0.1241192116 | AI7: 0.7321456765 | AN7: 3º | AO7: 03 | AP7: Peixes e crustáceos | AQ7: 70.11402 | AR7: 72.566486 | AS7: 53.950284 | AT7: 60.542844 | AU7: 72.92889 | AV7: 66.0205048
AC8: 4 | AD8: º | AE8: 45 | AF8: Cortiça e suas obras | AG8: 49.716863 | AH8: 0.09346820142 | AO8: - | AP8: Outros | AQ8: 158.273297 | AR8: 172.181542 | AS8: 121.675531 | AT8: 125.035081 | AU8: 135.209266 | AV8: 142.4749434
AC9: 5 | AD9: º | AE9: 08 | AF9: Frutas | AG9: 35.151152 | AH9: 0.06608451855 | AP9: Total | AQ9: 513.006998 | AR9: 548.965963 | AS9: 503.884945 | AT9: 501.271985 | AU9: 592.430379 | AV9: 531.912054
AC10: 6 | AD10: º | AE10: 48 | AF10: Papel e cartão | AG10: 16.655251 | AH10: 0.03131203904
AC11: 7 | AD11: º | AE11: 19a | AF11: Preparações à base de cereais (exc. NC 19022010) (a) | AG11: 8.322096 | AH11: 0.015645624
AC12: 8 | AD12: º | AE12: 05a | AF12: Outros produtos de origem animal (exc. NC 0508, 051191) (a) | AG12: 7.1161974 | AH12: 0.01337852253
AC13: 9 | AD13: º | AE13: 16p | AF13: Preparações e conservas de peixes ou crustáceos (NC 1604-05) (p) | AG13: 5.707441 | AH13: 0.01073004636
AC14: 10 | AD14: º | AE14: 07 | AF14: Produtos hortícolas | AG14: 3.794639 | AH14: 0.007133959404 | AI14: 0.9698985878
AE15: - | AF15: Outros | AG15: 16.011304 | AH15: 0.03010141222
AE16: Total | AG16: 531.912054 | AH16: 1
AC38: P | AE38: Cód.NC | AF38: Descritivo | AG38: Média import quinquénio | AH38: % do total | AI38: % acumulada | AN38: P | AO38: NC | AP38: Importações | AQ38: 2018 | AR38: 2019 | AS38: 2020 | AT38: 2021 | AU38: 2022 | AV38: média quinquénio
AC39: 1 | AD39: º | AE39: 12 | AF39: Sementes e frutos oleaginosos | AG39: 253.7316858 | AH39: 0.2295829686 | AN39: 1º | AO39: 12 | AP39: Sementes e frutos oleaginosos | AQ39: 165.207373 | AR39: 138.12438 | AS39: 238.37706 | AT39: 314.948677 | AU39: 412.000939 | AV39: 253.7316858
AC40: 2 | AD40: º | AE40: 10 | AF40: Cereais | AG40: 212.525427 | AH40: 0.1922984837 | AN40: 2º | AO40: 10 | AP40: Cereais | AQ40: 152.906381 | AR40: 165.166921 | AS40: 164.650978 | AT40: 151.357125 | AU40: 428.54573 | AV40: 212.525427
AC41: 3 | AD41: º | AE41: 44 | AF41: Madeira e suas obras | AG41: 170.0512668 | AH41: 0.1538667689 | AI41: 0.5757482212 | AN41: 3º | AO41: 44 | AP41: Madeira e suas obras | AQ41: 118.811369 | AR41: 155.399354 | AS41: 74.023062 | AT41: 174.364544 | AU41: 327.658005 | AV41: 170.0512668
AC42: 4 | AD42: º | AE42: 08 | AF42: Frutas | AG42: 111.4381364 | AH42: 0.1008320979 | AO42: - | AP42: Outros | AQ42: 358.467077 | AR42: 422.986453 | AS42: 346.455334 | AT42: 497.324153 | AU42: 719.150795 | AV42: 468.8767624
AC43: 5 | AD43: º | AE43: 03 | AF43: Peixes e crustáceos | AG43: 65.4520258 | AH43: 0.05922267981 | AP43: Total | AQ43: 795.3922 | AR43: 881.677108 | AS43: 823.506434 | AT43: 1137.994499 | AU43: 1887.355469 | AV43: 1105.185142
AC44: 6 | AD44: º | AE44: 17 | AF44: Açúcares e produtos de confeitaria | AG44: 38.5310142 | AH44: 0.03486385469
AC45: 7 | AD45: º | AE45: 13f | AF45: Gomas e resinas (NC 1301) (f) | AG45: 31.9748996 | AH45: 0.02893171324
AC46: 8 | AD46: º | AE46: 38f | AF46: Tall oil, essências e colofónias (f) | AG46: 25.6155516 | AH46: 0.02317761127
AC47: 9 | AD47: º | AE47: 07 | AF47: Produtos hortícolas | AG47: 23.8242858 | AH47: 0.02155682781
AC48: 10 | AD48: º | AE48: 09 | AF48: Café, chá, mate e especiarias | AG48: 23.2259672 | AH48: 0.02101545372 | AI48: 0.8653484596
AE49: - | AF49: Outros | AG49: 148.8148818 | AH49: 0.1346515404
AE50: Total | AG50: 1105.185142 | AH50: 1
AC62: DESAGREGAÇÃO A 4 DÍGITOS | AN62: DESAGREGAÇÃO A 4 DÍGITOS
AC64: P | AE64: Cód.NC | AF64: Descritivo | AG64: Média export quinquénio | AH64: % do total | AI64: % acumulada | AN64: P | AO64: NC | AP64: Exportações | AQ64: 2018 | AR64: 2019 | AS64: 2020 | AT64: 2021 | AU64: 2022 | AV64: média quinquénio
AC65: 1 | AD65: º | AE65: 1509 | AF65: Azeite (processos mecânicos ou físicos) | AG65: 252.7557134 | AH65: 0.4751832779 | AN65: 1º | AO65: 1509 | AP65: Azeite (processos mecânicos ou físicos) | AQ65: 225.885429 | AR65: 241.930496 | AS65: 255.10399 | AT65: 236.558887 | AU65: 304.299765 | AV65: 252.7557134
AC66: 2 | AD66: º | AE66: 2204 | AF66: Vinhos de uvas frescas | AG66: 66.996534 | AH66: 0.1259541563 | AN66: 2º | AO66: 2204 | AP66: Vinhos de uvas frescas | AQ66: 53.29215 | AR66: 57.52244 | AS66: 70.233644 | AT66: 76.998585 | AU66: 76.935851 | AV66: 66.996534
AC67: 3 | AD67: º | AE67: 0303 | AF67: Peixes congelados | AG67: 34.4291198 | AH67: 0.06472709077 | AI67: 0.665864525 | AN67: 3º | AO67: 0303 | AP67: Peixes congelados | AQ67: 39.212243 | AR67: 38.129058 | AS67: 27.834014 | AT67: 29.703513 | AU67: 37.266771 | AV67: 34.4291198
AC68: 4 | AD68: º | AE68: 0808 | AF68: Maçãs, peras e marmelos, frescos | AG68: 31.4253206 | AH68: 0.05907991812 | AN68: - | AO68: - | AP68: Outros | AQ68: 194.617176 | AR68: 211.383969 | AS68: 150.713297 | AT68: 158.011 | AU68: 173.927992 | AV68: 177.7306868
AC69: 5 | AD69: º | AE69: 4503 | AF69: Obras de cortiça natural | AG69: 25.2125016 | AH69: 0.04739975605 | AP69: Total | AQ69: 513.006998 | AR69: 548.965963 | AS69: 503.884945 | AT69: 501.271985 | AU69: 592.430379 | AV69: 531.912054
AC70: 6 | AD70: º | AE70: 4504 | AF70: Cortiça aglomerada e suas obras | AG70: 21.808011 | AH70: 0.04099927955
AC71: 7 | AD71: º | AE71: 0304 | AF71: Filetes de peixes | AG71: 15.090806 | AH71: 0.02837086674
AC72: 8 | AD72: º | AE72: 0305 | AF72: Peixes secos, salgados ou fumados | AG72: 14.117108 | AH72: 0.02654030472
AC73: 9 | AD73: º | AE73: 4802 | AF73: Papel e cartão p/ escrita, etc. | AG73: 12.3384222 | AH73: 0.02319635757
AC74: 10 | AD74: º | AE74: 1905 | AF74: Produtos de padaria, pastelaria, etc. | AG74: 7.9782078 | AH74: 0.01499911074 | AI74: 0.9064501185
AE75: - | AF75: Outros | AG75: 49.7603096 | AH75: 0.09354988146
AE76: Total | AG76: 531.912054 | AH76: 1
AC89: DESAGREGAÇÃO A 4 DÍGITOS | AN89: DESAGREGAÇÃO A 4 DÍGITOS
G91: média 2018-2022 em milhões de euros | I91: Cód. NC | J91: Descritivo | K91: Export | L91: Import | M91: Saldo | AC91: P | AE91: Cód.NC | AF91: Descritivo | AG91: Média import quinquénio | AH91: % do total | AI91: % acumulada | AN91: P | AO91: NC | AP91: Importações | AQ91: 2018 | AR91: 2019 | AS91: 2020 | AT91: 2021 | AU91: 2022 | AV91: média quinquénio
I92: 1509 | J92: Azeite (processos mecânicos ou físicos) | K92: 252.7557134 | L92: 0.2281586 | M92: 252.5275548 | AC92: 1 | AD92: º | AE92: 1201 | AF92: Soja, mesmo triturada | AG92: 235.0960912 | AH92: 0.2127210024 | AN92: 1º | AO92: 1201 | AP92: Soja, mesmo triturada | AQ92: 159.72563 | AR92: 129.680622 | AS92: 227.319337 | AT92: 293.98498 | AU92: 364.769887 | AV92: 235.0960912
I93: 2204 | J93: Vinhos de uvas frescas | K93: 66.996534 | L93: 0.6871856 | M93: 66.3093484 | AC93: 2 | AD93: º | AE93: 1005 | AF93: Milho | AG93: 169.171705 | AH93: 0.1530709187 | AN93: 2º | AO93: 1005 | AP93: Milho | AQ93: 122.665812 | AR93: 129.902498 | AS93: 118.476601 | AT93: 115.240383 | AU93: 359.573231 | AV93: 169.171705
I94: 4503 | J94: Obras de cortiça natural | K94: 25.2125016 | L94: 0.261807 | M94: 24.9506946 | AC94: 3 | AD94: º | AE94: 4401 | AF94: Lenha, resíduos de madeira, etc. | AG94: 108.4188532 | AH94: 0.09810017261 | AI94: 0.4638920937 | AN94: 3º | AO94: 4401 | AP94: Lenha, resíduos de madeira, etc. | AQ94: 103.983393 | AR94: 133.106373 | AS94: 42.624915 | AT94: 93.013925 | AU94: 169.36566 | AV94: 108.4188532
I95: 0808 | J95: Maçãs, peras e marmelos, frescos | K95: 31.4253206 | L95: 7.8058862 | M95: 23.6194344 | AC95: 4 | AD95: º | AE95: 1006 | AF95: Arroz | AG95: 43.1279578 | AH95: 0.03902328774 | AN95: - | AO95: - | AP95: Outros | AQ95: 409.017365 | AR95: 488.987615 | AS95: 435.085581 | AT95: 635.755211 | AU95: 993.646691 | AV95: 592.4984926
I96: 4504 | J96: Cortiça aglomerada e suas obras | K96: 21.808011 | L96: 0.0540916 | M96: 21.7539194 | AC96: 5 | AD96: º | AE96: 4403 | AF96: Madeira em bruto | AG96: 41.3845964 | AH96: 0.03744584941 | AP96: Total | AQ96: 795.3922 | AR96: 881.677108 | AS96: 823.506434 | AT96: 1137.994499 | AU96: 1887.355469 | AV96: 1105.185142
I97: 0303 | J97: Peixes congelados | K97: 34.4291198 | L97: 17.614941 | M97: 16.8141788 | AC97: 6 | AD97: º | AE97: 1701 | AF97: Açúcares (cana/beterraba); sacarose pura | AG97: 38.1956928 | AH97: 0.03456044725
I98: 0305 | J98: Peixes secos, salgados ou fumados | K98: 14.117108 | L98: 0.0346614 | M98: 14.0824466 | AC98: 7 | AD98: º | AE98: 1301 | AF98: Goma-laca; gomas, resinas, etc. | AG98: 31.9748996 | AH98: 0.02893171324
I99: 4802 | J99: Papel e cartão p/ escrita, etc. | K99: 12.3384222 | L99: 0.7320664 | M99: 11.6063558 | AC99: 8 | AD99: º | AE99: 3806 | AF99: Colofónias e derivados | AG99: 25.6149942 | AH99: 0.02317710692
I100: 1905 | J100: Produtos de padaria, pastelaria, etc. | K100: 7.9782078 | L100: 1.6318606 | M100: 6.3463472 | AC100: 9 | AD100: º | AE100: 0803 | AF100: Bananas, frescas ou secas | AG100: 25.3831946 | AH100: 0.02296736867
I101: 0710 | J101: Produtos hortícolas congelados | K101: 3.6568812 | L101: 0.0367856 | M101: 3.6200956 | AC101: 10 | AD101: º | AE101: 0713 | AF101: Legumes de vagem, secos, em grão | AG101: 23.5316952 | AH101: 0.02129208429 | AI101: 0.6712899512
I102: - | J102: Outros | K102: 59.5819116 | L102: 334.198018 | M102: -274.6161064 | AE102: - | AF102: Outros | AG102: 363.285462 | AH102: 0.3287100488
I103: 0713 | J103: Legumes de vagem, secos, em grão | K103: 0.0099134 | L103: 23.5316952 | M103: -23.5217818 | AE103: Total | AG103: 1105.185142 | AH103: 1
I104: 3806 | J104: Colofónias e derivados | K104: 0.9038728 | L104: 25.6149942 | M104: -24.7111214
I105: 0803 | J105: Bananas, frescas ou secas | K105: 0 | L105: 25.3831946 | M105: -25.3831946
I106: 1301 | J106: Goma-laca; gomas, resinas, etc. | K106: 0.0067048 | L106: 31.9748996 | M106: -31.9681948
I107: 1701 | J107: Açúcares (cana/beterraba); sacarose pura | K107: 0.0412502 | L107: 38.1956928 | M107: -38.1544426
I108: 4403 | J108: Madeira em bruto | K108: 8.76e-05 | L108: 41.3845964 | M108: -41.3845088
I109: 1006 | J109: Arroz | K109: 0.2829198 | L109: 43.1279578 | M109: -42.845038
I110: 4401 | J110: Lenha, resíduos de madeira, etc. | K110: 0.3673812 | L110: 108.4188532 | M110: -108.051472
I111: 1005 | J111: Milho | K111: 0.0001274 | L111: 169.171705 | M111: -169.1715776
I112: 1201 | J112: Soja, mesmo triturada | K112: 6.56e-05 | L112: 235.0960912 | M112: -235.0960256
I113: Total | K113: 531.912054 | L113: 1105.185142 | M113: -573.273088
A116: Fonte: GPP a partir de dados INE/Comércio Internacional (2022 definitivos) | Y116: 2023-12-27

Sheet 3A
A1: Principais produtos agrícolas e agroalimentares transacionados entre Portugal e América do Sul em 2018-2022 (NC a 2 e 4 dígitos) em milhões de euros
AC4: P | AE4: Cód.NC | AF4: Descritivo | AG4: Média export quinquénio | AH4: % do total | AI4: % acumulada | AN4: P | AO4: NC | AP4: Exportações | AQ4: 2018 | AR4: 2019 | AS4: 2020 | AT4: 2021 | AU4: 2022 | AV4: média quinquénio
AC5: 1 | AD5: º | AE5: 15 | AF5: Gorduras e óleos animais ou vegetais | AG5: 254.1433 | AH5: 0.6498757353 | AN5: 1º | AO5: 15 | AP5: Gorduras e óleos animais ou vegetais | AQ5: 227.886826 | AR5: 243.503032 | AS5: 256.59433 | AT5: 237.451828 | AU5: 305.280484 | AV5: 254.1433
AC6: 2 | AD6: º | AE6: 22 | AF6: Bebidas, líquidos alcoólicos e vinagres | AG6: 69.2733058 | AH6: 0.1771403793 | AN6: 2º | AO6: 22 | AP6: Bebidas, líquidos alcoólicos e vinagres | AQ6: 56.732855 | AR6: 60.714903 | AS6: 71.6648 | AT6: 78.242232 | AU6: 79.011739 | AV6: 69.2733058
AC7: 3 | AD7: º | AE7: 08 | AF7: Frutas | AG7: 35.151152 | AH7: 0.08988582722 | AI7: 0.9169019418 | AN7: 3º | AO7: 08 | AP7: Frutas | AQ7: 39.603716 | AR7: 46.140354 | AS7: 28.693824 | AT7: 19.274925 | AU7: 42.042941 | AV7: 35.151152
AC8: 4 | AD8: º | AE8: 19a | AF8: Preparações à base de cereais (exc. NC 19022010) (a) | AG8: 8.322096 | AH8: 0.02128062498 | AO8: - | AP8: Outros | AQ8: 32.358701 | AR8: 50.232479 | AS8: 28.192345 | AT8: 24.571651 | AU8: 27.128308 | AV8: 32.4966968
AC9: 5 | AD9: º | AE9: 05a | AF9: Outros produtos de origem animal (exc. NC 0508, 051191) (a) | AG9: 7.1161974 | AH9: 0.01819699366 | AP9: Total | AQ9: 356.582098 | AR9: 400.590768 | AS9: 385.145299 | AT9: 359.540636 | AU9: 453.463472 | AV9: 391.0644546
AC10: 6 | AD10: º | AE10: 07 | AF10: Produtos hortícolas | AG10: 3.794639 | AH10: 0.009703359524
AC11: 7 | AD11: º | AE11: 20 | AF11: Preparações de produtos vegetais | AG11: 2.6241706 | AH11: 0.006710327592
AC12: 8 | AD12: º | AE12: 04 | AF12: Leite e laticínios; ovos; mel, etc. | AG12: 2.1714998 | AH12: 0.005552792575
AC13: 9 | AD13: º | AE13: 18 | AF13: Cacau e suas preparações | AG13: 2.117774 | AH13: 0.005415409084
AC14: 10 | AD14: º | AE14: 21 | AF14: Preparações alimentícias diversas | AG14: 1.5906814 | AH14: 0.004067568354 | AI14: 0.9878290176
AE15: - | AF15: Outros | AG15: 4.7596386 | AH15: 0.01217098241
AE16: Total | AG16: 391.0644546 | AH16: 1
AC38: P | AE38: Cód.NC | AF38: Descritivo | AG38: Média import quinquénio | AH38: % do total | AI38: % acumulada | AN38: P | AO38: NC | AP38: Importações | AQ38: 2018 | AR38: 2019 | AS38: 2020 | AT38: 2021 | AU38: 2022 | AV38: média quinquénio
AC39: 1 | AD39: º | AE39: 12 | AF39: Sementes e frutos oleaginosos | AG39: 253.7316858 | AH39: 0.3290478225 | AN39: 1º | AO39: 12 | AP39: Sementes e frutos oleaginosos | AQ39: 165.207373 | AR39: 138.12438 | AS39: 238.37706 | AT39: 314.948677 | AU39: 412.000939 | AV39: 253.7316858
AC40: 2 | AD40: º | AE40: 10 | AF40: Cereais | AG40: 212.525427 | AH40: 0.275610154 | AN40: 2º | AO40: 10 | AP40: Cereais | AQ40: 152.906381 | AR40: 165.166921 | AS40: 164.650978 | AT40: 151.357125 | AU40: 428.54573 | AV40: 212.525427
AC41: 3 | AD41: º | AE41: 08 | AF41: Frutas | AG41: 111.4381364 | AH41: 0.1445167403 | AI41: 0.7491747168 | AN41: 3º | AO41: 08 | AP41: Frutas | AQ41: 101.187104 | AR41: 107.269864 | AS41: 106.203884 | AT41: 109.755848 | AU41: 132.773982 | AV41: 111.4381364
AC42: 4 | AD42: º | AE42: 17 | AF42: Açúcares e produtos de confeitaria | AG42: 38.5310142 | AH42: 0.049968321 | AO42: - | AP42: Outros | AQ42: 128.11519 | AR42: 173.705289 | AS42: 123.745811 | AT42: 220.473802 | AU42: 321.027878 | AV42: 193.413594
AC43: 5 | AD43: º | AE43: 07 | AF43: Produtos hortícolas | AG43: 23.8242858 | AH43: 0.03089613874 | AP43: Total | AQ43: 547.416048 | AR43: 584.266454 | AS43: 632.977733 | AT43: 796.535452 | AU43: 1294.348529 | AV43: 771.1088432
AC44: 6 | AD44: º | AE44: 09 | AF44: Café, chá, mate e especiarias | AG44: 23.2259672 | AH44: 0.03012021896
AC45: 7 | AD45: º | AE45: 02 | AF45: Carnes e miudezas | AG45: 21.9091204 | AH45: 0.02841248754
AC46: 8 | AD46: º | AE46: 23a | AF46: Resíduos indústrias alimentares; alimentos p/ animais (exc. NC 230120) (a) | AG46: 19.9212742 | AH46: 0.02583458143
AC47: 9 | AD47: º | AE47: 24 | AF47: Tabaco | AG47: 14.2162138 | AH47: 0.01843606635
AC48: 10 | AD48: º | AE48: 52 | AF48: Algodão (NC 5201-5203) | AG48: 12.3438288 | AH48: 0.01600789423 | AI48: 0.948850425
AE49: - | AF49: Outros | AG49: 39.4418896 | AH49: 0.05114957499
AE50: Total | AG50: 771.1088432 | AH50: 1
AC62: DESAGREGAÇÃO A 4 DÍGITOS | AN62: DESAGREGAÇÃO A 4 DÍGITOS
AC64: P | AE64: Cód.NC | AF64: Descritivo | AG64: Média export quinquénio | AH64: % do total | AI64: % acumulada | AN64: P | AO64: NC | AP64: Exportações | AQ64: 2018 | AR64: 2019 | AS64: 2020 | AT64: 2021 | AU64: 2022 | AV64: média quinquénio
AC65: 1 | AD65: º | AE65: 1509 | AF65: Azeite (processos mecânicos ou físicos) | AG65: 252.7557134 | AH65: 0.6463275054 | AN65: 1º | AO65: 1509 | AP65: Azeite (processos mecânicos ou físicos) | AQ65: 225.885429 | AR65: 241.930496 | AS65: 255.10399 | AT65: 236.558887 | AU65: 304.299765 | AV65: 252.7557134
AC66: 2 | AD66: º | AE66: 2204 | AF66: Vinhos de uvas frescas | AG66: 66.996534 | AH66: 0.1713183932 | AN66: 2º | AO66: 2204 | AP66: Vinhos de uvas frescas | AQ66: 53.29215 | AR66: 57.52244 | AS66: 70.233644 | AT66: 76.998585 | AU66: 76.935851 | AV66: 66.996534
AC67: 3 | AD67: º | AE67: 0808 | AF67: Maçãs, peras e marmelos, frescos | AG67: 31.4253206 | AH67: 0.08035841721 | AI67: 0.8980043158 | AN67: 3º | AO67: 0808 | AP67: Maçãs, peras e marmelos, frescos | AQ67: 35.226299 | AR67: 41.668057 | AS67: 26.178844 | AT67: 16.430095 | AU67: 37.623308 | AV67: 31.4253206
AC68: 4 | AD68: º | AE68: 1905 | AF68: Produtos de padaria, pastelaria, etc. | AG68: 7.9782078 | AH68: 0.02040126047 | AN68: - | AO68: - | AP68: Outros | AQ68: 42.17822 | AR68: 59.469775 | AS68: 33.628821 | AT68: 29.553069 | AU68: 34.604548 | AV68: 39.8868866
AC69: 5 | AD69: º | AE69: 0504 | AF69: Tripas de animais (excepto peixes) | AG69: 6.9197798 | AH69: 0.01769472965 | AP69: Total | AQ69: 356.582098 | AR69: 400.590768 | AS69: 385.145299 | AT69: 359.540636 | AU69: 453.463472 | AV69: 391.0644546
AC70: 6 | AD70: º | AE70: 0710 | AF70: Produtos hortícolas congelados | AG70: 3.6568812 | AH70: 0.009351095854
AC71: 7 | AD71: º | AE71: 0802 | AF71: Frutas de casca rija | AG71: 2.8410766 | AH71: 0.007264982963
AC72: 8 | AD72: º | AE72: 2005 | AF72: Produtos hortícolas preparados, não congelados | AG72: 2.2085174 | AH72: 0.00564745114
AC73: 9 | AD73: º | AE73: 1806 | AF73: Chocolate e outras preparações com cacau | AG73: 2.1174392 | AH73: 0.005414552959
AC74: 10 | AD74: º | AE74: 2203 | AF74: Cervejas de malte | AG74: 1.6900706 | AH74: 0.004321718786 | AI74: 0.9681001077
AE75: - | AF75: Outros | AG75: 12.474914 | AH75: 0.03189989234
AE76: Total | AG76: 391.0644546 | AH76: 1
AC89: DESAGREGAÇÃO A 4 DÍGITOS | AN89: DESAGREGAÇÃO A 4 DÍGITOS
G91: média 2018-2022 em milhões de euros | I91: Cód. NC | J91: Descritivo | K91: Export | L91: Import | M91: Saldo | AC91: P | AE91: Cód.NC | AF91: Descritivo | AG91: Média import quinquénio | AH91: % do total | AI91: % acumulada | AN91: P | AO91: NC | AP91: Importações | AQ91: 2018 | AR91: 2019 | AS91: 2020 | AT91: 2021 | AU91: 2022 | AV91: média quinquénio
I92: 1509 | J92: Azeite (processos mecânicos ou físicos) | K92: 252.7557134 | L92: 0.2281586 | M92: 252.5275548 | AC92: 1 | AD92: º | AE92: 1201 | AF92: Soja, mesmo triturada | AG92: 235.0960912 | AH92: 0.3048805539 | AN92: 1º | AO92: 1201 | AP92: Soja, mesmo triturada | AQ92: 159.72563 | AR92: 129.680622 | AS92: 227.319337 | AT92: 293.98498 | AU92: 364.769887 | AV92: 235.0960912
I93: 2204 | J93: Vinhos de uvas frescas | K93: 66.996534 | L93: 0.6871856 | M93: 66.3093484 | AC93: 2 | AD93: º | AE93: 1005 | AF93: Milho | AG93: 169.171705 | AH93: 0.2193875826 | AN93: 2º | AO93: 1005 | AP93: Milho | AQ93: 122.665812 | AR93: 129.902498 | AS93: 118.476601 | AT93: 115.240383 | AU93: 359.573231 | AV93: 169.171705
I94: 0808 | J94: Maçãs, peras e marmelos, frescos | K94: 31.4253206 | L94: 7.8058862 | M94: 23.6194344 | AC94: 3 | AD94: º | AE94: 1006 | AF94: Arroz | AG94: 43.1279578 | AH94: 0.05592979277 | AI94: 0.5801979292 | AN94: 3º | AO94: 1006 | AP94: Arroz | AQ94: 30.03283 | AR94: 34.900677 | AS94: 46.046877 | AT94: 36.047804 | AU94: 68.611601 | AV94: 43.1279578
I95: 1905 | J95: Produtos de padaria, pastelaria, etc. | K95: 7.9782078 | L95: 1.6318606 | M95: 6.3463472 | AC95: 4 | AD95: º | AE95: 1701 | AF95: Açúcares (cana/beterraba); sacarose pura | AG95: 38.1956928 | AH95: 0.04953346488 | AN95: - | AO95: - | AP95: Outros | AQ95: 234.991776 | AR95: 289.782657 | AS95: 241.134918 | AT95: 351.262285 | AU95: 501.39381 | AV95: 323.7130892
I96: 0710 | J96: Produtos hortícolas congelados | K96: 3.6568812 | L96: 0.0367856 | M96: 3.6200956 | AC96: 5 | AD96: º | AE96: 0803 | AF96: Bananas, frescas ou secas | AG96: 25.3831946 | AH96: 0.03291778434 | AP96: Total | AQ96: 547.416048 | AR96: 584.266454 | AS96: 632.977733 | AT96: 796.535452 | AU96: 1294.348529 | AV96: 771.1088432
I97: 2005 | J97: Produtos hortícolas preparados, não congelados | K97: 2.2085174 | L97: 0.1422124 | M97: 2.066305 | AC97: 6 | AD97: º | AE97: 0713 | AF97: Legumes de vagem, secos, em grão | AG97: 23.5316952 | AH97: 0.03051669736
I98: 1806 | J98: Chocolate e outras preparações com cacau | K98: 2.1174392 | L98: 0.460694 | M98: 1.6567452 | AC98: 7 | AD98: º | AE98: 0901 | AF98: Café | AG98: 22.9798738 | AH98: 0.02980107673
I99: 2203 | J99: Cervejas de malte | K99: 1.6900706 | L99: 0.1463286 | M99: 1.543742 | AC99: 8 | AD99: º | AE99: 0804 | AF99: Tâmaras, figos, ananases, abacates, goiabas, mangas | AG99: 21.6381082 | AH99: 0.02806102976
I100: 0402 | J100: Leite e nata, concentrados | K100: 1.4343852 | L100: 0.0001792 | M100: 1.434206 | AC100: 9 | AD100: º | AE100: 0807 | AF100: Melões, melancias e papaia, frescos | AG100: 21.536198 | AH100: 0.02792886917
I101: 1517 | J101: Margarina e preparações de gorduras animais ou vegetais | K101: 0.8691 | L101: 0.0034506 | M101: 0.8656494 | AC101: 10 | AD101: º | AE101: 2304 | AF101: Bagaços e outros resíduos sólidos de soja | AG101: 19.5986026 | AH101: 0.02541613 | AI101: 0.8043729814
I102: - | J102: Outros | K102: 18.5653428 | L102: 139.7069826 | M102: -121.1416398 | AE102: - | AF102: Outros | AG102: 150.849724 | AH102: 0.1956270186
I103: 2304 | J103: Bagaços e outros resíduos sólidos de soja | K103: 0 | L103: 19.5986026 | M103: -19.5986026 | AE103: Total | AG103: 771.1088432 | AH103: 1
I104: 0807 | J104: Melões, melancias e papaia, frescos | K104: 0 | L104: 21.536198 | M104: -21.536198
I105: 0804 | J105: Tâmaras, figos, ananases, abacates, goiabas, mangas | K105: 0.0030456 | L105: 21.6381082 | M105: -21.6350626
I106: 0901 | J106: Café | K106: 1.0296204 | L106: 22.9798738 | M106: -21.9502534
I107: 0713 | J107: Legumes de vagem, secos, em grão | K107: 0.0099134 | L107: 23.5316952 | M107: -23.5217818
I108: 0803 | J108: Bananas, frescas ou secas | K108: 0 | L108: 25.3831946 | M108: -25.3831946
I109: 1701 | J109: Açúcares (cana/beterraba); sacarose pura | K109: 0.0412502 | L109: 38.1956928 | M109: -38.1544426
I110: 1006 | J110: Arroz | K110: 0.2829198 | L110: 43.1279578 | M110: -42.845038
I111: 1005 | J111: Milho | K111: 0.0001274 | L111: 169.171705 | M111: -169.1715776
I112: 1201 | J112: Soja, mesmo triturada | K112: 6.56e-05 | L112: 235.0960912 | M112: -235.0960256
I113: Total | K113: 391.0644546 | L113: 771.1088432 | M113: -380.0443886
A116: Fonte: GPP a partir de dados INE/Comércio Internacional (2022 definitivos) | Y116: 2023-12-27

Sheet 3B
A1: Principais origens e destinos em América do Sul para os produtos agrícolas, agroalimentares, do mar e da floresta (2018-2022) em milhões de euros
AC4: P | AE4: País | AF4: Média export quinquénio | AG4: % do total | AH4: % acumulada | AM4: P | AN4: Exportações | AO4: 2018 | AP4: 2019 | AQ4: 2020 | AR4: 2021 | AS4: 2022 | AT4: média quinquénio
AC5: 1 | AD5: º | AE5: Brasil | AF5: 452.705259 | AG5: 0.8510904304 | AM5: 1º | AN5: Brasil | AO5: 426.935687 | AP5: 464.506214 | AQ5: 435.785123 | AR5: 416.153721 | AS5: 520.14555 | AT5: 452.705259
AC6: 2 | AD6: º | AE6: Chile | AF6: 36.0265554 | AG6: 0.06773028573 | AM6: 2º | AN6: Chile | AO6: 46.322627 | AP6: 40.663797 | AQ6: 30.340983 | AR6: 36.385186 | AS6: 26.420184 | AT6: 36.0265554
AC7: 3 | AD7: º | AE7: Argentina | AF7: 16.0355796 | AG7: 0.03014705059 | AH7: 0.9489677668 | AM7: 3º | AN7: Argentina | AO7: 12.49779 | AP7: 13.155225 | AQ7: 14.867935 | AR7: 21.005146 | AS7: 18.651802 | AT7: 16.0355796
AC8: 4 | AD8: º | AE8: Colômbia | AF8: 8.3328852 | AG8: 0.01566590781 | AN8: Outros | AO8: 27.250894 | AP8: 30.640727 | AQ8: 22.890904 | AR8: 27.727932 | AS8: 27.212843 | AT8: 27.14466
AC9: 5 | AD9: º | AE9: Peru | AF9: 6.1375418 | AG9: 0.01153864018 | AN9: Total | AO9: 513.006998 | AP9: 548.965963 | AQ9: 503.884945 | AR9: 501.271985 | AS9: 592.430379 | AT9: 531.912054
AC10: 6 | AD10: º | AE10: Venezuela | AF10: 3.2921542 | AG10: 0.006189282937
AC11: 7 | AD11: º | AE11: Equador | AF11: 3.0495584 | AG11: 0.005733200399
AC12: 8 | AD12: º | AE12: Uruguai | AF12: 2.9890796 | AG12: 0.005619499648
AC13: 9 | AD13: º | AE13: Bolívia | AF13: 1.4122374 | AG13: 0.002655020486
AC14: 10 | AD14: º | AE14: Paraguai | AF14: 1.2092928 | AG14: 0.002273482601 | AH14: 0.9986428008
AE15: Outros | AF15: 0.7219106 | AG15: 0.001357199173
AE16: Total | AF16: 531.912054 | AG16: 1
AC38: P | AE38: País | AF38: Média import quinquénio | AG38: % do total | AH38: % acumulada | AM38: P | AN38: Importações | AO38: 2018 | AP38: 2019 | AQ38: 2020 | AR38: 2021 | AS38: 2022 | AT38: média quinquénio
AC39: 1 | AD39: º | AE39: Brasil | AF39: 705.2321134 | AG39: 0.6381121919 | AM39: 1º | AN39: Brasil | AO39: 416.915329 | AP39: 497.096898 | AQ39: 534.293365 | AR39: 769.956032 | AS39: 1307.898943 | AT39: 705.2321134
AC40: 2 | AD40: º | AE40: Uruguai | AF40: 102.1120792 | AG40: 0.09239364096 | AM40: 2º | AN40: Uruguai | AO40: 120.525725 | AP40: 127.000837 | AQ40: 51.267218 | AR40: 60.115537 | AS40: 151.651079 | AT40: 102.1120792
AC41: 3 | AD41: º | AE41: Argentina | AF41: 97.7278454 | AG41: 0.08842667322 | AH41: 0.8189325061 | AM41: 3º | AN41: Argentina | AO41: 62.007936 | AP41: 78.523148 | AQ41: 63.095763 | AR41: 122.082759 | AS41: 162.929621 | AT41: 97.7278454
AC42: 4 | AD42: º | AE42: Equador | AF42: 48.7678678 | AG42: 0.04412642366 | AN42: Outros | AO42: 195.94321 | AP42: 179.056225 | AQ42: 174.850088 | AR42: 185.840171 | AS42: 264.875826 | AT42: 200.113104
AC43: 5 | AD43: º | AE43: Chile | AF43: 47.7842222 | AG43: 0.04323639577 | AN43: Total | AO43: 795.3922 | AP43: 881.677108 | AQ43: 823.506434 | AR43: 1137.994499 | AS43: 1887.355469 | AT43: 1105.185142
AC44: 6 | AD44: º | AE44: Colômbia | AF44: 29.1574358 | AG44: 0.02638239938
AC45: 7 | AD45: º | AE45: Guiana | AF45: 28.0252924 | AG45: 0.02535800685
AC46: 8 | AD46: º | AE46: Peru | AF46: 19.4938856 | AG46: 0.0176385701
AC47: 9 | AD47: º | AE47: Paraguai | AF47: 18.8407592 | AG47: 0.0170476045
AC48: 10 | AD48: º | AE48: Suriname | AF48: 5.8296302 | AG48: 0.00527479965 | AH48: 0.997996706
AE49: Outros | AF49: 2.2140108 | AG49: 0.002003294033
AE50: Total | AF50: 1105.185142 | AG50: 1
A57: Fonte: GPP a partir de dados INE/Comércio Internacional (2022 definitivos) | Y57: 2023-12-27

Sheet 3C
A1: Principais origens e destinos em América do Sul para os produtos agrícolas e agroalimentares (2018-2022) em milhões de euros
AC4: P | AE4: País | AF4: Média export quinquénio | AG4: % do total | AH4: % acumulada | AM4: P | AN4: Exportações | AO4: 2018 | AP4: 2019 | AQ4: 2020 | AR4: 2021 | AS4: 2022 | AT4: média quinquénio
AC5: 1 | AD5: º | AE5: Brasil | AF5: 371.2015514 | AG5: 0.9492081089 | AM5: 1º | AN5: Brasil | AO5: 337.656974 | AP5: 375.214421 | AQ5: 369.120801 | AR5: 342.679632 | AS5: 431.335929 | AT5: 371.2015514
AC6: 2 | AD6: º | AE6: Colômbia | AF6: 6.3614306 | AG6: 0.01626696194 | AM6: 2º | AN6: Colômbia | AO6: 6.535407 | AP6: 6.928711 | AQ6: 4.78387 | AR6: 5.485945 | AS6: 8.07322 | AT6: 6.3614306
AC7: 3 | AD7: º | AE7: Chile | AF7: 5.6297746 | AG7: 0.01439602739 | AH7: 0.9798710982 | AM7: 3º | AN7: Chile | AO7: 7.592093 | AP7: 8.525597 | AQ7: 3.239977 | AR7: 3.852537 | AS7: 4.938669 | AT7: 5.6297746
AC8: 4 | AD8: º | AE8: Venezuela | AF8: 2.0584802 | AG8: 0.005263787531 | AN8: Outros | AO8: 4.797624 | AP8: 9.922039 | AQ8: 8.000651 | AR8: 7.522522 | AS8: 9.115654 | AT8: 7.871698
AC9: 5 | AD9: º | AE9: Peru | AF9: 1.7867138 | AG9: 0.004568847357 | AN9: Total | AO9: 356.582098 | AP9: 400.590768 | AQ9: 385.145299 | AR9: 359.540636 | AS9: 453.463472 | AT9: 391.0644546
AC10: 6 | AD10: º | AE10: Uruguai | AF10: 1.7516408 | AG10: 0.004479161375
AC11: 7 | AD11: º | AE11: Equador | AF11: 0.8274356 | AG11: 0.002115854791
AC12: 8 | AD12: º | AE12: Paraguai | AF12: 0.6446266 | AG12: 0.001648389651
AC13: 9 | AD13: º | AE13: Bolívia | AF13: 0.3911324 | AG13: 0.001000173745
AC14: 10 | AD14: º | AE14: Argentina | AF14: 0.2373284 | AG14: 0.000606877964 | AH14: 0.9995541906
AE15: Outros | AF15: 0.1743402 | AG15: 0.0004458093748
AE16: Total | AF16: 391.0644546 | AG16: 1
AC38: P | AE38: País | AF38: Média import quinquénio | AG38: % do total | AH38: % acumulada | AM38: P | AN38: Importações | AO38: 2018 | AP38: 2019 | AQ38: 2020 | AR38: 2021 | AS38: 2022 | AT38: média quinquénio
AC39: 1 | AD39: º | AE39: Brasil | AF39: 551.8292644 | AG39: 0.7156308338 | AM39: 1º | AN39: Brasil | AO39: 348.455984 | AP39: 393.52888 | AQ39: 450.47978 | AR39: 580.857037 | AS39: 985.824641 | AT39: 551.8292644
AC40: 2 | AD40: º | AE40: Argentina | AF40: 72.7874116 | AG40: 0.09439317451 | AM40: 2º | AN40: Argentina | AO40: 36.722137 | AP40: 57.398374 | AQ40: 47.351076 | AR40: 92.882806 | AS40: 129.582665 | AT40: 72.7874116
AC41: 3 | AD41: º | AE41: Colômbia | AF41: 28.2274602 | AG41: 0.03660632406 | AH41: 0.8466303324 | AM41: 3º | AN41: Colômbia | AO41: 22.585026 | AP41: 30.533904 | AQ41: 28.395834 | AR41: 20.207289 | AS41: 39.415248 | AT41: 28.2274602
AC42: 4 | AD42: º | AE42: Guiana | AF42: 28.0252924 | AG42: 0.03634414603 | AN42: Outros | AO42: 139.652901 | AP42: 102.805296 | AQ42: 106.751043 | AR42: 102.58832 | AS42: 139.525975 | AT42: 118.264707
AC43: 5 | AD43: º | AE43: Chile | AF43: 24.5834362 | AG43: 0.03188063062 | AN43: Total | AO43: 547.416048 | AP43: 584.266454 | AQ43: 632.977733 | AR43: 796.535452 | AS43: 1294.348529 | AT43: 771.1088432
AC44: 6 | AD44: º | AE44: Uruguai | AF44: 22.5441794 | AG44: 0.02923605351
AC45: 7 | AD45: º | AE45: Paraguai | AF45: 18.5429402 | AG45: 0.02404711133
AC46: 8 | AD46: º | AE46: Peru | AF46: 11.3100138 | AG46: 0.01466720801
AC47: 9 | AD47: º | AE47: Equador | AF47: 8.208356 | AG47: 0.01064487338
AC48: 10 | AD48: º | AE48: Suriname | AF48: 4.613819 | AG48: 0.005983356358 | AH48: 0.9994337116
AE49: Outros | AF49: 0.43667 | AG49: 0.000566288409
AE50: Total | AF50: 771.1088432 | AG50: 1
A57: Fonte: GPP a partir de dados INE/Comércio Internacional (2022 definitivos) | Y57: 2023-12-27

Sheet 4
A1: Evolução da balança comercial Portugal-América do Sul por país e por produto 2018-2022 em euros (NC 2 dígitos) produtos agrícolas, agroalimentares, do mar e da floresta
A2: =+aux!A55 -> Evolução da balança comercial Portugal-Brasil
A4: Selecione o país:
A19: =+aux!A56 -> Evolução da balança comercial Portugal-Brasil para Gorduras e óleos animais ou vegetais
I21: Selecione o produto:
A38: Fonte: GPP a partir de dados INE/Comércio Internacional (2022 definitivos) | N38: 2023-12-27

Sheet 4A
A1: Evolução da balança comercial Portugal-América do Sul 2018-2022 por produto em euros (NC 2 dígitos)
A3: =+aux!A31 -> Evolução da balança comercial Portugal-América do Sul para Gorduras e óleos animais ou vegetais
A5: Selecione o produto:
Q7: Para obter uma maior desagregação deste produto, clique no botão respetivo:
A20: =+aux!A43 -> Evolução da balança comercial Portugal-América do Sul para Sementes e frutos oleaginosos
A22: Selecione o produto:
A38: Fonte: GPP a partir de dados INE/Comércio Internacional (2022 definitivos) | N38: 2023-12-27

Sheet 5.1
A1: ="Trocas comerciais Portugal-"& aux!B54 &" ("& aux!B53 &") por país em milhares de euros" -> Trocas comerciais Portugal-América do Sul (2018-2022) por país em milhares de euros | C1: Produtos agrícolas, agroalimentares, do mar e da floresta
A2: Cód. País | B2: País | C2: Importações | J2: Exportações | Q2: Saldo quinquénio (exp-imp) | R2: Evolução das importações | S2: =+"Variação das Importações " & INDEX(J3:N3,1,aux!$AL$1) & "-"& '5.2'!O3 &"" -> Variação das Importações 2018-2022 | W2: Evolução das exportações | X2: ="Variação das Exportações " & INDEX(J3:M3,1,aux!$AL$1) & "-"& '5.2'!O3 &"" -> Variação das Exportações 2018-2022
C3: ='5.2'!C3 -> 2018 | D3: ='5.2'!D3 -> 2019 | E3: ='5.2'!E3 -> 2020 | F3: ='5.2'!F3 -> 2021 | G3: ='5.2'!G3 -> 2022 | H3: média quinquénio | I3: % Total | J3: ='5.2'!K3 -> 2018 | K3: ='5.2'!L3 -> 2019 | L3: ='5.2'!M3 -> 2020 | M3: ='5.2'!N3 -> 2021 | N3: ='5.2'!O3 -> 2022 | O3: média quinquénio | P3: % Total | S3: variação total em valor | T3: % no total de variação | U3: taxa de variação média anual | V3: taxa de variação total | X3: variação total em valor | Y3: % no total de variação | Z3: taxa de variação média anual | AA3: taxa de variação total | BS3: filtro
A4: 0660 | B4: Afeganistão | C4: =+SUMIF(AUX_2d_pais!$A$2:$A$27000,'5.1'!$A4&'5.1'!C$3&1,AUX_2d_pais!$J$2:$J$27000)/1000 -> 0 | D4: =+SUMIF(AUX_2d_pais!$A$2:$A$27000,'5.1'!$A4&'5.1'!D$3&1,AUX_2d_pais!$J$2:$J$27000)/1000 -> 0 | E4: =+SUMIF(AUX_2d_pais!$A$2:$A$27000,'5.1'!$A4&'5.1'!E$3&1,AUX_2d_pais!$J$2:$J$27000)/1000 -> 0 | F4: =+SUMIF(AUX_2d_pais!$A$2:$A$27000,'5.1'!$A4&'5.1'!F$3&1,AUX_2d_pais!$J$2:$J$27000)/1000 -> 0 | G4: =+SUMIF(AUX_2d_pais!$A$2:$A$27000,'5.1'!$A4&'5.1'!G$3&1,AUX_2d_pais!$J$2:$J$27000)/1000 -> 0 | H4: =SUM(C4:G4)/5 -> 0 | I4: =H4/$H$254 -> 0 | J4: =+SUMIF(AUX_2d_pais!$A$2:$A$27000,'5.1'!$A4&'5.1'!J$3&2,AUX_2d_pais!$J$2:$J$27000)/1000 -> 0 | K4: =+SUMIF(AUX_2d_pais!$A$2:$A$27000,'5.1'!$A4&'5.1'!K$3&2,AUX_2d_pais!$J$2:$J$27000)/1000 -> 0 | L4: =+SUMIF(AUX_2d_pais!$A$2:$A$27000,'5.1'!$A4&'5.1'!L$3&2,AUX_2d_pais!$J$2:$J$27000)/1000 -> 0 | M4: =+SUMIF(AUX_2d_pais!$A$2:$A$27000,'5.1'!$A4&'5.1'!M$3&2,AUX_2d_pais!$J$2:$J$27000)/1000 -> 0 | N4: =+SUMIF(AUX_2d_pais!$A$2:$A$27000,'5.1'!$A4&'5.1'!N$3&2,AUX_2d_pais!$J$2:$J$27000)/1000 -> 0 | O4: =SUM(J4:N4)/5 -> 0 | P4: =O4/$O$254 -> 0 | Q4: =O4-H4 -> 0 | S4: =G4-INDEX($C4:$G4,1,aux!$AL$1) -> 0 | T4: =S4/$S$254 -> 0 | U4: =+IF(INDEX($C4:$G4,1,aux!$AL$1)>0,(G4/INDEX($C4:$G4,1,aux!$AL$1))^(1/($G$3-INDEX($C$3:$G$3,1,aux!$AL$1)))-1,"n.d.") -> n.d. | V4: =IF(INDEX($C4:$G4,1,aux!$AL$1)>0,(G4-INDEX($C4:$G4,1,aux!$AL$1))/INDEX($C4:$G4,1,aux!$AL$1),"n.d.") -> n.d. | X4: =N4-INDEX($J4:$N4,1,aux!$AL$1) -> 0 | Y4: =X4/$X$254 -> 0 | Z4: =+IF(INDEX($J4:$N4,1,aux!$AL$1)>0,(N4/INDEX($J4:$N4,1,aux!$AL$1))^(1/($N$3-INDEX($J$3:$N$3,1,aux!$AL$1)))-1,"n.d.") -> n.d. | AA4: =IF(INDEX($J4:$N4,1,aux!$AL$1)>0,(N4-INDEX($J4:$N4,1,aux!$AL$1))/INDEX($J4:$N4,1,aux!$AL$1),"n.d.") -> n.d. | AC4: =SUM(A4:Q4) -> 0 | BS4: =+MATCH('5.1'!A4,AUX_2d_pais!$G$2:$G$20001,0) -> 
A5: 0388 | B5: África do Sul | C5: =+SUMIF(AUX_2d_pais!$A$2:$A$27000,'5.1'!$A5&'5.1'!C$3&1,AUX_2d_pais!$J$2:$J$27000)/1000 -> 0 | D5: =+SUMIF(AUX_2d_pais!$A$2:$A$27000,'5.1'!$A5&'5.1'!D$3&1,AUX_2d_pais!$J$2:$J$27000)/1000 -> 0 | E5: =+SUMIF(AUX_2d_pais!$A$2:$A$27000,'5.1'!$A5&'5.1'!E$3&1,AUX_2d_pais!$J$2:$J$27000)/1000 -> 0 | F5: =+SUMIF(AUX_2d_pais!$A$2:$A$27000,'5.1'!$A5&'5.1'!F$3&1,AUX_2d_pais!$J$2:$J$27000)/1000 -> 0 | G5: =+SUMIF(AUX_2d_pais!$A$2:$A$27000,'5.1'!$A5&'5.1'!G$3&1,AUX_2d_pais!$J$2:$J$27000)/1000 -> 0 | H5: 0 | I5: 0 | J5: =+SUMIF(AUX_2d_pais!$A$2:$A$27000,'5.1'!$A5&'5.1'!J$3&2,AUX_2d_pais!$J$2:$J$27000)/1000 -> 0 | K5: =+SUMIF(AUX_2d_pais!$A$2:$A$27000,'5.1'!$A5&'5.1'!K$3&2,AUX_2d_pais!$J$2:$J$27000)/1000 -> 0 | L5: =+SUMIF(AUX_2d_pais!$A$2:$A$27000,'5.1'!$A5&'5.1'!L$3&2,AUX_2d_pais!$J$2:$J$27000)/1000 -> 0 | M5: =+SUMIF(AUX_2d_pais!$A$2:$A$27000,'5.1'!$A5&'5.1'!M$3&2,AUX_2d_pais!$J$2:$J$27000)/1000 -> 0 | N5: =+SUMIF(AUX_2d_pais!$A$2:$A$27000,'5.1'!$A5&'5.1'!N$3&2,AUX_2d_pais!$J$2:$J$27000)/1000 -> 0 | O5: 0 | P5: 0 | Q5: =O5-H5 -> 0 | S5: =G5-INDEX($C5:$G5,1,aux!$AL$1) -> 0 | T5: 0 | U5: =+IF(INDEX($C5:$G5,1,aux!$AL$1)>0,(G5/INDEX($C5:$G5,1,aux!$AL$1))^(1/($G$3-INDEX($C$3:$G$3,1,aux!$AL$1)))-1,"n.d.") -> n.d. | V5: =IF(INDEX($C5:$G5,1,aux!$AL$1)>0,(G5-INDEX($C5:$G5,1,aux!$AL$1))/INDEX($C5:$G5,1,aux!$AL$1),"n.d.") -> n.d. | X5: =N5-INDEX($J5:$N5,1,aux!$AL$1) -> 0 | Y5: 0 | Z5: =+IF(INDEX($J5:$N5,1,aux!$AL$1)>0,(N5/INDEX($J5:$N5,1,aux!$AL$1))^(1/($N$3-INDEX($J$3:$N$3,1,aux!$AL$1)))-1,"n.d.") -> n.d. | AA5: =IF(INDEX($J5:$N5,1,aux!$AL$1)>0,(N5-INDEX($J5:$N5,1,aux!$AL$1))/INDEX($J5:$N5,1,aux!$AL$1),"n.d.") -> n.d. | AC5: 0 | BS5: =+MATCH('5.1'!A5,AUX_2d_pais!$G$2:$G$20001,0) -> 
A6: 0070 | B6: Albânia | C6: =+SUMIF(AUX_2d_pais!$A$2:$A$27000,'5.1'!$A6&'5.1'!C$3&1,AUX_2d_pais!$J$2:$J$27000)/1000 -> 0 | D6: =+SUMIF(AUX_2d_pais!$A$2:$A$27000,'5.1'!$A6&'5.1'!D$3&1,AUX_2d_pais!$J$2:$J$27000)/1000 -> 0 | E6: =+SUMIF(AUX_2d_pais!$A$2:$A$27000,'5.1'!$A6&'5.1'!E$3&1,AUX_2d_pais!$J$2:$J$27000)/1000 -> 0 | F6: =+SUMIF(AUX_2d_pais!$A$2:$A$27000,'5.1'!$A6&'5.1'!F$3&1,AUX_2d_pais!$J$2:$J$27000)/1000 -> 0 | G6: =+SUMIF(AUX_2d_pais!$A$2:$A$27000,'5.1'!$A6&'5.1'!G$3&1,AUX_2d_pais!$J$2:$J$27000)/1000 -> 0 | H6: 0 | I6: 0 | J6: =+SUMIF(AUX_2d_pais!$A$2:$A$27000,'5.1'!$A6&'5.1'!J$3&2,AUX_2d_pais!$J$2:$J$27000)/1000 -> 0 | K6: =+SUMIF(AUX_2d_pais!$A$2:$A$27000,'5.1'!$A6&'5.1'!K$3&2,AUX_2d_pais!$J$2:$J$27000)/1000 -> 0 | L6: =+SUMIF(AUX_2d_pais!$A$2:$A$27000,'5.1'!$A6&'5.1'!L$3&2,AUX_2d_pais!$J$2:$J$27000)/1000 -> 0 | M6: =+SUMIF(AUX_2d_pais!$A$2:$A$27000,'5.1'!$A6&'5.1'!M$3&2,AUX_2d_pais!$J$2:$J$27000)/1000 -> 0 | N6: =+SUMIF(AUX_2d_pais!$A$2:$A$27000,'5.1'!$A6&'5.1'!N$3&2,AUX_2d_pais!$J$2:$J$27000)/1000 -> 0 | O6: 0 | P6: 0 | Q6: 0 | S6: =G6-INDEX($C6:$G6,1,aux!$AL$1) -> 0 | T6: 0 | U6: =+IF(INDEX($C6:$G6,1,aux!$AL$1)>0,(G6/INDEX($C6:$G6,1,aux!$AL$1))^(1/($G$3-INDEX($C$3:$G$3,1,aux!$AL$1)))-1,"n.d.") -> n.d. | V6: =IF(INDEX($C6:$G6,1,aux!$AL$1)>0,(G6-INDEX($C6:$G6,1,aux!$AL$1))/INDEX($C6:$G6,1,aux!$AL$1),"n.d.") -> n.d. | X6: =N6-INDEX($J6:$N6,1,aux!$AL$1) -> 0 | Y6: 0 | Z6: =+IF(INDEX($J6:$N6,1,aux!$AL$1)>0,(N6/INDEX($J6:$N6,1,aux!$AL$1))^(1/($N$3-INDEX($J$3:$N$3,1,aux!$AL$1)))-1,"n.d.") -> n.d. | AA6: =IF(INDEX($J6:$N6,1,aux!$AL$1)>0,(N6-INDEX($J6:$N6,1,aux!$AL$1))/INDEX($J6:$N6,1,aux!$AL$1),"n.d.") -> n.d. | AC6: 0 | BS6: =+MATCH('5.1'!A6,AUX_2d_pais!$G$2:$G$20001,0) -> 
A7: 0004 | B7: Alemanha | C7: =+SUMIF(AUX_2d_pais!$A$2:$A$27000,'5.1'!$A7&'5.1'!C$3&1,AUX_2d_pais!$J$2:$J$27000)/1000 -> 0 | D7: =+SUMIF(AUX_2d_pais!$A$2:$A$27000,'5.1'!$A7&'5.1'!D$3&1,AUX_2d_pais!$J$2:$J$27000)/1000 -> 0 | E7: =+SUMIF(AUX_2d_pais!$A$2:$A$27000,'5.1'!$A7&'5.1'!E$3&1,AUX_2d_pais!$J$2:$J$27000)/1000 -> 0 | F7: =+SUMIF(AUX_2d_pais!$A$2:$A$27000,'5.1'!$A7&'5.1'!F$3&1,AUX_2d_pais!$J$2:$J$27000)/1000 -> 0 | G7: =+SUMIF(AUX_2d_pais!$A$2:$A$27000,'5.1'!$A7&'5.1'!G$3&1,AUX_2d_pais!$J$2:$J$27000)/1000 -> 0 | H7: 0 | I7: 0 | J7: =+SUMIF(AUX_2d_pais!$A$2:$A$27000,'5.1'!$A7&'5.1'!J$3&2,AUX_2d_pais!$J$2:$J$27000)/1000 -> 0 | K7: =+SUMIF(AUX_2d_pais!$A$2:$A$27000,'5.1'!$A7&'5.1'!K$3&2,AUX_2d_pais!$J$2:$J$27000)/1000 -> 0 | L7: =+SUMIF(AUX_2d_pais!$A$2:$A$27000,'5.1'!$A7&'5.1'!L$3&2,AUX_2d_pais!$J$2:$J$27000)/1000 -> 0 | M7: =+SUMIF(AUX_2d_pais!$A$2:$A$27000,'5.1'!$A7&'5.1'!M$3&2,AUX_2d_pais!$J$2:$J$27000)/1000 -> 0 | N7: =+SUMIF(AUX_2d_pais!$A$2:$A$27000,'5.1'!$A7&'5.1'!N$3&2,AUX_2d_pais!$J$2:$J$27000)/1000 -> 0 | O7: 0 | P7: 0 | Q7: 0 | S7: =G7-INDEX($C7:$G7,1,aux!$AL$1) -> 0 | T7: 0 | U7: =+IF(INDEX($C7:$G7,1,aux!$AL$1)>0,(G7/INDEX($C7:$G7,1,aux!$AL$1))^(1/($G$3-INDEX($C$3:$G$3,1,aux!$AL$1)))-1,"n.d.") -> n.d. | V7: =IF(INDEX($C7:$G7,1,aux!$AL$1)>0,(G7-INDEX($C7:$G7,1,aux!$AL$1))/INDEX($C7:$G7,1,aux!$AL$1),"n.d.") -> n.d. | X7: =N7-INDEX($J7:$N7,1,aux!$AL$1) -> 0 | Y7: 0 | Z7: =+IF(INDEX($J7:$N7,1,aux!$AL$1)>0,(N7/INDEX($J7:$N7,1,aux!$AL$1))^(1/($N$3-INDEX($J$3:$N$3,1,aux!$AL$1)))-1,"n.d.") -> n.d. | AA7: =IF(INDEX($J7:$N7,1,aux!$AL$1)>0,(N7-INDEX($J7:$N7,1,aux!$AL$1))/INDEX($J7:$N7,1,aux!$AL$1),"n.d.") -> n.d. | AC7: 0 | BS7: =+MATCH('5.1'!A7,AUX_2d_pais!$G$2:$G$20001,0) -> 
A8: 0043 | B8: Andorra | C8: =+SUMIF(AUX_2d_pais!$A$2:$A$27000,'5.1'!$A8&'5.1'!C$3&1,AUX_2d_pais!$J$2:$J$27000)/1000 -> 0 | D8: =+SUMIF(AUX_2d_pais!$A$2:$A$27000,'5.1'!$A8&'5.1'!D$3&1,AUX_2d_pais!$J$2:$J$27000)/1000 -> 0 | E8: =+SUMIF(AUX_2d_pais!$A$2:$A$27000,'5.1'!$A8&'5.1'!E$3&1,AUX_2d_pais!$J$2:$J$27000)/1000 -> 0 | F8: =+SUMIF(AUX_2d_pais!$A$2:$A$27000,'5.1'!$A8&'5.1'!F$3&1,AUX_2d_pais!$J$2:$J$27000)/1000 -> 0 | G8: =+SUMIF(AUX_2d_pais!$A$2:$A$27000,'5.1'!$A8&'5.1'!G$3&1,AUX_2d_pais!$J$2:$J$27000)/1000 -> 0 | H8: 0 | I8: 0 | J8: =+SUMIF(AUX_2d_pais!$A$2:$A$27000,'5.1'!$A8&'5.1'!J$3&2,AUX_2d_pais!$J$2:$J$27000)/1000 -> 0 | K8: =+SUMIF(AUX_2d_pais!$A$2:$A$27000,'5.1'!$A8&'5.1'!K$3&2,AUX_2d_pais!$J$2:$J$27000)/1000 -> 0 | L8: =+SUMIF(AUX_2d_pais!$A$2:$A$27000,'5.1'!$A8&'5.1'!L$3&2,AUX_2d_pais!$J$2:$J$27000)/1000 -> 0 | M8: =+SUMIF(AUX_2d_pais!$A$2:$A$27000,'5.1'!$A8&'5.1'!M$3&2,AUX_2d_pais!$J$2:$J$27000)/1000 -> 0 | N8: =+SUMIF(AUX_2d_pais!$A$2:$A$27000,'5.1'!$A8&'5.1'!N$3&2,AUX_2d_pais!$J$2:$J$27000)/1000 -> 0 | O8: 0 | P8: 0 | Q8: 0 | S8: =G8-INDEX($C8:$G8,1,aux!$AL$1) -> 0 | T8: 0 | U8: =+IF(INDEX($C8:$G8,1,aux!$AL$1)>0,(G8/INDEX($C8:$G8,1,aux!$AL$1))^(1/($G$3-INDEX($C$3:$G$3,1,aux!$AL$1)))-1,"n.d.") -> n.d. | V8: =IF(INDEX($C8:$G8,1,aux!$AL$1)>0,(G8-INDEX($C8:$G8,1,aux!$AL$1))/INDEX($C8:$G8,1,aux!$AL$1),"n.d.") -> n.d. | X8: =N8-INDEX($J8:$N8,1,aux!$AL$1) -> 0 | Y8: 0 | Z8: =+IF(INDEX($J8:$N8,1,aux!$AL$1)>0,(N8/INDEX($J8:$N8,1,aux!$AL$1))^(1/($N$3-INDEX($J$3:$N$3,1,aux!$AL$1)))-1,"n.d.") -> n.d. | AA8: =IF(INDEX($J8:$N8,1,aux!$AL$1)>0,(N8-INDEX($J8:$N8,1,aux!$AL$1))/INDEX($J8:$N8,1,aux!$AL$1),"n.d.") -> n.d. | AC8: 0 | BS8: =+MATCH('5.1'!A8,AUX_2d_pais!$G$2:$G$20001,0) -> 
A9: 0330 | B9: Angola | C9: =+SUMIF(AUX_2d_pais!$A$2:$A$27000,'5.1'!$A9&'5.1'!C$3&1,AUX_2d_pais!$J$2:$J$27000)/1000 -> 0 | D9: =+SUMIF(AUX_2d_pais!$A$2:$A$27000,'5.1'!$A9&'5.1'!D$3&1,AUX_2d_pais!$J$2:$J$27000)/1000 -> 0 | E9: =+SUMIF(AUX_2d_pais!$A$2:$A$27000,'5.1'!$A9&'5.1'!E$3&1,AUX_2d_pais!$J$2:$J$27000)/1000 -> 0 | F9: =+SUMIF(AUX_2d_pais!$A$2:$A$27000,'5.1'!$A9&'5.1'!F$3&1,AUX_2d_pais!$J$2:$J$27000)/1000 -> 0 | G9: =+SUMIF(AUX_2d_pais!$A$2:$A$27000,'5.1'!$A9&'5.1'!G$3&1,AUX_2d_pais!$J$2:$J$27000)/1000 -> 0 | H9: 0 | I9: 0 | J9: =+SUMIF(AUX_2d_pais!$A$2:$A$27000,'5.1'!$A9&'5.1'!J$3&2,AUX_2d_pais!$J$2:$J$27000)/1000 -> 0 | K9: =+SUMIF(AUX_2d_pais!$A$2:$A$27000,'5.1'!$A9&'5.1'!K$3&2,AUX_2d_pais!$J$2:$J$27000)/1000 -> 0 | L9: =+SUMIF(AUX_2d_pais!$A$2:$A$27000,'5.1'!$A9&'5.1'!L$3&2,AUX_2d_pais!$J$2:$J$27000)/1000 -> 0 | M9: =+SUMIF(AUX_2d_pais!$A$2:$A$27000,'5.1'!$A9&'5.1'!M$3&2,AUX_2d_pais!$J$2:$J$27000)/1000 -> 0 | N9: =+SUMIF(AUX_2d_pais!$A$2:$A$27000,'5.1'!$A9&'5.1'!N$3&2,AUX_2d_pais!$J$2:$J$27000)/1000 -> 0 | O9: 0 | P9: 0 | Q9: 0 | S9: =G9-INDEX($C9:$G9,1,aux!$AL$1) -> 0 | T9: 0 | U9: =+IF(INDEX($C9:$G9,1,aux!$AL$1)>0,(G9/INDEX($C9:$G9,1,aux!$AL$1))^(1/($G$3-INDEX($C$3:$G$3,1,aux!$AL$1)))-1,"n.d.") -> n.d. | V9: =IF(INDEX($C9:$G9,1,aux!$AL$1)>0,(G9-INDEX($C9:$G9,1,aux!$AL$1))/INDEX($C9:$G9,1,aux!$AL$1),"n.d.") -> n.d. | X9: =N9-INDEX($J9:$N9,1,aux!$AL$1) -> 0 | Y9: 0 | Z9: =+IF(INDEX($J9:$N9,1,aux!$AL$1)>0,(N9/INDEX($J9:$N9,1,aux!$AL$1))^(1/($N$3-INDEX($J$3:$N$3,1,aux!$AL$1)))-1,"n.d.") -> n.d. | AA9: =IF(INDEX($J9:$N9,1,aux!$AL$1)>0,(N9-INDEX($J9:$N9,1,aux!$AL$1))/INDEX($J9:$N9,1,aux!$AL$1),"n.d.") -> n.d. | AC9: 0 | BS9: =+MATCH('5.1'!A9,AUX_2d_pais!$G$2:$G$20001,0) -> 
A10: 0446 | B10: Anguila | C10: =+SUMIF(AUX_2d_pais!$A$2:$A$27000,'5.1'!$A10&'5.1'!C$3&1,AUX_2d_pais!$J$2:$J$27000)/1000 -> 0 | D10: =+SUMIF(AUX_2d_pais!$A$2:$A$27000,'5.1'!$A10&'5.1'!D$3&1,AUX_2d_pais!$J$2:$J$27000)/1000 -> 0 | E10: =+SUMIF(AUX_2d_pais!$A$2:$A$27000,'5.1'!$A10&'5.1'!E$3&1,AUX_2d_pais!$J$2:$J$27000)/1000 -> 0 | F10: =+SUMIF(AUX_2d_pais!$A$2:$A$27000,'5.1'!$A10&'5.1'!F$3&1,AUX_2d_pais!$J$2:$J$27000)/1000 -> 0 | G10: =+SUMIF(AUX_2d_pais!$A$2:$A$27000,'5.1'!$A10&'5.1'!G$3&1,AUX_2d_pais!$J$2:$J$27000)/1000 -> 0 | H10: 0 | I10: 0 | J10: =+SUMIF(AUX_2d_pais!$A$2:$A$27000,'5.1'!$A10&'5.1'!J$3&2,AUX_2d_pais!$J$2:$J$27000)/1000 -> 0 | K10: =+SUMIF(AUX_2d_pais!$A$2:$A$27000,'5.1'!$A10&'5.1'!K$3&2,AUX_2d_pais!$J$2:$J$27000)/1000 -> 0 | L10: =+SUMIF(AUX_2d_pais!$A$2:$A$27000,'5.1'!$A10&'5.1'!L$3&2,AUX_2d_pais!$J$2:$J$27000)/1000 -> 0 | M10: =+SUMIF(AUX_2d_pais!$A$2:$A$27000,'5.1'!$A10&'5.1'!M$3&2,AUX_2d_pais!$J$2:$J$27000)/1000 -> 0 | N10: =+SUMIF(AUX_2d_pais!$A$2:$A$27000,'5.1'!$A10&'5.1'!N$3&2,AUX_2d_pais!$J$2:$J$27000)/1000 -> 0 | O10: 0 | P10: 0 | Q10: 0 | S10: =G10-INDEX($C10:$G10,1,aux!$AL$1) -> 0 | T10: 0 | U10: =+IF(INDEX($C10:$G10,1,aux!$AL$1)>0,(G10/INDEX($C10:$G10,1,aux!$AL$1))^(1/($G$3-INDEX($C$3:$G$3,1,aux!$AL$1)))-1,"n.d.") -> n.d. | V10: =IF(INDEX($C10:$G10,1,aux!$AL$1)>0,(G10-INDEX($C10:$G10,1,aux!$AL$1))/INDEX($C10:$G10,1,aux!$AL$1),"n.d.") -> n.d. | X10: =N10-INDEX($J10:$N10,1,aux!$AL$1) -> 0 | Y10: 0 | Z10: =+IF(INDEX($J10:$N10,1,aux!$AL$1)>0,(N10/INDEX($J10:$N10,1,aux!$AL$1))^(1/($N$3-INDEX($J$3:$N$3,1,aux!$AL$1)))-1,"n.d.") -> n.d. | AA10: =IF(INDEX($J10:$N10,1,aux!$AL$1)>0,(N10-INDEX($J10:$N10,1,aux!$AL$1))/INDEX($J10:$N10,1,aux!$AL$1),"n.d.") -> n.d. | AC10: 0 | BS10: =+MATCH('5.1'!A10,AUX_2d_pais!$G$2:$G$20001,0) -> 
A11: 0891 | B11: Antárctica | C11: =+SUMIF(AUX_2d_pais!$A$2:$A$27000,'5.1'!$A11&'5.1'!C$3&1,AUX_2d_pais!$J$2:$J$27000)/1000 -> 0 | D11: =+SUMIF(AUX_2d_pais!$A$2:$A$27000,'5.1'!$A11&'5.1'!D$3&1,AUX_2d_pais!$J$2:$J$27000)/1000 -> 0 | E11: =+SUMIF(AUX_2d_pais!$A$2:$A$27000,'5.1'!$A11&'5.1'!E$3&1,AUX_2d_pais!$J$2:$J$27000)/1000 -> 0 | F11: =+SUMIF(AUX_2d_pais!$A$2:$A$27000,'5.1'!$A11&'5.1'!F$3&1,AUX_2d_pais!$J$2:$J$27000)/1000 -> 0 | G11: =+SUMIF(AUX_2d_pais!$A$2:$A$27000,'5.1'!$A11&'5.1'!G$3&1,AUX_2d_pais!$J$2:$J$27000)/1000 -> 0 | H11: 0 | I11: 0 | J11: =+SUMIF(AUX_2d_pais!$A$2:$A$27000,'5.1'!$A11&'5.1'!J$3&2,AUX_2d_pais!$J$2:$J$27000)/1000 -> 0 | K11: =+SUMIF(AUX_2d_pais!$A$2:$A$27000,'5.1'!$A11&'5.1'!K$3&2,AUX_2d_pais!$J$2:$J$27000)/1000 -> 0 | L11: =+SUMIF(AUX_2d_pais!$A$2:$A$27000,'5.1'!$A11&'5.1'!L$3&2,AUX_2d_pais!$J$2:$J$27000)/1000 -> 0 | M11: =+SUMIF(AUX_2d_pais!$A$2:$A$27000,'5.1'!$A11&'5.1'!M$3&2,AUX_2d_pais!$J$2:$J$27000)/1000 -> 0 | N11: =+SUMIF(AUX_2d_pais!$A$2:$A$27000,'5.1'!$A11&'5.1'!N$3&2,AUX_2d_pais!$J$2:$J$27000)/1000 -> 0 | O11: 0 | P11: 0 | Q11: 0 | S11: =G11-INDEX($C11:$G11,1,aux!$AL$1) -> 0 | T11: 0 | U11: =+IF(INDEX($C11:$G11,1,aux!$AL$1)>0,(G11/INDEX($C11:$G11,1,aux!$AL$1))^(1/($G$3-INDEX($C$3:$G$3,1,aux!$AL$1)))-1,"n.d.") -> n.d. | V11: =IF(INDEX($C11:$G11,1,aux!$AL$1)>0,(G11-INDEX($C11:$G11,1,aux!$AL$1))/INDEX($C11:$G11,1,aux!$AL$1),"n.d.") -> n.d. | X11: =N11-INDEX($J11:$N11,1,aux!$AL$1) -> 0 | Y11: 0 | Z11: =+IF(INDEX($J11:$N11,1,aux!$AL$1)>0,(N11/INDEX($J11:$N11,1,aux!$AL$1))^(1/($N$3-INDEX($J$3:$N$3,1,aux!$AL$1)))-1,"n.d.") -> n.d. | AA11: =IF(INDEX($J11:$N11,1,aux!$AL$1)>0,(N11-INDEX($J11:$N11,1,aux!$AL$1))/INDEX($J11:$N11,1,aux!$AL$1),"n.d.") -> n.d. | AC11: 0 | BS11: =+MATCH('5.1'!A11,AUX_2d_pais!$G$2:$G$20001,0) -> 
A12: 0459 | B12: Antígua e Barbuda | C12: =+SUMIF(AUX_2d_pais!$A$2:$A$27000,'5.1'!$A12&'5.1'!C$3&1,AUX_2d_pais!$J$2:$J$27000)/1000 -> 0 | D12: =+SUMIF(AUX_2d_pais!$A$2:$A$27000,'5.1'!$A12&'5.1'!D$3&1,AUX_2d_pais!$J$2:$J$27000)/1000 -> 0 | E12: =+SUMIF(AUX_2d_pais!$A$2:$A$27000,'5.1'!$A12&'5.1'!E$3&1,AUX_2d_pais!$J$2:$J$27000)/1000 -> 0 | F12: =+SUMIF(AUX_2d_pais!$A$2:$A$27000,'5.1'!$A12&'5.1'!F$3&1,AUX_2d_pais!$J$2:$J$27000)/1000 -> 0 | G12: =+SUMIF(AUX_2d_pais!$A$2:$A$27000,'5.1'!$A12&'5.1'!G$3&1,AUX_2d_pais!$J$2:$J$27000)/1000 -> 0 | H12: 0 | I12: 0 | J12: =+SUMIF(AUX_2d_pais!$A$2:$A$27000,'5.1'!$A12&'5.1'!J$3&2,AUX_2d_pais!$J$2:$J$27000)/1000 -> 0 | K12: =+SUMIF(AUX_2d_pais!$A$2:$A$27000,'5.1'!$A12&'5.1'!K$3&2,AUX_2d_pais!$J$2:$J$27000)/1000 -> 0 | L12: =+SUMIF(AUX_2d_pais!$A$2:$A$27000,'5.1'!$A12&'5.1'!L$3&2,AUX_2d_pais!$J$2:$J$27000)/1000 -> 0 | M12: =+SUMIF(AUX_2d_pais!$A$2:$A$27000,'5.1'!$A12&'5.1'!M$3&2,AUX_2d_pais!$J$2:$J$27000)/1000 -> 0 | N12: =+SUMIF(AUX_2d_pais!$A$2:$A$27000,'5.1'!$A12&'5.1'!N$3&2,AUX_2d_pais!$J$2:$J$27000)/1000 -> 0 | O12: 0 | P12: 0 | Q12: 0 | S12: =G12-INDEX($C12:$G12,1,aux!$AL$1) -> 0 | T12: 0 | U12: =+IF(INDEX($C12:$G12,1,aux!$AL$1)>0,(G12/INDEX($C12:$G12,1,aux!$AL$1))^(1/($G$3-INDEX($C$3:$G$3,1,aux!$AL$1)))-1,"n.d.") -> n.d. | V12: =IF(INDEX($C12:$G12,1,aux!$AL$1)>0,(G12-INDEX($C12:$G12,1,aux!$AL$1))/INDEX($C12:$G12,1,aux!$AL$1),"n.d.") -> n.d. | X12: =N12-INDEX($J12:$N12,1,aux!$AL$1) -> 0 | Y12: 0 | Z12: =+IF(INDEX($J12:$N12,1,aux!$AL$1)>0,(N12/INDEX($J12:$N12,1,aux!$AL$1))^(1/($N$3-INDEX($J$3:$N$3,1,aux!$AL$1)))-1,"n.d.") -> n.d. | AA12: =IF(INDEX($J12:$N12,1,aux!$AL$1)>0,(N12-INDEX($J12:$N12,1,aux!$AL$1))/INDEX($J12:$N12,1,aux!$AL$1),"n.d.") -> n.d. | AC12: 0 | BS12: =+MATCH('5.1'!A12,AUX_2d_pais!$G$2:$G$20001,0) -> 
A13: 0478 | B13: Antilhas Holandesas | C13: =+SUMIF(AUX_2d_pais!$A$2:$A$27000,'5.1'!$A13&'5.1'!C$3&1,AUX_2d_pais!$J$2:$J$27000)/1000 -> 0 | D13: =+SUMIF(AUX_2d_pais!$A$2:$A$27000,'5.1'!$A13&'5.1'!D$3&1,AUX_2d_pais!$J$2:$J$27000)/1000 -> 0 | E13: =+SUMIF(AUX_2d_pais!$A$2:$A$27000,'5.1'!$A13&'5.1'!E$3&1,AUX_2d_pais!$J$2:$J$27000)/1000 -> 0 | F13: =+SUMIF(AUX_2d_pais!$A$2:$A$27000,'5.1'!$A13&'5.1'!F$3&1,AUX_2d_pais!$J$2:$J$27000)/1000 -> 0 | G13: =+SUMIF(AUX_2d_pais!$A$2:$A$27000,'5.1'!$A13&'5.1'!G$3&1,AUX_2d_pais!$J$2:$J$27000)/1000 -> 0 | H13: 0 | I13: 0 | J13: =+SUMIF(AUX_2d_pais!$A$2:$A$27000,'5.1'!$A13&'5.1'!J$3&2,AUX_2d_pais!$J$2:$J$27000)/1000 -> 0 | K13: =+SUMIF(AUX_2d_pais!$A$2:$A$27000,'5.1'!$A13&'5.1'!K$3&2,AUX_2d_pais!$J$2:$J$27000)/1000 -> 0 | L13: =+SUMIF(AUX_2d_pais!$A$2:$A$27000,'5.1'!$A13&'5.1'!L$3&2,AUX_2d_pais!$J$2:$J$27000)/1000 -> 0 | M13: =+SUMIF(AUX_2d_pais!$A$2:$A$27000,'5.1'!$A13&'5.1'!M$3&2,AUX_2d_pais!$J$2:$J$27000)/1000 -> 0 | N13: =+SUMIF(AUX_2d_pais!$A$2:$A$27000,'5.1'!$A13&'5.1'!N$3&2,AUX_2d_pais!$J$2:$J$27000)/1000 -> 0 | O13: 0 | P13: 0 | Q13: 0 | S13: =G13-INDEX($C13:$G13,1,aux!$AL$1) -> 0 | T13: 0 | U13: =+IF(INDEX($C13:$G13,1,aux!$AL$1)>0,(G13/INDEX($C13:$G13,1,aux!$AL$1))^(1/($G$3-INDEX($C$3:$G$3,1,aux!$AL$1)))-1,"n.d.") -> n.d. | V13: =IF(INDEX($C13:$G13,1,aux!$AL$1)>0,(G13-INDEX($C13:$G13,1,aux!$AL$1))/INDEX($C13:$G13,1,aux!$AL$1),"n.d.") -> n.d. | X13: =N13-INDEX($J13:$N13,1,aux!$AL$1) -> 0 | Y13: 0 | Z13: =+IF(INDEX($J13:$N13,1,aux!$AL$1)>0,(N13/INDEX($J13:$N13,1,aux!$AL$1))^(1/($N$3-INDEX($J$3:$N$3,1,aux!$AL$1)))-1,"n.d.") -> n.d. | AA13: =IF(INDEX($J13:$N13,1,aux!$AL$1)>0,(N13-INDEX($J13:$N13,1,aux!$AL$1))/INDEX($J13:$N13,1,aux!$AL$1),"n.d.") -> n.d. | AC13: 0 | BS13: =+MATCH('5.1'!A13,AUX_2d_pais!$G$2:$G$20001,0) -> 
A14: 0632 | B14: Arábia Saudita | C14: =+SUMIF(AUX_2d_pais!$A$2:$A$27000,'5.1'!$A14&'5.1'!C$3&1,AUX_2d_pais!$J$2:$J$27000)/1000 -> 0 | D14: =+SUMIF(AUX_2d_pais!$A$2:$A$27000,'5.1'!$A14&'5.1'!D$3&1,AUX_2d_pais!$J$2:$J$27000)/1000 -> 0 | E14: =+SUMIF(AUX_2d_pais!$A$2:$A$27000,'5.1'!$A14&'5.1'!E$3&1,AUX_2d_pais!$J$2:$J$27000)/1000 -> 0 | F14: =+SUMIF(AUX_2d_pais!$A$2:$A$27000,'5.1'!$A14&'5.1'!F$3&1,AUX_2d_pais!$J$2:$J$27000)/1000 -> 0 | G14: =+SUMIF(AUX_2d_pais!$A$2:$A$27000,'5.1'!$A14&'5.1'!G$3&1,AUX_2d_pais!$J$2:$J$27000)/1000 -> 0 | H14: 0 | I14: 0 | J14: =+SUMIF(AUX_2d_pais!$A$2:$A$27000,'5.1'!$A14&'5.1'!J$3&2,AUX_2d_pais!$J$2:$J$27000)/1000 -> 0 | K14: =+SUMIF(AUX_2d_pais!$A$2:$A$27000,'5.1'!$A14&'5.1'!K$3&2,AUX_2d_pais!$J$2:$J$27000)/1000 -> 0 | L14: =+SUMIF(AUX_2d_pais!$A$2:$A$27000,'5.1'!$A14&'5.1'!L$3&2,AUX_2d_pais!$J$2:$J$27000)/1000 -> 0 | M14: =+SUMIF(AUX_2d_pais!$A$2:$A$27000,'5.1'!$A14&'5.1'!M$3&2,AUX_2d_pais!$J$2:$J$27000)/1000 -> 0 | N14: =+SUMIF(AUX_2d_pais!$A$2:$A$27000,'5.1'!$A14&'5.1'!N$3&2,AUX_2d_pais!$J$2:$J$27000)/1000 -> 0 | O14: 0 | P14: 0 | Q14: 0 | S14: =G14-INDEX($C14:$G14,1,aux!$AL$1) -> 0 | T14: 0 | U14: =+IF(INDEX($C14:$G14,1,aux!$AL$1)>0,(G14/INDEX($C14:$G14,1,aux!$AL$1))^(1/($G$3-INDEX($C$3:$G$3,1,aux!$AL$1)))-1,"n.d.") -> n.d. | V14: =IF(INDEX($C14:$G14,1,aux!$AL$1)>0,(G14-INDEX($C14:$G14,1,aux!$AL$1))/INDEX($C14:$G14,1,aux!$AL$1),"n.d.") -> n.d. | X14: =N14-INDEX($J14:$N14,1,aux!$AL$1) -> 0 | Y14: 0 | Z14: =+IF(INDEX($J14:$N14,1,aux!$AL$1)>0,(N14/INDEX($J14:$N14,1,aux!$AL$1))^(1/($N$3-INDEX($J$3:$N$3,1,aux!$AL$1)))-1,"n.d.") -> n.d. | AA14: =IF(INDEX($J14:$N14,1,aux!$AL$1)>0,(N14-INDEX($J14:$N14,1,aux!$AL$1))/INDEX($J14:$N14,1,aux!$AL$1),"n.d.") -> n.d. | AC14: 0 | BS14: =+MATCH('5.1'!A14,AUX_2d_pais!$G$2:$G$20001,0) -> 
A15: 0208 | B15: Argélia | C15: =+SUMIF(AUX_2d_pais!$A$2:$A$27000,'5.1'!$A15&'5.1'!C$3&1,AUX_2d_pais!$J$2:$J$27000)/1000 -> 0 | D15: =+SUMIF(AUX_2d_pais!$A$2:$A$27000,'5.1'!$A15&'5.1'!D$3&1,AUX_2d_pais!$J$2:$J$27000)/1000 -> 0 | E15: =+SUMIF(AUX_2d_pais!$A$2:$A$27000,'5.1'!$A15&'5.1'!E$3&1,AUX_2d_pais!$J$2:$J$27000)/1000 -> 0 | F15: =+SUMIF(AUX_2d_pais!$A$2:$A$27000,'5.1'!$A15&'5.1'!F$3&1,AUX_2d_pais!$J$2:$J$27000)/1000 -> 0 | G15: =+SUMIF(AUX_2d_pais!$A$2:$A$27000,'5.1'!$A15&'5.1'!G$3&1,AUX_2d_pais!$J$2:$J$27000)/1000 -> 0 | H15: 0 | I15: 0 | J15: =+SUMIF(AUX_2d_pais!$A$2:$A$27000,'5.1'!$A15&'5.1'!J$3&2,AUX_2d_pais!$J$2:$J$27000)/1000 -> 0 | K15: =+SUMIF(AUX_2d_pais!$A$2:$A$27000,'5.1'!$A15&'5.1'!K$3&2,AUX_2d_pais!$J$2:$J$27000)/1000 -> 0 | L15: =+SUMIF(AUX_2d_pais!$A$2:$A$27000,'5.1'!$A15&'5.1'!L$3&2,AUX_2d_pais!$J$2:$J$27000)/1000 -> 0 | M15: =+SUMIF(AUX_2d_pais!$A$2:$A$27000,'5.1'!$A15&'5.1'!M$3&2,AUX_2d_pais!$J$2:$J$27000)/1000 -> 0 | N15: =+SUMIF(AUX_2d_pais!$A$2:$A$27000,'5.1'!$A15&'5.1'!N$3&2,AUX_2d_pais!$J$2:$J$27000)/1000 -> 0 | O15: 0 | P15: 0 | Q15: 0 | S15: =G15-INDEX($C15:$G15,1,aux!$AL$1) -> 0 | T15: 0 | U15: =+IF(INDEX($C15:$G15,1,aux!$AL$1)>0,(G15/INDEX($C15:$G15,1,aux!$AL$1))^(1/($G$3-INDEX($C$3:$G$3,1,aux!$AL$1)))-1,"n.d.") -> n.d. | V15: =IF(INDEX($C15:$G15,1,aux!$AL$1)>0,(G15-INDEX($C15:$G15,1,aux!$AL$1))/INDEX($C15:$G15,1,aux!$AL$1),"n.d.") -> n.d. | X15: =N15-INDEX($J15:$N15,1,aux!$AL$1) -> 0 | Y15: 0 | Z15: =+IF(INDEX($J15:$N15,1,aux!$AL$1)>0,(N15/INDEX($J15:$N15,1,aux!$AL$1))^(1/($N$3-INDEX($J$3:$N$3,1,aux!$AL$1)))-1,"n.d.") -> n.d. | AA15: =IF(INDEX($J15:$N15,1,aux!$AL$1)>0,(N15-INDEX($J15:$N15,1,aux!$AL$1))/INDEX($J15:$N15,1,aux!$AL$1),"n.d.") -> n.d. | AC15: 0 | BS15: =+MATCH('5.1'!A15,AUX_2d_pais!$G$2:$G$20001,0) -> 
A16: 0528 | B16: Argentina | C16: =+SUMIF(AUX_2d_pais!$A$2:$A$27000,'5.1'!$A16&'5.1'!C$3&1,AUX_2d_pais!$J$2:$J$27000)/1000 -> 62007.936 | D16: =+SUMIF(AUX_2d_pais!$A$2:$A$27000,'5.1'!$A16&'5.1'!D$3&1,AUX_2d_pais!$J$2:$J$27000)/1000 -> 78523.148 | E16: =+SUMIF(AUX_2d_pais!$A$2:$A$27000,'5.1'!$A16&'5.1'!E$3&1,AUX_2d_pais!$J$2:$J$27000)/1000 -> 63095.763 | F16: =+SUMIF(AUX_2d_pais!$A$2:$A$27000,'5.1'!$A16&'5.1'!F$3&1,AUX_2d_pais!$J$2:$J$27000)/1000 -> 122082.759 | G16: =+SUMIF(AUX_2d_pais!$A$2:$A$27000,'5.1'!$A16&'5.1'!G$3&1,AUX_2d_pais!$J$2:$J$27000)/1000 -> 162929.621 | H16: 97727.8454 | I16: 0.08842667322 | J16: =+SUMIF(AUX_2d_pais!$A$2:$A$27000,'5.1'!$A16&'5.1'!J$3&2,AUX_2d_pais!$J$2:$J$27000)/1000 -> 12497.79 | K16: =+SUMIF(AUX_2d_pais!$A$2:$A$27000,'5.1'!$A16&'5.1'!K$3&2,AUX_2d_pais!$J$2:$J$27000)/1000 -> 13155.225 | L16: =+SUMIF(AUX_2d_pais!$A$2:$A$27000,'5.1'!$A16&'5.1'!L$3&2,AUX_2d_pais!$J$2:$J$27000)/1000 -> 14867.935 | M16: =+SUMIF(AUX_2d_pais!$A$2:$A$27000,'5.1'!$A16&'5.1'!M$3&2,AUX_2d_pais!$J$2:$J$27000)/1000 -> 21005.146 | N16: =+SUMIF(AUX_2d_pais!$A$2:$A$27000,'5.1'!$A16&'5.1'!N$3&2,AUX_2d_pais!$J$2:$J$27000)/1000 -> 18651.802 | O16: 16035.5796 | P16: 0.03014705059 | Q16: -81692.2658 | S16: =G16-INDEX($C16:$G16,1,aux!$AL$1) -> 100921.685 | T16: 0.09242223421 | U16: =+IF(INDEX($C16:$G16,1,aux!$AL$1)>0,(G16/INDEX($C16:$G16,1,aux!$AL$1))^(1/($G$3-INDEX($C$3:$G$3,1,aux!$AL$1)))-1,"n.d.") -> 0.2731752658 | V16: =IF(INDEX($C16:$G16,1,aux!$AL$1)>0,(G16-INDEX($C16:$G16,1,aux!$AL$1))/INDEX($C16:$G16,1,aux!$AL$1),"n.d.") -> 1.627560785 | X16: =N16-INDEX($J16:$N16,1,aux!$AL$1) -> 6154.012 | Y16: 0.07748363168 | Z16: =+IF(INDEX($J16:$N16,1,aux!$AL$1)>0,(N16/INDEX($J16:$N16,1,aux!$AL$1))^(1/($N$3-INDEX($J$3:$N$3,1,aux!$AL$1)))-1,"n.d.") -> 0.1052789358 | AA16: =IF(INDEX($J16:$N16,1,aux!$AL$1)>0,(N16-INDEX($J16:$N16,1,aux!$AL$1))/INDEX($J16:$N16,1,aux!$AL$1),"n.d.") -> 0.4924080177 | BS16: =+MATCH('5.1'!A16,AUX_2d_pais!$G$2:$G$20001,0) -> 29
A17: 0077 | B17: Arménia | C17: =+SUMIF(AUX_2d_pais!$A$2:$A$27000,'5.1'!$A17&'5.1'!C$3&1,AUX_2d_pais!$J$2:$J$27000)/1000 -> 0 | D17: =+SUMIF(AUX_2d_pais!$A$2:$A$27000,'5.1'!$A17&'5.1'!D$3&1,AUX_2d_pais!$J$2:$J$27000)/1000 -> 0 | E17: =+SUMIF(AUX_2d_pais!$A$2:$A$27000,'5.1'!$A17&'5.1'!E$3&1,AUX_2d_pais!$J$2:$J$27000)/1000 -> 0 | F17: =+SUMIF(AUX_2d_pais!$A$2:$A$27000,'5.1'!$A17&'5.1'!F$3&1,AUX_2d_pais!$J$2:$J$27000)/1000 -> 0 | G17: =+SUMIF(AUX_2d_pais!$A$2:$A$27000,'5.1'!$A17&'5.1'!G$3&1,AUX_2d_pais!$J$2:$J$27000)/1000 -> 0 | H17: 0 | I17: 0 | J17: =+SUMIF(AUX_2d_pais!$A$2:$A$27000,'5.1'!$A17&'5.1'!J$3&2,AUX_2d_pais!$J$2:$J$27000)/1000 -> 0 | K17: =+SUMIF(AUX_2d_pais!$A$2:$A$27000,'5.1'!$A17&'5.1'!K$3&2,AUX_2d_pais!$J$2:$J$27000)/1000 -> 0 | L17: =+SUMIF(AUX_2d_pais!$A$2:$A$27000,'5.1'!$A17&'5.1'!L$3&2,AUX_2d_pais!$J$2:$J$27000)/1000 -> 0 | M17: =+SUMIF(AUX_2d_pais!$A$2:$A$27000,'5.1'!$A17&'5.1'!M$3&2,AUX_2d_pais!$J$2:$J$27000)/1000 -> 0 | N17: =+SUMIF(AUX_2d_pais!$A$2:$A$27000,'5.1'!$A17&'5.1'!N$3&2,AUX_2d_pais!$J$2:$J$27000)/1000 -> 0 | O17: 0 | P17: 0 | Q17: 0 | S17: =G17-INDEX($C17:$G17,1,aux!$AL$1) -> 0 | T17: 0 | U17: =+IF(INDEX($C17:$G17,1,aux!$AL$1)>0,(G17/INDEX($C17:$G17,1,aux!$AL$1))^(1/($G$3-INDEX($C$3:$G$3,1,aux!$AL$1)))-1,"n.d.") -> n.d. | V17: =IF(INDEX($C17:$G17,1,aux!$AL$1)>0,(G17-INDEX($C17:$G17,1,aux!$AL$1))/INDEX($C17:$G17,1,aux!$AL$1),"n.d.") -> n.d. | X17: =N17-INDEX($J17:$N17,1,aux!$AL$1) -> 0 | Y17: 0 | Z17: =+IF(INDEX($J17:$N17,1,aux!$AL$1)>0,(N17/INDEX($J17:$N17,1,aux!$AL$1))^(1/($N$3-INDEX($J$3:$N$3,1,aux!$AL$1)))-1,"n.d.") -> n.d. | AA17: =IF(INDEX($J17:$N17,1,aux!$AL$1)>0,(N17-INDEX($J17:$N17,1,aux!$AL$1))/INDEX($J17:$N17,1,aux!$AL$1),"n.d.") -> n.d. | AC17: 0 | BS17: =+MATCH('5.1'!A17,AUX_2d_pais!$G$2:$G$20001,0) -> 
A18: 0474 | B18: Aruba | C18: =+SUMIF(AUX_2d_pais!$A$2:$A$27000,'5.1'!$A18&'5.1'!C$3&1,AUX_2d_pais!$J$2:$J$27000)/1000 -> 0 | D18: =+SUMIF(AUX_2d_pais!$A$2:$A$27000,'5.1'!$A18&'5.1'!D$3&1,AUX_2d_pais!$J$2:$J$27000)/1000 -> 0 | E18: =+SUMIF(AUX_2d_pais!$A$2:$A$27000,'5.1'!$A18&'5.1'!E$3&1,AUX_2d_pais!$J$2:$J$27000)/1000 -> 0 | F18: =+SUMIF(AUX_2d_pais!$A$2:$A$27000,'5.1'!$A18&'5.1'!F$3&1,AUX_2d_pais!$J$2:$J$27000)/1000 -> 0 | G18: =+SUMIF(AUX_2d_pais!$A$2:$A$27000,'5.1'!$A18&'5.1'!G$3&1,AUX_2d_pais!$J$2:$J$27000)/1000 -> 0 | H18: 0 | I18: 0 | J18: =+SUMIF(AUX_2d_pais!$A$2:$A$27000,'5.1'!$A18&'5.1'!J$3&2,AUX_2d_pais!$J$2:$J$27000)/1000 -> 0 | K18: =+SUMIF(AUX_2d_pais!$A$2:$A$27000,'5.1'!$A18&'5.1'!K$3&2,AUX_2d_pais!$J$2:$J$27000)/1000 -> 0 | L18: =+SUMIF(AUX_2d_pais!$A$2:$A$27000,'5.1'!$A18&'5.1'!L$3&2,AUX_2d_pais!$J$2:$J$27000)/1000 -> 0 | M18: =+SUMIF(AUX_2d_pais!$A$2:$A$27000,'5.1'!$A18&'5.1'!M$3&2,AUX_2d_pais!$J$2:$J$27000)/1000 -> 0 | N18: =+SUMIF(AUX_2d_pais!$A$2:$A$27000,'5.1'!$A18&'5.1'!N$3&2,AUX_2d_pais!$J$2:$J$27000)/1000 -> 0 | O18: 0 | P18: 0 | Q18: 0 | S18: =G18-INDEX($C18:$G18,1,aux!$AL$1) -> 0 | T18: 0 | U18: =+IF(INDEX($C18:$G18,1,aux!$AL$1)>0,(G18/INDEX($C18:$G18,1,aux!$AL$1))^(1/($G$3-INDEX($C$3:$G$3,1,aux!$AL$1)))-1,"n.d.") -> n.d. | V18: =IF(INDEX($C18:$G18,1,aux!$AL$1)>0,(G18-INDEX($C18:$G18,1,aux!$AL$1))/INDEX($C18:$G18,1,aux!$AL$1),"n.d.") -> n.d. | X18: =N18-INDEX($J18:$N18,1,aux!$AL$1) -> 0 | Y18: 0 | Z18: =+IF(INDEX($J18:$N18,1,aux!$AL$1)>0,(N18/INDEX($J18:$N18,1,aux!$AL$1))^(1/($N$3-INDEX($J$3:$N$3,1,aux!$AL$1)))-1,"n.d.") -> n.d. | AA18: =IF(INDEX($J18:$N18,1,aux!$AL$1)>0,(N18-INDEX($J18:$N18,1,aux!$AL$1))/INDEX($J18:$N18,1,aux!$AL$1),"n.d.") -> n.d. | AC18: 0 | BS18: =+MATCH('5.1'!A18,AUX_2d_pais!$G$2:$G$20001,0) -> 
A19: 0800 | B19: Austrália | C19: =+SUMIF(AUX_2d_pais!$A$2:$A$27000,'5.1'!$A19&'5.1'!C$3&1,AUX_2d_pais!$J$2:$J$27000)/1000 -> 0 | D19: =+SUMIF(AUX_2d_pais!$A$2:$A$27000,'5.1'!$A19&'5.1'!D$3&1,AUX_2d_pais!$J$2:$J$27000)/1000 -> 0 | E19: =+SUMIF(AUX_2d_pais!$A$2:$A$27000,'5.1'!$A19&'5.1'!E$3&1,AUX_2d_pais!$J$2:$J$27000)/1000 -> 0 | F19: =+SUMIF(AUX_2d_pais!$A$2:$A$27000,'5.1'!$A19&'5.1'!F$3&1,AUX_2d_pais!$J$2:$J$27000)/1000 -> 0 | G19: =+SUMIF(AUX_2d_pais!$A$2:$A$27000,'5.1'!$A19&'5.1'!G$3&1,AUX_2d_pais!$J$2:$J$27000)/1000 -> 0 | H19: 0 | I19: 0 | J19: =+SUMIF(AUX_2d_pais!$A$2:$A$27000,'5.1'!$A19&'5.1'!J$3&2,AUX_2d_pais!$J$2:$J$27000)/1000 -> 0 | K19: =+SUMIF(AUX_2d_pais!$A$2:$A$27000,'5.1'!$A19&'5.1'!K$3&2,AUX_2d_pais!$J$2:$J$27000)/1000 -> 0 | L19: =+SUMIF(AUX_2d_pais!$A$2:$A$27000,'5.1'!$A19&'5.1'!L$3&2,AUX_2d_pais!$J$2:$J$27000)/1000 -> 0 | M19: =+SUMIF(AUX_2d_pais!$A$2:$A$27000,'5.1'!$A19&'5.1'!M$3&2,AUX_2d_pais!$J$2:$J$27000)/1000 -> 0 | N19: =+SUMIF(AUX_2d_pais!$A$2:$A$27000,'5.1'!$A19&'5.1'!N$3&2,AUX_2d_pais!$J$2:$J$27000)/1000 -> 0 | O19: 0 | P19: 0 | Q19: 0 | S19: =G19-INDEX($C19:$G19,1,aux!$AL$1) -> 0 | T19: 0 | U19: =+IF(INDEX($C19:$G19,1,aux!$AL$1)>0,(G19/INDEX($C19:$G19,1,aux!$AL$1))^(1/($G$3-INDEX($C$3:$G$3,1,aux!$AL$1)))-1,"n.d.") -> n.d. | V19: =IF(INDEX($C19:$G19,1,aux!$AL$1)>0,(G19-INDEX($C19:$G19,1,aux!$AL$1))/INDEX($C19:$G19,1,aux!$AL$1),"n.d.") -> n.d. | X19: =N19-INDEX($J19:$N19,1,aux!$AL$1) -> 0 | Y19: 0 | Z19: =+IF(INDEX($J19:$N19,1,aux!$AL$1)>0,(N19/INDEX($J19:$N19,1,aux!$AL$1))^(1/($N$3-INDEX($J$3:$N$3,1,aux!$AL$1)))-1,"n.d.") -> n.d. | AA19: =IF(INDEX($J19:$N19,1,aux!$AL$1)>0,(N19-INDEX($J19:$N19,1,aux!$AL$1))/INDEX($J19:$N19,1,aux!$AL$1),"n.d.") -> n.d. | AC19: 0 | BS19: =+MATCH('5.1'!A19,AUX_2d_pais!$G$2:$G$20001,0) -> 
A20: 0038 | B20: Áustria | C20: =+SUMIF(AUX_2d_pais!$A$2:$A$27000,'5.1'!$A20&'5.1'!C$3&1,AUX_2d_pais!$J$2:$J$27000)/1000 -> 0 | D20: =+SUMIF(AUX_2d_pais!$A$2:$A$27000,'5.1'!$A20&'5.1'!D$3&1,AUX_2d_pais!$J$2:$J$27000)/1000 -> 0 | E20: =+SUMIF(AUX_2d_pais!$A$2:$A$27000,'5.1'!$A20&'5.1'!E$3&1,AUX_2d_pais!$J$2:$J$27000)/1000 -> 0 | F20: =+SUMIF(AUX_2d_pais!$A$2:$A$27000,'5.1'!$A20&'5.1'!F$3&1,AUX_2d_pais!$J$2:$J$27000)/1000 -> 0 | G20: =+SUMIF(AUX_2d_pais!$A$2:$A$27000,'5.1'!$A20&'5.1'!G$3&1,AUX_2d_pais!$J$2:$J$27000)/1000 -> 0 | H20: 0 | I20: 0 | J20: =+SUMIF(AUX_2d_pais!$A$2:$A$27000,'5.1'!$A20&'5.1'!J$3&2,AUX_2d_pais!$J$2:$J$27000)/1000 -> 0 | K20: =+SUMIF(AUX_2d_pais!$A$2:$A$27000,'5.1'!$A20&'5.1'!K$3&2,AUX_2d_pais!$J$2:$J$27000)/1000 -> 0 | L20: =+SUMIF(AUX_2d_pais!$A$2:$A$27000,'5.1'!$A20&'5.1'!L$3&2,AUX_2d_pais!$J$2:$J$27000)/1000 -> 0 | M20: =+SUMIF(AUX_2d_pais!$A$2:$A$27000,'5.1'!$A20&'5.1'!M$3&2,AUX_2d_pais!$J$2:$J$27000)/1000 -> 0 | N20: =+SUMIF(AUX_2d_pais!$A$2:$A$27000,'5.1'!$A20&'5.1'!N$3&2,AUX_2d_pais!$J$2:$J$27000)/1000 -> 0 | O20: 0 | P20: 0 | Q20: 0 | S20: =G20-INDEX($C20:$G20,1,aux!$AL$1) -> 0 | T20: 0 | U20: =+IF(INDEX($C20:$G20,1,aux!$AL$1)>0,(G20/INDEX($C20:$G20,1,aux!$AL$1))^(1/($G$3-INDEX($C$3:$G$3,1,aux!$AL$1)))-1,"n.d.") -> n.d. | V20: =IF(INDEX($C20:$G20,1,aux!$AL$1)>0,(G20-INDEX($C20:$G20,1,aux!$AL$1))/INDEX($C20:$G20,1,aux!$AL$1),"n.d.") -> n.d. | X20: =N20-INDEX($J20:$N20,1,aux!$AL$1) -> 0 | Y20: 0 | Z20: =+IF(INDEX($J20:$N20,1,aux!$AL$1)>0,(N20/INDEX($J20:$N20,1,aux!$AL$1))^(1/($N$3-INDEX($J$3:$N$3,1,aux!$AL$1)))-1,"n.d.") -> n.d. | AA20: =IF(INDEX($J20:$N20,1,aux!$AL$1)>0,(N20-INDEX($J20:$N20,1,aux!$AL$1))/INDEX($J20:$N20,1,aux!$AL$1),"n.d.") -> n.d. | AC20: 0 | BS20: =+MATCH('5.1'!A20,AUX_2d_pais!$G$2:$G$20001,0) -> 
A21: 0078 | B21: Azerbaijão | C21: =+SUMIF(AUX_2d_pais!$A$2:$A$27000,'5.1'!$A21&'5.1'!C$3&1,AUX_2d_pais!$J$2:$J$27000)/1000 -> 0 | D21: =+SUMIF(AUX_2d_pais!$A$2:$A$27000,'5.1'!$A21&'5.1'!D$3&1,AUX_2d_pais!$J$2:$J$27000)/1000 -> 0 | E21: =+SUMIF(AUX_2d_pais!$A$2:$A$27000,'5.1'!$A21&'5.1'!E$3&1,AUX_2d_pais!$J$2:$J$27000)/1000 -> 0 | F21: =+SUMIF(AUX_2d_pais!$A$2:$A$27000,'5.1'!$A21&'5.1'!F$3&1,AUX_2d_pais!$J$2:$J$27000)/1000 -> 0 | G21: =+SUMIF(AUX_2d_pais!$A$2:$A$27000,'5.1'!$A21&'5.1'!G$3&1,AUX_2d_pais!$J$2:$J$27000)/1000 -> 0 | H21: 0 | I21: 0 | J21: =+SUMIF(AUX_2d_pais!$A$2:$A$27000,'5.1'!$A21&'5.1'!J$3&2,AUX_2d_pais!$J$2:$J$27000)/1000 -> 0 | K21: =+SUMIF(AUX_2d_pais!$A$2:$A$27000,'5.1'!$A21&'5.1'!K$3&2,AUX_2d_pais!$J$2:$J$27000)/1000 -> 0 | L21: =+SUMIF(AUX_2d_pais!$A$2:$A$27000,'5.1'!$A21&'5.1'!L$3&2,AUX_2d_pais!$J$2:$J$27000)/1000 -> 0 | M21: =+SUMIF(AUX_2d_pais!$A$2:$A$27000,'5.1'!$A21&'5.1'!M$3&2,AUX_2d_pais!$J$2:$J$27000)/1000 -> 0 | N21: =+SUMIF(AUX_2d_pais!$A$2:$A$27000,'5.1'!$A21&'5.1'!N$3&2,AUX_2d_pais!$J$2:$J$27000)/1000 -> 0 | O21: 0 | P21: 0 | Q21: 0 | S21: =G21-INDEX($C21:$G21,1,aux!$AL$1) -> 0 | T21: 0 | U21: =+IF(INDEX($C21:$G21,1,aux!$AL$1)>0,(G21/INDEX($C21:$G21,1,aux!$AL$1))^(1/($G$3-INDEX($C$3:$G$3,1,aux!$AL$1)))-1,"n.d.") -> n.d. | V21: =IF(INDEX($C21:$G21,1,aux!$AL$1)>0,(G21-INDEX($C21:$G21,1,aux!$AL$1))/INDEX($C21:$G21,1,aux!$AL$1),"n.d.") -> n.d. | X21: =N21-INDEX($J21:$N21,1,aux!$AL$1) -> 0 | Y21: 0 | Z21: =+IF(INDEX($J21:$N21,1,aux!$AL$1)>0,(N21/INDEX($J21:$N21,1,aux!$AL$1))^(1/($N$3-INDEX($J$3:$N$3,1,aux!$AL$1)))-1,"n.d.") -> n.d. | AA21: =IF(INDEX($J21:$N21,1,aux!$AL$1)>0,(N21-INDEX($J21:$N21,1,aux!$AL$1))/INDEX($J21:$N21,1,aux!$AL$1),"n.d.") -> n.d. | AC21: 0 | BS21: =+MATCH('5.1'!A21,AUX_2d_pais!$G$2:$G$20001,0) -> 
A22: 0453 | B22: Bahamas | C22: =+SUMIF(AUX_2d_pais!$A$2:$A$27000,'5.1'!$A22&'5.1'!C$3&1,AUX_2d_pais!$J$2:$J$27000)/1000 -> 0 | D22: =+SUMIF(AUX_2d_pais!$A$2:$A$27000,'5.1'!$A22&'5.1'!D$3&1,AUX_2d_pais!$J$2:$J$27000)/1000 -> 0 | E22: =+SUMIF(AUX_2d_pais!$A$2:$A$27000,'5.1'!$A22&'5.1'!E$3&1,AUX_2d_pais!$J$2:$J$27000)/1000 -> 0 | F22: =+SUMIF(AUX_2d_pais!$A$2:$A$27000,'5.1'!$A22&'5.1'!F$3&1,AUX_2d_pais!$J$2:$J$27000)/1000 -> 0 | G22: =+SUMIF(AUX_2d_pais!$A$2:$A$27000,'5.1'!$A22&'5.1'!G$3&1,AUX_2d_pais!$J$2:$J$27000)/1000 -> 0 | H22: 0 | I22: 0 | J22: =+SUMIF(AUX_2d_pais!$A$2:$A$27000,'5.1'!$A22&'5.1'!J$3&2,AUX_2d_pais!$J$2:$J$27000)/1000 -> 0 | K22: =+SUMIF(AUX_2d_pais!$A$2:$A$27000,'5.1'!$A22&'5.1'!K$3&2,AUX_2d_pais!$J$2:$J$27000)/1000 -> 0 | L22: =+SUMIF(AUX_2d_pais!$A$2:$A$27000,'5.1'!$A22&'5.1'!L$3&2,AUX_2d_pais!$J$2:$J$27000)/1000 -> 0 | M22: =+SUMIF(AUX_2d_pais!$A$2:$A$27000,'5.1'!$A22&'5.1'!M$3&2,AUX_2d_pais!$J$2:$J$27000)/1000 -> 0 | N22: =+SUMIF(AUX_2d_pais!$A$2:$A$27000,'5.1'!$A22&'5.1'!N$3&2,AUX_2d_pais!$J$2:$J$27000)/1000 -> 0 | O22: 0 | P22: 0 | Q22: 0 | S22: =G22-INDEX($C22:$G22,1,aux!$AL$1) -> 0 | T22: 0 | U22: =+IF(INDEX($C22:$G22,1,aux!$AL$1)>0,(G22/INDEX($C22:$G22,1,aux!$AL$1))^(1/($G$3-INDEX($C$3:$G$3,1,aux!$AL$1)))-1,"n.d.") -> n.d. | V22: =IF(INDEX($C22:$G22,1,aux!$AL$1)>0,(G22-INDEX($C22:$G22,1,aux!$AL$1))/INDEX($C22:$G22,1,aux!$AL$1),"n.d.") -> n.d. | X22: =N22-INDEX($J22:$N22,1,aux!$AL$1) -> 0 | Y22: 0 | Z22: =+IF(INDEX($J22:$N22,1,aux!$AL$1)>0,(N22/INDEX($J22:$N22,1,aux!$AL$1))^(1/($N$3-INDEX($J$3:$N$3,1,aux!$AL$1)))-1,"n.d.") -> n.d. | AA22: =IF(INDEX($J22:$N22,1,aux!$AL$1)>0,(N22-INDEX($J22:$N22,1,aux!$AL$1))/INDEX($J22:$N22,1,aux!$AL$1),"n.d.") -> n.d. | AC22: 0 | BS22: =+MATCH('5.1'!A22,AUX_2d_pais!$G$2:$G$20001,0) -> 
A23: 0666 | B23: Bangladesh | C23: =+SUMIF(AUX_2d_pais!$A$2:$A$27000,'5.1'!$A23&'5.1'!C$3&1,AUX_2d_pais!$J$2:$J$27000)/1000 -> 0 | D23: =+SUMIF(AUX_2d_pais!$A$2:$A$27000,'5.1'!$A23&'5.1'!D$3&1,AUX_2d_pais!$J$2:$J$27000)/1000 -> 0 | E23: =+SUMIF(AUX_2d_pais!$A$2:$A$27000,'5.1'!$A23&'5.1'!E$3&1,AUX_2d_pais!$J$2:$J$27000)/1000 -> 0 | F23: =+SUMIF(AUX_2d_pais!$A$2:$A$27000,'5.1'!$A23&'5.1'!F$3&1,AUX_2d_pais!$J$2:$J$27000)/1000 -> 0 | G23: =+SUMIF(AUX_2d_pais!$A$2:$A$27000,'5.1'!$A23&'5.1'!G$3&1,AUX_2d_pais!$J$2:$J$27000)/1000 -> 0 | H23: 0 | I23: 0 | J23: =+SUMIF(AUX_2d_pais!$A$2:$A$27000,'5.1'!$A23&'5.1'!J$3&2,AUX_2d_pais!$J$2:$J$27000)/1000 -> 0 | K23: =+SUMIF(AUX_2d_pais!$A$2:$A$27000,'5.1'!$A23&'5.1'!K$3&2,AUX_2d_pais!$J$2:$J$27000)/1000 -> 0 | L23: =+SUMIF(AUX_2d_pais!$A$2:$A$27000,'5.1'!$A23&'5.1'!L$3&2,AUX_2d_pais!$J$2:$J$27000)/1000 -> 0 | M23: =+SUMIF(AUX_2d_pais!$A$2:$A$27000,'5.1'!$A23&'5.1'!M$3&2,AUX_2d_pais!$J$2:$J$27000)/1000 -> 0 | N23: =+SUMIF(AUX_2d_pais!$A$2:$A$27000,'5.1'!$A23&'5.1'!N$3&2,AUX_2d_pais!$J$2:$J$27000)/1000 -> 0 | O23: 0 | P23: 0 | Q23: 0 | S23: =G23-INDEX($C23:$G23,1,aux!$AL$1) -> 0 | T23: 0 | U23: =+IF(INDEX($C23:$G23,1,aux!$AL$1)>0,(G23/INDEX($C23:$G23,1,aux!$AL$1))^(1/($G$3-INDEX($C$3:$G$3,1,aux!$AL$1)))-1,"n.d.") -> n.d. | V23: =IF(INDEX($C23:$G23,1,aux!$AL$1)>0,(G23-INDEX($C23:$G23,1,aux!$AL$1))/INDEX($C23:$G23,1,aux!$AL$1),"n.d.") -> n.d. | X23: =N23-INDEX($J23:$N23,1,aux!$AL$1) -> 0 | Y23: 0 | Z23: =+IF(INDEX($J23:$N23,1,aux!$AL$1)>0,(N23/INDEX($J23:$N23,1,aux!$AL$1))^(1/($N$3-INDEX($J$3:$N$3,1,aux!$AL$1)))-1,"n.d.") -> n.d. | AA23: =IF(INDEX($J23:$N23,1,aux!$AL$1)>0,(N23-INDEX($J23:$N23,1,aux!$AL$1))/INDEX($J23:$N23,1,aux!$AL$1),"n.d.") -> n.d. | AC23: 0 | BS23: =+MATCH('5.1'!A23,AUX_2d_pais!$G$2:$G$20001,0) -> 
A24: 0469 | B24: Barbados | C24: =+SUMIF(AUX_2d_pais!$A$2:$A$27000,'5.1'!$A24&'5.1'!C$3&1,AUX_2d_pais!$J$2:$J$27000)/1000 -> 0 | D24: =+SUMIF(AUX_2d_pais!$A$2:$A$27000,'5.1'!$A24&'5.1'!D$3&1,AUX_2d_pais!$J$2:$J$27000)/1000 -> 0 | E24: =+SUMIF(AUX_2d_pais!$A$2:$A$27000,'5.1'!$A24&'5.1'!E$3&1,AUX_2d_pais!$J$2:$J$27000)/1000 -> 0 | F24: =+SUMIF(AUX_2d_pais!$A$2:$A$27000,'5.1'!$A24&'5.1'!F$3&1,AUX_2d_pais!$J$2:$J$27000)/1000 -> 0 | G24: =+SUMIF(AUX_2d_pais!$A$2:$A$27000,'5.1'!$A24&'5.1'!G$3&1,AUX_2d_pais!$J$2:$J$27000)/1000 -> 0 | H24: 0 | I24: 0 | J24: =+SUMIF(AUX_2d_pais!$A$2:$A$27000,'5.1'!$A24&'5.1'!J$3&2,AUX_2d_pais!$J$2:$J$27000)/1000 -> 0 | K24: =+SUMIF(AUX_2d_pais!$A$2:$A$27000,'5.1'!$A24&'5.1'!K$3&2,AUX_2d_pais!$J$2:$J$27000)/1000 -> 0 | L24: =+SUMIF(AUX_2d_pais!$A$2:$A$27000,'5.1'!$A24&'5.1'!L$3&2,AUX_2d_pais!$J$2:$J$27000)/1000 -> 0 | M24: =+SUMIF(AUX_2d_pais!$A$2:$A$27000,'5.1'!$A24&'5.1'!M$3&2,AUX_2d_pais!$J$2:$J$27000)/1000 -> 0 | N24: =+SUMIF(AUX_2d_pais!$A$2:$A$27000,'5.1'!$A24&'5.1'!N$3&2,AUX_2d_pais!$J$2:$J$27000)/1000 -> 0 | O24: 0 | P24: 0 | Q24: 0 | S24: =G24-INDEX($C24:$G24,1,aux!$AL$1) -> 0 | T24: 0 | U24: =+IF(INDEX($C24:$G24,1,aux!$AL$1)>0,(G24/INDEX($C24:$G24,1,aux!$AL$1))^(1/($G$3-INDEX($C$3:$G$3,1,aux!$AL$1)))-1,"n.d.") -> n.d. | V24: =IF(INDEX($C24:$G24,1,aux!$AL$1)>0,(G24-INDEX($C24:$G24,1,aux!$AL$1))/INDEX($C24:$G24,1,aux!$AL$1),"n.d.") -> n.d. | X24: =N24-INDEX($J24:$N24,1,aux!$AL$1) -> 0 | Y24: 0 | Z24: =+IF(INDEX($J24:$N24,1,aux!$AL$1)>0,(N24/INDEX($J24:$N24,1,aux!$AL$1))^(1/($N$3-INDEX($J$3:$N$3,1,aux!$AL$1)))-1,"n.d.") -> n.d. | AA24: =IF(INDEX($J24:$N24,1,aux!$AL$1)>0,(N24-INDEX($J24:$N24,1,aux!$AL$1))/INDEX($J24:$N24,1,aux!$AL$1),"n.d.") -> n.d. | AC24: 0 | BS24: =+MATCH('5.1'!A24,AUX_2d_pais!$G$2:$G$20001,0) -> 
A25: 0640 | B25: Barém | C25: =+SUMIF(AUX_2d_pais!$A$2:$A$27000,'5.1'!$A25&'5.1'!C$3&1,AUX_2d_pais!$J$2:$J$27000)/1000 -> 0 | D25: =+SUMIF(AUX_2d_pais!$A$2:$A$27000,'5.1'!$A25&'5.1'!D$3&1,AUX_2d_pais!$J$2:$J$27000)/1000 -> 0 | E25: =+SUMIF(AUX_2d_pais!$A$2:$A$27000,'5.1'!$A25&'5.1'!E$3&1,AUX_2d_pais!$J$2:$J$27000)/1000 -> 0 | F25: =+SUMIF(AUX_2d_pais!$A$2:$A$27000,'5.1'!$A25&'5.1'!F$3&1,AUX_2d_pais!$J$2:$J$27000)/1000 -> 0 | G25: =+SUMIF(AUX_2d_pais!$A$2:$A$27000,'5.1'!$A25&'5.1'!G$3&1,AUX_2d_pais!$J$2:$J$27000)/1000 -> 0 | H25: 0 | I25: 0 | J25: =+SUMIF(AUX_2d_pais!$A$2:$A$27000,'5.1'!$A25&'5.1'!J$3&2,AUX_2d_pais!$J$2:$J$27000)/1000 -> 0 | K25: =+SUMIF(AUX_2d_pais!$A$2:$A$27000,'5.1'!$A25&'5.1'!K$3&2,AUX_2d_pais!$J$2:$J$27000)/1000 -> 0 | L25: =+SUMIF(AUX_2d_pais!$A$2:$A$27000,'5.1'!$A25&'5.1'!L$3&2,AUX_2d_pais!$J$2:$J$27000)/1000 -> 0 | M25: =+SUMIF(AUX_2d_pais!$A$2:$A$27000,'5.1'!$A25&'5.1'!M$3&2,AUX_2d_pais!$J$2:$J$27000)/1000 -> 0 | N25: =+SUMIF(AUX_2d_pais!$A$2:$A$27000,'5.1'!$A25&'5.1'!N$3&2,AUX_2d_pais!$J$2:$J$27000)/1000 -> 0 | O25: 0 | P25: 0 | Q25: 0 | S25: =G25-INDEX($C25:$G25,1,aux!$AL$1) -> 0 | T25: 0 | U25: =+IF(INDEX($C25:$G25,1,aux!$AL$1)>0,(G25/INDEX($C25:$G25,1,aux!$AL$1))^(1/($G$3-INDEX($C$3:$G$3,1,aux!$AL$1)))-1,"n.d.") -> n.d. | V25: =IF(INDEX($C25:$G25,1,aux!$AL$1)>0,(G25-INDEX($C25:$G25,1,aux!$AL$1))/INDEX($C25:$G25,1,aux!$AL$1),"n.d.") -> n.d. | X25: =N25-INDEX($J25:$N25,1,aux!$AL$1) -> 0 | Y25: 0 | Z25: =+IF(INDEX($J25:$N25,1,aux!$AL$1)>0,(N25/INDEX($J25:$N25,1,aux!$AL$1))^(1/($N$3-INDEX($J$3:$N$3,1,aux!$AL$1)))-1,"n.d.") -> n.d. | AA25: =IF(INDEX($J25:$N25,1,aux!$AL$1)>0,(N25-INDEX($J25:$N25,1,aux!$AL$1))/INDEX($J25:$N25,1,aux!$AL$1),"n.d.") -> n.d. | AC25: 0 | BS25: =+MATCH('5.1'!A25,AUX_2d_pais!$G$2:$G$20001,0) -> 
A26: 0073 | B26: Belarus | C26: =+SUMIF(AUX_2d_pais!$A$2:$A$27000,'5.1'!$A26&'5.1'!C$3&1,AUX_2d_pais!$J$2:$J$27000)/1000 -> 0 | D26: =+SUMIF(AUX_2d_pais!$A$2:$A$27000,'5.1'!$A26&'5.1'!D$3&1,AUX_2d_pais!$J$2:$J$27000)/1000 -> 0 | E26: =+SUMIF(AUX_2d_pais!$A$2:$A$27000,'5.1'!$A26&'5.1'!E$3&1,AUX_2d_pais!$J$2:$J$27000)/1000 -> 0 | F26: =+SUMIF(AUX_2d_pais!$A$2:$A$27000,'5.1'!$A26&'5.1'!F$3&1,AUX_2d_pais!$J$2:$J$27000)/1000 -> 0 | G26: =+SUMIF(AUX_2d_pais!$A$2:$A$27000,'5.1'!$A26&'5.1'!G$3&1,AUX_2d_pais!$J$2:$J$27000)/1000 -> 0 | H26: 0 | I26: 0 | J26: =+SUMIF(AUX_2d_pais!$A$2:$A$27000,'5.1'!$A26&'5.1'!J$3&2,AUX_2d_pais!$J$2:$J$27000)/1000 -> 0 | K26: =+SUMIF(AUX_2d_pais!$A$2:$A$27000,'5.1'!$A26&'5.1'!K$3&2,AUX_2d_pais!$J$2:$J$27000)/1000 -> 0 | L26: =+SUMIF(AUX_2d_pais!$A$2:$A$27000,'5.1'!$A26&'5.1'!L$3&2,AUX_2d_pais!$J$2:$J$27000)/1000 -> 0 | M26: =+SUMIF(AUX_2d_pais!$A$2:$A$27000,'5.1'!$A26&'5.1'!M$3&2,AUX_2d_pais!$J$2:$J$27000)/1000 -> 0 | N26: =+SUMIF(AUX_2d_pais!$A$2:$A$27000,'5.1'!$A26&'5.1'!N$3&2,AUX_2d_pais!$J$2:$J$27000)/1000 -> 0 | O26: 0 | P26: 0 | Q26: 0 | S26: =G26-INDEX($C26:$G26,1,aux!$AL$1) -> 0 | T26: 0 | U26: =+IF(INDEX($C26:$G26,1,aux!$AL$1)>0,(G26/INDEX($C26:$G26,1,aux!$AL$1))^(1/($G$3-INDEX($C$3:$G$3,1,aux!$AL$1)))-1,"n.d.") -> n.d. | V26: =IF(INDEX($C26:$G26,1,aux!$AL$1)>0,(G26-INDEX($C26:$G26,1,aux!$AL$1))/INDEX($C26:$G26,1,aux!$AL$1),"n.d.") -> n.d. | X26: =N26-INDEX($J26:$N26,1,aux!$AL$1) -> 0 | Y26: 0 | Z26: =+IF(INDEX($J26:$N26,1,aux!$AL$1)>0,(N26/INDEX($J26:$N26,1,aux!$AL$1))^(1/($N$3-INDEX($J$3:$N$3,1,aux!$AL$1)))-1,"n.d.") -> n.d. | AA26: =IF(INDEX($J26:$N26,1,aux!$AL$1)>0,(N26-INDEX($J26:$N26,1,aux!$AL$1))/INDEX($J26:$N26,1,aux!$AL$1),"n.d.") -> n.d. | AC26: 0 | BS26: =+MATCH('5.1'!A26,AUX_2d_pais!$G$2:$G$20001,0) -> 
A27: 0017 | B27: Bélgica | C27: =+SUMIF(AUX_2d_pais!$A$2:$A$27000,'5.1'!$A27&'5.1'!C$3&1,AUX_2d_pais!$J$2:$J$27000)/1000 -> 0 | D27: =+SUMIF(AUX_2d_pais!$A$2:$A$27000,'5.1'!$A27&'5.1'!D$3&1,AUX_2d_pais!$J$2:$J$27000)/1000 -> 0 | E27: =+SUMIF(AUX_2d_pais!$A$2:$A$27000,'5.1'!$A27&'5.1'!E$3&1,AUX_2d_pais!$J$2:$J$27000)/1000 -> 0 | F27: =+SUMIF(AUX_2d_pais!$A$2:$A$27000,'5.1'!$A27&'5.1'!F$3&1,AUX_2d_pais!$J$2:$J$27000)/1000 -> 0 | G27: =+SUMIF(AUX_2d_pais!$A$2:$A$27000,'5.1'!$A27&'5.1'!G$3&1,AUX_2d_pais!$J$2:$J$27000)/1000 -> 0 | H27: 0 | I27: 0 | J27: =+SUMIF(AUX_2d_pais!$A$2:$A$27000,'5.1'!$A27&'5.1'!J$3&2,AUX_2d_pais!$J$2:$J$27000)/1000 -> 0 | K27: =+SUMIF(AUX_2d_pais!$A$2:$A$27000,'5.1'!$A27&'5.1'!K$3&2,AUX_2d_pais!$J$2:$J$27000)/1000 -> 0 | L27: =+SUMIF(AUX_2d_pais!$A$2:$A$27000,'5.1'!$A27&'5.1'!L$3&2,AUX_2d_pais!$J$2:$J$27000)/1000 -> 0 | M27: =+SUMIF(AUX_2d_pais!$A$2:$A$27000,'5.1'!$A27&'5.1'!M$3&2,AUX_2d_pais!$J$2:$J$27000)/1000 -> 0 | N27: =+SUMIF(AUX_2d_pais!$A$2:$A$27000,'5.1'!$A27&'5.1'!N$3&2,AUX_2d_pais!$J$2:$J$27000)/1000 -> 0 | O27: 0 | P27: 0 | Q27: 0 | S27: =G27-INDEX($C27:$G27,1,aux!$AL$1) -> 0 | T27: 0 | U27: =+IF(INDEX($C27:$G27,1,aux!$AL$1)>0,(G27/INDEX($C27:$G27,1,aux!$AL$1))^(1/($G$3-INDEX($C$3:$G$3,1,aux!$AL$1)))-1,"n.d.") -> n.d. | V27: =IF(INDEX($C27:$G27,1,aux!$AL$1)>0,(G27-INDEX($C27:$G27,1,aux!$AL$1))/INDEX($C27:$G27,1,aux!$AL$1),"n.d.") -> n.d. | X27: =N27-INDEX($J27:$N27,1,aux!$AL$1) -> 0 | Y27: 0 | Z27: =+IF(INDEX($J27:$N27,1,aux!$AL$1)>0,(N27/INDEX($J27:$N27,1,aux!$AL$1))^(1/($N$3-INDEX($J$3:$N$3,1,aux!$AL$1)))-1,"n.d.") -> n.d. | AA27: =IF(INDEX($J27:$N27,1,aux!$AL$1)>0,(N27-INDEX($J27:$N27,1,aux!$AL$1))/INDEX($J27:$N27,1,aux!$AL$1),"n.d.") -> n.d. | AC27: 0 | BS27: =+MATCH('5.1'!A27,AUX_2d_pais!$G$2:$G$20001,0) -> 
A28: 0421 | B28: Belize | C28: =+SUMIF(AUX_2d_pais!$A$2:$A$27000,'5.1'!$A28&'5.1'!C$3&1,AUX_2d_pais!$J$2:$J$27000)/1000 -> 0 | D28: =+SUMIF(AUX_2d_pais!$A$2:$A$27000,'5.1'!$A28&'5.1'!D$3&1,AUX_2d_pais!$J$2:$J$27000)/1000 -> 0 | E28: =+SUMIF(AUX_2d_pais!$A$2:$A$27000,'5.1'!$A28&'5.1'!E$3&1,AUX_2d_pais!$J$2:$J$27000)/1000 -> 0 | F28: =+SUMIF(AUX_2d_pais!$A$2:$A$27000,'5.1'!$A28&'5.1'!F$3&1,AUX_2d_pais!$J$2:$J$27000)/1000 -> 0 | G28: =+SUMIF(AUX_2d_pais!$A$2:$A$27000,'5.1'!$A28&'5.1'!G$3&1,AUX_2d_pais!$J$2:$J$27000)/1000 -> 0 | H28: 0 | I28: 0 | J28: =+SUMIF(AUX_2d_pais!$A$2:$A$27000,'5.1'!$A28&'5.1'!J$3&2,AUX_2d_pais!$J$2:$J$27000)/1000 -> 0 | K28: =+SUMIF(AUX_2d_pais!$A$2:$A$27000,'5.1'!$A28&'5.1'!K$3&2,AUX_2d_pais!$J$2:$J$27000)/1000 -> 0 | L28: =+SUMIF(AUX_2d_pais!$A$2:$A$27000,'5.1'!$A28&'5.1'!L$3&2,AUX_2d_pais!$J$2:$J$27000)/1000 -> 0 | M28: =+SUMIF(AUX_2d_pais!$A$2:$A$27000,'5.1'!$A28&'5.1'!M$3&2,AUX_2d_pais!$J$2:$J$27000)/1000 -> 0 | N28: =+SUMIF(AUX_2d_pais!$A$2:$A$27000,'5.1'!$A28&'5.1'!N$3&2,AUX_2d_pais!$J$2:$J$27000)/1000 -> 0 | O28: 0 | P28: 0 | Q28: 0 | S28: =G28-INDEX($C28:$G28,1,aux!$AL$1) -> 0 | T28: 0 | U28: =+IF(INDEX($C28:$G28,1,aux!$AL$1)>0,(G28/INDEX($C28:$G28,1,aux!$AL$1))^(1/($G$3-INDEX($C$3:$G$3,1,aux!$AL$1)))-1,"n.d.") -> n.d. | V28: =IF(INDEX($C28:$G28,1,aux!$AL$1)>0,(G28-INDEX($C28:$G28,1,aux!$AL$1))/INDEX($C28:$G28,1,aux!$AL$1),"n.d.") -> n.d. | X28: =N28-INDEX($J28:$N28,1,aux!$AL$1) -> 0 | Y28: 0 | Z28: =+IF(INDEX($J28:$N28,1,aux!$AL$1)>0,(N28/INDEX($J28:$N28,1,aux!$AL$1))^(1/($N$3-INDEX($J$3:$N$3,1,aux!$AL$1)))-1,"n.d.") -> n.d. | AA28: =IF(INDEX($J28:$N28,1,aux!$AL$1)>0,(N28-INDEX($J28:$N28,1,aux!$AL$1))/INDEX($J28:$N28,1,aux!$AL$1),"n.d.") -> n.d. | AC28: 0 | BS28: =+MATCH('5.1'!A28,AUX_2d_pais!$G$2:$G$20001,0) -> 
A29: 0284 | B29: Benim | C29: =+SUMIF(AUX_2d_pais!$A$2:$A$27000,'5.1'!$A29&'5.1'!C$3&1,AUX_2d_pais!$J$2:$J$27000)/1000 -> 0 | D29: =+SUMIF(AUX_2d_pais!$A$2:$A$27000,'5.1'!$A29&'5.1'!D$3&1,AUX_2d_pais!$J$2:$J$27000)/1000 -> 0 | E29: =+SUMIF(AUX_2d_pais!$A$2:$A$27000,'5.1'!$A29&'5.1'!E$3&1,AUX_2d_pais!$J$2:$J$27000)/1000 -> 0 | F29: =+SUMIF(AUX_2d_pais!$A$2:$A$27000,'5.1'!$A29&'5.1'!F$3&1,AUX_2d_pais!$J$2:$J$27000)/1000 -> 0 | G29: =+SUMIF(AUX_2d_pais!$A$2:$A$27000,'5.1'!$A29&'5.1'!G$3&1,AUX_2d_pais!$J$2:$J$27000)/1000 -> 0 | H29: 0 | I29: 0 | J29: =+SUMIF(AUX_2d_pais!$A$2:$A$27000,'5.1'!$A29&'5.1'!J$3&2,AUX_2d_pais!$J$2:$J$27000)/1000 -> 0 | K29: =+SUMIF(AUX_2d_pais!$A$2:$A$27000,'5.1'!$A29&'5.1'!K$3&2,AUX_2d_pais!$J$2:$J$27000)/1000 -> 0 | L29: =+SUMIF(AUX_2d_pais!$A$2:$A$27000,'5.1'!$A29&'5.1'!L$3&2,AUX_2d_pais!$J$2:$J$27000)/1000 -> 0 | M29: =+SUMIF(AUX_2d_pais!$A$2:$A$27000,'5.1'!$A29&'5.1'!M$3&2,AUX_2d_pais!$J$2:$J$27000)/1000 -> 0 | N29: =+SUMIF(AUX_2d_pais!$A$2:$A$27000,'5.1'!$A29&'5.1'!N$3&2,AUX_2d_pais!$J$2:$J$27000)/1000 -> 0 | O29: 0 | P29: 0 | Q29: 0 | S29: =G29-INDEX($C29:$G29,1,aux!$AL$1) -> 0 | T29: 0 | U29: =+IF(INDEX($C29:$G29,1,aux!$AL$1)>0,(G29/INDEX($C29:$G29,1,aux!$AL$1))^(1/($G$3-INDEX($C$3:$G$3,1,aux!$AL$1)))-1,"n.d.") -> n.d. | V29: =IF(INDEX($C29:$G29,1,aux!$AL$1)>0,(G29-INDEX($C29:$G29,1,aux!$AL$1))/INDEX($C29:$G29,1,aux!$AL$1),"n.d.") -> n.d. | X29: =N29-INDEX($J29:$N29,1,aux!$AL$1) -> 0 | Y29: 0 | Z29: =+IF(INDEX($J29:$N29,1,aux!$AL$1)>0,(N29/INDEX($J29:$N29,1,aux!$AL$1))^(1/($N$3-INDEX($J$3:$N$3,1,aux!$AL$1)))-1,"n.d.") -> n.d. | AA29: =IF(INDEX($J29:$N29,1,aux!$AL$1)>0,(N29-INDEX($J29:$N29,1,aux!$AL$1))/INDEX($J29:$N29,1,aux!$AL$1),"n.d.") -> n.d. | AC29: 0 | BS29: =+MATCH('5.1'!A29,AUX_2d_pais!$G$2:$G$20001,0) -> 
A30: 0413 | B30: Bermudas | C30: =+SUMIF(AUX_2d_pais!$A$2:$A$27000,'5.1'!$A30&'5.1'!C$3&1,AUX_2d_pais!$J$2:$J$27000)/1000 -> 0 | D30: =+SUMIF(AUX_2d_pais!$A$2:$A$27000,'5.1'!$A30&'5.1'!D$3&1,AUX_2d_pais!$J$2:$J$27000)/1000 -> 0 | E30: =+SUMIF(AUX_2d_pais!$A$2:$A$27000,'5.1'!$A30&'5.1'!E$3&1,AUX_2d_pais!$J$2:$J$27000)/1000 -> 0 | F30: =+SUMIF(AUX_2d_pais!$A$2:$A$27000,'5.1'!$A30&'5.1'!F$3&1,AUX_2d_pais!$J$2:$J$27000)/1000 -> 0 | G30: =+SUMIF(AUX_2d_pais!$A$2:$A$27000,'5.1'!$A30&'5.1'!G$3&1,AUX_2d_pais!$J$2:$J$27000)/1000 -> 0 | H30: 0 | I30: 0 | J30: =+SUMIF(AUX_2d_pais!$A$2:$A$27000,'5.1'!$A30&'5.1'!J$3&2,AUX_2d_pais!$J$2:$J$27000)/1000 -> 0 | K30: =+SUMIF(AUX_2d_pais!$A$2:$A$27000,'5.1'!$A30&'5.1'!K$3&2,AUX_2d_pais!$J$2:$J$27000)/1000 -> 0 | L30: =+SUMIF(AUX_2d_pais!$A$2:$A$27000,'5.1'!$A30&'5.1'!L$3&2,AUX_2d_pais!$J$2:$J$27000)/1000 -> 0 | M30: =+SUMIF(AUX_2d_pais!$A$2:$A$27000,'5.1'!$A30&'5.1'!M$3&2,AUX_2d_pais!$J$2:$J$27000)/1000 -> 0 | N30: =+SUMIF(AUX_2d_pais!$A$2:$A$27000,'5.1'!$A30&'5.1'!N$3&2,AUX_2d_pais!$J$2:$J$27000)/1000 -> 0 | O30: 0 | P30: 0 | Q30: 0 | S30: =G30-INDEX($C30:$G30,1,aux!$AL$1) -> 0 | T30: 0 | U30: =+IF(INDEX($C30:$G30,1,aux!$AL$1)>0,(G30/INDEX($C30:$G30,1,aux!$AL$1))^(1/($G$3-INDEX($C$3:$G$3,1,aux!$AL$1)))-1,"n.d.") -> n.d. | V30: =IF(INDEX($C30:$G30,1,aux!$AL$1)>0,(G30-INDEX($C30:$G30,1,aux!$AL$1))/INDEX($C30:$G30,1,aux!$AL$1),"n.d.") -> n.d. | X30: =N30-INDEX($J30:$N30,1,aux!$AL$1) -> 0 | Y30: 0 | Z30: =+IF(INDEX($J30:$N30,1,aux!$AL$1)>0,(N30/INDEX($J30:$N30,1,aux!$AL$1))^(1/($N$3-INDEX($J$3:$N$3,1,aux!$AL$1)))-1,"n.d.") -> n.d. | AA30: =IF(INDEX($J30:$N30,1,aux!$AL$1)>0,(N30-INDEX($J30:$N30,1,aux!$AL$1))/INDEX($J30:$N30,1,aux!$AL$1),"n.d.") -> n.d. | AC30: 0 | BS30: =+MATCH('5.1'!A30,AUX_2d_pais!$G$2:$G$20001,0) -> 
A31: 0516 | B31: Bolívia | C31: =+SUMIF(AUX_2d_pais!$A$2:$A$27000,'5.1'!$A31&'5.1'!C$3&1,AUX_2d_pais!$J$2:$J$27000)/1000 -> 759.726 | D31: =+SUMIF(AUX_2d_pais!$A$2:$A$27000,'5.1'!$A31&'5.1'!D$3&1,AUX_2d_pais!$J$2:$J$27000)/1000 -> 216.506 | E31: =+SUMIF(AUX_2d_pais!$A$2:$A$27000,'5.1'!$A31&'5.1'!E$3&1,AUX_2d_pais!$J$2:$J$27000)/1000 -> 662.203 | F31: =+SUMIF(AUX_2d_pais!$A$2:$A$27000,'5.1'!$A31&'5.1'!F$3&1,AUX_2d_pais!$J$2:$J$27000)/1000 -> 619.768 | G31: =+SUMIF(AUX_2d_pais!$A$2:$A$27000,'5.1'!$A31&'5.1'!G$3&1,AUX_2d_pais!$J$2:$J$27000)/1000 -> 3598.576 | H31: =SUM(C31:G31)/5 -> 1171.3558 | I31: 0.001059872917 | J31: =+SUMIF(AUX_2d_pais!$A$2:$A$27000,'5.1'!$A31&'5.1'!J$3&2,AUX_2d_pais!$J$2:$J$27000)/1000 -> 1951.593 | K31: =+SUMIF(AUX_2d_pais!$A$2:$A$27000,'5.1'!$A31&'5.1'!K$3&2,AUX_2d_pais!$J$2:$J$27000)/1000 -> 2873.424 | L31: =+SUMIF(AUX_2d_pais!$A$2:$A$27000,'5.1'!$A31&'5.1'!L$3&2,AUX_2d_pais!$J$2:$J$27000)/1000 -> 1170.744 | M31: =+SUMIF(AUX_2d_pais!$A$2:$A$27000,'5.1'!$A31&'5.1'!M$3&2,AUX_2d_pais!$J$2:$J$27000)/1000 -> 607.139 | N31: =+SUMIF(AUX_2d_pais!$A$2:$A$27000,'5.1'!$A31&'5.1'!N$3&2,AUX_2d_pais!$J$2:$J$27000)/1000 -> 458.287 | O31: =SUM(J31:N31)/5 -> 1412.2374 | P31: 0.002655020486 | Q31: =O31-H31 -> 240.8816 | S31: =G31-INDEX($C31:$G31,1,aux!$AL$1) -> 2838.85 | T31: 0.002599766934 | U31: =+IF(INDEX($C31:$G31,1,aux!$AL$1)>0,(G31/INDEX($C31:$G31,1,aux!$AL$1))^(1/($G$3-INDEX($C$3:$G$3,1,aux!$AL$1)))-1,"n.d.") -> 0.4752595083 | V31: =IF(INDEX($C31:$G31,1,aux!$AL$1)>0,(G31-INDEX($C31:$G31,1,aux!$AL$1))/INDEX($C31:$G31,1,aux!$AL$1),"n.d.") -> 3.736676117 | X31: =N31-INDEX($J31:$N31,1,aux!$AL$1) -> -1493.306 | Y31: -0.01880184375 | Z31: =+IF(INDEX($J31:$N31,1,aux!$AL$1)>0,(N31/INDEX($J31:$N31,1,aux!$AL$1))^(1/($N$3-INDEX($J$3:$N$3,1,aux!$AL$1)))-1,"n.d.") -> -0.3038752554 | AA31: =IF(INDEX($J31:$N31,1,aux!$AL$1)>0,(N31-INDEX($J31:$N31,1,aux!$AL$1))/INDEX($J31:$N31,1,aux!$AL$1),"n.d.") -> -0.7651728613 | BS31: =+MATCH('5.1'!A31,AUX_2d_pais!$G$2:$G$20001,0) -> 60
A32: 0477 | B32: Bonaire, Santo Eustáquio e Saba | C32: =+SUMIF(AUX_2d_pais!$A$2:$A$27000,'5.1'!$A32&'5.1'!C$3&1,AUX_2d_pais!$J$2:$J$27000)/1000 -> 0 | D32: =+SUMIF(AUX_2d_pais!$A$2:$A$27000,'5.1'!$A32&'5.1'!D$3&1,AUX_2d_pais!$J$2:$J$27000)/1000 -> 0 | E32: =+SUMIF(AUX_2d_pais!$A$2:$A$27000,'5.1'!$A32&'5.1'!E$3&1,AUX_2d_pais!$J$2:$J$27000)/1000 -> 0 | F32: =+SUMIF(AUX_2d_pais!$A$2:$A$27000,'5.1'!$A32&'5.1'!F$3&1,AUX_2d_pais!$J$2:$J$27000)/1000 -> 0 | G32: =+SUMIF(AUX_2d_pais!$A$2:$A$27000,'5.1'!$A32&'5.1'!G$3&1,AUX_2d_pais!$J$2:$J$27000)/1000 -> 0 | H32: =SUM(C32:G32)/5 -> 0 | I32: 0 | J32: =+SUMIF(AUX_2d_pais!$A$2:$A$27000,'5.1'!$A32&'5.1'!J$3&2,AUX_2d_pais!$J$2:$J$27000)/1000 -> 0 | K32: =+SUMIF(AUX_2d_pais!$A$2:$A$27000,'5.1'!$A32&'5.1'!K$3&2,AUX_2d_pais!$J$2:$J$27000)/1000 -> 0 | L32: =+SUMIF(AUX_2d_pais!$A$2:$A$27000,'5.1'!$A32&'5.1'!L$3&2,AUX_2d_pais!$J$2:$J$27000)/1000 -> 0 | M32: =+SUMIF(AUX_2d_pais!$A$2:$A$27000,'5.1'!$A32&'5.1'!M$3&2,AUX_2d_pais!$J$2:$J$27000)/1000 -> 0 | N32: =+SUMIF(AUX_2d_pais!$A$2:$A$27000,'5.1'!$A32&'5.1'!N$3&2,AUX_2d_pais!$J$2:$J$27000)/1000 -> 0 | O32: =SUM(J32:N32)/5 -> 0 | P32: 0 | Q32: =O32-H32 -> 0 | S32: =G32-INDEX($C32:$G32,1,aux!$AL$1) -> 0 | T32: 0 | U32: =+IF(INDEX($C32:$G32,1,aux!$AL$1)>0,(G32/INDEX($C32:$G32,1,aux!$AL$1))^(1/($G$3-INDEX($C$3:$G$3,1,aux!$AL$1)))-1,"n.d.") -> n.d. | V32: =IF(INDEX($C32:$G32,1,aux!$AL$1)>0,(G32-INDEX($C32:$G32,1,aux!$AL$1))/INDEX($C32:$G32,1,aux!$AL$1),"n.d.") -> n.d. | X32: =N32-INDEX($J32:$N32,1,aux!$AL$1) -> 0 | Y32: 0 | Z32: =+IF(INDEX($J32:$N32,1,aux!$AL$1)>0,(N32/INDEX($J32:$N32,1,aux!$AL$1))^(1/($N$3-INDEX($J$3:$N$3,1,aux!$AL$1)))-1,"n.d.") -> n.d. | AA32: =IF(INDEX($J32:$N32,1,aux!$AL$1)>0,(N32-INDEX($J32:$N32,1,aux!$AL$1))/INDEX($J32:$N32,1,aux!$AL$1),"n.d.") -> n.d. | AC32: 0 | BS32: =+MATCH('5.1'!A32,AUX_2d_pais!$G$2:$G$20001,0) -> 
A33: 0093 | B33: Bósnia-Herzegovina | C33: =+SUMIF(AUX_2d_pais!$A$2:$A$27000,'5.1'!$A33&'5.1'!C$3&1,AUX_2d_pais!$J$2:$J$27000)/1000 -> 0 | D33: =+SUMIF(AUX_2d_pais!$A$2:$A$27000,'5.1'!$A33&'5.1'!D$3&1,AUX_2d_pais!$J$2:$J$27000)/1000 -> 0 | E33: =+SUMIF(AUX_2d_pais!$A$2:$A$27000,'5.1'!$A33&'5.1'!E$3&1,AUX_2d_pais!$J$2:$J$27000)/1000 -> 0 | F33: =+SUMIF(AUX_2d_pais!$A$2:$A$27000,'5.1'!$A33&'5.1'!F$3&1,AUX_2d_pais!$J$2:$J$27000)/1000 -> 0 | G33: =+SUMIF(AUX_2d_pais!$A$2:$A$27000,'5.1'!$A33&'5.1'!G$3&1,AUX_2d_pais!$J$2:$J$27000)/1000 -> 0 | H33: =SUM(C33:G33)/5 -> 0 | I33: 0 | J33: =+SUMIF(AUX_2d_pais!$A$2:$A$27000,'5.1'!$A33&'5.1'!J$3&2,AUX_2d_pais!$J$2:$J$27000)/1000 -> 0 | K33: =+SUMIF(AUX_2d_pais!$A$2:$A$27000,'5.1'!$A33&'5.1'!K$3&2,AUX_2d_pais!$J$2:$J$27000)/1000 -> 0 | L33: =+SUMIF(AUX_2d_pais!$A$2:$A$27000,'5.1'!$A33&'5.1'!L$3&2,AUX_2d_pais!$J$2:$J$27000)/1000 -> 0 | M33: =+SUMIF(AUX_2d_pais!$A$2:$A$27000,'5.1'!$A33&'5.1'!M$3&2,AUX_2d_pais!$J$2:$J$27000)/1000 -> 0 | N33: =+SUMIF(AUX_2d_pais!$A$2:$A$27000,'5.1'!$A33&'5.1'!N$3&2,AUX_2d_pais!$J$2:$J$27000)/1000 -> 0 | O33: =SUM(J33:N33)/5 -> 0 | P33: 0 | Q33: =O33-H33 -> 0 | S33: =G33-INDEX($C33:$G33,1,aux!$AL$1) -> 0 | T33: 0 | U33: =+IF(INDEX($C33:$G33,1,aux!$AL$1)>0,(G33/INDEX($C33:$G33,1,aux!$AL$1))^(1/($G$3-INDEX($C$3:$G$3,1,aux!$AL$1)))-1,"n.d.") -> n.d. | V33: =IF(INDEX($C33:$G33,1,aux!$AL$1)>0,(G33-INDEX($C33:$G33,1,aux!$AL$1))/INDEX($C33:$G33,1,aux!$AL$1),"n.d.") -> n.d. | X33: =N33-INDEX($J33:$N33,1,aux!$AL$1) -> 0 | Y33: 0 | Z33: =+IF(INDEX($J33:$N33,1,aux!$AL$1)>0,(N33/INDEX($J33:$N33,1,aux!$AL$1))^(1/($N$3-INDEX($J$3:$N$3,1,aux!$AL$1)))-1,"n.d.") -> n.d. | AA33: =IF(INDEX($J33:$N33,1,aux!$AL$1)>0,(N33-INDEX($J33:$N33,1,aux!$AL$1))/INDEX($J33:$N33,1,aux!$AL$1),"n.d.") -> n.d. | AC33: 0 | BS33: =+MATCH('5.1'!A33,AUX_2d_pais!$G$2:$G$20001,0) -> 
A34: 0391 | B34: Botswana | C34: =+SUMIF(AUX_2d_pais!$A$2:$A$27000,'5.1'!$A34&'5.1'!C$3&1,AUX_2d_pais!$J$2:$J$27000)/1000 -> 0 | D34: =+SUMIF(AUX_2d_pais!$A$2:$A$27000,'5.1'!$A34&'5.1'!D$3&1,AUX_2d_pais!$J$2:$J$27000)/1000 -> 0 | E34: =+SUMIF(AUX_2d_pais!$A$2:$A$27000,'5.1'!$A34&'5.1'!E$3&1,AUX_2d_pais!$J$2:$J$27000)/1000 -> 0 | F34: =+SUMIF(AUX_2d_pais!$A$2:$A$27000,'5.1'!$A34&'5.1'!F$3&1,AUX_2d_pais!$J$2:$J$27000)/1000 -> 0 | G34: =+SUMIF(AUX_2d_pais!$A$2:$A$27000,'5.1'!$A34&'5.1'!G$3&1,AUX_2d_pais!$J$2:$J$27000)/1000 -> 0 | H34: =SUM(C34:G34)/5 -> 0 | I34: 0 | J34: =+SUMIF(AUX_2d_pais!$A$2:$A$27000,'5.1'!$A34&'5.1'!J$3&2,AUX_2d_pais!$J$2:$J$27000)/1000 -> 0 | K34: =+SUMIF(AUX_2d_pais!$A$2:$A$27000,'5.1'!$A34&'5.1'!K$3&2,AUX_2d_pais!$J$2:$J$27000)/1000 -> 0 | L34: =+SUMIF(AUX_2d_pais!$A$2:$A$27000,'5.1'!$A34&'5.1'!L$3&2,AUX_2d_pais!$J$2:$J$27000)/1000 -> 0 | M34: =+SUMIF(AUX_2d_pais!$A$2:$A$27000,'5.1'!$A34&'5.1'!M$3&2,AUX_2d_pais!$J$2:$J$27000)/1000 -> 0 | N34: =+SUMIF(AUX_2d_pais!$A$2:$A$27000,'5.1'!$A34&'5.1'!N$3&2,AUX_2d_pais!$J$2:$J$27000)/1000 -> 0 | O34: =SUM(J34:N34)/5 -> 0 | P34: 0 | Q34: =O34-H34 -> 0 | S34: =G34-INDEX($C34:$G34,1,aux!$AL$1) -> 0 | T34: 0 | U34: =+IF(INDEX($C34:$G34,1,aux!$AL$1)>0,(G34/INDEX($C34:$G34,1,aux!$AL$1))^(1/($G$3-INDEX($C$3:$G$3,1,aux!$AL$1)))-1,"n.d.") -> n.d. | V34: =IF(INDEX($C34:$G34,1,aux!$AL$1)>0,(G34-INDEX($C34:$G34,1,aux!$AL$1))/INDEX($C34:$G34,1,aux!$AL$1),"n.d.") -> n.d. | X34: =N34-INDEX($J34:$N34,1,aux!$AL$1) -> 0 | Y34: 0 | Z34: =+IF(INDEX($J34:$N34,1,aux!$AL$1)>0,(N34/INDEX($J34:$N34,1,aux!$AL$1))^(1/($N$3-INDEX($J$3:$N$3,1,aux!$AL$1)))-1,"n.d.") -> n.d. | AA34: =IF(INDEX($J34:$N34,1,aux!$AL$1)>0,(N34-INDEX($J34:$N34,1,aux!$AL$1))/INDEX($J34:$N34,1,aux!$AL$1),"n.d.") -> n.d. | AC34: 0 | BS34: =+MATCH('5.1'!A34,AUX_2d_pais!$G$2:$G$20001,0) -> 
A35: 0892 | B35: Bouvet, Ilha | C35: =+SUMIF(AUX_2d_pais!$A$2:$A$27000,'5.1'!$A35&'5.1'!C$3&1,AUX_2d_pais!$J$2:$J$27000)/1000 -> 0 | D35: =+SUMIF(AUX_2d_pais!$A$2:$A$27000,'5.1'!$A35&'5.1'!D$3&1,AUX_2d_pais!$J$2:$J$27000)/1000 -> 0 | E35: =+SUMIF(AUX_2d_pais!$A$2:$A$27000,'5.1'!$A35&'5.1'!E$3&1,AUX_2d_pais!$J$2:$J$27000)/1000 -> 0 | F35: =+SUMIF(AUX_2d_pais!$A$2:$A$27000,'5.1'!$A35&'5.1'!F$3&1,AUX_2d_pais!$J$2:$J$27000)/1000 -> 0 | G35: =+SUMIF(AUX_2d_pais!$A$2:$A$27000,'5.1'!$A35&'5.1'!G$3&1,AUX_2d_pais!$J$2:$J$27000)/1000 -> 0 | H35: =SUM(C35:G35)/5 -> 0 | I35: 0 | J35: =+SUMIF(AUX_2d_pais!$A$2:$A$27000,'5.1'!$A35&'5.1'!J$3&2,AUX_2d_pais!$J$2:$J$27000)/1000 -> 0 | K35: =+SUMIF(AUX_2d_pais!$A$2:$A$27000,'5.1'!$A35&'5.1'!K$3&2,AUX_2d_pais!$J$2:$J$27000)/1000 -> 0 | L35: =+SUMIF(AUX_2d_pais!$A$2:$A$27000,'5.1'!$A35&'5.1'!L$3&2,AUX_2d_pais!$J$2:$J$27000)/1000 -> 0 | M35: =+SUMIF(AUX_2d_pais!$A$2:$A$27000,'5.1'!$A35&'5.1'!M$3&2,AUX_2d_pais!$J$2:$J$27000)/1000 -> 0 | N35: =+SUMIF(AUX_2d_pais!$A$2:$A$27000,'5.1'!$A35&'5.1'!N$3&2,AUX_2d_pais!$J$2:$J$27000)/1000 -> 0 | O35: =SUM(J35:N35)/5 -> 0 | P35: 0 | Q35: 0 | S35: =G35-INDEX($C35:$G35,1,aux!$AL$1) -> 0 | T35: 0 | U35: =+IF(INDEX($C35:$G35,1,aux!$AL$1)>0,(G35/INDEX($C35:$G35,1,aux!$AL$1))^(1/($G$3-INDEX($C$3:$G$3,1,aux!$AL$1)))-1,"n.d.") -> n.d. | V35: =IF(INDEX($C35:$G35,1,aux!$AL$1)>0,(G35-INDEX($C35:$G35,1,aux!$AL$1))/INDEX($C35:$G35,1,aux!$AL$1),"n.d.") -> n.d. | X35: =N35-INDEX($J35:$N35,1,aux!$AL$1) -> 0 | Y35: 0 | Z35: =+IF(INDEX($J35:$N35,1,aux!$AL$1)>0,(N35/INDEX($J35:$N35,1,aux!$AL$1))^(1/($N$3-INDEX($J$3:$N$3,1,aux!$AL$1)))-1,"n.d.") -> n.d. | AA35: =IF(INDEX($J35:$N35,1,aux!$AL$1)>0,(N35-INDEX($J35:$N35,1,aux!$AL$1))/INDEX($J35:$N35,1,aux!$AL$1),"n.d.") -> n.d. | AC35: 0 | BS35: =+MATCH('5.1'!A35,AUX_2d_pais!$G$2:$G$20001,0) -> 
A36: 0508 | B36: Brasil | C36: =+SUMIF(AUX_2d_pais!$A$2:$A$27000,'5.1'!$A36&'5.1'!C$3&1,AUX_2d_pais!$J$2:$J$27000)/1000 -> 416915.329 | D36: =+SUMIF(AUX_2d_pais!$A$2:$A$27000,'5.1'!$A36&'5.1'!D$3&1,AUX_2d_pais!$J$2:$J$27000)/1000 -> 497096.898 | E36: =+SUMIF(AUX_2d_pais!$A$2:$A$27000,'5.1'!$A36&'5.1'!E$3&1,AUX_2d_pais!$J$2:$J$27000)/1000 -> 534293.365 | F36: =+SUMIF(AUX_2d_pais!$A$2:$A$27000,'5.1'!$A36&'5.1'!F$3&1,AUX_2d_pais!$J$2:$J$27000)/1000 -> 769956.032 | G36: =+SUMIF(AUX_2d_pais!$A$2:$A$27000,'5.1'!$A36&'5.1'!G$3&1,AUX_2d_pais!$J$2:$J$27000)/1000 -> 1307898.943 | H36: 705232.1134 | I36: =H36/$H$254 -> 0.6381121919 | J36: =+SUMIF(AUX_2d_pais!$A$2:$A$27000,'5.1'!$A36&'5.1'!J$3&2,AUX_2d_pais!$J$2:$J$27000)/1000 -> 426935.687 | K36: =+SUMIF(AUX_2d_pais!$A$2:$A$27000,'5.1'!$A36&'5.1'!K$3&2,AUX_2d_pais!$J$2:$J$27000)/1000 -> 464506.214 | L36: =+SUMIF(AUX_2d_pais!$A$2:$A$27000,'5.1'!$A36&'5.1'!L$3&2,AUX_2d_pais!$J$2:$J$27000)/1000 -> 435785.123 | M36: =+SUMIF(AUX_2d_pais!$A$2:$A$27000,'5.1'!$A36&'5.1'!M$3&2,AUX_2d_pais!$J$2:$J$27000)/1000 -> 416153.721 | N36: =+SUMIF(AUX_2d_pais!$A$2:$A$27000,'5.1'!$A36&'5.1'!N$3&2,AUX_2d_pais!$J$2:$J$27000)/1000 -> 520145.55 | O36: 452705.259 | P36: =O36/$O$254 -> 0.8510904304 | Q36: -252526.8544 | S36: =G36-INDEX($C36:$G36,1,aux!$AL$1) -> 890983.614 | T36: =S36/$S$254 -> 0.815946506 | U36: =+IF(INDEX($C36:$G36,1,aux!$AL$1)>0,(G36/INDEX($C36:$G36,1,aux!$AL$1))^(1/($G$3-INDEX($C$3:$G$3,1,aux!$AL$1)))-1,"n.d.") -> 0.3308575765 | V36: =IF(INDEX($C36:$G36,1,aux!$AL$1)>0,(G36-INDEX($C36:$G36,1,aux!$AL$1))/INDEX($C36:$G36,1,aux!$AL$1),"n.d.") -> 2.137085283 | X36: =N36-INDEX($J36:$N36,1,aux!$AL$1) -> 93209.863 | Y36: =X36/$X$254 -> 1.17358216 | Z36: =+IF(INDEX($J36:$N36,1,aux!$AL$1)>0,(N36/INDEX($J36:$N36,1,aux!$AL$1))^(1/($N$3-INDEX($J$3:$N$3,1,aux!$AL$1)))-1,"n.d.") -> 0.05060776715 | AA36: =IF(INDEX($J36:$N36,1,aux!$AL$1)>0,(N36-INDEX($J36:$N36,1,aux!$AL$1))/INDEX($J36:$N36,1,aux!$AL$1),"n.d.") -> 0.2183229602 | BS36: =+MATCH('5.1'!A36,AUX_2d_pais!$G$2:$G$20001,0) -> 13
A37: 0703 | B37: Brunei Darussalam | C37: =+SUMIF(AUX_2d_pais!$A$2:$A$27000,'5.1'!$A37&'5.1'!C$3&1,AUX_2d_pais!$J$2:$J$27000)/1000 -> 0 | D37: =+SUMIF(AUX_2d_pais!$A$2:$A$27000,'5.1'!$A37&'5.1'!D$3&1,AUX_2d_pais!$J$2:$J$27000)/1000 -> 0 | E37: =+SUMIF(AUX_2d_pais!$A$2:$A$27000,'5.1'!$A37&'5.1'!E$3&1,AUX_2d_pais!$J$2:$J$27000)/1000 -> 0 | F37: =+SUMIF(AUX_2d_pais!$A$2:$A$27000,'5.1'!$A37&'5.1'!F$3&1,AUX_2d_pais!$J$2:$J$27000)/1000 -> 0 | G37: =+SUMIF(AUX_2d_pais!$A$2:$A$27000,'5.1'!$A37&'5.1'!G$3&1,AUX_2d_pais!$J$2:$J$27000)/1000 -> 0 | H37: 0 | I37: 0 | J37: =+SUMIF(AUX_2d_pais!$A$2:$A$27000,'5.1'!$A37&'5.1'!J$3&2,AUX_2d_pais!$J$2:$J$27000)/1000 -> 0 | K37: =+SUMIF(AUX_2d_pais!$A$2:$A$27000,'5.1'!$A37&'5.1'!K$3&2,AUX_2d_pais!$J$2:$J$27000)/1000 -> 0 | L37: =+SUMIF(AUX_2d_pais!$A$2:$A$27000,'5.1'!$A37&'5.1'!L$3&2,AUX_2d_pais!$J$2:$J$27000)/1000 -> 0 | M37: =+SUMIF(AUX_2d_pais!$A$2:$A$27000,'5.1'!$A37&'5.1'!M$3&2,AUX_2d_pais!$J$2:$J$27000)/1000 -> 0 | N37: =+SUMIF(AUX_2d_pais!$A$2:$A$27000,'5.1'!$A37&'5.1'!N$3&2,AUX_2d_pais!$J$2:$J$27000)/1000 -> 0 | O37: 0 | P37: 0 | Q37: 0 | S37: =G37-INDEX($C37:$G37,1,aux!$AL$1) -> 0 | T37: 0 | U37: =+IF(INDEX($C37:$G37,1,aux!$AL$1)>0,(G37/INDEX($C37:$G37,1,aux!$AL$1))^(1/($G$3-INDEX($C$3:$G$3,1,aux!$AL$1)))-1,"n.d.") -> n.d. | V37: =IF(INDEX($C37:$G37,1,aux!$AL$1)>0,(G37-INDEX($C37:$G37,1,aux!$AL$1))/INDEX($C37:$G37,1,aux!$AL$1),"n.d.") -> n.d. | X37: =N37-INDEX($J37:$N37,1,aux!$AL$1) -> 0 | Y37: 0 | Z37: =+IF(INDEX($J37:$N37,1,aux!$AL$1)>0,(N37/INDEX($J37:$N37,1,aux!$AL$1))^(1/($N$3-INDEX($J$3:$N$3,1,aux!$AL$1)))-1,"n.d.") -> n.d. | AA37: =IF(INDEX($J37:$N37,1,aux!$AL$1)>0,(N37-INDEX($J37:$N37,1,aux!$AL$1))/INDEX($J37:$N37,1,aux!$AL$1),"n.d.") -> n.d. | AC37: 0 | BS37: =+MATCH('5.1'!A37,AUX_2d_pais!$G$2:$G$20001,0) -> 
A38: 0068 | B38: Bulgária | C38: =+SUMIF(AUX_2d_pais!$A$2:$A$27000,'5.1'!$A38&'5.1'!C$3&1,AUX_2d_pais!$J$2:$J$27000)/1000 -> 0 | D38: =+SUMIF(AUX_2d_pais!$A$2:$A$27000,'5.1'!$A38&'5.1'!D$3&1,AUX_2d_pais!$J$2:$J$27000)/1000 -> 0 | E38: =+SUMIF(AUX_2d_pais!$A$2:$A$27000,'5.1'!$A38&'5.1'!E$3&1,AUX_2d_pais!$J$2:$J$27000)/1000 -> 0 | F38: =+SUMIF(AUX_2d_pais!$A$2:$A$27000,'5.1'!$A38&'5.1'!F$3&1,AUX_2d_pais!$J$2:$J$27000)/1000 -> 0 | G38: =+SUMIF(AUX_2d_pais!$A$2:$A$27000,'5.1'!$A38&'5.1'!G$3&1,AUX_2d_pais!$J$2:$J$27000)/1000 -> 0 | H38: 0 | I38: 0 | J38: =+SUMIF(AUX_2d_pais!$A$2:$A$27000,'5.1'!$A38&'5.1'!J$3&2,AUX_2d_pais!$J$2:$J$27000)/1000 -> 0 | K38: =+SUMIF(AUX_2d_pais!$A$2:$A$27000,'5.1'!$A38&'5.1'!K$3&2,AUX_2d_pais!$J$2:$J$27000)/1000 -> 0 | L38: =+SUMIF(AUX_2d_pais!$A$2:$A$27000,'5.1'!$A38&'5.1'!L$3&2,AUX_2d_pais!$J$2:$J$27000)/1000 -> 0 | M38: =+SUMIF(AUX_2d_pais!$A$2:$A$27000,'5.1'!$A38&'5.1'!M$3&2,AUX_2d_pais!$J$2:$J$27000)/1000 -> 0 | N38: =+SUMIF(AUX_2d_pais!$A$2:$A$27000,'5.1'!$A38&'5.1'!N$3&2,AUX_2d_pais!$J$2:$J$27000)/1000 -> 0 | O38: 0 | P38: 0 | Q38: 0 | S38: =G38-INDEX($C38:$G38,1,aux!$AL$1) -> 0 | T38: 0 | U38: =+IF(INDEX($C38:$G38,1,aux!$AL$1)>0,(G38/INDEX($C38:$G38,1,aux!$AL$1))^(1/($G$3-INDEX($C$3:$G$3,1,aux!$AL$1)))-1,"n.d.") -> n.d. | V38: =IF(INDEX($C38:$G38,1,aux!$AL$1)>0,(G38-INDEX($C38:$G38,1,aux!$AL$1))/INDEX($C38:$G38,1,aux!$AL$1),"n.d.") -> n.d. | X38: =N38-INDEX($J38:$N38,1,aux!$AL$1) -> 0 | Y38: 0 | Z38: =+IF(INDEX($J38:$N38,1,aux!$AL$1)>0,(N38/INDEX($J38:$N38,1,aux!$AL$1))^(1/($N$3-INDEX($J$3:$N$3,1,aux!$AL$1)))-1,"n.d.") -> n.d. | AA38: =IF(INDEX($J38:$N38,1,aux!$AL$1)>0,(N38-INDEX($J38:$N38,1,aux!$AL$1))/INDEX($J38:$N38,1,aux!$AL$1),"n.d.") -> n.d. | AC38: 0 | BS38: =+MATCH('5.1'!A38,AUX_2d_pais!$G$2:$G$20001,0) -> 
A39: 0236 | B39: Burquina Faso | C39: =+SUMIF(AUX_2d_pais!$A$2:$A$27000,'5.1'!$A39&'5.1'!C$3&1,AUX_2d_pais!$J$2:$J$27000)/1000 -> 0 | D39: =+SUMIF(AUX_2d_pais!$A$2:$A$27000,'5.1'!$A39&'5.1'!D$3&1,AUX_2d_pais!$J$2:$J$27000)/1000 -> 0 | E39: =+SUMIF(AUX_2d_pais!$A$2:$A$27000,'5.1'!$A39&'5.1'!E$3&1,AUX_2d_pais!$J$2:$J$27000)/1000 -> 0 | F39: =+SUMIF(AUX_2d_pais!$A$2:$A$27000,'5.1'!$A39&'5.1'!F$3&1,AUX_2d_pais!$J$2:$J$27000)/1000 -> 0 | G39: =+SUMIF(AUX_2d_pais!$A$2:$A$27000,'5.1'!$A39&'5.1'!G$3&1,AUX_2d_pais!$J$2:$J$27000)/1000 -> 0 | H39: =SUM(C39:G39)/5 -> 0 | I39: 0 | J39: =+SUMIF(AUX_2d_pais!$A$2:$A$27000,'5.1'!$A39&'5.1'!J$3&2,AUX_2d_pais!$J$2:$J$27000)/1000 -> 0 | K39: =+SUMIF(AUX_2d_pais!$A$2:$A$27000,'5.1'!$A39&'5.1'!K$3&2,AUX_2d_pais!$J$2:$J$27000)/1000 -> 0 | L39: =+SUMIF(AUX_2d_pais!$A$2:$A$27000,'5.1'!$A39&'5.1'!L$3&2,AUX_2d_pais!$J$2:$J$27000)/1000 -> 0 | M39: =+SUMIF(AUX_2d_pais!$A$2:$A$27000,'5.1'!$A39&'5.1'!M$3&2,AUX_2d_pais!$J$2:$J$27000)/1000 -> 0 | N39: =+SUMIF(AUX_2d_pais!$A$2:$A$27000,'5.1'!$A39&'5.1'!N$3&2,AUX_2d_pais!$J$2:$J$27000)/1000 -> 0 | O39: =SUM(J39:N39)/5 -> 0 | P39: 0 | Q39: =O39-H39 -> 0 | S39: =G39-INDEX($C39:$G39,1,aux!$AL$1) -> 0 | T39: 0 | U39: =+IF(INDEX($C39:$G39,1,aux!$AL$1)>0,(G39/INDEX($C39:$G39,1,aux!$AL$1))^(1/($G$3-INDEX($C$3:$G$3,1,aux!$AL$1)))-1,"n.d.") -> n.d. | V39: =IF(INDEX($C39:$G39,1,aux!$AL$1)>0,(G39-INDEX($C39:$G39,1,aux!$AL$1))/INDEX($C39:$G39,1,aux!$AL$1),"n.d.") -> n.d. | X39: =N39-INDEX($J39:$N39,1,aux!$AL$1) -> 0 | Y39: 0 | Z39: =+IF(INDEX($J39:$N39,1,aux!$AL$1)>0,(N39/INDEX($J39:$N39,1,aux!$AL$1))^(1/($N$3-INDEX($J$3:$N$3,1,aux!$AL$1)))-1,"n.d.") -> n.d. | AA39: =IF(INDEX($J39:$N39,1,aux!$AL$1)>0,(N39-INDEX($J39:$N39,1,aux!$AL$1))/INDEX($J39:$N39,1,aux!$AL$1),"n.d.") -> n.d. | AC39: 0 | BS39: =+MATCH('5.1'!A39,AUX_2d_pais!$G$2:$G$20001,0) -> 
A40: 0328 | B40: Burundi | C40: =+SUMIF(AUX_2d_pais!$A$2:$A$27000,'5.1'!$A40&'5.1'!C$3&1,AUX_2d_pais!$J$2:$J$27000)/1000 -> 0 | D40: =+SUMIF(AUX_2d_pais!$A$2:$A$27000,'5.1'!$A40&'5.1'!D$3&1,AUX_2d_pais!$J$2:$J$27000)/1000 -> 0 | E40: =+SUMIF(AUX_2d_pais!$A$2:$A$27000,'5.1'!$A40&'5.1'!E$3&1,AUX_2d_pais!$J$2:$J$27000)/1000 -> 0 | F40: =+SUMIF(AUX_2d_pais!$A$2:$A$27000,'5.1'!$A40&'5.1'!F$3&1,AUX_2d_pais!$J$2:$J$27000)/1000 -> 0 | G40: =+SUMIF(AUX_2d_pais!$A$2:$A$27000,'5.1'!$A40&'5.1'!G$3&1,AUX_2d_pais!$J$2:$J$27000)/1000 -> 0 | H40: 0 | I40: 0 | J40: =+SUMIF(AUX_2d_pais!$A$2:$A$27000,'5.1'!$A40&'5.1'!J$3&2,AUX_2d_pais!$J$2:$J$27000)/1000 -> 0 | K40: =+SUMIF(AUX_2d_pais!$A$2:$A$27000,'5.1'!$A40&'5.1'!K$3&2,AUX_2d_pais!$J$2:$J$27000)/1000 -> 0 | L40: =+SUMIF(AUX_2d_pais!$A$2:$A$27000,'5.1'!$A40&'5.1'!L$3&2,AUX_2d_pais!$J$2:$J$27000)/1000 -> 0 | M40: =+SUMIF(AUX_2d_pais!$A$2:$A$27000,'5.1'!$A40&'5.1'!M$3&2,AUX_2d_pais!$J$2:$J$27000)/1000 -> 0 | N40: =+SUMIF(AUX_2d_pais!$A$2:$A$27000,'5.1'!$A40&'5.1'!N$3&2,AUX_2d_pais!$J$2:$J$27000)/1000 -> 0 | O40: 0 | P40: 0 | Q40: 0 | S40: =G40-INDEX($C40:$G40,1,aux!$AL$1) -> 0 | T40: 0 | U40: =+IF(INDEX($C40:$G40,1,aux!$AL$1)>0,(G40/INDEX($C40:$G40,1,aux!$AL$1))^(1/($G$3-INDEX($C$3:$G$3,1,aux!$AL$1)))-1,"n.d.") -> n.d. | V40: =IF(INDEX($C40:$G40,1,aux!$AL$1)>0,(G40-INDEX($C40:$G40,1,aux!$AL$1))/INDEX($C40:$G40,1,aux!$AL$1),"n.d.") -> n.d. | X40: =N40-INDEX($J40:$N40,1,aux!$AL$1) -> 0 | Y40: 0 | Z40: =+IF(INDEX($J40:$N40,1,aux!$AL$1)>0,(N40/INDEX($J40:$N40,1,aux!$AL$1))^(1/($N$3-INDEX($J$3:$N$3,1,aux!$AL$1)))-1,"n.d.") -> n.d. | AA40: =IF(INDEX($J40:$N40,1,aux!$AL$1)>0,(N40-INDEX($J40:$N40,1,aux!$AL$1))/INDEX($J40:$N40,1,aux!$AL$1),"n.d.") -> n.d. | AC40: 0 | BS40: =+MATCH('5.1'!A40,AUX_2d_pais!$G$2:$G$20001,0) -> 
A41: 0675 | B41: Butão | C41: =+SUMIF(AUX_2d_pais!$A$2:$A$27000,'5.1'!$A41&'5.1'!C$3&1,AUX_2d_pais!$J$2:$J$27000)/1000 -> 0 | D41: =+SUMIF(AUX_2d_pais!$A$2:$A$27000,'5.1'!$A41&'5.1'!D$3&1,AUX_2d_pais!$J$2:$J$27000)/1000 -> 0 | E41: =+SUMIF(AUX_2d_pais!$A$2:$A$27000,'5.1'!$A41&'5.1'!E$3&1,AUX_2d_pais!$J$2:$J$27000)/1000 -> 0 | F41: =+SUMIF(AUX_2d_pais!$A$2:$A$27000,'5.1'!$A41&'5.1'!F$3&1,AUX_2d_pais!$J$2:$J$27000)/1000 -> 0 | G41: =+SUMIF(AUX_2d_pais!$A$2:$A$27000,'5.1'!$A41&'5.1'!G$3&1,AUX_2d_pais!$J$2:$J$27000)/1000 -> 0 | H41: 0 | I41: 0 | J41: =+SUMIF(AUX_2d_pais!$A$2:$A$27000,'5.1'!$A41&'5.1'!J$3&2,AUX_2d_pais!$J$2:$J$27000)/1000 -> 0 | K41: =+SUMIF(AUX_2d_pais!$A$2:$A$27000,'5.1'!$A41&'5.1'!K$3&2,AUX_2d_pais!$J$2:$J$27000)/1000 -> 0 | L41: =+SUMIF(AUX_2d_pais!$A$2:$A$27000,'5.1'!$A41&'5.1'!L$3&2,AUX_2d_pais!$J$2:$J$27000)/1000 -> 0 | M41: =+SUMIF(AUX_2d_pais!$A$2:$A$27000,'5.1'!$A41&'5.1'!M$3&2,AUX_2d_pais!$J$2:$J$27000)/1000 -> 0 | N41: =+SUMIF(AUX_2d_pais!$A$2:$A$27000,'5.1'!$A41&'5.1'!N$3&2,AUX_2d_pais!$J$2:$J$27000)/1000 -> 0 | O41: 0 | P41: 0 | Q41: 0 | S41: =G41-INDEX($C41:$G41,1,aux!$AL$1) -> 0 | T41: 0 | U41: =+IF(INDEX($C41:$G41,1,aux!$AL$1)>0,(G41/INDEX($C41:$G41,1,aux!$AL$1))^(1/($G$3-INDEX($C$3:$G$3,1,aux!$AL$1)))-1,"n.d.") -> n.d. | V41: =IF(INDEX($C41:$G41,1,aux!$AL$1)>0,(G41-INDEX($C41:$G41,1,aux!$AL$1))/INDEX($C41:$G41,1,aux!$AL$1),"n.d.") -> n.d. | X41: =N41-INDEX($J41:$N41,1,aux!$AL$1) -> 0 | Y41: 0 | Z41: =+IF(INDEX($J41:$N41,1,aux!$AL$1)>0,(N41/INDEX($J41:$N41,1,aux!$AL$1))^(1/($N$3-INDEX($J$3:$N$3,1,aux!$AL$1)))-1,"n.d.") -> n.d. | AA41: =IF(INDEX($J41:$N41,1,aux!$AL$1)>0,(N41-INDEX($J41:$N41,1,aux!$AL$1))/INDEX($J41:$N41,1,aux!$AL$1),"n.d.") -> n.d. | AC41: 0 | BS41: =+MATCH('5.1'!A41,AUX_2d_pais!$G$2:$G$20001,0) -> 
A42: 0247 | B42: Cabo Verde | C42: =+SUMIF(AUX_2d_pais!$A$2:$A$27000,'5.1'!$A42&'5.1'!C$3&1,AUX_2d_pais!$J$2:$J$27000)/1000 -> 0 | D42: =+SUMIF(AUX_2d_pais!$A$2:$A$27000,'5.1'!$A42&'5.1'!D$3&1,AUX_2d_pais!$J$2:$J$27000)/1000 -> 0 | E42: =+SUMIF(AUX_2d_pais!$A$2:$A$27000,'5.1'!$A42&'5.1'!E$3&1,AUX_2d_pais!$J$2:$J$27000)/1000 -> 0 | F42: =+SUMIF(AUX_2d_pais!$A$2:$A$27000,'5.1'!$A42&'5.1'!F$3&1,AUX_2d_pais!$J$2:$J$27000)/1000 -> 0 | G42: =+SUMIF(AUX_2d_pais!$A$2:$A$27000,'5.1'!$A42&'5.1'!G$3&1,AUX_2d_pais!$J$2:$J$27000)/1000 -> 0 | H42: 0 | I42: 0 | J42: =+SUMIF(AUX_2d_pais!$A$2:$A$27000,'5.1'!$A42&'5.1'!J$3&2,AUX_2d_pais!$J$2:$J$27000)/1000 -> 0 | K42: =+SUMIF(AUX_2d_pais!$A$2:$A$27000,'5.1'!$A42&'5.1'!K$3&2,AUX_2d_pais!$J$2:$J$27000)/1000 -> 0 | L42: =+SUMIF(AUX_2d_pais!$A$2:$A$27000,'5.1'!$A42&'5.1'!L$3&2,AUX_2d_pais!$J$2:$J$27000)/1000 -> 0 | M42: =+SUMIF(AUX_2d_pais!$A$2:$A$27000,'5.1'!$A42&'5.1'!M$3&2,AUX_2d_pais!$J$2:$J$27000)/1000 -> 0 | N42: =+SUMIF(AUX_2d_pais!$A$2:$A$27000,'5.1'!$A42&'5.1'!N$3&2,AUX_2d_pais!$J$2:$J$27000)/1000 -> 0 | O42: 0 | P42: 0 | Q42: 0 | S42: =G42-INDEX($C42:$G42,1,aux!$AL$1) -> 0 | T42: 0 | U42: =+IF(INDEX($C42:$G42,1,aux!$AL$1)>0,(G42/INDEX($C42:$G42,1,aux!$AL$1))^(1/($G$3-INDEX($C$3:$G$3,1,aux!$AL$1)))-1,"n.d.") -> n.d. | V42: =IF(INDEX($C42:$G42,1,aux!$AL$1)>0,(G42-INDEX($C42:$G42,1,aux!$AL$1))/INDEX($C42:$G42,1,aux!$AL$1),"n.d.") -> n.d. | X42: =N42-INDEX($J42:$N42,1,aux!$AL$1) -> 0 | Y42: 0 | Z42: =+IF(INDEX($J42:$N42,1,aux!$AL$1)>0,(N42/INDEX($J42:$N42,1,aux!$AL$1))^(1/($N$3-INDEX($J$3:$N$3,1,aux!$AL$1)))-1,"n.d.") -> n.d. | AA42: =IF(INDEX($J42:$N42,1,aux!$AL$1)>0,(N42-INDEX($J42:$N42,1,aux!$AL$1))/INDEX($J42:$N42,1,aux!$AL$1),"n.d.") -> n.d. | AC42: 0 | BS42: =+MATCH('5.1'!A42,AUX_2d_pais!$G$2:$G$20001,0) -> 
A43: 0463 | B43: Caimão, Ilhas | C43: =+SUMIF(AUX_2d_pais!$A$2:$A$27000,'5.1'!$A43&'5.1'!C$3&1,AUX_2d_pais!$J$2:$J$27000)/1000 -> 0 | D43: =+SUMIF(AUX_2d_pais!$A$2:$A$27000,'5.1'!$A43&'5.1'!D$3&1,AUX_2d_pais!$J$2:$J$27000)/1000 -> 0 | E43: =+SUMIF(AUX_2d_pais!$A$2:$A$27000,'5.1'!$A43&'5.1'!E$3&1,AUX_2d_pais!$J$2:$J$27000)/1000 -> 0 | F43: =+SUMIF(AUX_2d_pais!$A$2:$A$27000,'5.1'!$A43&'5.1'!F$3&1,AUX_2d_pais!$J$2:$J$27000)/1000 -> 0 | G43: =+SUMIF(AUX_2d_pais!$A$2:$A$27000,'5.1'!$A43&'5.1'!G$3&1,AUX_2d_pais!$J$2:$J$27000)/1000 -> 0 | H43: 0 | I43: 0 | J43: =+SUMIF(AUX_2d_pais!$A$2:$A$27000,'5.1'!$A43&'5.1'!J$3&2,AUX_2d_pais!$J$2:$J$27000)/1000 -> 0 | K43: =+SUMIF(AUX_2d_pais!$A$2:$A$27000,'5.1'!$A43&'5.1'!K$3&2,AUX_2d_pais!$J$2:$J$27000)/1000 -> 0 | L43: =+SUMIF(AUX_2d_pais!$A$2:$A$27000,'5.1'!$A43&'5.1'!L$3&2,AUX_2d_pais!$J$2:$J$27000)/1000 -> 0 | M43: =+SUMIF(AUX_2d_pais!$A$2:$A$27000,'5.1'!$A43&'5.1'!M$3&2,AUX_2d_pais!$J$2:$J$27000)/1000 -> 0 | N43: =+SUMIF(AUX_2d_pais!$A$2:$A$27000,'5.1'!$A43&'5.1'!N$3&2,AUX_2d_pais!$J$2:$J$27000)/1000 -> 0 | O43: 0 | P43: 0 | Q43: 0 | S43: =G43-INDEX($C43:$G43,1,aux!$AL$1) -> 0 | T43: 0 | U43: =+IF(INDEX($C43:$G43,1,aux!$AL$1)>0,(G43/INDEX($C43:$G43,1,aux!$AL$1))^(1/($G$3-INDEX($C$3:$G$3,1,aux!$AL$1)))-1,"n.d.") -> n.d. | V43: =IF(INDEX($C43:$G43,1,aux!$AL$1)>0,(G43-INDEX($C43:$G43,1,aux!$AL$1))/INDEX($C43:$G43,1,aux!$AL$1),"n.d.") -> n.d. | X43: =N43-INDEX($J43:$N43,1,aux!$AL$1) -> 0 | Y43: 0 | Z43: =+IF(INDEX($J43:$N43,1,aux!$AL$1)>0,(N43/INDEX($J43:$N43,1,aux!$AL$1))^(1/($N$3-INDEX($J$3:$N$3,1,aux!$AL$1)))-1,"n.d.") -> n.d. | AA43: =IF(INDEX($J43:$N43,1,aux!$AL$1)>0,(N43-INDEX($J43:$N43,1,aux!$AL$1))/INDEX($J43:$N43,1,aux!$AL$1),"n.d.") -> n.d. | AC43: 0 | BS43: =+MATCH('5.1'!A43,AUX_2d_pais!$G$2:$G$20001,0) -> 
A44: 0302 | B44: Camarões | C44: =+SUMIF(AUX_2d_pais!$A$2:$A$27000,'5.1'!$A44&'5.1'!C$3&1,AUX_2d_pais!$J$2:$J$27000)/1000 -> 0 | D44: =+SUMIF(AUX_2d_pais!$A$2:$A$27000,'5.1'!$A44&'5.1'!D$3&1,AUX_2d_pais!$J$2:$J$27000)/1000 -> 0 | E44: =+SUMIF(AUX_2d_pais!$A$2:$A$27000,'5.1'!$A44&'5.1'!E$3&1,AUX_2d_pais!$J$2:$J$27000)/1000 -> 0 | F44: =+SUMIF(AUX_2d_pais!$A$2:$A$27000,'5.1'!$A44&'5.1'!F$3&1,AUX_2d_pais!$J$2:$J$27000)/1000 -> 0 | G44: =+SUMIF(AUX_2d_pais!$A$2:$A$27000,'5.1'!$A44&'5.1'!G$3&1,AUX_2d_pais!$J$2:$J$27000)/1000 -> 0 | H44: 0 | I44: 0 | J44: =+SUMIF(AUX_2d_pais!$A$2:$A$27000,'5.1'!$A44&'5.1'!J$3&2,AUX_2d_pais!$J$2:$J$27000)/1000 -> 0 | K44: =+SUMIF(AUX_2d_pais!$A$2:$A$27000,'5.1'!$A44&'5.1'!K$3&2,AUX_2d_pais!$J$2:$J$27000)/1000 -> 0 | L44: =+SUMIF(AUX_2d_pais!$A$2:$A$27000,'5.1'!$A44&'5.1'!L$3&2,AUX_2d_pais!$J$2:$J$27000)/1000 -> 0 | M44: =+SUMIF(AUX_2d_pais!$A$2:$A$27000,'5.1'!$A44&'5.1'!M$3&2,AUX_2d_pais!$J$2:$J$27000)/1000 -> 0 | N44: =+SUMIF(AUX_2d_pais!$A$2:$A$27000,'5.1'!$A44&'5.1'!N$3&2,AUX_2d_pais!$J$2:$J$27000)/1000 -> 0 | O44: 0 | P44: 0 | Q44: 0 | S44: =G44-INDEX($C44:$G44,1,aux!$AL$1) -> 0 | T44: 0 | U44: =+IF(INDEX($C44:$G44,1,aux!$AL$1)>0,(G44/INDEX($C44:$G44,1,aux!$AL$1))^(1/($G$3-INDEX($C$3:$G$3,1,aux!$AL$1)))-1,"n.d.") -> n.d. | V44: =IF(INDEX($C44:$G44,1,aux!$AL$1)>0,(G44-INDEX($C44:$G44,1,aux!$AL$1))/INDEX($C44:$G44,1,aux!$AL$1),"n.d.") -> n.d. | X44: =N44-INDEX($J44:$N44,1,aux!$AL$1) -> 0 | Y44: 0 | Z44: =+IF(INDEX($J44:$N44,1,aux!$AL$1)>0,(N44/INDEX($J44:$N44,1,aux!$AL$1))^(1/($N$3-INDEX($J$3:$N$3,1,aux!$AL$1)))-1,"n.d.") -> n.d. | AA44: =IF(INDEX($J44:$N44,1,aux!$AL$1)>0,(N44-INDEX($J44:$N44,1,aux!$AL$1))/INDEX($J44:$N44,1,aux!$AL$1),"n.d.") -> n.d. | AC44: 0 | BS44: =+MATCH('5.1'!A44,AUX_2d_pais!$G$2:$G$20001,0) -> 
A45: 0696 | B45: Camboja | C45: =+SUMIF(AUX_2d_pais!$A$2:$A$27000,'5.1'!$A45&'5.1'!C$3&1,AUX_2d_pais!$J$2:$J$27000)/1000 -> 0 | D45: =+SUMIF(AUX_2d_pais!$A$2:$A$27000,'5.1'!$A45&'5.1'!D$3&1,AUX_2d_pais!$J$2:$J$27000)/1000 -> 0 | E45: =+SUMIF(AUX_2d_pais!$A$2:$A$27000,'5.1'!$A45&'5.1'!E$3&1,AUX_2d_pais!$J$2:$J$27000)/1000 -> 0 | F45: =+SUMIF(AUX_2d_pais!$A$2:$A$27000,'5.1'!$A45&'5.1'!F$3&1,AUX_2d_pais!$J$2:$J$27000)/1000 -> 0 | G45: =+SUMIF(AUX_2d_pais!$A$2:$A$27000,'5.1'!$A45&'5.1'!G$3&1,AUX_2d_pais!$J$2:$J$27000)/1000 -> 0 | H45: 0 | I45: 0 | J45: =+SUMIF(AUX_2d_pais!$A$2:$A$27000,'5.1'!$A45&'5.1'!J$3&2,AUX_2d_pais!$J$2:$J$27000)/1000 -> 0 | K45: =+SUMIF(AUX_2d_pais!$A$2:$A$27000,'5.1'!$A45&'5.1'!K$3&2,AUX_2d_pais!$J$2:$J$27000)/1000 -> 0 | L45: =+SUMIF(AUX_2d_pais!$A$2:$A$27000,'5.1'!$A45&'5.1'!L$3&2,AUX_2d_pais!$J$2:$J$27000)/1000 -> 0 | M45: =+SUMIF(AUX_2d_pais!$A$2:$A$27000,'5.1'!$A45&'5.1'!M$3&2,AUX_2d_pais!$J$2:$J$27000)/1000 -> 0 | N45: =+SUMIF(AUX_2d_pais!$A$2:$A$27000,'5.1'!$A45&'5.1'!N$3&2,AUX_2d_pais!$J$2:$J$27000)/1000 -> 0 | O45: 0 | P45: 0 | Q45: 0 | S45: =G45-INDEX($C45:$G45,1,aux!$AL$1) -> 0 | T45: 0 | U45: =+IF(INDEX($C45:$G45,1,aux!$AL$1)>0,(G45/INDEX($C45:$G45,1,aux!$AL$1))^(1/($G$3-INDEX($C$3:$G$3,1,aux!$AL$1)))-1,"n.d.") -> n.d. | V45: =IF(INDEX($C45:$G45,1,aux!$AL$1)>0,(G45-INDEX($C45:$G45,1,aux!$AL$1))/INDEX($C45:$G45,1,aux!$AL$1),"n.d.") -> n.d. | X45: =N45-INDEX($J45:$N45,1,aux!$AL$1) -> 0 | Y45: 0 | Z45: =+IF(INDEX($J45:$N45,1,aux!$AL$1)>0,(N45/INDEX($J45:$N45,1,aux!$AL$1))^(1/($N$3-INDEX($J$3:$N$3,1,aux!$AL$1)))-1,"n.d.") -> n.d. | AA45: =IF(INDEX($J45:$N45,1,aux!$AL$1)>0,(N45-INDEX($J45:$N45,1,aux!$AL$1))/INDEX($J45:$N45,1,aux!$AL$1),"n.d.") -> n.d. | AC45: 0 | BS45: =+MATCH('5.1'!A45,AUX_2d_pais!$G$2:$G$20001,0) -> 
A46: 0404 | B46: Canadá | C46: =+SUMIF(AUX_2d_pais!$A$2:$A$27000,'5.1'!$A46&'5.1'!C$3&1,AUX_2d_pais!$J$2:$J$27000)/1000 -> 0 | D46: =+SUMIF(AUX_2d_pais!$A$2:$A$27000,'5.1'!$A46&'5.1'!D$3&1,AUX_2d_pais!$J$2:$J$27000)/1000 -> 0 | E46: =+SUMIF(AUX_2d_pais!$A$2:$A$27000,'5.1'!$A46&'5.1'!E$3&1,AUX_2d_pais!$J$2:$J$27000)/1000 -> 0 | F46: =+SUMIF(AUX_2d_pais!$A$2:$A$27000,'5.1'!$A46&'5.1'!F$3&1,AUX_2d_pais!$J$2:$J$27000)/1000 -> 0 | G46: =+SUMIF(AUX_2d_pais!$A$2:$A$27000,'5.1'!$A46&'5.1'!G$3&1,AUX_2d_pais!$J$2:$J$27000)/1000 -> 0 | H46: 0 | I46: 0 | J46: =+SUMIF(AUX_2d_pais!$A$2:$A$27000,'5.1'!$A46&'5.1'!J$3&2,AUX_2d_pais!$J$2:$J$27000)/1000 -> 0 | K46: =+SUMIF(AUX_2d_pais!$A$2:$A$27000,'5.1'!$A46&'5.1'!K$3&2,AUX_2d_pais!$J$2:$J$27000)/1000 -> 0 | L46: =+SUMIF(AUX_2d_pais!$A$2:$A$27000,'5.1'!$A46&'5.1'!L$3&2,AUX_2d_pais!$J$2:$J$27000)/1000 -> 0 | M46: =+SUMIF(AUX_2d_pais!$A$2:$A$27000,'5.1'!$A46&'5.1'!M$3&2,AUX_2d_pais!$J$2:$J$27000)/1000 -> 0 | N46: =+SUMIF(AUX_2d_pais!$A$2:$A$27000,'5.1'!$A46&'5.1'!N$3&2,AUX_2d_pais!$J$2:$J$27000)/1000 -> 0 | O46: 0 | P46: 0 | Q46: 0 | S46: =G46-INDEX($C46:$G46,1,aux!$AL$1) -> 0 | T46: 0 | U46: =+IF(INDEX($C46:$G46,1,aux!$AL$1)>0,(G46/INDEX($C46:$G46,1,aux!$AL$1))^(1/($G$3-INDEX($C$3:$G$3,1,aux!$AL$1)))-1,"n.d.") -> n.d. | V46: =IF(INDEX($C46:$G46,1,aux!$AL$1)>0,(G46-INDEX($C46:$G46,1,aux!$AL$1))/INDEX($C46:$G46,1,aux!$AL$1),"n.d.") -> n.d. | X46: =N46-INDEX($J46:$N46,1,aux!$AL$1) -> 0 | Y46: 0 | Z46: =+IF(INDEX($J46:$N46,1,aux!$AL$1)>0,(N46/INDEX($J46:$N46,1,aux!$AL$1))^(1/($N$3-INDEX($J$3:$N$3,1,aux!$AL$1)))-1,"n.d.") -> n.d. | AA46: =IF(INDEX($J46:$N46,1,aux!$AL$1)>0,(N46-INDEX($J46:$N46,1,aux!$AL$1))/INDEX($J46:$N46,1,aux!$AL$1),"n.d.") -> n.d. | AC46: 0 | BS46: =+MATCH('5.1'!A46,AUX_2d_pais!$G$2:$G$20001,0) -> 
A47: 0644 | B47: Catar | C47: =+SUMIF(AUX_2d_pais!$A$2:$A$27000,'5.1'!$A47&'5.1'!C$3&1,AUX_2d_pais!$J$2:$J$27000)/1000 -> 0 | D47: =+SUMIF(AUX_2d_pais!$A$2:$A$27000,'5.1'!$A47&'5.1'!D$3&1,AUX_2d_pais!$J$2:$J$27000)/1000 -> 0 | E47: =+SUMIF(AUX_2d_pais!$A$2:$A$27000,'5.1'!$A47&'5.1'!E$3&1,AUX_2d_pais!$J$2:$J$27000)/1000 -> 0 | F47: =+SUMIF(AUX_2d_pais!$A$2:$A$27000,'5.1'!$A47&'5.1'!F$3&1,AUX_2d_pais!$J$2:$J$27000)/1000 -> 0 | G47: =+SUMIF(AUX_2d_pais!$A$2:$A$27000,'5.1'!$A47&'5.1'!G$3&1,AUX_2d_pais!$J$2:$J$27000)/1000 -> 0 | H47: 0 | I47: 0 | J47: =+SUMIF(AUX_2d_pais!$A$2:$A$27000,'5.1'!$A47&'5.1'!J$3&2,AUX_2d_pais!$J$2:$J$27000)/1000 -> 0 | K47: =+SUMIF(AUX_2d_pais!$A$2:$A$27000,'5.1'!$A47&'5.1'!K$3&2,AUX_2d_pais!$J$2:$J$27000)/1000 -> 0 | L47: =+SUMIF(AUX_2d_pais!$A$2:$A$27000,'5.1'!$A47&'5.1'!L$3&2,AUX_2d_pais!$J$2:$J$27000)/1000 -> 0 | M47: =+SUMIF(AUX_2d_pais!$A$2:$A$27000,'5.1'!$A47&'5.1'!M$3&2,AUX_2d_pais!$J$2:$J$27000)/1000 -> 0 | N47: =+SUMIF(AUX_2d_pais!$A$2:$A$27000,'5.1'!$A47&'5.1'!N$3&2,AUX_2d_pais!$J$2:$J$27000)/1000 -> 0 | O47: 0 | P47: 0 | Q47: 0 | S47: =G47-INDEX($C47:$G47,1,aux!$AL$1) -> 0 | T47: 0 | U47: =+IF(INDEX($C47:$G47,1,aux!$AL$1)>0,(G47/INDEX($C47:$G47,1,aux!$AL$1))^(1/($G$3-INDEX($C$3:$G$3,1,aux!$AL$1)))-1,"n.d.") -> n.d. | V47: =IF(INDEX($C47:$G47,1,aux!$AL$1)>0,(G47-INDEX($C47:$G47,1,aux!$AL$1))/INDEX($C47:$G47,1,aux!$AL$1),"n.d.") -> n.d. | X47: =N47-INDEX($J47:$N47,1,aux!$AL$1) -> 0 | Y47: 0 | Z47: =+IF(INDEX($J47:$N47,1,aux!$AL$1)>0,(N47/INDEX($J47:$N47,1,aux!$AL$1))^(1/($N$3-INDEX($J$3:$N$3,1,aux!$AL$1)))-1,"n.d.") -> n.d. | AA47: =IF(INDEX($J47:$N47,1,aux!$AL$1)>0,(N47-INDEX($J47:$N47,1,aux!$AL$1))/INDEX($J47:$N47,1,aux!$AL$1),"n.d.") -> n.d. | AC47: 0 | BS47: =+MATCH('5.1'!A47,AUX_2d_pais!$G$2:$G$20001,0) -> 
A48: 0079 | B48: Cazaquistão | C48: =+SUMIF(AUX_2d_pais!$A$2:$A$27000,'5.1'!$A48&'5.1'!C$3&1,AUX_2d_pais!$J$2:$J$27000)/1000 -> 0 | D48: =+SUMIF(AUX_2d_pais!$A$2:$A$27000,'5.1'!$A48&'5.1'!D$3&1,AUX_2d_pais!$J$2:$J$27000)/1000 -> 0 | E48: =+SUMIF(AUX_2d_pais!$A$2:$A$27000,'5.1'!$A48&'5.1'!E$3&1,AUX_2d_pais!$J$2:$J$27000)/1000 -> 0 | F48: =+SUMIF(AUX_2d_pais!$A$2:$A$27000,'5.1'!$A48&'5.1'!F$3&1,AUX_2d_pais!$J$2:$J$27000)/1000 -> 0 | G48: =+SUMIF(AUX_2d_pais!$A$2:$A$27000,'5.1'!$A48&'5.1'!G$3&1,AUX_2d_pais!$J$2:$J$27000)/1000 -> 0 | H48: 0 | I48: 0 | J48: =+SUMIF(AUX_2d_pais!$A$2:$A$27000,'5.1'!$A48&'5.1'!J$3&2,AUX_2d_pais!$J$2:$J$27000)/1000 -> 0 | K48: =+SUMIF(AUX_2d_pais!$A$2:$A$27000,'5.1'!$A48&'5.1'!K$3&2,AUX_2d_pais!$J$2:$J$27000)/1000 -> 0 | L48: =+SUMIF(AUX_2d_pais!$A$2:$A$27000,'5.1'!$A48&'5.1'!L$3&2,AUX_2d_pais!$J$2:$J$27000)/1000 -> 0 | M48: =+SUMIF(AUX_2d_pais!$A$2:$A$27000,'5.1'!$A48&'5.1'!M$3&2,AUX_2d_pais!$J$2:$J$27000)/1000 -> 0 | N48: =+SUMIF(AUX_2d_pais!$A$2:$A$27000,'5.1'!$A48&'5.1'!N$3&2,AUX_2d_pais!$J$2:$J$27000)/1000 -> 0 | O48: 0 | P48: 0 | Q48: 0 | S48: =G48-INDEX($C48:$G48,1,aux!$AL$1) -> 0 | T48: 0 | U48: =+IF(INDEX($C48:$G48,1,aux!$AL$1)>0,(G48/INDEX($C48:$G48,1,aux!$AL$1))^(1/($G$3-INDEX($C$3:$G$3,1,aux!$AL$1)))-1,"n.d.") -> n.d. | V48: =IF(INDEX($C48:$G48,1,aux!$AL$1)>0,(G48-INDEX($C48:$G48,1,aux!$AL$1))/INDEX($C48:$G48,1,aux!$AL$1),"n.d.") -> n.d. | X48: =N48-INDEX($J48:$N48,1,aux!$AL$1) -> 0 | Y48: 0 | Z48: =+IF(INDEX($J48:$N48,1,aux!$AL$1)>0,(N48/INDEX($J48:$N48,1,aux!$AL$1))^(1/($N$3-INDEX($J$3:$N$3,1,aux!$AL$1)))-1,"n.d.") -> n.d. | AA48: =IF(INDEX($J48:$N48,1,aux!$AL$1)>0,(N48-INDEX($J48:$N48,1,aux!$AL$1))/INDEX($J48:$N48,1,aux!$AL$1),"n.d.") -> n.d. | AC48: 0 | BS48: =+MATCH('5.1'!A48,AUX_2d_pais!$G$2:$G$20001,0) -> 
A49: 0306 | B49: Centro-Africana, República | C49: =+SUMIF(AUX_2d_pais!$A$2:$A$27000,'5.1'!$A49&'5.1'!C$3&1,AUX_2d_pais!$J$2:$J$27000)/1000 -> 0 | D49: =+SUMIF(AUX_2d_pais!$A$2:$A$27000,'5.1'!$A49&'5.1'!D$3&1,AUX_2d_pais!$J$2:$J$27000)/1000 -> 0 | E49: =+SUMIF(AUX_2d_pais!$A$2:$A$27000,'5.1'!$A49&'5.1'!E$3&1,AUX_2d_pais!$J$2:$J$27000)/1000 -> 0 | F49: =+SUMIF(AUX_2d_pais!$A$2:$A$27000,'5.1'!$A49&'5.1'!F$3&1,AUX_2d_pais!$J$2:$J$27000)/1000 -> 0 | G49: =+SUMIF(AUX_2d_pais!$A$2:$A$27000,'5.1'!$A49&'5.1'!G$3&1,AUX_2d_pais!$J$2:$J$27000)/1000 -> 0 | H49: 0 | I49: 0 | J49: =+SUMIF(AUX_2d_pais!$A$2:$A$27000,'5.1'!$A49&'5.1'!J$3&2,AUX_2d_pais!$J$2:$J$27000)/1000 -> 0 | K49: =+SUMIF(AUX_2d_pais!$A$2:$A$27000,'5.1'!$A49&'5.1'!K$3&2,AUX_2d_pais!$J$2:$J$27000)/1000 -> 0 | L49: =+SUMIF(AUX_2d_pais!$A$2:$A$27000,'5.1'!$A49&'5.1'!L$3&2,AUX_2d_pais!$J$2:$J$27000)/1000 -> 0 | M49: =+SUMIF(AUX_2d_pais!$A$2:$A$27000,'5.1'!$A49&'5.1'!M$3&2,AUX_2d_pais!$J$2:$J$27000)/1000 -> 0 | N49: =+SUMIF(AUX_2d_pais!$A$2:$A$27000,'5.1'!$A49&'5.1'!N$3&2,AUX_2d_pais!$J$2:$J$27000)/1000 -> 0 | O49: 0 | P49: 0 | Q49: 0 | S49: =G49-INDEX($C49:$G49,1,aux!$AL$1) -> 0 | T49: 0 | U49: =+IF(INDEX($C49:$G49,1,aux!$AL$1)>0,(G49/INDEX($C49:$G49,1,aux!$AL$1))^(1/($G$3-INDEX($C$3:$G$3,1,aux!$AL$1)))-1,"n.d.") -> n.d. | V49: =IF(INDEX($C49:$G49,1,aux!$AL$1)>0,(G49-INDEX($C49:$G49,1,aux!$AL$1))/INDEX($C49:$G49,1,aux!$AL$1),"n.d.") -> n.d. | X49: =N49-INDEX($J49:$N49,1,aux!$AL$1) -> 0 | Y49: 0 | Z49: =+IF(INDEX($J49:$N49,1,aux!$AL$1)>0,(N49/INDEX($J49:$N49,1,aux!$AL$1))^(1/($N$3-INDEX($J$3:$N$3,1,aux!$AL$1)))-1,"n.d.") -> n.d. | AA49: =IF(INDEX($J49:$N49,1,aux!$AL$1)>0,(N49-INDEX($J49:$N49,1,aux!$AL$1))/INDEX($J49:$N49,1,aux!$AL$1),"n.d.") -> n.d. | AC49: 0 | BS49: =+MATCH('5.1'!A49,AUX_2d_pais!$G$2:$G$20001,0) -> 
A50: 0021 | B50: Ceuta | C50: =+SUMIF(AUX_2d_pais!$A$2:$A$27000,'5.1'!$A50&'5.1'!C$3&1,AUX_2d_pais!$J$2:$J$27000)/1000 -> 0 | D50: =+SUMIF(AUX_2d_pais!$A$2:$A$27000,'5.1'!$A50&'5.1'!D$3&1,AUX_2d_pais!$J$2:$J$27000)/1000 -> 0 | E50: =+SUMIF(AUX_2d_pais!$A$2:$A$27000,'5.1'!$A50&'5.1'!E$3&1,AUX_2d_pais!$J$2:$J$27000)/1000 -> 0 | F50: =+SUMIF(AUX_2d_pais!$A$2:$A$27000,'5.1'!$A50&'5.1'!F$3&1,AUX_2d_pais!$J$2:$J$27000)/1000 -> 0 | G50: =+SUMIF(AUX_2d_pais!$A$2:$A$27000,'5.1'!$A50&'5.1'!G$3&1,AUX_2d_pais!$J$2:$J$27000)/1000 -> 0 | H50: 0 | I50: 0 | J50: =+SUMIF(AUX_2d_pais!$A$2:$A$27000,'5.1'!$A50&'5.1'!J$3&2,AUX_2d_pais!$J$2:$J$27000)/1000 -> 0 | K50: =+SUMIF(AUX_2d_pais!$A$2:$A$27000,'5.1'!$A50&'5.1'!K$3&2,AUX_2d_pais!$J$2:$J$27000)/1000 -> 0 | L50: =+SUMIF(AUX_2d_pais!$A$2:$A$27000,'5.1'!$A50&'5.1'!L$3&2,AUX_2d_pais!$J$2:$J$27000)/1000 -> 0 | M50: =+SUMIF(AUX_2d_pais!$A$2:$A$27000,'5.1'!$A50&'5.1'!M$3&2,AUX_2d_pais!$J$2:$J$27000)/1000 -> 0 | N50: =+SUMIF(AUX_2d_pais!$A$2:$A$27000,'5.1'!$A50&'5.1'!N$3&2,AUX_2d_pais!$J$2:$J$27000)/1000 -> 0 | O50: 0 | P50: 0 | Q50: 0 | S50: =G50-INDEX($C50:$G50,1,aux!$AL$1) -> 0 | T50: 0 | U50: =+IF(INDEX($C50:$G50,1,aux!$AL$1)>0,(G50/INDEX($C50:$G50,1,aux!$AL$1))^(1/($G$3-INDEX($C$3:$G$3,1,aux!$AL$1)))-1,"n.d.") -> n.d. | V50: =IF(INDEX($C50:$G50,1,aux!$AL$1)>0,(G50-INDEX($C50:$G50,1,aux!$AL$1))/INDEX($C50:$G50,1,aux!$AL$1),"n.d.") -> n.d. | X50: =N50-INDEX($J50:$N50,1,aux!$AL$1) -> 0 | Y50: 0 | Z50: =+IF(INDEX($J50:$N50,1,aux!$AL$1)>0,(N50/INDEX($J50:$N50,1,aux!$AL$1))^(1/($N$3-INDEX($J$3:$N$3,1,aux!$AL$1)))-1,"n.d.") -> n.d. | AA50: =IF(INDEX($J50:$N50,1,aux!$AL$1)>0,(N50-INDEX($J50:$N50,1,aux!$AL$1))/INDEX($J50:$N50,1,aux!$AL$1),"n.d.") -> n.d. | AC50: 0 | BS50: =+MATCH('5.1'!A50,AUX_2d_pais!$G$2:$G$20001,0) -> 
A51: 0022 | B51: Ceuta e Melilha | C51: =+SUMIF(AUX_2d_pais!$A$2:$A$27000,'5.1'!$A51&'5.1'!C$3&1,AUX_2d_pais!$J$2:$J$27000)/1000 -> 0 | D51: =+SUMIF(AUX_2d_pais!$A$2:$A$27000,'5.1'!$A51&'5.1'!D$3&1,AUX_2d_pais!$J$2:$J$27000)/1000 -> 0 | E51: =+SUMIF(AUX_2d_pais!$A$2:$A$27000,'5.1'!$A51&'5.1'!E$3&1,AUX_2d_pais!$J$2:$J$27000)/1000 -> 0 | F51: =+SUMIF(AUX_2d_pais!$A$2:$A$27000,'5.1'!$A51&'5.1'!F$3&1,AUX_2d_pais!$J$2:$J$27000)/1000 -> 0 | G51: =+SUMIF(AUX_2d_pais!$A$2:$A$27000,'5.1'!$A51&'5.1'!G$3&1,AUX_2d_pais!$J$2:$J$27000)/1000 -> 0 | H51: 0 | I51: 0 | J51: =+SUMIF(AUX_2d_pais!$A$2:$A$27000,'5.1'!$A51&'5.1'!J$3&2,AUX_2d_pais!$J$2:$J$27000)/1000 -> 0 | K51: =+SUMIF(AUX_2d_pais!$A$2:$A$27000,'5.1'!$A51&'5.1'!K$3&2,AUX_2d_pais!$J$2:$J$27000)/1000 -> 0 | L51: =+SUMIF(AUX_2d_pais!$A$2:$A$27000,'5.1'!$A51&'5.1'!L$3&2,AUX_2d_pais!$J$2:$J$27000)/1000 -> 0 | M51: =+SUMIF(AUX_2d_pais!$A$2:$A$27000,'5.1'!$A51&'5.1'!M$3&2,AUX_2d_pais!$J$2:$J$27000)/1000 -> 0 | N51: =+SUMIF(AUX_2d_pais!$A$2:$A$27000,'5.1'!$A51&'5.1'!N$3&2,AUX_2d_pais!$J$2:$J$27000)/1000 -> 0 | O51: 0 | P51: 0 | Q51: 0 | S51: =G51-INDEX($C51:$G51,1,aux!$AL$1) -> 0 | T51: 0 | U51: =+IF(INDEX($C51:$G51,1,aux!$AL$1)>0,(G51/INDEX($C51:$G51,1,aux!$AL$1))^(1/($G$3-INDEX($C$3:$G$3,1,aux!$AL$1)))-1,"n.d.") -> n.d. | V51: =IF(INDEX($C51:$G51,1,aux!$AL$1)>0,(G51-INDEX($C51:$G51,1,aux!$AL$1))/INDEX($C51:$G51,1,aux!$AL$1),"n.d.") -> n.d. | X51: =N51-INDEX($J51:$N51,1,aux!$AL$1) -> 0 | Y51: 0 | Z51: =+IF(INDEX($J51:$N51,1,aux!$AL$1)>0,(N51/INDEX($J51:$N51,1,aux!$AL$1))^(1/($N$3-INDEX($J$3:$N$3,1,aux!$AL$1)))-1,"n.d.") -> n.d. | AA51: =IF(INDEX($J51:$N51,1,aux!$AL$1)>0,(N51-INDEX($J51:$N51,1,aux!$AL$1))/INDEX($J51:$N51,1,aux!$AL$1),"n.d.") -> n.d. | AC51: 0 | BS51: =+MATCH('5.1'!A51,AUX_2d_pais!$G$2:$G$20001,0) -> 
A52: 0244 | B52: Chade | C52: =+SUMIF(AUX_2d_pais!$A$2:$A$27000,'5.1'!$A52&'5.1'!C$3&1,AUX_2d_pais!$J$2:$J$27000)/1000 -> 0 | D52: =+SUMIF(AUX_2d_pais!$A$2:$A$27000,'5.1'!$A52&'5.1'!D$3&1,AUX_2d_pais!$J$2:$J$27000)/1000 -> 0 | E52: =+SUMIF(AUX_2d_pais!$A$2:$A$27000,'5.1'!$A52&'5.1'!E$3&1,AUX_2d_pais!$J$2:$J$27000)/1000 -> 0 | F52: =+SUMIF(AUX_2d_pais!$A$2:$A$27000,'5.1'!$A52&'5.1'!F$3&1,AUX_2d_pais!$J$2:$J$27000)/1000 -> 0 | G52: =+SUMIF(AUX_2d_pais!$A$2:$A$27000,'5.1'!$A52&'5.1'!G$3&1,AUX_2d_pais!$J$2:$J$27000)/1000 -> 0 | H52: 0 | I52: 0 | J52: =+SUMIF(AUX_2d_pais!$A$2:$A$27000,'5.1'!$A52&'5.1'!J$3&2,AUX_2d_pais!$J$2:$J$27000)/1000 -> 0 | K52: =+SUMIF(AUX_2d_pais!$A$2:$A$27000,'5.1'!$A52&'5.1'!K$3&2,AUX_2d_pais!$J$2:$J$27000)/1000 -> 0 | L52: =+SUMIF(AUX_2d_pais!$A$2:$A$27000,'5.1'!$A52&'5.1'!L$3&2,AUX_2d_pais!$J$2:$J$27000)/1000 -> 0 | M52: =+SUMIF(AUX_2d_pais!$A$2:$A$27000,'5.1'!$A52&'5.1'!M$3&2,AUX_2d_pais!$J$2:$J$27000)/1000 -> 0 | N52: =+SUMIF(AUX_2d_pais!$A$2:$A$27000,'5.1'!$A52&'5.1'!N$3&2,AUX_2d_pais!$J$2:$J$27000)/1000 -> 0 | O52: 0 | P52: 0 | Q52: 0 | S52: =G52-INDEX($C52:$G52,1,aux!$AL$1) -> 0 | T52: 0 | U52: =+IF(INDEX($C52:$G52,1,aux!$AL$1)>0,(G52/INDEX($C52:$G52,1,aux!$AL$1))^(1/($G$3-INDEX($C$3:$G$3,1,aux!$AL$1)))-1,"n.d.") -> n.d. | V52: =IF(INDEX($C52:$G52,1,aux!$AL$1)>0,(G52-INDEX($C52:$G52,1,aux!$AL$1))/INDEX($C52:$G52,1,aux!$AL$1),"n.d.") -> n.d. | X52: =N52-INDEX($J52:$N52,1,aux!$AL$1) -> 0 | Y52: 0 | Z52: =+IF(INDEX($J52:$N52,1,aux!$AL$1)>0,(N52/INDEX($J52:$N52,1,aux!$AL$1))^(1/($N$3-INDEX($J$3:$N$3,1,aux!$AL$1)))-1,"n.d.") -> n.d. | AA52: =IF(INDEX($J52:$N52,1,aux!$AL$1)>0,(N52-INDEX($J52:$N52,1,aux!$AL$1))/INDEX($J52:$N52,1,aux!$AL$1),"n.d.") -> n.d. | AC52: 0 | BS52: =+MATCH('5.1'!A52,AUX_2d_pais!$G$2:$G$20001,0) -> 
A53: 0061 | B53: Checa, República | C53: =+SUMIF(AUX_2d_pais!$A$2:$A$27000,'5.1'!$A53&'5.1'!C$3&1,AUX_2d_pais!$J$2:$J$27000)/1000 -> 0 | D53: =+SUMIF(AUX_2d_pais!$A$2:$A$27000,'5.1'!$A53&'5.1'!D$3&1,AUX_2d_pais!$J$2:$J$27000)/1000 -> 0 | E53: =+SUMIF(AUX_2d_pais!$A$2:$A$27000,'5.1'!$A53&'5.1'!E$3&1,AUX_2d_pais!$J$2:$J$27000)/1000 -> 0 | F53: =+SUMIF(AUX_2d_pais!$A$2:$A$27000,'5.1'!$A53&'5.1'!F$3&1,AUX_2d_pais!$J$2:$J$27000)/1000 -> 0 | G53: =+SUMIF(AUX_2d_pais!$A$2:$A$27000,'5.1'!$A53&'5.1'!G$3&1,AUX_2d_pais!$J$2:$J$27000)/1000 -> 0 | H53: 0 | I53: 0 | J53: =+SUMIF(AUX_2d_pais!$A$2:$A$27000,'5.1'!$A53&'5.1'!J$3&2,AUX_2d_pais!$J$2:$J$27000)/1000 -> 0 | K53: =+SUMIF(AUX_2d_pais!$A$2:$A$27000,'5.1'!$A53&'5.1'!K$3&2,AUX_2d_pais!$J$2:$J$27000)/1000 -> 0 | L53: =+SUMIF(AUX_2d_pais!$A$2:$A$27000,'5.1'!$A53&'5.1'!L$3&2,AUX_2d_pais!$J$2:$J$27000)/1000 -> 0 | M53: =+SUMIF(AUX_2d_pais!$A$2:$A$27000,'5.1'!$A53&'5.1'!M$3&2,AUX_2d_pais!$J$2:$J$27000)/1000 -> 0 | N53: =+SUMIF(AUX_2d_pais!$A$2:$A$27000,'5.1'!$A53&'5.1'!N$3&2,AUX_2d_pais!$J$2:$J$27000)/1000 -> 0 | O53: 0 | P53: 0 | Q53: 0 | S53: =G53-INDEX($C53:$G53,1,aux!$AL$1) -> 0 | T53: 0 | U53: =+IF(INDEX($C53:$G53,1,aux!$AL$1)>0,(G53/INDEX($C53:$G53,1,aux!$AL$1))^(1/($G$3-INDEX($C$3:$G$3,1,aux!$AL$1)))-1,"n.d.") -> n.d. | V53: =IF(INDEX($C53:$G53,1,aux!$AL$1)>0,(G53-INDEX($C53:$G53,1,aux!$AL$1))/INDEX($C53:$G53,1,aux!$AL$1),"n.d.") -> n.d. | X53: =N53-INDEX($J53:$N53,1,aux!$AL$1) -> 0 | Y53: 0 | Z53: =+IF(INDEX($J53:$N53,1,aux!$AL$1)>0,(N53/INDEX($J53:$N53,1,aux!$AL$1))^(1/($N$3-INDEX($J$3:$N$3,1,aux!$AL$1)))-1,"n.d.") -> n.d. | AA53: =IF(INDEX($J53:$N53,1,aux!$AL$1)>0,(N53-INDEX($J53:$N53,1,aux!$AL$1))/INDEX($J53:$N53,1,aux!$AL$1),"n.d.") -> n.d. | AC53: 0 | BS53: =+MATCH('5.1'!A53,AUX_2d_pais!$G$2:$G$20001,0) -> 
A54: 0512 | B54: Chile | C54: =+SUMIF(AUX_2d_pais!$A$2:$A$27000,'5.1'!$A54&'5.1'!C$3&1,AUX_2d_pais!$J$2:$J$27000)/1000 -> 46400.962 | D54: =+SUMIF(AUX_2d_pais!$A$2:$A$27000,'5.1'!$A54&'5.1'!D$3&1,AUX_2d_pais!$J$2:$J$27000)/1000 -> 40048.978 | E54: =+SUMIF(AUX_2d_pais!$A$2:$A$27000,'5.1'!$A54&'5.1'!E$3&1,AUX_2d_pais!$J$2:$J$27000)/1000 -> 37066.811 | F54: =+SUMIF(AUX_2d_pais!$A$2:$A$27000,'5.1'!$A54&'5.1'!F$3&1,AUX_2d_pais!$J$2:$J$27000)/1000 -> 50129.272 | G54: =+SUMIF(AUX_2d_pais!$A$2:$A$27000,'5.1'!$A54&'5.1'!G$3&1,AUX_2d_pais!$J$2:$J$27000)/1000 -> 65275.088 | H54: 47784.2222 | I54: 0.04323639577 | J54: =+SUMIF(AUX_2d_pais!$A$2:$A$27000,'5.1'!$A54&'5.1'!J$3&2,AUX_2d_pais!$J$2:$J$27000)/1000 -> 46322.627 | K54: =+SUMIF(AUX_2d_pais!$A$2:$A$27000,'5.1'!$A54&'5.1'!K$3&2,AUX_2d_pais!$J$2:$J$27000)/1000 -> 40663.797 | L54: =+SUMIF(AUX_2d_pais!$A$2:$A$27000,'5.1'!$A54&'5.1'!L$3&2,AUX_2d_pais!$J$2:$J$27000)/1000 -> 30340.983 | M54: =+SUMIF(AUX_2d_pais!$A$2:$A$27000,'5.1'!$A54&'5.1'!M$3&2,AUX_2d_pais!$J$2:$J$27000)/1000 -> 36385.186 | N54: =+SUMIF(AUX_2d_pais!$A$2:$A$27000,'5.1'!$A54&'5.1'!N$3&2,AUX_2d_pais!$J$2:$J$27000)/1000 -> 26420.184 | O54: 36026.5554 | P54: 0.06773028573 | Q54: -11757.6668 | S54: =G54-INDEX($C54:$G54,1,aux!$AL$1) -> 18874.126 | T54: 0.01728457956 | U54: =+IF(INDEX($C54:$G54,1,aux!$AL$1)>0,(G54/INDEX($C54:$G54,1,aux!$AL$1))^(1/($G$3-INDEX($C$3:$G$3,1,aux!$AL$1)))-1,"n.d.") -> 0.08906830835 | V54: =IF(INDEX($C54:$G54,1,aux!$AL$1)>0,(G54-INDEX($C54:$G54,1,aux!$AL$1))/INDEX($C54:$G54,1,aux!$AL$1),"n.d.") -> 0.4067615236 | X54: =N54-INDEX($J54:$N54,1,aux!$AL$1) -> -19902.443 | Y54: -0.2505867007 | Z54: =+IF(INDEX($J54:$N54,1,aux!$AL$1)>0,(N54/INDEX($J54:$N54,1,aux!$AL$1))^(1/($N$3-INDEX($J$3:$N$3,1,aux!$AL$1)))-1,"n.d.") -> -0.1309682087 | AA54: =IF(INDEX($J54:$N54,1,aux!$AL$1)>0,(N54-INDEX($J54:$N54,1,aux!$AL$1))/INDEX($J54:$N54,1,aux!$AL$1),"n.d.") -> -0.4296484092 | BS54: =+MATCH('5.1'!A54,AUX_2d_pais!$G$2:$G$20001,0) -> 23
A55: 0720 | B55: China, República Popular da | C55: =+SUMIF(AUX_2d_pais!$A$2:$A$27000,'5.1'!$A55&'5.1'!C$3&1,AUX_2d_pais!$J$2:$J$27000)/1000 -> 0 | D55: =+SUMIF(AUX_2d_pais!$A$2:$A$27000,'5.1'!$A55&'5.1'!D$3&1,AUX_2d_pais!$J$2:$J$27000)/1000 -> 0 | E55: =+SUMIF(AUX_2d_pais!$A$2:$A$27000,'5.1'!$A55&'5.1'!E$3&1,AUX_2d_pais!$J$2:$J$27000)/1000 -> 0 | F55: =+SUMIF(AUX_2d_pais!$A$2:$A$27000,'5.1'!$A55&'5.1'!F$3&1,AUX_2d_pais!$J$2:$J$27000)/1000 -> 0 | G55: =+SUMIF(AUX_2d_pais!$A$2:$A$27000,'5.1'!$A55&'5.1'!G$3&1,AUX_2d_pais!$J$2:$J$27000)/1000 -> 0 | H55: 0 | I55: 0 | J55: =+SUMIF(AUX_2d_pais!$A$2:$A$27000,'5.1'!$A55&'5.1'!J$3&2,AUX_2d_pais!$J$2:$J$27000)/1000 -> 0 | K55: =+SUMIF(AUX_2d_pais!$A$2:$A$27000,'5.1'!$A55&'5.1'!K$3&2,AUX_2d_pais!$J$2:$J$27000)/1000 -> 0 | L55: =+SUMIF(AUX_2d_pais!$A$2:$A$27000,'5.1'!$A55&'5.1'!L$3&2,AUX_2d_pais!$J$2:$J$27000)/1000 -> 0 | M55: =+SUMIF(AUX_2d_pais!$A$2:$A$27000,'5.1'!$A55&'5.1'!M$3&2,AUX_2d_pais!$J$2:$J$27000)/1000 -> 0 | N55: =+SUMIF(AUX_2d_pais!$A$2:$A$27000,'5.1'!$A55&'5.1'!N$3&2,AUX_2d_pais!$J$2:$J$27000)/1000 -> 0 | O55: 0 | P55: 0 | Q55: 0 | S55: =G55-INDEX($C55:$G55,1,aux!$AL$1) -> 0 | T55: 0 | U55: =+IF(INDEX($C55:$G55,1,aux!$AL$1)>0,(G55/INDEX($C55:$G55,1,aux!$AL$1))^(1/($G$3-INDEX($C$3:$G$3,1,aux!$AL$1)))-1,"n.d.") -> n.d. | V55: =IF(INDEX($C55:$G55,1,aux!$AL$1)>0,(G55-INDEX($C55:$G55,1,aux!$AL$1))/INDEX($C55:$G55,1,aux!$AL$1),"n.d.") -> n.d. | X55: =N55-INDEX($J55:$N55,1,aux!$AL$1) -> 0 | Y55: 0 | Z55: =+IF(INDEX($J55:$N55,1,aux!$AL$1)>0,(N55/INDEX($J55:$N55,1,aux!$AL$1))^(1/($N$3-INDEX($J$3:$N$3,1,aux!$AL$1)))-1,"n.d.") -> n.d. | AA55: =IF(INDEX($J55:$N55,1,aux!$AL$1)>0,(N55-INDEX($J55:$N55,1,aux!$AL$1))/INDEX($J55:$N55,1,aux!$AL$1),"n.d.") -> n.d. | AC55: 0 | BS55: =+MATCH('5.1'!A55,AUX_2d_pais!$G$2:$G$20001,0) -> 
A56: 0600 | B56: Chipre | C56: =+SUMIF(AUX_2d_pais!$A$2:$A$27000,'5.1'!$A56&'5.1'!C$3&1,AUX_2d_pais!$J$2:$J$27000)/1000 -> 0 | D56: =+SUMIF(AUX_2d_pais!$A$2:$A$27000,'5.1'!$A56&'5.1'!D$3&1,AUX_2d_pais!$J$2:$J$27000)/1000 -> 0 | E56: =+SUMIF(AUX_2d_pais!$A$2:$A$27000,'5.1'!$A56&'5.1'!E$3&1,AUX_2d_pais!$J$2:$J$27000)/1000 -> 0 | F56: =+SUMIF(AUX_2d_pais!$A$2:$A$27000,'5.1'!$A56&'5.1'!F$3&1,AUX_2d_pais!$J$2:$J$27000)/1000 -> 0 | G56: =+SUMIF(AUX_2d_pais!$A$2:$A$27000,'5.1'!$A56&'5.1'!G$3&1,AUX_2d_pais!$J$2:$J$27000)/1000 -> 0 | H56: 0 | I56: 0 | J56: =+SUMIF(AUX_2d_pais!$A$2:$A$27000,'5.1'!$A56&'5.1'!J$3&2,AUX_2d_pais!$J$2:$J$27000)/1000 -> 0 | K56: =+SUMIF(AUX_2d_pais!$A$2:$A$27000,'5.1'!$A56&'5.1'!K$3&2,AUX_2d_pais!$J$2:$J$27000)/1000 -> 0 | L56: =+SUMIF(AUX_2d_pais!$A$2:$A$27000,'5.1'!$A56&'5.1'!L$3&2,AUX_2d_pais!$J$2:$J$27000)/1000 -> 0 | M56: =+SUMIF(AUX_2d_pais!$A$2:$A$27000,'5.1'!$A56&'5.1'!M$3&2,AUX_2d_pais!$J$2:$J$27000)/1000 -> 0 | N56: =+SUMIF(AUX_2d_pais!$A$2:$A$27000,'5.1'!$A56&'5.1'!N$3&2,AUX_2d_pais!$J$2:$J$27000)/1000 -> 0 | O56: 0 | P56: 0 | Q56: 0 | S56: =G56-INDEX($C56:$G56,1,aux!$AL$1) -> 0 | T56: 0 | U56: =+IF(INDEX($C56:$G56,1,aux!$AL$1)>0,(G56/INDEX($C56:$G56,1,aux!$AL$1))^(1/($G$3-INDEX($C$3:$G$3,1,aux!$AL$1)))-1,"n.d.") -> n.d. | V56: =IF(INDEX($C56:$G56,1,aux!$AL$1)>0,(G56-INDEX($C56:$G56,1,aux!$AL$1))/INDEX($C56:$G56,1,aux!$AL$1),"n.d.") -> n.d. | X56: =N56-INDEX($J56:$N56,1,aux!$AL$1) -> 0 | Y56: 0 | Z56: =+IF(INDEX($J56:$N56,1,aux!$AL$1)>0,(N56/INDEX($J56:$N56,1,aux!$AL$1))^(1/($N$3-INDEX($J$3:$N$3,1,aux!$AL$1)))-1,"n.d.") -> n.d. | AA56: =IF(INDEX($J56:$N56,1,aux!$AL$1)>0,(N56-INDEX($J56:$N56,1,aux!$AL$1))/INDEX($J56:$N56,1,aux!$AL$1),"n.d.") -> n.d. | AC56: 0 | BS56: =+MATCH('5.1'!A56,AUX_2d_pais!$G$2:$G$20001,0) -> 
A57: 0834 | B57: Christmas, Ilha | C57: =+SUMIF(AUX_2d_pais!$A$2:$A$27000,'5.1'!$A57&'5.1'!C$3&1,AUX_2d_pais!$J$2:$J$27000)/1000 -> 0 | D57: =+SUMIF(AUX_2d_pais!$A$2:$A$27000,'5.1'!$A57&'5.1'!D$3&1,AUX_2d_pais!$J$2:$J$27000)/1000 -> 0 | E57: =+SUMIF(AUX_2d_pais!$A$2:$A$27000,'5.1'!$A57&'5.1'!E$3&1,AUX_2d_pais!$J$2:$J$27000)/1000 -> 0 | F57: =+SUMIF(AUX_2d_pais!$A$2:$A$27000,'5.1'!$A57&'5.1'!F$3&1,AUX_2d_pais!$J$2:$J$27000)/1000 -> 0 | G57: =+SUMIF(AUX_2d_pais!$A$2:$A$27000,'5.1'!$A57&'5.1'!G$3&1,AUX_2d_pais!$J$2:$J$27000)/1000 -> 0 | H57: 0 | I57: 0 | J57: =+SUMIF(AUX_2d_pais!$A$2:$A$27000,'5.1'!$A57&'5.1'!J$3&2,AUX_2d_pais!$J$2:$J$27000)/1000 -> 0 | K57: =+SUMIF(AUX_2d_pais!$A$2:$A$27000,'5.1'!$A57&'5.1'!K$3&2,AUX_2d_pais!$J$2:$J$27000)/1000 -> 0 | L57: =+SUMIF(AUX_2d_pais!$A$2:$A$27000,'5.1'!$A57&'5.1'!L$3&2,AUX_2d_pais!$J$2:$J$27000)/1000 -> 0 | M57: =+SUMIF(AUX_2d_pais!$A$2:$A$27000,'5.1'!$A57&'5.1'!M$3&2,AUX_2d_pais!$J$2:$J$27000)/1000 -> 0 | N57: =+SUMIF(AUX_2d_pais!$A$2:$A$27000,'5.1'!$A57&'5.1'!N$3&2,AUX_2d_pais!$J$2:$J$27000)/1000 -> 0 | O57: 0 | P57: 0 | Q57: 0 | S57: =G57-INDEX($C57:$G57,1,aux!$AL$1) -> 0 | T57: 0 | U57: =+IF(INDEX($C57:$G57,1,aux!$AL$1)>0,(G57/INDEX($C57:$G57,1,aux!$AL$1))^(1/($G$3-INDEX($C$3:$G$3,1,aux!$AL$1)))-1,"n.d.") -> n.d. | V57: =IF(INDEX($C57:$G57,1,aux!$AL$1)>0,(G57-INDEX($C57:$G57,1,aux!$AL$1))/INDEX($C57:$G57,1,aux!$AL$1),"n.d.") -> n.d. | X57: =N57-INDEX($J57:$N57,1,aux!$AL$1) -> 0 | Y57: 0 | Z57: =+IF(INDEX($J57:$N57,1,aux!$AL$1)>0,(N57/INDEX($J57:$N57,1,aux!$AL$1))^(1/($N$3-INDEX($J$3:$N$3,1,aux!$AL$1)))-1,"n.d.") -> n.d. | AA57: =IF(INDEX($J57:$N57,1,aux!$AL$1)>0,(N57-INDEX($J57:$N57,1,aux!$AL$1))/INDEX($J57:$N57,1,aux!$AL$1),"n.d.") -> n.d. | AC57: 0 | BS57: =+MATCH('5.1'!A57,AUX_2d_pais!$G$2:$G$20001,0) -> 
A58: 0833 | B58: Cocos (Keeling), Ilhas | C58: =+SUMIF(AUX_2d_pais!$A$2:$A$27000,'5.1'!$A58&'5.1'!C$3&1,AUX_2d_pais!$J$2:$J$27000)/1000 -> 0 | D58: =+SUMIF(AUX_2d_pais!$A$2:$A$27000,'5.1'!$A58&'5.1'!D$3&1,AUX_2d_pais!$J$2:$J$27000)/1000 -> 0 | E58: =+SUMIF(AUX_2d_pais!$A$2:$A$27000,'5.1'!$A58&'5.1'!E$3&1,AUX_2d_pais!$J$2:$J$27000)/1000 -> 0 | F58: =+SUMIF(AUX_2d_pais!$A$2:$A$27000,'5.1'!$A58&'5.1'!F$3&1,AUX_2d_pais!$J$2:$J$27000)/1000 -> 0 | G58: =+SUMIF(AUX_2d_pais!$A$2:$A$27000,'5.1'!$A58&'5.1'!G$3&1,AUX_2d_pais!$J$2:$J$27000)/1000 -> 0 | H58: 0 | I58: 0 | J58: =+SUMIF(AUX_2d_pais!$A$2:$A$27000,'5.1'!$A58&'5.1'!J$3&2,AUX_2d_pais!$J$2:$J$27000)/1000 -> 0 | K58: =+SUMIF(AUX_2d_pais!$A$2:$A$27000,'5.1'!$A58&'5.1'!K$3&2,AUX_2d_pais!$J$2:$J$27000)/1000 -> 0 | L58: =+SUMIF(AUX_2d_pais!$A$2:$A$27000,'5.1'!$A58&'5.1'!L$3&2,AUX_2d_pais!$J$2:$J$27000)/1000 -> 0 | M58: =+SUMIF(AUX_2d_pais!$A$2:$A$27000,'5.1'!$A58&'5.1'!M$3&2,AUX_2d_pais!$J$2:$J$27000)/1000 -> 0 | N58: =+SUMIF(AUX_2d_pais!$A$2:$A$27000,'5.1'!$A58&'5.1'!N$3&2,AUX_2d_pais!$J$2:$J$27000)/1000 -> 0 | O58: 0 | P58: 0 | Q58: 0 | S58: =G58-INDEX($C58:$G58,1,aux!$AL$1) -> 0 | T58: 0 | U58: =+IF(INDEX($C58:$G58,1,aux!$AL$1)>0,(G58/INDEX($C58:$G58,1,aux!$AL$1))^(1/($G$3-INDEX($C$3:$G$3,1,aux!$AL$1)))-1,"n.d.") -> n.d. | V58: =IF(INDEX($C58:$G58,1,aux!$AL$1)>0,(G58-INDEX($C58:$G58,1,aux!$AL$1))/INDEX($C58:$G58,1,aux!$AL$1),"n.d.") -> n.d. | X58: =N58-INDEX($J58:$N58,1,aux!$AL$1) -> 0 | Y58: 0 | Z58: =+IF(INDEX($J58:$N58,1,aux!$AL$1)>0,(N58/INDEX($J58:$N58,1,aux!$AL$1))^(1/($N$3-INDEX($J$3:$N$3,1,aux!$AL$1)))-1,"n.d.") -> n.d. | AA58: =IF(INDEX($J58:$N58,1,aux!$AL$1)>0,(N58-INDEX($J58:$N58,1,aux!$AL$1))/INDEX($J58:$N58,1,aux!$AL$1),"n.d.") -> n.d. | AC58: 0 | BS58: =+MATCH('5.1'!A58,AUX_2d_pais!$G$2:$G$20001,0) -> 
A59: 0480 | B59: Colômbia | C59: =+SUMIF(AUX_2d_pais!$A$2:$A$27000,'5.1'!$A59&'5.1'!C$3&1,AUX_2d_pais!$J$2:$J$27000)/1000 -> 25273.31 | D59: =+SUMIF(AUX_2d_pais!$A$2:$A$27000,'5.1'!$A59&'5.1'!D$3&1,AUX_2d_pais!$J$2:$J$27000)/1000 -> 31371.336 | E59: =+SUMIF(AUX_2d_pais!$A$2:$A$27000,'5.1'!$A59&'5.1'!E$3&1,AUX_2d_pais!$J$2:$J$27000)/1000 -> 28909.281 | F59: =+SUMIF(AUX_2d_pais!$A$2:$A$27000,'5.1'!$A59&'5.1'!F$3&1,AUX_2d_pais!$J$2:$J$27000)/1000 -> 20342.881 | G59: =+SUMIF(AUX_2d_pais!$A$2:$A$27000,'5.1'!$A59&'5.1'!G$3&1,AUX_2d_pais!$J$2:$J$27000)/1000 -> 39890.371 | H59: 29157.4358 | I59: 0.02638239938 | J59: =+SUMIF(AUX_2d_pais!$A$2:$A$27000,'5.1'!$A59&'5.1'!J$3&2,AUX_2d_pais!$J$2:$J$27000)/1000 -> 7742.273 | K59: =+SUMIF(AUX_2d_pais!$A$2:$A$27000,'5.1'!$A59&'5.1'!K$3&2,AUX_2d_pais!$J$2:$J$27000)/1000 -> 8371.661 | L59: =+SUMIF(AUX_2d_pais!$A$2:$A$27000,'5.1'!$A59&'5.1'!L$3&2,AUX_2d_pais!$J$2:$J$27000)/1000 -> 5992.813 | M59: =+SUMIF(AUX_2d_pais!$A$2:$A$27000,'5.1'!$A59&'5.1'!M$3&2,AUX_2d_pais!$J$2:$J$27000)/1000 -> 9049.534 | N59: =+SUMIF(AUX_2d_pais!$A$2:$A$27000,'5.1'!$A59&'5.1'!N$3&2,AUX_2d_pais!$J$2:$J$27000)/1000 -> 10508.145 | O59: 8332.8852 | P59: 0.01566590781 | Q59: -20824.5506 | S59: =G59-INDEX($C59:$G59,1,aux!$AL$1) -> 14617.061 | T59: 0.01338603726 | U59: =+IF(INDEX($C59:$G59,1,aux!$AL$1)>0,(G59/INDEX($C59:$G59,1,aux!$AL$1))^(1/($G$3-INDEX($C$3:$G$3,1,aux!$AL$1)))-1,"n.d.") -> 0.1208603018 | V59: =IF(INDEX($C59:$G59,1,aux!$AL$1)>0,(G59-INDEX($C59:$G59,1,aux!$AL$1))/INDEX($C59:$G59,1,aux!$AL$1),"n.d.") -> 0.5783595817 | X59: =N59-INDEX($J59:$N59,1,aux!$AL$1) -> 2765.872 | Y59: 0.03482440517 | Z59: =+IF(INDEX($J59:$N59,1,aux!$AL$1)>0,(N59/INDEX($J59:$N59,1,aux!$AL$1))^(1/($N$3-INDEX($J$3:$N$3,1,aux!$AL$1)))-1,"n.d.") -> 0.07935521452 | AA59: =IF(INDEX($J59:$N59,1,aux!$AL$1)>0,(N59-INDEX($J59:$N59,1,aux!$AL$1))/INDEX($J59:$N59,1,aux!$AL$1),"n.d.") -> 0.3572428924 | BS59: =+MATCH('5.1'!A59,AUX_2d_pais!$G$2:$G$20001,0) -> 1
A60: 0375 | B60: Comores | C60: =+SUMIF(AUX_2d_pais!$A$2:$A$27000,'5.1'!$A60&'5.1'!C$3&1,AUX_2d_pais!$J$2:$J$27000)/1000 -> 0 | D60: =+SUMIF(AUX_2d_pais!$A$2:$A$27000,'5.1'!$A60&'5.1'!D$3&1,AUX_2d_pais!$J$2:$J$27000)/1000 -> 0 | E60: =+SUMIF(AUX_2d_pais!$A$2:$A$27000,'5.1'!$A60&'5.1'!E$3&1,AUX_2d_pais!$J$2:$J$27000)/1000 -> 0 | F60: =+SUMIF(AUX_2d_pais!$A$2:$A$27000,'5.1'!$A60&'5.1'!F$3&1,AUX_2d_pais!$J$2:$J$27000)/1000 -> 0 | G60: =+SUMIF(AUX_2d_pais!$A$2:$A$27000,'5.1'!$A60&'5.1'!G$3&1,AUX_2d_pais!$J$2:$J$27000)/1000 -> 0 | H60: 0 | I60: 0 | J60: =+SUMIF(AUX_2d_pais!$A$2:$A$27000,'5.1'!$A60&'5.1'!J$3&2,AUX_2d_pais!$J$2:$J$27000)/1000 -> 0 | K60: =+SUMIF(AUX_2d_pais!$A$2:$A$27000,'5.1'!$A60&'5.1'!K$3&2,AUX_2d_pais!$J$2:$J$27000)/1000 -> 0 | L60: =+SUMIF(AUX_2d_pais!$A$2:$A$27000,'5.1'!$A60&'5.1'!L$3&2,AUX_2d_pais!$J$2:$J$27000)/1000 -> 0 | M60: =+SUMIF(AUX_2d_pais!$A$2:$A$27000,'5.1'!$A60&'5.1'!M$3&2,AUX_2d_pais!$J$2:$J$27000)/1000 -> 0 | N60: =+SUMIF(AUX_2d_pais!$A$2:$A$27000,'5.1'!$A60&'5.1'!N$3&2,AUX_2d_pais!$J$2:$J$27000)/1000 -> 0 | O60: 0 | P60: 0 | Q60: 0 | S60: =G60-INDEX($C60:$G60,1,aux!$AL$1) -> 0 | T60: 0 | U60: =+IF(INDEX($C60:$G60,1,aux!$AL$1)>0,(G60/INDEX($C60:$G60,1,aux!$AL$1))^(1/($G$3-INDEX($C$3:$G$3,1,aux!$AL$1)))-1,"n.d.") -> n.d. | V60: =IF(INDEX($C60:$G60,1,aux!$AL$1)>0,(G60-INDEX($C60:$G60,1,aux!$AL$1))/INDEX($C60:$G60,1,aux!$AL$1),"n.d.") -> n.d. | X60: =N60-INDEX($J60:$N60,1,aux!$AL$1) -> 0 | Y60: 0 | Z60: =+IF(INDEX($J60:$N60,1,aux!$AL$1)>0,(N60/INDEX($J60:$N60,1,aux!$AL$1))^(1/($N$3-INDEX($J$3:$N$3,1,aux!$AL$1)))-1,"n.d.") -> n.d. | AA60: =IF(INDEX($J60:$N60,1,aux!$AL$1)>0,(N60-INDEX($J60:$N60,1,aux!$AL$1))/INDEX($J60:$N60,1,aux!$AL$1),"n.d.") -> n.d. | AC60: 0 | BS60: =+MATCH('5.1'!A60,AUX_2d_pais!$G$2:$G$20001,0) -> 
A61: 0318 | B61: Congo | C61: =+SUMIF(AUX_2d_pais!$A$2:$A$27000,'5.1'!$A61&'5.1'!C$3&1,AUX_2d_pais!$J$2:$J$27000)/1000 -> 0 | D61: =+SUMIF(AUX_2d_pais!$A$2:$A$27000,'5.1'!$A61&'5.1'!D$3&1,AUX_2d_pais!$J$2:$J$27000)/1000 -> 0 | E61: =+SUMIF(AUX_2d_pais!$A$2:$A$27000,'5.1'!$A61&'5.1'!E$3&1,AUX_2d_pais!$J$2:$J$27000)/1000 -> 0 | F61: =+SUMIF(AUX_2d_pais!$A$2:$A$27000,'5.1'!$A61&'5.1'!F$3&1,AUX_2d_pais!$J$2:$J$27000)/1000 -> 0 | G61: =+SUMIF(AUX_2d_pais!$A$2:$A$27000,'5.1'!$A61&'5.1'!G$3&1,AUX_2d_pais!$J$2:$J$27000)/1000 -> 0 | H61: 0 | I61: 0 | J61: =+SUMIF(AUX_2d_pais!$A$2:$A$27000,'5.1'!$A61&'5.1'!J$3&2,AUX_2d_pais!$J$2:$J$27000)/1000 -> 0 | K61: =+SUMIF(AUX_2d_pais!$A$2:$A$27000,'5.1'!$A61&'5.1'!K$3&2,AUX_2d_pais!$J$2:$J$27000)/1000 -> 0 | L61: =+SUMIF(AUX_2d_pais!$A$2:$A$27000,'5.1'!$A61&'5.1'!L$3&2,AUX_2d_pais!$J$2:$J$27000)/1000 -> 0 | M61: =+SUMIF(AUX_2d_pais!$A$2:$A$27000,'5.1'!$A61&'5.1'!M$3&2,AUX_2d_pais!$J$2:$J$27000)/1000 -> 0 | N61: =+SUMIF(AUX_2d_pais!$A$2:$A$27000,'5.1'!$A61&'5.1'!N$3&2,AUX_2d_pais!$J$2:$J$27000)/1000 -> 0 | O61: 0 | P61: 0 | Q61: 0 | S61: =G61-INDEX($C61:$G61,1,aux!$AL$1) -> 0 | T61: 0 | U61: =+IF(INDEX($C61:$G61,1,aux!$AL$1)>0,(G61/INDEX($C61:$G61,1,aux!$AL$1))^(1/($G$3-INDEX($C$3:$G$3,1,aux!$AL$1)))-1,"n.d.") -> n.d. | V61: =IF(INDEX($C61:$G61,1,aux!$AL$1)>0,(G61-INDEX($C61:$G61,1,aux!$AL$1))/INDEX($C61:$G61,1,aux!$AL$1),"n.d.") -> n.d. | X61: =N61-INDEX($J61:$N61,1,aux!$AL$1) -> 0 | Y61: 0 | Z61: =+IF(INDEX($J61:$N61,1,aux!$AL$1)>0,(N61/INDEX($J61:$N61,1,aux!$AL$1))^(1/($N$3-INDEX($J$3:$N$3,1,aux!$AL$1)))-1,"n.d.") -> n.d. | AA61: =IF(INDEX($J61:$N61,1,aux!$AL$1)>0,(N61-INDEX($J61:$N61,1,aux!$AL$1))/INDEX($J61:$N61,1,aux!$AL$1),"n.d.") -> n.d. | AC61: 0 | BS61: =+MATCH('5.1'!A61,AUX_2d_pais!$G$2:$G$20001,0) -> 
A62: 0322 | B62: Congo, República Democrática do | C62: =+SUMIF(AUX_2d_pais!$A$2:$A$27000,'5.1'!$A62&'5.1'!C$3&1,AUX_2d_pais!$J$2:$J$27000)/1000 -> 0 | D62: =+SUMIF(AUX_2d_pais!$A$2:$A$27000,'5.1'!$A62&'5.1'!D$3&1,AUX_2d_pais!$J$2:$J$27000)/1000 -> 0 | E62: =+SUMIF(AUX_2d_pais!$A$2:$A$27000,'5.1'!$A62&'5.1'!E$3&1,AUX_2d_pais!$J$2:$J$27000)/1000 -> 0 | F62: =+SUMIF(AUX_2d_pais!$A$2:$A$27000,'5.1'!$A62&'5.1'!F$3&1,AUX_2d_pais!$J$2:$J$27000)/1000 -> 0 | G62: =+SUMIF(AUX_2d_pais!$A$2:$A$27000,'5.1'!$A62&'5.1'!G$3&1,AUX_2d_pais!$J$2:$J$27000)/1000 -> 0 | H62: =SUM(C62:G62)/5 -> 0 | I62: 0 | J62: =+SUMIF(AUX_2d_pais!$A$2:$A$27000,'5.1'!$A62&'5.1'!J$3&2,AUX_2d_pais!$J$2:$J$27000)/1000 -> 0 | K62: =+SUMIF(AUX_2d_pais!$A$2:$A$27000,'5.1'!$A62&'5.1'!K$3&2,AUX_2d_pais!$J$2:$J$27000)/1000 -> 0 | L62: =+SUMIF(AUX_2d_pais!$A$2:$A$27000,'5.1'!$A62&'5.1'!L$3&2,AUX_2d_pais!$J$2:$J$27000)/1000 -> 0 | M62: =+SUMIF(AUX_2d_pais!$A$2:$A$27000,'5.1'!$A62&'5.1'!M$3&2,AUX_2d_pais!$J$2:$J$27000)/1000 -> 0 | N62: =+SUMIF(AUX_2d_pais!$A$2:$A$27000,'5.1'!$A62&'5.1'!N$3&2,AUX_2d_pais!$J$2:$J$27000)/1000 -> 0 | O62: =SUM(J62:N62)/5 -> 0 | P62: 0 | Q62: =O62-H62 -> 0 | S62: =G62-INDEX($C62:$G62,1,aux!$AL$1) -> 0 | T62: 0 | U62: =+IF(INDEX($C62:$G62,1,aux!$AL$1)>0,(G62/INDEX($C62:$G62,1,aux!$AL$1))^(1/($G$3-INDEX($C$3:$G$3,1,aux!$AL$1)))-1,"n.d.") -> n.d. | V62: =IF(INDEX($C62:$G62,1,aux!$AL$1)>0,(G62-INDEX($C62:$G62,1,aux!$AL$1))/INDEX($C62:$G62,1,aux!$AL$1),"n.d.") -> n.d. | X62: =N62-INDEX($J62:$N62,1,aux!$AL$1) -> 0 | Y62: 0 | Z62: =+IF(INDEX($J62:$N62,1,aux!$AL$1)>0,(N62/INDEX($J62:$N62,1,aux!$AL$1))^(1/($N$3-INDEX($J$3:$N$3,1,aux!$AL$1)))-1,"n.d.") -> n.d. | AA62: =IF(INDEX($J62:$N62,1,aux!$AL$1)>0,(N62-INDEX($J62:$N62,1,aux!$AL$1))/INDEX($J62:$N62,1,aux!$AL$1),"n.d.") -> n.d. | AC62: 0 | BS62: =+MATCH('5.1'!A62,AUX_2d_pais!$G$2:$G$20001,0) -> 
A63: 0837 | B63: Cook, Ilhas | C63: =+SUMIF(AUX_2d_pais!$A$2:$A$27000,'5.1'!$A63&'5.1'!C$3&1,AUX_2d_pais!$J$2:$J$27000)/1000 -> 0 | D63: =+SUMIF(AUX_2d_pais!$A$2:$A$27000,'5.1'!$A63&'5.1'!D$3&1,AUX_2d_pais!$J$2:$J$27000)/1000 -> 0 | E63: =+SUMIF(AUX_2d_pais!$A$2:$A$27000,'5.1'!$A63&'5.1'!E$3&1,AUX_2d_pais!$J$2:$J$27000)/1000 -> 0 | F63: =+SUMIF(AUX_2d_pais!$A$2:$A$27000,'5.1'!$A63&'5.1'!F$3&1,AUX_2d_pais!$J$2:$J$27000)/1000 -> 0 | G63: =+SUMIF(AUX_2d_pais!$A$2:$A$27000,'5.1'!$A63&'5.1'!G$3&1,AUX_2d_pais!$J$2:$J$27000)/1000 -> 0 | H63: 0 | I63: 0 | J63: =+SUMIF(AUX_2d_pais!$A$2:$A$27000,'5.1'!$A63&'5.1'!J$3&2,AUX_2d_pais!$J$2:$J$27000)/1000 -> 0 | K63: =+SUMIF(AUX_2d_pais!$A$2:$A$27000,'5.1'!$A63&'5.1'!K$3&2,AUX_2d_pais!$J$2:$J$27000)/1000 -> 0 | L63: =+SUMIF(AUX_2d_pais!$A$2:$A$27000,'5.1'!$A63&'5.1'!L$3&2,AUX_2d_pais!$J$2:$J$27000)/1000 -> 0 | M63: =+SUMIF(AUX_2d_pais!$A$2:$A$27000,'5.1'!$A63&'5.1'!M$3&2,AUX_2d_pais!$J$2:$J$27000)/1000 -> 0 | N63: =+SUMIF(AUX_2d_pais!$A$2:$A$27000,'5.1'!$A63&'5.1'!N$3&2,AUX_2d_pais!$J$2:$J$27000)/1000 -> 0 | O63: 0 | P63: 0 | Q63: 0 | S63: =G63-INDEX($C63:$G63,1,aux!$AL$1) -> 0 | T63: 0 | U63: =+IF(INDEX($C63:$G63,1,aux!$AL$1)>0,(G63/INDEX($C63:$G63,1,aux!$AL$1))^(1/($G$3-INDEX($C$3:$G$3,1,aux!$AL$1)))-1,"n.d.") -> n.d. | V63: =IF(INDEX($C63:$G63,1,aux!$AL$1)>0,(G63-INDEX($C63:$G63,1,aux!$AL$1))/INDEX($C63:$G63,1,aux!$AL$1),"n.d.") -> n.d. | X63: =N63-INDEX($J63:$N63,1,aux!$AL$1) -> 0 | Y63: 0 | Z63: =+IF(INDEX($J63:$N63,1,aux!$AL$1)>0,(N63/INDEX($J63:$N63,1,aux!$AL$1))^(1/($N$3-INDEX($J$3:$N$3,1,aux!$AL$1)))-1,"n.d.") -> n.d. | AA63: =IF(INDEX($J63:$N63,1,aux!$AL$1)>0,(N63-INDEX($J63:$N63,1,aux!$AL$1))/INDEX($J63:$N63,1,aux!$AL$1),"n.d.") -> n.d. | AC63: 0 | BS63: =+MATCH('5.1'!A63,AUX_2d_pais!$G$2:$G$20001,0) -> 
A64: 0728 | B64: Coreia, República da | C64: =+SUMIF(AUX_2d_pais!$A$2:$A$27000,'5.1'!$A64&'5.1'!C$3&1,AUX_2d_pais!$J$2:$J$27000)/1000 -> 0 | D64: =+SUMIF(AUX_2d_pais!$A$2:$A$27000,'5.1'!$A64&'5.1'!D$3&1,AUX_2d_pais!$J$2:$J$27000)/1000 -> 0 | E64: =+SUMIF(AUX_2d_pais!$A$2:$A$27000,'5.1'!$A64&'5.1'!E$3&1,AUX_2d_pais!$J$2:$J$27000)/1000 -> 0 | F64: =+SUMIF(AUX_2d_pais!$A$2:$A$27000,'5.1'!$A64&'5.1'!F$3&1,AUX_2d_pais!$J$2:$J$27000)/1000 -> 0 | G64: =+SUMIF(AUX_2d_pais!$A$2:$A$27000,'5.1'!$A64&'5.1'!G$3&1,AUX_2d_pais!$J$2:$J$27000)/1000 -> 0 | H64: 0 | I64: 0 | J64: =+SUMIF(AUX_2d_pais!$A$2:$A$27000,'5.1'!$A64&'5.1'!J$3&2,AUX_2d_pais!$J$2:$J$27000)/1000 -> 0 | K64: =+SUMIF(AUX_2d_pais!$A$2:$A$27000,'5.1'!$A64&'5.1'!K$3&2,AUX_2d_pais!$J$2:$J$27000)/1000 -> 0 | L64: =+SUMIF(AUX_2d_pais!$A$2:$A$27000,'5.1'!$A64&'5.1'!L$3&2,AUX_2d_pais!$J$2:$J$27000)/1000 -> 0 | M64: =+SUMIF(AUX_2d_pais!$A$2:$A$27000,'5.1'!$A64&'5.1'!M$3&2,AUX_2d_pais!$J$2:$J$27000)/1000 -> 0 | N64: =+SUMIF(AUX_2d_pais!$A$2:$A$27000,'5.1'!$A64&'5.1'!N$3&2,AUX_2d_pais!$J$2:$J$27000)/1000 -> 0 | O64: 0 | P64: 0 | Q64: 0 | S64: =G64-INDEX($C64:$G64,1,aux!$AL$1) -> 0 | T64: 0 | U64: =+IF(INDEX($C64:$G64,1,aux!$AL$1)>0,(G64/INDEX($C64:$G64,1,aux!$AL$1))^(1/($G$3-INDEX($C$3:$G$3,1,aux!$AL$1)))-1,"n.d.") -> n.d. | V64: =IF(INDEX($C64:$G64,1,aux!$AL$1)>0,(G64-INDEX($C64:$G64,1,aux!$AL$1))/INDEX($C64:$G64,1,aux!$AL$1),"n.d.") -> n.d. | X64: =N64-INDEX($J64:$N64,1,aux!$AL$1) -> 0 | Y64: 0 | Z64: =+IF(INDEX($J64:$N64,1,aux!$AL$1)>0,(N64/INDEX($J64:$N64,1,aux!$AL$1))^(1/($N$3-INDEX($J$3:$N$3,1,aux!$AL$1)))-1,"n.d.") -> n.d. | AA64: =IF(INDEX($J64:$N64,1,aux!$AL$1)>0,(N64-INDEX($J64:$N64,1,aux!$AL$1))/INDEX($J64:$N64,1,aux!$AL$1),"n.d.") -> n.d. | AC64: 0 | BS64: =+MATCH('5.1'!A64,AUX_2d_pais!$G$2:$G$20001,0) -> 
A65: 0724 | B65: Coreia, República Popular Democrática da | C65: =+SUMIF(AUX_2d_pais!$A$2:$A$27000,'5.1'!$A65&'5.1'!C$3&1,AUX_2d_pais!$J$2:$J$27000)/1000 -> 0 | D65: =+SUMIF(AUX_2d_pais!$A$2:$A$27000,'5.1'!$A65&'5.1'!D$3&1,AUX_2d_pais!$J$2:$J$27000)/1000 -> 0 | E65: =+SUMIF(AUX_2d_pais!$A$2:$A$27000,'5.1'!$A65&'5.1'!E$3&1,AUX_2d_pais!$J$2:$J$27000)/1000 -> 0 | F65: =+SUMIF(AUX_2d_pais!$A$2:$A$27000,'5.1'!$A65&'5.1'!F$3&1,AUX_2d_pais!$J$2:$J$27000)/1000 -> 0 | G65: =+SUMIF(AUX_2d_pais!$A$2:$A$27000,'5.1'!$A65&'5.1'!G$3&1,AUX_2d_pais!$J$2:$J$27000)/1000 -> 0 | H65: 0 | I65: 0 | J65: =+SUMIF(AUX_2d_pais!$A$2:$A$27000,'5.1'!$A65&'5.1'!J$3&2,AUX_2d_pais!$J$2:$J$27000)/1000 -> 0 | K65: =+SUMIF(AUX_2d_pais!$A$2:$A$27000,'5.1'!$A65&'5.1'!K$3&2,AUX_2d_pais!$J$2:$J$27000)/1000 -> 0 | L65: =+SUMIF(AUX_2d_pais!$A$2:$A$27000,'5.1'!$A65&'5.1'!L$3&2,AUX_2d_pais!$J$2:$J$27000)/1000 -> 0 | M65: =+SUMIF(AUX_2d_pais!$A$2:$A$27000,'5.1'!$A65&'5.1'!M$3&2,AUX_2d_pais!$J$2:$J$27000)/1000 -> 0 | N65: =+SUMIF(AUX_2d_pais!$A$2:$A$27000,'5.1'!$A65&'5.1'!N$3&2,AUX_2d_pais!$J$2:$J$27000)/1000 -> 0 | O65: 0 | P65: 0 | Q65: 0 | S65: =G65-INDEX($C65:$G65,1,aux!$AL$1) -> 0 | T65: 0 | U65: =+IF(INDEX($C65:$G65,1,aux!$AL$1)>0,(G65/INDEX($C65:$G65,1,aux!$AL$1))^(1/($G$3-INDEX($C$3:$G$3,1,aux!$AL$1)))-1,"n.d.") -> n.d. | V65: =IF(INDEX($C65:$G65,1,aux!$AL$1)>0,(G65-INDEX($C65:$G65,1,aux!$AL$1))/INDEX($C65:$G65,1,aux!$AL$1),"n.d.") -> n.d. | X65: =N65-INDEX($J65:$N65,1,aux!$AL$1) -> 0 | Y65: 0 | Z65: =+IF(INDEX($J65:$N65,1,aux!$AL$1)>0,(N65/INDEX($J65:$N65,1,aux!$AL$1))^(1/($N$3-INDEX($J$3:$N$3,1,aux!$AL$1)))-1,"n.d.") -> n.d. | AA65: =IF(INDEX($J65:$N65,1,aux!$AL$1)>0,(N65-INDEX($J65:$N65,1,aux!$AL$1))/INDEX($J65:$N65,1,aux!$AL$1),"n.d.") -> n.d. | AC65: 0 | BS65: =+MATCH('5.1'!A65,AUX_2d_pais!$G$2:$G$20001,0) -> 
A66: 0272 | B66: Costa do Marfim | C66: =+SUMIF(AUX_2d_pais!$A$2:$A$27000,'5.1'!$A66&'5.1'!C$3&1,AUX_2d_pais!$J$2:$J$27000)/1000 -> 0 | D66: =+SUMIF(AUX_2d_pais!$A$2:$A$27000,'5.1'!$A66&'5.1'!D$3&1,AUX_2d_pais!$J$2:$J$27000)/1000 -> 0 | E66: =+SUMIF(AUX_2d_pais!$A$2:$A$27000,'5.1'!$A66&'5.1'!E$3&1,AUX_2d_pais!$J$2:$J$27000)/1000 -> 0 | F66: =+SUMIF(AUX_2d_pais!$A$2:$A$27000,'5.1'!$A66&'5.1'!F$3&1,AUX_2d_pais!$J$2:$J$27000)/1000 -> 0 | G66: =+SUMIF(AUX_2d_pais!$A$2:$A$27000,'5.1'!$A66&'5.1'!G$3&1,AUX_2d_pais!$J$2:$J$27000)/1000 -> 0 | H66: 0 | I66: 0 | J66: =+SUMIF(AUX_2d_pais!$A$2:$A$27000,'5.1'!$A66&'5.1'!J$3&2,AUX_2d_pais!$J$2:$J$27000)/1000 -> 0 | K66: =+SUMIF(AUX_2d_pais!$A$2:$A$27000,'5.1'!$A66&'5.1'!K$3&2,AUX_2d_pais!$J$2:$J$27000)/1000 -> 0 | L66: =+SUMIF(AUX_2d_pais!$A$2:$A$27000,'5.1'!$A66&'5.1'!L$3&2,AUX_2d_pais!$J$2:$J$27000)/1000 -> 0 | M66: =+SUMIF(AUX_2d_pais!$A$2:$A$27000,'5.1'!$A66&'5.1'!M$3&2,AUX_2d_pais!$J$2:$J$27000)/1000 -> 0 | N66: =+SUMIF(AUX_2d_pais!$A$2:$A$27000,'5.1'!$A66&'5.1'!N$3&2,AUX_2d_pais!$J$2:$J$27000)/1000 -> 0 | O66: 0 | P66: 0 | Q66: 0 | S66: =G66-INDEX($C66:$G66,1,aux!$AL$1) -> 0 | T66: 0 | U66: =+IF(INDEX($C66:$G66,1,aux!$AL$1)>0,(G66/INDEX($C66:$G66,1,aux!$AL$1))^(1/($G$3-INDEX($C$3:$G$3,1,aux!$AL$1)))-1,"n.d.") -> n.d. | V66: =IF(INDEX($C66:$G66,1,aux!$AL$1)>0,(G66-INDEX($C66:$G66,1,aux!$AL$1))/INDEX($C66:$G66,1,aux!$AL$1),"n.d.") -> n.d. | X66: =N66-INDEX($J66:$N66,1,aux!$AL$1) -> 0 | Y66: 0 | Z66: =+IF(INDEX($J66:$N66,1,aux!$AL$1)>0,(N66/INDEX($J66:$N66,1,aux!$AL$1))^(1/($N$3-INDEX($J$3:$N$3,1,aux!$AL$1)))-1,"n.d.") -> n.d. | AA66: =IF(INDEX($J66:$N66,1,aux!$AL$1)>0,(N66-INDEX($J66:$N66,1,aux!$AL$1))/INDEX($J66:$N66,1,aux!$AL$1),"n.d.") -> n.d. | AC66: 0 | BS66: =+MATCH('5.1'!A66,AUX_2d_pais!$G$2:$G$20001,0) -> 
A67: 0436 | B67: Costa Rica | C67: =+SUMIF(AUX_2d_pais!$A$2:$A$27000,'5.1'!$A67&'5.1'!C$3&1,AUX_2d_pais!$J$2:$J$27000)/1000 -> 0 | D67: =+SUMIF(AUX_2d_pais!$A$2:$A$27000,'5.1'!$A67&'5.1'!D$3&1,AUX_2d_pais!$J$2:$J$27000)/1000 -> 0 | E67: =+SUMIF(AUX_2d_pais!$A$2:$A$27000,'5.1'!$A67&'5.1'!E$3&1,AUX_2d_pais!$J$2:$J$27000)/1000 -> 0 | F67: =+SUMIF(AUX_2d_pais!$A$2:$A$27000,'5.1'!$A67&'5.1'!F$3&1,AUX_2d_pais!$J$2:$J$27000)/1000 -> 0 | G67: =+SUMIF(AUX_2d_pais!$A$2:$A$27000,'5.1'!$A67&'5.1'!G$3&1,AUX_2d_pais!$J$2:$J$27000)/1000 -> 0 | H67: =SUM(C67:G67)/5 -> 0 | I67: 0 | J67: =+SUMIF(AUX_2d_pais!$A$2:$A$27000,'5.1'!$A67&'5.1'!J$3&2,AUX_2d_pais!$J$2:$J$27000)/1000 -> 0 | K67: =+SUMIF(AUX_2d_pais!$A$2:$A$27000,'5.1'!$A67&'5.1'!K$3&2,AUX_2d_pais!$J$2:$J$27000)/1000 -> 0 | L67: =+SUMIF(AUX_2d_pais!$A$2:$A$27000,'5.1'!$A67&'5.1'!L$3&2,AUX_2d_pais!$J$2:$J$27000)/1000 -> 0 | M67: =+SUMIF(AUX_2d_pais!$A$2:$A$27000,'5.1'!$A67&'5.1'!M$3&2,AUX_2d_pais!$J$2:$J$27000)/1000 -> 0 | N67: =+SUMIF(AUX_2d_pais!$A$2:$A$27000,'5.1'!$A67&'5.1'!N$3&2,AUX_2d_pais!$J$2:$J$27000)/1000 -> 0 | O67: =SUM(J67:N67)/5 -> 0 | P67: 0 | Q67: =O67-H67 -> 0 | S67: =G67-INDEX($C67:$G67,1,aux!$AL$1) -> 0 | T67: 0 | U67: =+IF(INDEX($C67:$G67,1,aux!$AL$1)>0,(G67/INDEX($C67:$G67,1,aux!$AL$1))^(1/($G$3-INDEX($C$3:$G$3,1,aux!$AL$1)))-1,"n.d.") -> n.d. | V67: =IF(INDEX($C67:$G67,1,aux!$AL$1)>0,(G67-INDEX($C67:$G67,1,aux!$AL$1))/INDEX($C67:$G67,1,aux!$AL$1),"n.d.") -> n.d. | X67: =N67-INDEX($J67:$N67,1,aux!$AL$1) -> 0 | Y67: 0 | Z67: =+IF(INDEX($J67:$N67,1,aux!$AL$1)>0,(N67/INDEX($J67:$N67,1,aux!$AL$1))^(1/($N$3-INDEX($J$3:$N$3,1,aux!$AL$1)))-1,"n.d.") -> n.d. | AA67: =IF(INDEX($J67:$N67,1,aux!$AL$1)>0,(N67-INDEX($J67:$N67,1,aux!$AL$1))/INDEX($J67:$N67,1,aux!$AL$1),"n.d.") -> n.d. | AC67: 0 | BS67: =+MATCH('5.1'!A67,AUX_2d_pais!$G$2:$G$20001,0) -> 
A68: 0092 | B68: Croácia | C68: =+SUMIF(AUX_2d_pais!$A$2:$A$27000,'5.1'!$A68&'5.1'!C$3&1,AUX_2d_pais!$J$2:$J$27000)/1000 -> 0 | D68: =+SUMIF(AUX_2d_pais!$A$2:$A$27000,'5.1'!$A68&'5.1'!D$3&1,AUX_2d_pais!$J$2:$J$27000)/1000 -> 0 | E68: =+SUMIF(AUX_2d_pais!$A$2:$A$27000,'5.1'!$A68&'5.1'!E$3&1,AUX_2d_pais!$J$2:$J$27000)/1000 -> 0 | F68: =+SUMIF(AUX_2d_pais!$A$2:$A$27000,'5.1'!$A68&'5.1'!F$3&1,AUX_2d_pais!$J$2:$J$27000)/1000 -> 0 | G68: =+SUMIF(AUX_2d_pais!$A$2:$A$27000,'5.1'!$A68&'5.1'!G$3&1,AUX_2d_pais!$J$2:$J$27000)/1000 -> 0 | H68: 0 | I68: =H68/$H$254 -> 0 | J68: =+SUMIF(AUX_2d_pais!$A$2:$A$27000,'5.1'!$A68&'5.1'!J$3&2,AUX_2d_pais!$J$2:$J$27000)/1000 -> 0 | K68: =+SUMIF(AUX_2d_pais!$A$2:$A$27000,'5.1'!$A68&'5.1'!K$3&2,AUX_2d_pais!$J$2:$J$27000)/1000 -> 0 | L68: =+SUMIF(AUX_2d_pais!$A$2:$A$27000,'5.1'!$A68&'5.1'!L$3&2,AUX_2d_pais!$J$2:$J$27000)/1000 -> 0 | M68: =+SUMIF(AUX_2d_pais!$A$2:$A$27000,'5.1'!$A68&'5.1'!M$3&2,AUX_2d_pais!$J$2:$J$27000)/1000 -> 0 | N68: =+SUMIF(AUX_2d_pais!$A$2:$A$27000,'5.1'!$A68&'5.1'!N$3&2,AUX_2d_pais!$J$2:$J$27000)/1000 -> 0 | O68: 0 | P68: =O68/$O$254 -> 0 | Q68: 0 | S68: =G68-INDEX($C68:$G68,1,aux!$AL$1) -> 0 | T68: =S68/$S$254 -> 0 | U68: =+IF(INDEX($C68:$G68,1,aux!$AL$1)>0,(G68/INDEX($C68:$G68,1,aux!$AL$1))^(1/($G$3-INDEX($C$3:$G$3,1,aux!$AL$1)))-1,"n.d.") -> n.d. | V68: =IF(INDEX($C68:$G68,1,aux!$AL$1)>0,(G68-INDEX($C68:$G68,1,aux!$AL$1))/INDEX($C68:$G68,1,aux!$AL$1),"n.d.") -> n.d. | X68: =N68-INDEX($J68:$N68,1,aux!$AL$1) -> 0 | Y68: =X68/$X$254 -> 0 | Z68: =+IF(INDEX($J68:$N68,1,aux!$AL$1)>0,(N68/INDEX($J68:$N68,1,aux!$AL$1))^(1/($N$3-INDEX($J$3:$N$3,1,aux!$AL$1)))-1,"n.d.") -> n.d. | AA68: =IF(INDEX($J68:$N68,1,aux!$AL$1)>0,(N68-INDEX($J68:$N68,1,aux!$AL$1))/INDEX($J68:$N68,1,aux!$AL$1),"n.d.") -> n.d. | AC68: =SUM(A68:Q68) -> 0 | BS68: =+MATCH('5.1'!A68,AUX_2d_pais!$G$2:$G$20001,0) -> 
A69: 0448 | B69: Cuba | C69: =+SUMIF(AUX_2d_pais!$A$2:$A$27000,'5.1'!$A69&'5.1'!C$3&1,AUX_2d_pais!$J$2:$J$27000)/1000 -> 0 | D69: =+SUMIF(AUX_2d_pais!$A$2:$A$27000,'5.1'!$A69&'5.1'!D$3&1,AUX_2d_pais!$J$2:$J$27000)/1000 -> 0 | E69: =+SUMIF(AUX_2d_pais!$A$2:$A$27000,'5.1'!$A69&'5.1'!E$3&1,AUX_2d_pais!$J$2:$J$27000)/1000 -> 0 | F69: =+SUMIF(AUX_2d_pais!$A$2:$A$27000,'5.1'!$A69&'5.1'!F$3&1,AUX_2d_pais!$J$2:$J$27000)/1000 -> 0 | G69: =+SUMIF(AUX_2d_pais!$A$2:$A$27000,'5.1'!$A69&'5.1'!G$3&1,AUX_2d_pais!$J$2:$J$27000)/1000 -> 0 | H69: 0 | I69: 0 | J69: =+SUMIF(AUX_2d_pais!$A$2:$A$27000,'5.1'!$A69&'5.1'!J$3&2,AUX_2d_pais!$J$2:$J$27000)/1000 -> 0 | K69: =+SUMIF(AUX_2d_pais!$A$2:$A$27000,'5.1'!$A69&'5.1'!K$3&2,AUX_2d_pais!$J$2:$J$27000)/1000 -> 0 | L69: =+SUMIF(AUX_2d_pais!$A$2:$A$27000,'5.1'!$A69&'5.1'!L$3&2,AUX_2d_pais!$J$2:$J$27000)/1000 -> 0 | M69: =+SUMIF(AUX_2d_pais!$A$2:$A$27000,'5.1'!$A69&'5.1'!M$3&2,AUX_2d_pais!$J$2:$J$27000)/1000 -> 0 | N69: =+SUMIF(AUX_2d_pais!$A$2:$A$27000,'5.1'!$A69&'5.1'!N$3&2,AUX_2d_pais!$J$2:$J$27000)/1000 -> 0 | O69: 0 | P69: 0 | Q69: 0 | S69: =G69-INDEX($C69:$G69,1,aux!$AL$1) -> 0 | T69: 0 | U69: =+IF(INDEX($C69:$G69,1,aux!$AL$1)>0,(G69/INDEX($C69:$G69,1,aux!$AL$1))^(1/($G$3-INDEX($C$3:$G$3,1,aux!$AL$1)))-1,"n.d.") -> n.d. | V69: =IF(INDEX($C69:$G69,1,aux!$AL$1)>0,(G69-INDEX($C69:$G69,1,aux!$AL$1))/INDEX($C69:$G69,1,aux!$AL$1),"n.d.") -> n.d. | X69: =N69-INDEX($J69:$N69,1,aux!$AL$1) -> 0 | Y69: 0 | Z69: =+IF(INDEX($J69:$N69,1,aux!$AL$1)>0,(N69/INDEX($J69:$N69,1,aux!$AL$1))^(1/($N$3-INDEX($J$3:$N$3,1,aux!$AL$1)))-1,"n.d.") -> n.d. | AA69: =IF(INDEX($J69:$N69,1,aux!$AL$1)>0,(N69-INDEX($J69:$N69,1,aux!$AL$1))/INDEX($J69:$N69,1,aux!$AL$1),"n.d.") -> n.d. | AC69: 0 | BS69: =+MATCH('5.1'!A69,AUX_2d_pais!$G$2:$G$20001,0) -> 
A70: 0475 | B70: Curaçau | C70: =+SUMIF(AUX_2d_pais!$A$2:$A$27000,'5.1'!$A70&'5.1'!C$3&1,AUX_2d_pais!$J$2:$J$27000)/1000 -> 0 | D70: =+SUMIF(AUX_2d_pais!$A$2:$A$27000,'5.1'!$A70&'5.1'!D$3&1,AUX_2d_pais!$J$2:$J$27000)/1000 -> 0 | E70: =+SUMIF(AUX_2d_pais!$A$2:$A$27000,'5.1'!$A70&'5.1'!E$3&1,AUX_2d_pais!$J$2:$J$27000)/1000 -> 0 | F70: =+SUMIF(AUX_2d_pais!$A$2:$A$27000,'5.1'!$A70&'5.1'!F$3&1,AUX_2d_pais!$J$2:$J$27000)/1000 -> 0 | G70: =+SUMIF(AUX_2d_pais!$A$2:$A$27000,'5.1'!$A70&'5.1'!G$3&1,AUX_2d_pais!$J$2:$J$27000)/1000 -> 0 | H70: 0 | I70: 0 | J70: =+SUMIF(AUX_2d_pais!$A$2:$A$27000,'5.1'!$A70&'5.1'!J$3&2,AUX_2d_pais!$J$2:$J$27000)/1000 -> 0 | K70: =+SUMIF(AUX_2d_pais!$A$2:$A$27000,'5.1'!$A70&'5.1'!K$3&2,AUX_2d_pais!$J$2:$J$27000)/1000 -> 0 | L70: =+SUMIF(AUX_2d_pais!$A$2:$A$27000,'5.1'!$A70&'5.1'!L$3&2,AUX_2d_pais!$J$2:$J$27000)/1000 -> 0 | M70: =+SUMIF(AUX_2d_pais!$A$2:$A$27000,'5.1'!$A70&'5.1'!M$3&2,AUX_2d_pais!$J$2:$J$27000)/1000 -> 0 | N70: =+SUMIF(AUX_2d_pais!$A$2:$A$27000,'5.1'!$A70&'5.1'!N$3&2,AUX_2d_pais!$J$2:$J$27000)/1000 -> 0 | O70: 0 | P70: 0 | Q70: 0 | S70: =G70-INDEX($C70:$G70,1,aux!$AL$1) -> 0 | T70: 0 | U70: =+IF(INDEX($C70:$G70,1,aux!$AL$1)>0,(G70/INDEX($C70:$G70,1,aux!$AL$1))^(1/($G$3-INDEX($C$3:$G$3,1,aux!$AL$1)))-1,"n.d.") -> n.d. | V70: =IF(INDEX($C70:$G70,1,aux!$AL$1)>0,(G70-INDEX($C70:$G70,1,aux!$AL$1))/INDEX($C70:$G70,1,aux!$AL$1),"n.d.") -> n.d. | X70: =N70-INDEX($J70:$N70,1,aux!$AL$1) -> 0 | Y70: 0 | Z70: =+IF(INDEX($J70:$N70,1,aux!$AL$1)>0,(N70/INDEX($J70:$N70,1,aux!$AL$1))^(1/($N$3-INDEX($J$3:$N$3,1,aux!$AL$1)))-1,"n.d.") -> n.d. | AA70: =IF(INDEX($J70:$N70,1,aux!$AL$1)>0,(N70-INDEX($J70:$N70,1,aux!$AL$1))/INDEX($J70:$N70,1,aux!$AL$1),"n.d.") -> n.d. | AC70: 0 | BS70: =+MATCH('5.1'!A70,AUX_2d_pais!$G$2:$G$20001,0) -> 
A71: 0008 | B71: Dinamarca | C71: =+SUMIF(AUX_2d_pais!$A$2:$A$27000,'5.1'!$A71&'5.1'!C$3&1,AUX_2d_pais!$J$2:$J$27000)/1000 -> 0 | D71: =+SUMIF(AUX_2d_pais!$A$2:$A$27000,'5.1'!$A71&'5.1'!D$3&1,AUX_2d_pais!$J$2:$J$27000)/1000 -> 0 | E71: =+SUMIF(AUX_2d_pais!$A$2:$A$27000,'5.1'!$A71&'5.1'!E$3&1,AUX_2d_pais!$J$2:$J$27000)/1000 -> 0 | F71: =+SUMIF(AUX_2d_pais!$A$2:$A$27000,'5.1'!$A71&'5.1'!F$3&1,AUX_2d_pais!$J$2:$J$27000)/1000 -> 0 | G71: =+SUMIF(AUX_2d_pais!$A$2:$A$27000,'5.1'!$A71&'5.1'!G$3&1,AUX_2d_pais!$J$2:$J$27000)/1000 -> 0 | H71: 0 | I71: 0 | J71: =+SUMIF(AUX_2d_pais!$A$2:$A$27000,'5.1'!$A71&'5.1'!J$3&2,AUX_2d_pais!$J$2:$J$27000)/1000 -> 0 | K71: =+SUMIF(AUX_2d_pais!$A$2:$A$27000,'5.1'!$A71&'5.1'!K$3&2,AUX_2d_pais!$J$2:$J$27000)/1000 -> 0 | L71: =+SUMIF(AUX_2d_pais!$A$2:$A$27000,'5.1'!$A71&'5.1'!L$3&2,AUX_2d_pais!$J$2:$J$27000)/1000 -> 0 | M71: =+SUMIF(AUX_2d_pais!$A$2:$A$27000,'5.1'!$A71&'5.1'!M$3&2,AUX_2d_pais!$J$2:$J$27000)/1000 -> 0 | N71: =+SUMIF(AUX_2d_pais!$A$2:$A$27000,'5.1'!$A71&'5.1'!N$3&2,AUX_2d_pais!$J$2:$J$27000)/1000 -> 0 | O71: 0 | P71: 0 | Q71: 0 | S71: =G71-INDEX($C71:$G71,1,aux!$AL$1) -> 0 | T71: 0 | U71: =+IF(INDEX($C71:$G71,1,aux!$AL$1)>0,(G71/INDEX($C71:$G71,1,aux!$AL$1))^(1/($G$3-INDEX($C$3:$G$3,1,aux!$AL$1)))-1,"n.d.") -> n.d. | V71: =IF(INDEX($C71:$G71,1,aux!$AL$1)>0,(G71-INDEX($C71:$G71,1,aux!$AL$1))/INDEX($C71:$G71,1,aux!$AL$1),"n.d.") -> n.d. | X71: =N71-INDEX($J71:$N71,1,aux!$AL$1) -> 0 | Y71: 0 | Z71: =+IF(INDEX($J71:$N71,1,aux!$AL$1)>0,(N71/INDEX($J71:$N71,1,aux!$AL$1))^(1/($N$3-INDEX($J$3:$N$3,1,aux!$AL$1)))-1,"n.d.") -> n.d. | AA71: =IF(INDEX($J71:$N71,1,aux!$AL$1)>0,(N71-INDEX($J71:$N71,1,aux!$AL$1))/INDEX($J71:$N71,1,aux!$AL$1),"n.d.") -> n.d. | AC71: 0 | BS71: =+MATCH('5.1'!A71,AUX_2d_pais!$G$2:$G$20001,0) -> 
A72: 0460 | B72: Domínica | C72: =+SUMIF(AUX_2d_pais!$A$2:$A$27000,'5.1'!$A72&'5.1'!C$3&1,AUX_2d_pais!$J$2:$J$27000)/1000 -> 0 | D72: =+SUMIF(AUX_2d_pais!$A$2:$A$27000,'5.1'!$A72&'5.1'!D$3&1,AUX_2d_pais!$J$2:$J$27000)/1000 -> 0 | E72: =+SUMIF(AUX_2d_pais!$A$2:$A$27000,'5.1'!$A72&'5.1'!E$3&1,AUX_2d_pais!$J$2:$J$27000)/1000 -> 0 | F72: =+SUMIF(AUX_2d_pais!$A$2:$A$27000,'5.1'!$A72&'5.1'!F$3&1,AUX_2d_pais!$J$2:$J$27000)/1000 -> 0 | G72: =+SUMIF(AUX_2d_pais!$A$2:$A$27000,'5.1'!$A72&'5.1'!G$3&1,AUX_2d_pais!$J$2:$J$27000)/1000 -> 0 | H72: 0 | I72: 0 | J72: =+SUMIF(AUX_2d_pais!$A$2:$A$27000,'5.1'!$A72&'5.1'!J$3&2,AUX_2d_pais!$J$2:$J$27000)/1000 -> 0 | K72: =+SUMIF(AUX_2d_pais!$A$2:$A$27000,'5.1'!$A72&'5.1'!K$3&2,AUX_2d_pais!$J$2:$J$27000)/1000 -> 0 | L72: =+SUMIF(AUX_2d_pais!$A$2:$A$27000,'5.1'!$A72&'5.1'!L$3&2,AUX_2d_pais!$J$2:$J$27000)/1000 -> 0 | M72: =+SUMIF(AUX_2d_pais!$A$2:$A$27000,'5.1'!$A72&'5.1'!M$3&2,AUX_2d_pais!$J$2:$J$27000)/1000 -> 0 | N72: =+SUMIF(AUX_2d_pais!$A$2:$A$27000,'5.1'!$A72&'5.1'!N$3&2,AUX_2d_pais!$J$2:$J$27000)/1000 -> 0 | O72: 0 | P72: 0 | Q72: 0 | S72: =G72-INDEX($C72:$G72,1,aux!$AL$1) -> 0 | T72: 0 | U72: =+IF(INDEX($C72:$G72,1,aux!$AL$1)>0,(G72/INDEX($C72:$G72,1,aux!$AL$1))^(1/($G$3-INDEX($C$3:$G$3,1,aux!$AL$1)))-1,"n.d.") -> n.d. | V72: =IF(INDEX($C72:$G72,1,aux!$AL$1)>0,(G72-INDEX($C72:$G72,1,aux!$AL$1))/INDEX($C72:$G72,1,aux!$AL$1),"n.d.") -> n.d. | X72: =N72-INDEX($J72:$N72,1,aux!$AL$1) -> 0 | Y72: 0 | Z72: =+IF(INDEX($J72:$N72,1,aux!$AL$1)>0,(N72/INDEX($J72:$N72,1,aux!$AL$1))^(1/($N$3-INDEX($J$3:$N$3,1,aux!$AL$1)))-1,"n.d.") -> n.d. | AA72: =IF(INDEX($J72:$N72,1,aux!$AL$1)>0,(N72-INDEX($J72:$N72,1,aux!$AL$1))/INDEX($J72:$N72,1,aux!$AL$1),"n.d.") -> n.d. | AC72: 0 | BS72: =+MATCH('5.1'!A72,AUX_2d_pais!$G$2:$G$20001,0) -> 
A73: 0456 | B73: Dominicana, República | C73: =+SUMIF(AUX_2d_pais!$A$2:$A$27000,'5.1'!$A73&'5.1'!C$3&1,AUX_2d_pais!$J$2:$J$27000)/1000 -> 0 | D73: =+SUMIF(AUX_2d_pais!$A$2:$A$27000,'5.1'!$A73&'5.1'!D$3&1,AUX_2d_pais!$J$2:$J$27000)/1000 -> 0 | E73: =+SUMIF(AUX_2d_pais!$A$2:$A$27000,'5.1'!$A73&'5.1'!E$3&1,AUX_2d_pais!$J$2:$J$27000)/1000 -> 0 | F73: =+SUMIF(AUX_2d_pais!$A$2:$A$27000,'5.1'!$A73&'5.1'!F$3&1,AUX_2d_pais!$J$2:$J$27000)/1000 -> 0 | G73: =+SUMIF(AUX_2d_pais!$A$2:$A$27000,'5.1'!$A73&'5.1'!G$3&1,AUX_2d_pais!$J$2:$J$27000)/1000 -> 0 | H73: 0 | I73: 0 | J73: =+SUMIF(AUX_2d_pais!$A$2:$A$27000,'5.1'!$A73&'5.1'!J$3&2,AUX_2d_pais!$J$2:$J$27000)/1000 -> 0 | K73: =+SUMIF(AUX_2d_pais!$A$2:$A$27000,'5.1'!$A73&'5.1'!K$3&2,AUX_2d_pais!$J$2:$J$27000)/1000 -> 0 | L73: =+SUMIF(AUX_2d_pais!$A$2:$A$27000,'5.1'!$A73&'5.1'!L$3&2,AUX_2d_pais!$J$2:$J$27000)/1000 -> 0 | M73: =+SUMIF(AUX_2d_pais!$A$2:$A$27000,'5.1'!$A73&'5.1'!M$3&2,AUX_2d_pais!$J$2:$J$27000)/1000 -> 0 | N73: =+SUMIF(AUX_2d_pais!$A$2:$A$27000,'5.1'!$A73&'5.1'!N$3&2,AUX_2d_pais!$J$2:$J$27000)/1000 -> 0 | O73: 0 | P73: 0 | Q73: 0 | S73: =G73-INDEX($C73:$G73,1,aux!$AL$1) -> 0 | T73: 0 | U73: =+IF(INDEX($C73:$G73,1,aux!$AL$1)>0,(G73/INDEX($C73:$G73,1,aux!$AL$1))^(1/($G$3-INDEX($C$3:$G$3,1,aux!$AL$1)))-1,"n.d.") -> n.d. | V73: =IF(INDEX($C73:$G73,1,aux!$AL$1)>0,(G73-INDEX($C73:$G73,1,aux!$AL$1))/INDEX($C73:$G73,1,aux!$AL$1),"n.d.") -> n.d. | X73: =N73-INDEX($J73:$N73,1,aux!$AL$1) -> 0 | Y73: 0 | Z73: =+IF(INDEX($J73:$N73,1,aux!$AL$1)>0,(N73/INDEX($J73:$N73,1,aux!$AL$1))^(1/($N$3-INDEX($J$3:$N$3,1,aux!$AL$1)))-1,"n.d.") -> n.d. | AA73: =IF(INDEX($J73:$N73,1,aux!$AL$1)>0,(N73-INDEX($J73:$N73,1,aux!$AL$1))/INDEX($J73:$N73,1,aux!$AL$1),"n.d.") -> n.d. | AC73: 0 | BS73: =+MATCH('5.1'!A73,AUX_2d_pais!$G$2:$G$20001,0) -> 
A74: 0220 | B74: Egito | C74: =+SUMIF(AUX_2d_pais!$A$2:$A$27000,'5.1'!$A74&'5.1'!C$3&1,AUX_2d_pais!$J$2:$J$27000)/1000 -> 0 | D74: =+SUMIF(AUX_2d_pais!$A$2:$A$27000,'5.1'!$A74&'5.1'!D$3&1,AUX_2d_pais!$J$2:$J$27000)/1000 -> 0 | E74: =+SUMIF(AUX_2d_pais!$A$2:$A$27000,'5.1'!$A74&'5.1'!E$3&1,AUX_2d_pais!$J$2:$J$27000)/1000 -> 0 | F74: =+SUMIF(AUX_2d_pais!$A$2:$A$27000,'5.1'!$A74&'5.1'!F$3&1,AUX_2d_pais!$J$2:$J$27000)/1000 -> 0 | G74: =+SUMIF(AUX_2d_pais!$A$2:$A$27000,'5.1'!$A74&'5.1'!G$3&1,AUX_2d_pais!$J$2:$J$27000)/1000 -> 0 | H74: 0 | I74: 0 | J74: =+SUMIF(AUX_2d_pais!$A$2:$A$27000,'5.1'!$A74&'5.1'!J$3&2,AUX_2d_pais!$J$2:$J$27000)/1000 -> 0 | K74: =+SUMIF(AUX_2d_pais!$A$2:$A$27000,'5.1'!$A74&'5.1'!K$3&2,AUX_2d_pais!$J$2:$J$27000)/1000 -> 0 | L74: =+SUMIF(AUX_2d_pais!$A$2:$A$27000,'5.1'!$A74&'5.1'!L$3&2,AUX_2d_pais!$J$2:$J$27000)/1000 -> 0 | M74: =+SUMIF(AUX_2d_pais!$A$2:$A$27000,'5.1'!$A74&'5.1'!M$3&2,AUX_2d_pais!$J$2:$J$27000)/1000 -> 0 | N74: =+SUMIF(AUX_2d_pais!$A$2:$A$27000,'5.1'!$A74&'5.1'!N$3&2,AUX_2d_pais!$J$2:$J$27000)/1000 -> 0 | O74: 0 | P74: 0 | Q74: 0 | S74: =G74-INDEX($C74:$G74,1,aux!$AL$1) -> 0 | T74: 0 | U74: =+IF(INDEX($C74:$G74,1,aux!$AL$1)>0,(G74/INDEX($C74:$G74,1,aux!$AL$1))^(1/($G$3-INDEX($C$3:$G$3,1,aux!$AL$1)))-1,"n.d.") -> n.d. | V74: =IF(INDEX($C74:$G74,1,aux!$AL$1)>0,(G74-INDEX($C74:$G74,1,aux!$AL$1))/INDEX($C74:$G74,1,aux!$AL$1),"n.d.") -> n.d. | X74: =N74-INDEX($J74:$N74,1,aux!$AL$1) -> 0 | Y74: 0 | Z74: =+IF(INDEX($J74:$N74,1,aux!$AL$1)>0,(N74/INDEX($J74:$N74,1,aux!$AL$1))^(1/($N$3-INDEX($J$3:$N$3,1,aux!$AL$1)))-1,"n.d.") -> n.d. | AA74: =IF(INDEX($J74:$N74,1,aux!$AL$1)>0,(N74-INDEX($J74:$N74,1,aux!$AL$1))/INDEX($J74:$N74,1,aux!$AL$1),"n.d.") -> n.d. | AC74: 0 | BS74: =+MATCH('5.1'!A74,AUX_2d_pais!$G$2:$G$20001,0) -> 
A75: 0428 | B75: El Salvador | C75: =+SUMIF(AUX_2d_pais!$A$2:$A$27000,'5.1'!$A75&'5.1'!C$3&1,AUX_2d_pais!$J$2:$J$27000)/1000 -> 0 | D75: =+SUMIF(AUX_2d_pais!$A$2:$A$27000,'5.1'!$A75&'5.1'!D$3&1,AUX_2d_pais!$J$2:$J$27000)/1000 -> 0 | E75: =+SUMIF(AUX_2d_pais!$A$2:$A$27000,'5.1'!$A75&'5.1'!E$3&1,AUX_2d_pais!$J$2:$J$27000)/1000 -> 0 | F75: =+SUMIF(AUX_2d_pais!$A$2:$A$27000,'5.1'!$A75&'5.1'!F$3&1,AUX_2d_pais!$J$2:$J$27000)/1000 -> 0 | G75: =+SUMIF(AUX_2d_pais!$A$2:$A$27000,'5.1'!$A75&'5.1'!G$3&1,AUX_2d_pais!$J$2:$J$27000)/1000 -> 0 | H75: 0 | I75: 0 | J75: =+SUMIF(AUX_2d_pais!$A$2:$A$27000,'5.1'!$A75&'5.1'!J$3&2,AUX_2d_pais!$J$2:$J$27000)/1000 -> 0 | K75: =+SUMIF(AUX_2d_pais!$A$2:$A$27000,'5.1'!$A75&'5.1'!K$3&2,AUX_2d_pais!$J$2:$J$27000)/1000 -> 0 | L75: =+SUMIF(AUX_2d_pais!$A$2:$A$27000,'5.1'!$A75&'5.1'!L$3&2,AUX_2d_pais!$J$2:$J$27000)/1000 -> 0 | M75: =+SUMIF(AUX_2d_pais!$A$2:$A$27000,'5.1'!$A75&'5.1'!M$3&2,AUX_2d_pais!$J$2:$J$27000)/1000 -> 0 | N75: =+SUMIF(AUX_2d_pais!$A$2:$A$27000,'5.1'!$A75&'5.1'!N$3&2,AUX_2d_pais!$J$2:$J$27000)/1000 -> 0 | O75: 0 | P75: 0 | Q75: 0 | S75: =G75-INDEX($C75:$G75,1,aux!$AL$1) -> 0 | T75: 0 | U75: =+IF(INDEX($C75:$G75,1,aux!$AL$1)>0,(G75/INDEX($C75:$G75,1,aux!$AL$1))^(1/($G$3-INDEX($C$3:$G$3,1,aux!$AL$1)))-1,"n.d.") -> n.d. | V75: =IF(INDEX($C75:$G75,1,aux!$AL$1)>0,(G75-INDEX($C75:$G75,1,aux!$AL$1))/INDEX($C75:$G75,1,aux!$AL$1),"n.d.") -> n.d. | X75: =N75-INDEX($J75:$N75,1,aux!$AL$1) -> 0 | Y75: 0 | Z75: =+IF(INDEX($J75:$N75,1,aux!$AL$1)>0,(N75/INDEX($J75:$N75,1,aux!$AL$1))^(1/($N$3-INDEX($J$3:$N$3,1,aux!$AL$1)))-1,"n.d.") -> n.d. | AA75: =IF(INDEX($J75:$N75,1,aux!$AL$1)>0,(N75-INDEX($J75:$N75,1,aux!$AL$1))/INDEX($J75:$N75,1,aux!$AL$1),"n.d.") -> n.d. | AC75: 0 | BS75: =+MATCH('5.1'!A75,AUX_2d_pais!$G$2:$G$20001,0) -> 
A76: 0647 | B76: Emirados Árabes Unidos | C76: =+SUMIF(AUX_2d_pais!$A$2:$A$27000,'5.1'!$A76&'5.1'!C$3&1,AUX_2d_pais!$J$2:$J$27000)/1000 -> 0 | D76: =+SUMIF(AUX_2d_pais!$A$2:$A$27000,'5.1'!$A76&'5.1'!D$3&1,AUX_2d_pais!$J$2:$J$27000)/1000 -> 0 | E76: =+SUMIF(AUX_2d_pais!$A$2:$A$27000,'5.1'!$A76&'5.1'!E$3&1,AUX_2d_pais!$J$2:$J$27000)/1000 -> 0 | F76: =+SUMIF(AUX_2d_pais!$A$2:$A$27000,'5.1'!$A76&'5.1'!F$3&1,AUX_2d_pais!$J$2:$J$27000)/1000 -> 0 | G76: =+SUMIF(AUX_2d_pais!$A$2:$A$27000,'5.1'!$A76&'5.1'!G$3&1,AUX_2d_pais!$J$2:$J$27000)/1000 -> 0 | H76: 0 | I76: 0 | J76: =+SUMIF(AUX_2d_pais!$A$2:$A$27000,'5.1'!$A76&'5.1'!J$3&2,AUX_2d_pais!$J$2:$J$27000)/1000 -> 0 | K76: =+SUMIF(AUX_2d_pais!$A$2:$A$27000,'5.1'!$A76&'5.1'!K$3&2,AUX_2d_pais!$J$2:$J$27000)/1000 -> 0 | L76: =+SUMIF(AUX_2d_pais!$A$2:$A$27000,'5.1'!$A76&'5.1'!L$3&2,AUX_2d_pais!$J$2:$J$27000)/1000 -> 0 | M76: =+SUMIF(AUX_2d_pais!$A$2:$A$27000,'5.1'!$A76&'5.1'!M$3&2,AUX_2d_pais!$J$2:$J$27000)/1000 -> 0 | N76: =+SUMIF(AUX_2d_pais!$A$2:$A$27000,'5.1'!$A76&'5.1'!N$3&2,AUX_2d_pais!$J$2:$J$27000)/1000 -> 0 | O76: 0 | P76: 0 | Q76: 0 | S76: =G76-INDEX($C76:$G76,1,aux!$AL$1) -> 0 | T76: 0 | U76: =+IF(INDEX($C76:$G76,1,aux!$AL$1)>0,(G76/INDEX($C76:$G76,1,aux!$AL$1))^(1/($G$3-INDEX($C$3:$G$3,1,aux!$AL$1)))-1,"n.d.") -> n.d. | V76: =IF(INDEX($C76:$G76,1,aux!$AL$1)>0,(G76-INDEX($C76:$G76,1,aux!$AL$1))/INDEX($C76:$G76,1,aux!$AL$1),"n.d.") -> n.d. | X76: =N76-INDEX($J76:$N76,1,aux!$AL$1) -> 0 | Y76: 0 | Z76: =+IF(INDEX($J76:$N76,1,aux!$AL$1)>0,(N76/INDEX($J76:$N76,1,aux!$AL$1))^(1/($N$3-INDEX($J$3:$N$3,1,aux!$AL$1)))-1,"n.d.") -> n.d. | AA76: =IF(INDEX($J76:$N76,1,aux!$AL$1)>0,(N76-INDEX($J76:$N76,1,aux!$AL$1))/INDEX($J76:$N76,1,aux!$AL$1),"n.d.") -> n.d. | AC76: 0 | BS76: =+MATCH('5.1'!A76,AUX_2d_pais!$G$2:$G$20001,0) -> 
A77: 0500 | B77: Equador | C77: =+SUMIF(AUX_2d_pais!$A$2:$A$27000,'5.1'!$A77&'5.1'!C$3&1,AUX_2d_pais!$J$2:$J$27000)/1000 -> 29078.267 | D77: =+SUMIF(AUX_2d_pais!$A$2:$A$27000,'5.1'!$A77&'5.1'!D$3&1,AUX_2d_pais!$J$2:$J$27000)/1000 -> 32293.822 | E77: =+SUMIF(AUX_2d_pais!$A$2:$A$27000,'5.1'!$A77&'5.1'!E$3&1,AUX_2d_pais!$J$2:$J$27000)/1000 -> 45147.562 | F77: =+SUMIF(AUX_2d_pais!$A$2:$A$27000,'5.1'!$A77&'5.1'!F$3&1,AUX_2d_pais!$J$2:$J$27000)/1000 -> 52311.442 | G77: =+SUMIF(AUX_2d_pais!$A$2:$A$27000,'5.1'!$A77&'5.1'!G$3&1,AUX_2d_pais!$J$2:$J$27000)/1000 -> 85008.246 | H77: 48767.8678 | I77: 0.04412642366 | J77: =+SUMIF(AUX_2d_pais!$A$2:$A$27000,'5.1'!$A77&'5.1'!J$3&2,AUX_2d_pais!$J$2:$J$27000)/1000 -> 3170.376 | K77: =+SUMIF(AUX_2d_pais!$A$2:$A$27000,'5.1'!$A77&'5.1'!K$3&2,AUX_2d_pais!$J$2:$J$27000)/1000 -> 2688.265 | L77: =+SUMIF(AUX_2d_pais!$A$2:$A$27000,'5.1'!$A77&'5.1'!L$3&2,AUX_2d_pais!$J$2:$J$27000)/1000 -> 1987.433 | M77: =+SUMIF(AUX_2d_pais!$A$2:$A$27000,'5.1'!$A77&'5.1'!M$3&2,AUX_2d_pais!$J$2:$J$27000)/1000 -> 4948.562 | N77: =+SUMIF(AUX_2d_pais!$A$2:$A$27000,'5.1'!$A77&'5.1'!N$3&2,AUX_2d_pais!$J$2:$J$27000)/1000 -> 2453.156 | O77: 3049.5584 | P77: 0.005733200399 | Q77: -45718.3094 | S77: =G77-INDEX($C77:$G77,1,aux!$AL$1) -> 55929.979 | T77: 0.05121965233 | U77: =+IF(INDEX($C77:$G77,1,aux!$AL$1)>0,(G77/INDEX($C77:$G77,1,aux!$AL$1))^(1/($G$3-INDEX($C$3:$G$3,1,aux!$AL$1)))-1,"n.d.") -> 0.3075946465 | V77: =IF(INDEX($C77:$G77,1,aux!$AL$1)>0,(G77-INDEX($C77:$G77,1,aux!$AL$1))/INDEX($C77:$G77,1,aux!$AL$1),"n.d.") -> 1.923428896 | X77: =N77-INDEX($J77:$N77,1,aux!$AL$1) -> -717.22 | Y77: -0.009030338308 | Z77: =+IF(INDEX($J77:$N77,1,aux!$AL$1)>0,(N77/INDEX($J77:$N77,1,aux!$AL$1))^(1/($N$3-INDEX($J$3:$N$3,1,aux!$AL$1)))-1,"n.d.") -> -0.06210634302 | AA77: =IF(INDEX($J77:$N77,1,aux!$AL$1)>0,(N77-INDEX($J77:$N77,1,aux!$AL$1))/INDEX($J77:$N77,1,aux!$AL$1),"n.d.") -> -0.2262255329 | BS77: =+MATCH('5.1'!A77,AUX_2d_pais!$G$2:$G$20001,0) -> 11
A78: 0336 | B78: Eritreia | C78: =+SUMIF(AUX_2d_pais!$A$2:$A$27000,'5.1'!$A78&'5.1'!C$3&1,AUX_2d_pais!$J$2:$J$27000)/1000 -> 0 | D78: =+SUMIF(AUX_2d_pais!$A$2:$A$27000,'5.1'!$A78&'5.1'!D$3&1,AUX_2d_pais!$J$2:$J$27000)/1000 -> 0 | E78: =+SUMIF(AUX_2d_pais!$A$2:$A$27000,'5.1'!$A78&'5.1'!E$3&1,AUX_2d_pais!$J$2:$J$27000)/1000 -> 0 | F78: =+SUMIF(AUX_2d_pais!$A$2:$A$27000,'5.1'!$A78&'5.1'!F$3&1,AUX_2d_pais!$J$2:$J$27000)/1000 -> 0 | G78: =+SUMIF(AUX_2d_pais!$A$2:$A$27000,'5.1'!$A78&'5.1'!G$3&1,AUX_2d_pais!$J$2:$J$27000)/1000 -> 0 | H78: 0 | I78: 0 | J78: =+SUMIF(AUX_2d_pais!$A$2:$A$27000,'5.1'!$A78&'5.1'!J$3&2,AUX_2d_pais!$J$2:$J$27000)/1000 -> 0 | K78: =+SUMIF(AUX_2d_pais!$A$2:$A$27000,'5.1'!$A78&'5.1'!K$3&2,AUX_2d_pais!$J$2:$J$27000)/1000 -> 0 | L78: =+SUMIF(AUX_2d_pais!$A$2:$A$27000,'5.1'!$A78&'5.1'!L$3&2,AUX_2d_pais!$J$2:$J$27000)/1000 -> 0 | M78: =+SUMIF(AUX_2d_pais!$A$2:$A$27000,'5.1'!$A78&'5.1'!M$3&2,AUX_2d_pais!$J$2:$J$27000)/1000 -> 0 | N78: =+SUMIF(AUX_2d_pais!$A$2:$A$27000,'5.1'!$A78&'5.1'!N$3&2,AUX_2d_pais!$J$2:$J$27000)/1000 -> 0 | O78: 0 | P78: 0 | Q78: 0 | S78: =G78-INDEX($C78:$G78,1,aux!$AL$1) -> 0 | T78: 0 | U78: =+IF(INDEX($C78:$G78,1,aux!$AL$1)>0,(G78/INDEX($C78:$G78,1,aux!$AL$1))^(1/($G$3-INDEX($C$3:$G$3,1,aux!$AL$1)))-1,"n.d.") -> n.d. | V78: =IF(INDEX($C78:$G78,1,aux!$AL$1)>0,(G78-INDEX($C78:$G78,1,aux!$AL$1))/INDEX($C78:$G78,1,aux!$AL$1),"n.d.") -> n.d. | X78: =N78-INDEX($J78:$N78,1,aux!$AL$1) -> 0 | Y78: 0 | Z78: =+IF(INDEX($J78:$N78,1,aux!$AL$1)>0,(N78/INDEX($J78:$N78,1,aux!$AL$1))^(1/($N$3-INDEX($J$3:$N$3,1,aux!$AL$1)))-1,"n.d.") -> n.d. | AA78: =IF(INDEX($J78:$N78,1,aux!$AL$1)>0,(N78-INDEX($J78:$N78,1,aux!$AL$1))/INDEX($J78:$N78,1,aux!$AL$1),"n.d.") -> n.d. | AC78: 0 | BS78: =+MATCH('5.1'!A78,AUX_2d_pais!$G$2:$G$20001,0) -> 
A79: 0063 | B79: Eslováquia | C79: =+SUMIF(AUX_2d_pais!$A$2:$A$27000,'5.1'!$A79&'5.1'!C$3&1,AUX_2d_pais!$J$2:$J$27000)/1000 -> 0 | D79: =+SUMIF(AUX_2d_pais!$A$2:$A$27000,'5.1'!$A79&'5.1'!D$3&1,AUX_2d_pais!$J$2:$J$27000)/1000 -> 0 | E79: =+SUMIF(AUX_2d_pais!$A$2:$A$27000,'5.1'!$A79&'5.1'!E$3&1,AUX_2d_pais!$J$2:$J$27000)/1000 -> 0 | F79: =+SUMIF(AUX_2d_pais!$A$2:$A$27000,'5.1'!$A79&'5.1'!F$3&1,AUX_2d_pais!$J$2:$J$27000)/1000 -> 0 | G79: =+SUMIF(AUX_2d_pais!$A$2:$A$27000,'5.1'!$A79&'5.1'!G$3&1,AUX_2d_pais!$J$2:$J$27000)/1000 -> 0 | H79: 0 | I79: 0 | J79: =+SUMIF(AUX_2d_pais!$A$2:$A$27000,'5.1'!$A79&'5.1'!J$3&2,AUX_2d_pais!$J$2:$J$27000)/1000 -> 0 | K79: =+SUMIF(AUX_2d_pais!$A$2:$A$27000,'5.1'!$A79&'5.1'!K$3&2,AUX_2d_pais!$J$2:$J$27000)/1000 -> 0 | L79: =+SUMIF(AUX_2d_pais!$A$2:$A$27000,'5.1'!$A79&'5.1'!L$3&2,AUX_2d_pais!$J$2:$J$27000)/1000 -> 0 | M79: =+SUMIF(AUX_2d_pais!$A$2:$A$27000,'5.1'!$A79&'5.1'!M$3&2,AUX_2d_pais!$J$2:$J$27000)/1000 -> 0 | N79: =+SUMIF(AUX_2d_pais!$A$2:$A$27000,'5.1'!$A79&'5.1'!N$3&2,AUX_2d_pais!$J$2:$J$27000)/1000 -> 0 | O79: 0 | P79: 0 | Q79: 0 | S79: =G79-INDEX($C79:$G79,1,aux!$AL$1) -> 0 | T79: 0 | U79: =+IF(INDEX($C79:$G79,1,aux!$AL$1)>0,(G79/INDEX($C79:$G79,1,aux!$AL$1))^(1/($G$3-INDEX($C$3:$G$3,1,aux!$AL$1)))-1,"n.d.") -> n.d. | V79: =IF(INDEX($C79:$G79,1,aux!$AL$1)>0,(G79-INDEX($C79:$G79,1,aux!$AL$1))/INDEX($C79:$G79,1,aux!$AL$1),"n.d.") -> n.d. | X79: =N79-INDEX($J79:$N79,1,aux!$AL$1) -> 0 | Y79: 0 | Z79: =+IF(INDEX($J79:$N79,1,aux!$AL$1)>0,(N79/INDEX($J79:$N79,1,aux!$AL$1))^(1/($N$3-INDEX($J$3:$N$3,1,aux!$AL$1)))-1,"n.d.") -> n.d. | AA79: =IF(INDEX($J79:$N79,1,aux!$AL$1)>0,(N79-INDEX($J79:$N79,1,aux!$AL$1))/INDEX($J79:$N79,1,aux!$AL$1),"n.d.") -> n.d. | AC79: 0 | BS79: =+MATCH('5.1'!A79,AUX_2d_pais!$G$2:$G$20001,0) -> 
A80: 0091 | B80: Eslovénia | C80: =+SUMIF(AUX_2d_pais!$A$2:$A$27000,'5.1'!$A80&'5.1'!C$3&1,AUX_2d_pais!$J$2:$J$27000)/1000 -> 0 | D80: =+SUMIF(AUX_2d_pais!$A$2:$A$27000,'5.1'!$A80&'5.1'!D$3&1,AUX_2d_pais!$J$2:$J$27000)/1000 -> 0 | E80: =+SUMIF(AUX_2d_pais!$A$2:$A$27000,'5.1'!$A80&'5.1'!E$3&1,AUX_2d_pais!$J$2:$J$27000)/1000 -> 0 | F80: =+SUMIF(AUX_2d_pais!$A$2:$A$27000,'5.1'!$A80&'5.1'!F$3&1,AUX_2d_pais!$J$2:$J$27000)/1000 -> 0 | G80: =+SUMIF(AUX_2d_pais!$A$2:$A$27000,'5.1'!$A80&'5.1'!G$3&1,AUX_2d_pais!$J$2:$J$27000)/1000 -> 0 | H80: 0 | I80: 0 | J80: =+SUMIF(AUX_2d_pais!$A$2:$A$27000,'5.1'!$A80&'5.1'!J$3&2,AUX_2d_pais!$J$2:$J$27000)/1000 -> 0 | K80: =+SUMIF(AUX_2d_pais!$A$2:$A$27000,'5.1'!$A80&'5.1'!K$3&2,AUX_2d_pais!$J$2:$J$27000)/1000 -> 0 | L80: =+SUMIF(AUX_2d_pais!$A$2:$A$27000,'5.1'!$A80&'5.1'!L$3&2,AUX_2d_pais!$J$2:$J$27000)/1000 -> 0 | M80: =+SUMIF(AUX_2d_pais!$A$2:$A$27000,'5.1'!$A80&'5.1'!M$3&2,AUX_2d_pais!$J$2:$J$27000)/1000 -> 0 | N80: =+SUMIF(AUX_2d_pais!$A$2:$A$27000,'5.1'!$A80&'5.1'!N$3&2,AUX_2d_pais!$J$2:$J$27000)/1000 -> 0 | O80: 0 | P80: 0 | Q80: 0 | S80: =G80-INDEX($C80:$G80,1,aux!$AL$1) -> 0 | T80: 0 | U80: =+IF(INDEX($C80:$G80,1,aux!$AL$1)>0,(G80/INDEX($C80:$G80,1,aux!$AL$1))^(1/($G$3-INDEX($C$3:$G$3,1,aux!$AL$1)))-1,"n.d.") -> n.d. | V80: =IF(INDEX($C80:$G80,1,aux!$AL$1)>0,(G80-INDEX($C80:$G80,1,aux!$AL$1))/INDEX($C80:$G80,1,aux!$AL$1),"n.d.") -> n.d. | X80: =N80-INDEX($J80:$N80,1,aux!$AL$1) -> 0 | Y80: 0 | Z80: =+IF(INDEX($J80:$N80,1,aux!$AL$1)>0,(N80/INDEX($J80:$N80,1,aux!$AL$1))^(1/($N$3-INDEX($J$3:$N$3,1,aux!$AL$1)))-1,"n.d.") -> n.d. | AA80: =IF(INDEX($J80:$N80,1,aux!$AL$1)>0,(N80-INDEX($J80:$N80,1,aux!$AL$1))/INDEX($J80:$N80,1,aux!$AL$1),"n.d.") -> n.d. | AC80: 0 | BS80: =+MATCH('5.1'!A80,AUX_2d_pais!$G$2:$G$20001,0) -> 
A81: 0011 | B81: Espanha | C81: =+SUMIF(AUX_2d_pais!$A$2:$A$27000,'5.1'!$A81&'5.1'!C$3&1,AUX_2d_pais!$J$2:$J$27000)/1000 -> 0 | D81: =+SUMIF(AUX_2d_pais!$A$2:$A$27000,'5.1'!$A81&'5.1'!D$3&1,AUX_2d_pais!$J$2:$J$27000)/1000 -> 0 | E81: =+SUMIF(AUX_2d_pais!$A$2:$A$27000,'5.1'!$A81&'5.1'!E$3&1,AUX_2d_pais!$J$2:$J$27000)/1000 -> 0 | F81: =+SUMIF(AUX_2d_pais!$A$2:$A$27000,'5.1'!$A81&'5.1'!F$3&1,AUX_2d_pais!$J$2:$J$27000)/1000 -> 0 | G81: =+SUMIF(AUX_2d_pais!$A$2:$A$27000,'5.1'!$A81&'5.1'!G$3&1,AUX_2d_pais!$J$2:$J$27000)/1000 -> 0 | H81: 0 | I81: 0 | J81: =+SUMIF(AUX_2d_pais!$A$2:$A$27000,'5.1'!$A81&'5.1'!J$3&2,AUX_2d_pais!$J$2:$J$27000)/1000 -> 0 | K81: =+SUMIF(AUX_2d_pais!$A$2:$A$27000,'5.1'!$A81&'5.1'!K$3&2,AUX_2d_pais!$J$2:$J$27000)/1000 -> 0 | L81: =+SUMIF(AUX_2d_pais!$A$2:$A$27000,'5.1'!$A81&'5.1'!L$3&2,AUX_2d_pais!$J$2:$J$27000)/1000 -> 0 | M81: =+SUMIF(AUX_2d_pais!$A$2:$A$27000,'5.1'!$A81&'5.1'!M$3&2,AUX_2d_pais!$J$2:$J$27000)/1000 -> 0 | N81: =+SUMIF(AUX_2d_pais!$A$2:$A$27000,'5.1'!$A81&'5.1'!N$3&2,AUX_2d_pais!$J$2:$J$27000)/1000 -> 0 | O81: 0 | P81: 0 | Q81: 0 | S81: =G81-INDEX($C81:$G81,1,aux!$AL$1) -> 0 | T81: 0 | U81: =+IF(INDEX($C81:$G81,1,aux!$AL$1)>0,(G81/INDEX($C81:$G81,1,aux!$AL$1))^(1/($G$3-INDEX($C$3:$G$3,1,aux!$AL$1)))-1,"n.d.") -> n.d. | V81: =IF(INDEX($C81:$G81,1,aux!$AL$1)>0,(G81-INDEX($C81:$G81,1,aux!$AL$1))/INDEX($C81:$G81,1,aux!$AL$1),"n.d.") -> n.d. | X81: =N81-INDEX($J81:$N81,1,aux!$AL$1) -> 0 | Y81: 0 | Z81: =+IF(INDEX($J81:$N81,1,aux!$AL$1)>0,(N81/INDEX($J81:$N81,1,aux!$AL$1))^(1/($N$3-INDEX($J$3:$N$3,1,aux!$AL$1)))-1,"n.d.") -> n.d. | AA81: =IF(INDEX($J81:$N81,1,aux!$AL$1)>0,(N81-INDEX($J81:$N81,1,aux!$AL$1))/INDEX($J81:$N81,1,aux!$AL$1),"n.d.") -> n.d. | AC81: 0 | BS81: =+MATCH('5.1'!A81,AUX_2d_pais!$G$2:$G$20001,0) -> 
A82: 0400 | B82: Estados Unidos | C82: =+SUMIF(AUX_2d_pais!$A$2:$A$27000,'5.1'!$A82&'5.1'!C$3&1,AUX_2d_pais!$J$2:$J$27000)/1000 -> 0 | D82: =+SUMIF(AUX_2d_pais!$A$2:$A$27000,'5.1'!$A82&'5.1'!D$3&1,AUX_2d_pais!$J$2:$J$27000)/1000 -> 0 | E82: =+SUMIF(AUX_2d_pais!$A$2:$A$27000,'5.1'!$A82&'5.1'!E$3&1,AUX_2d_pais!$J$2:$J$27000)/1000 -> 0 | F82: =+SUMIF(AUX_2d_pais!$A$2:$A$27000,'5.1'!$A82&'5.1'!F$3&1,AUX_2d_pais!$J$2:$J$27000)/1000 -> 0 | G82: =+SUMIF(AUX_2d_pais!$A$2:$A$27000,'5.1'!$A82&'5.1'!G$3&1,AUX_2d_pais!$J$2:$J$27000)/1000 -> 0 | H82: 0 | I82: 0 | J82: =+SUMIF(AUX_2d_pais!$A$2:$A$27000,'5.1'!$A82&'5.1'!J$3&2,AUX_2d_pais!$J$2:$J$27000)/1000 -> 0 | K82: =+SUMIF(AUX_2d_pais!$A$2:$A$27000,'5.1'!$A82&'5.1'!K$3&2,AUX_2d_pais!$J$2:$J$27000)/1000 -> 0 | L82: =+SUMIF(AUX_2d_pais!$A$2:$A$27000,'5.1'!$A82&'5.1'!L$3&2,AUX_2d_pais!$J$2:$J$27000)/1000 -> 0 | M82: =+SUMIF(AUX_2d_pais!$A$2:$A$27000,'5.1'!$A82&'5.1'!M$3&2,AUX_2d_pais!$J$2:$J$27000)/1000 -> 0 | N82: =+SUMIF(AUX_2d_pais!$A$2:$A$27000,'5.1'!$A82&'5.1'!N$3&2,AUX_2d_pais!$J$2:$J$27000)/1000 -> 0 | O82: 0 | P82: 0 | Q82: 0 | S82: =G82-INDEX($C82:$G82,1,aux!$AL$1) -> 0 | T82: 0 | U82: =+IF(INDEX($C82:$G82,1,aux!$AL$1)>0,(G82/INDEX($C82:$G82,1,aux!$AL$1))^(1/($G$3-INDEX($C$3:$G$3,1,aux!$AL$1)))-1,"n.d.") -> n.d. | V82: =IF(INDEX($C82:$G82,1,aux!$AL$1)>0,(G82-INDEX($C82:$G82,1,aux!$AL$1))/INDEX($C82:$G82,1,aux!$AL$1),"n.d.") -> n.d. | X82: =N82-INDEX($J82:$N82,1,aux!$AL$1) -> 0 | Y82: 0 | Z82: =+IF(INDEX($J82:$N82,1,aux!$AL$1)>0,(N82/INDEX($J82:$N82,1,aux!$AL$1))^(1/($N$3-INDEX($J$3:$N$3,1,aux!$AL$1)))-1,"n.d.") -> n.d. | AA82: =IF(INDEX($J82:$N82,1,aux!$AL$1)>0,(N82-INDEX($J82:$N82,1,aux!$AL$1))/INDEX($J82:$N82,1,aux!$AL$1),"n.d.") -> n.d. | AC82: 0 | BS82: =+MATCH('5.1'!A82,AUX_2d_pais!$G$2:$G$20001,0) -> 
A83: 0053 | B83: Estónia | C83: =+SUMIF(AUX_2d_pais!$A$2:$A$27000,'5.1'!$A83&'5.1'!C$3&1,AUX_2d_pais!$J$2:$J$27000)/1000 -> 0 | D83: =+SUMIF(AUX_2d_pais!$A$2:$A$27000,'5.1'!$A83&'5.1'!D$3&1,AUX_2d_pais!$J$2:$J$27000)/1000 -> 0 | E83: =+SUMIF(AUX_2d_pais!$A$2:$A$27000,'5.1'!$A83&'5.1'!E$3&1,AUX_2d_pais!$J$2:$J$27000)/1000 -> 0 | F83: =+SUMIF(AUX_2d_pais!$A$2:$A$27000,'5.1'!$A83&'5.1'!F$3&1,AUX_2d_pais!$J$2:$J$27000)/1000 -> 0 | G83: =+SUMIF(AUX_2d_pais!$A$2:$A$27000,'5.1'!$A83&'5.1'!G$3&1,AUX_2d_pais!$J$2:$J$27000)/1000 -> 0 | H83: 0 | I83: 0 | J83: =+SUMIF(AUX_2d_pais!$A$2:$A$27000,'5.1'!$A83&'5.1'!J$3&2,AUX_2d_pais!$J$2:$J$27000)/1000 -> 0 | K83: =+SUMIF(AUX_2d_pais!$A$2:$A$27000,'5.1'!$A83&'5.1'!K$3&2,AUX_2d_pais!$J$2:$J$27000)/1000 -> 0 | L83: =+SUMIF(AUX_2d_pais!$A$2:$A$27000,'5.1'!$A83&'5.1'!L$3&2,AUX_2d_pais!$J$2:$J$27000)/1000 -> 0 | M83: =+SUMIF(AUX_2d_pais!$A$2:$A$27000,'5.1'!$A83&'5.1'!M$3&2,AUX_2d_pais!$J$2:$J$27000)/1000 -> 0 | N83: =+SUMIF(AUX_2d_pais!$A$2:$A$27000,'5.1'!$A83&'5.1'!N$3&2,AUX_2d_pais!$J$2:$J$27000)/1000 -> 0 | O83: 0 | P83: 0 | Q83: 0 | S83: =G83-INDEX($C83:$G83,1,aux!$AL$1) -> 0 | T83: 0 | U83: =+IF(INDEX($C83:$G83,1,aux!$AL$1)>0,(G83/INDEX($C83:$G83,1,aux!$AL$1))^(1/($G$3-INDEX($C$3:$G$3,1,aux!$AL$1)))-1,"n.d.") -> n.d. | V83: =IF(INDEX($C83:$G83,1,aux!$AL$1)>0,(G83-INDEX($C83:$G83,1,aux!$AL$1))/INDEX($C83:$G83,1,aux!$AL$1),"n.d.") -> n.d. | X83: =N83-INDEX($J83:$N83,1,aux!$AL$1) -> 0 | Y83: 0 | Z83: =+IF(INDEX($J83:$N83,1,aux!$AL$1)>0,(N83/INDEX($J83:$N83,1,aux!$AL$1))^(1/($N$3-INDEX($J$3:$N$3,1,aux!$AL$1)))-1,"n.d.") -> n.d. | AA83: =IF(INDEX($J83:$N83,1,aux!$AL$1)>0,(N83-INDEX($J83:$N83,1,aux!$AL$1))/INDEX($J83:$N83,1,aux!$AL$1),"n.d.") -> n.d. | AC83: 0 | BS83: =+MATCH('5.1'!A83,AUX_2d_pais!$G$2:$G$20001,0) -> 
A84: 0334 | B84: Etiópia | C84: =+SUMIF(AUX_2d_pais!$A$2:$A$27000,'5.1'!$A84&'5.1'!C$3&1,AUX_2d_pais!$J$2:$J$27000)/1000 -> 0 | D84: =+SUMIF(AUX_2d_pais!$A$2:$A$27000,'5.1'!$A84&'5.1'!D$3&1,AUX_2d_pais!$J$2:$J$27000)/1000 -> 0 | E84: =+SUMIF(AUX_2d_pais!$A$2:$A$27000,'5.1'!$A84&'5.1'!E$3&1,AUX_2d_pais!$J$2:$J$27000)/1000 -> 0 | F84: =+SUMIF(AUX_2d_pais!$A$2:$A$27000,'5.1'!$A84&'5.1'!F$3&1,AUX_2d_pais!$J$2:$J$27000)/1000 -> 0 | G84: =+SUMIF(AUX_2d_pais!$A$2:$A$27000,'5.1'!$A84&'5.1'!G$3&1,AUX_2d_pais!$J$2:$J$27000)/1000 -> 0 | H84: 0 | I84: 0 | J84: =+SUMIF(AUX_2d_pais!$A$2:$A$27000,'5.1'!$A84&'5.1'!J$3&2,AUX_2d_pais!$J$2:$J$27000)/1000 -> 0 | K84: =+SUMIF(AUX_2d_pais!$A$2:$A$27000,'5.1'!$A84&'5.1'!K$3&2,AUX_2d_pais!$J$2:$J$27000)/1000 -> 0 | L84: =+SUMIF(AUX_2d_pais!$A$2:$A$27000,'5.1'!$A84&'5.1'!L$3&2,AUX_2d_pais!$J$2:$J$27000)/1000 -> 0 | M84: =+SUMIF(AUX_2d_pais!$A$2:$A$27000,'5.1'!$A84&'5.1'!M$3&2,AUX_2d_pais!$J$2:$J$27000)/1000 -> 0 | N84: =+SUMIF(AUX_2d_pais!$A$2:$A$27000,'5.1'!$A84&'5.1'!N$3&2,AUX_2d_pais!$J$2:$J$27000)/1000 -> 0 | O84: 0 | P84: 0 | Q84: 0 | S84: =G84-INDEX($C84:$G84,1,aux!$AL$1) -> 0 | T84: 0 | U84: =+IF(INDEX($C84:$G84,1,aux!$AL$1)>0,(G84/INDEX($C84:$G84,1,aux!$AL$1))^(1/($G$3-INDEX($C$3:$G$3,1,aux!$AL$1)))-1,"n.d.") -> n.d. | V84: =IF(INDEX($C84:$G84,1,aux!$AL$1)>0,(G84-INDEX($C84:$G84,1,aux!$AL$1))/INDEX($C84:$G84,1,aux!$AL$1),"n.d.") -> n.d. | X84: =N84-INDEX($J84:$N84,1,aux!$AL$1) -> 0 | Y84: 0 | Z84: =+IF(INDEX($J84:$N84,1,aux!$AL$1)>0,(N84/INDEX($J84:$N84,1,aux!$AL$1))^(1/($N$3-INDEX($J$3:$N$3,1,aux!$AL$1)))-1,"n.d.") -> n.d. | AA84: =IF(INDEX($J84:$N84,1,aux!$AL$1)>0,(N84-INDEX($J84:$N84,1,aux!$AL$1))/INDEX($J84:$N84,1,aux!$AL$1),"n.d.") -> n.d. | AC84: 0 | BS84: =+MATCH('5.1'!A84,AUX_2d_pais!$G$2:$G$20001,0) -> 
A85: 0529 | B85: Falkland Ilhas (Malvinas) | C85: =+SUMIF(AUX_2d_pais!$A$2:$A$27000,'5.1'!$A85&'5.1'!C$3&1,AUX_2d_pais!$J$2:$J$27000)/1000 -> 0 | D85: =+SUMIF(AUX_2d_pais!$A$2:$A$27000,'5.1'!$A85&'5.1'!D$3&1,AUX_2d_pais!$J$2:$J$27000)/1000 -> 0 | E85: =+SUMIF(AUX_2d_pais!$A$2:$A$27000,'5.1'!$A85&'5.1'!E$3&1,AUX_2d_pais!$J$2:$J$27000)/1000 -> 0 | F85: =+SUMIF(AUX_2d_pais!$A$2:$A$27000,'5.1'!$A85&'5.1'!F$3&1,AUX_2d_pais!$J$2:$J$27000)/1000 -> 0 | G85: =+SUMIF(AUX_2d_pais!$A$2:$A$27000,'5.1'!$A85&'5.1'!G$3&1,AUX_2d_pais!$J$2:$J$27000)/1000 -> 0 | H85: 0 | I85: 0 | J85: =+SUMIF(AUX_2d_pais!$A$2:$A$27000,'5.1'!$A85&'5.1'!J$3&2,AUX_2d_pais!$J$2:$J$27000)/1000 -> 0 | K85: =+SUMIF(AUX_2d_pais!$A$2:$A$27000,'5.1'!$A85&'5.1'!K$3&2,AUX_2d_pais!$J$2:$J$27000)/1000 -> 0 | L85: =+SUMIF(AUX_2d_pais!$A$2:$A$27000,'5.1'!$A85&'5.1'!L$3&2,AUX_2d_pais!$J$2:$J$27000)/1000 -> 0 | M85: =+SUMIF(AUX_2d_pais!$A$2:$A$27000,'5.1'!$A85&'5.1'!M$3&2,AUX_2d_pais!$J$2:$J$27000)/1000 -> 0 | N85: =+SUMIF(AUX_2d_pais!$A$2:$A$27000,'5.1'!$A85&'5.1'!N$3&2,AUX_2d_pais!$J$2:$J$27000)/1000 -> 0 | O85: 0 | P85: 0 | Q85: 0 | S85: =G85-INDEX($C85:$G85,1,aux!$AL$1) -> 0 | T85: 0 | U85: =+IF(INDEX($C85:$G85,1,aux!$AL$1)>0,(G85/INDEX($C85:$G85,1,aux!$AL$1))^(1/($G$3-INDEX($C$3:$G$3,1,aux!$AL$1)))-1,"n.d.") -> n.d. | V85: =IF(INDEX($C85:$G85,1,aux!$AL$1)>0,(G85-INDEX($C85:$G85,1,aux!$AL$1))/INDEX($C85:$G85,1,aux!$AL$1),"n.d.") -> n.d. | X85: =N85-INDEX($J85:$N85,1,aux!$AL$1) -> 0 | Y85: 0 | Z85: =+IF(INDEX($J85:$N85,1,aux!$AL$1)>0,(N85/INDEX($J85:$N85,1,aux!$AL$1))^(1/($N$3-INDEX($J$3:$N$3,1,aux!$AL$1)))-1,"n.d.") -> n.d. | AA85: =IF(INDEX($J85:$N85,1,aux!$AL$1)>0,(N85-INDEX($J85:$N85,1,aux!$AL$1))/INDEX($J85:$N85,1,aux!$AL$1),"n.d.") -> n.d. | AC85: 0 | BS85: =+MATCH('5.1'!A85,AUX_2d_pais!$G$2:$G$20001,0) -> 
A86: 0041 | B86: Faroé, Ilhas | C86: =+SUMIF(AUX_2d_pais!$A$2:$A$27000,'5.1'!$A86&'5.1'!C$3&1,AUX_2d_pais!$J$2:$J$27000)/1000 -> 0 | D86: =+SUMIF(AUX_2d_pais!$A$2:$A$27000,'5.1'!$A86&'5.1'!D$3&1,AUX_2d_pais!$J$2:$J$27000)/1000 -> 0 | E86: =+SUMIF(AUX_2d_pais!$A$2:$A$27000,'5.1'!$A86&'5.1'!E$3&1,AUX_2d_pais!$J$2:$J$27000)/1000 -> 0 | F86: =+SUMIF(AUX_2d_pais!$A$2:$A$27000,'5.1'!$A86&'5.1'!F$3&1,AUX_2d_pais!$J$2:$J$27000)/1000 -> 0 | G86: =+SUMIF(AUX_2d_pais!$A$2:$A$27000,'5.1'!$A86&'5.1'!G$3&1,AUX_2d_pais!$J$2:$J$27000)/1000 -> 0 | H86: 0 | I86: 0 | J86: =+SUMIF(AUX_2d_pais!$A$2:$A$27000,'5.1'!$A86&'5.1'!J$3&2,AUX_2d_pais!$J$2:$J$27000)/1000 -> 0 | K86: =+SUMIF(AUX_2d_pais!$A$2:$A$27000,'5.1'!$A86&'5.1'!K$3&2,AUX_2d_pais!$J$2:$J$27000)/1000 -> 0 | L86: =+SUMIF(AUX_2d_pais!$A$2:$A$27000,'5.1'!$A86&'5.1'!L$3&2,AUX_2d_pais!$J$2:$J$27000)/1000 -> 0 | M86: =+SUMIF(AUX_2d_pais!$A$2:$A$27000,'5.1'!$A86&'5.1'!M$3&2,AUX_2d_pais!$J$2:$J$27000)/1000 -> 0 | N86: =+SUMIF(AUX_2d_pais!$A$2:$A$27000,'5.1'!$A86&'5.1'!N$3&2,AUX_2d_pais!$J$2:$J$27000)/1000 -> 0 | O86: 0 | P86: 0 | Q86: 0 | S86: =G86-INDEX($C86:$G86,1,aux!$AL$1) -> 0 | T86: 0 | U86: =+IF(INDEX($C86:$G86,1,aux!$AL$1)>0,(G86/INDEX($C86:$G86,1,aux!$AL$1))^(1/($G$3-INDEX($C$3:$G$3,1,aux!$AL$1)))-1,"n.d.") -> n.d. | V86: =IF(INDEX($C86:$G86,1,aux!$AL$1)>0,(G86-INDEX($C86:$G86,1,aux!$AL$1))/INDEX($C86:$G86,1,aux!$AL$1),"n.d.") -> n.d. | X86: =N86-INDEX($J86:$N86,1,aux!$AL$1) -> 0 | Y86: 0 | Z86: =+IF(INDEX($J86:$N86,1,aux!$AL$1)>0,(N86/INDEX($J86:$N86,1,aux!$AL$1))^(1/($N$3-INDEX($J$3:$N$3,1,aux!$AL$1)))-1,"n.d.") -> n.d. | AA86: =IF(INDEX($J86:$N86,1,aux!$AL$1)>0,(N86-INDEX($J86:$N86,1,aux!$AL$1))/INDEX($J86:$N86,1,aux!$AL$1),"n.d.") -> n.d. | AC86: 0 | BS86: =+MATCH('5.1'!A86,AUX_2d_pais!$G$2:$G$20001,0) -> 
A87: 0815 | B87: Fiji, Ilhas | C87: =+SUMIF(AUX_2d_pais!$A$2:$A$27000,'5.1'!$A87&'5.1'!C$3&1,AUX_2d_pais!$J$2:$J$27000)/1000 -> 0 | D87: =+SUMIF(AUX_2d_pais!$A$2:$A$27000,'5.1'!$A87&'5.1'!D$3&1,AUX_2d_pais!$J$2:$J$27000)/1000 -> 0 | E87: =+SUMIF(AUX_2d_pais!$A$2:$A$27000,'5.1'!$A87&'5.1'!E$3&1,AUX_2d_pais!$J$2:$J$27000)/1000 -> 0 | F87: =+SUMIF(AUX_2d_pais!$A$2:$A$27000,'5.1'!$A87&'5.1'!F$3&1,AUX_2d_pais!$J$2:$J$27000)/1000 -> 0 | G87: =+SUMIF(AUX_2d_pais!$A$2:$A$27000,'5.1'!$A87&'5.1'!G$3&1,AUX_2d_pais!$J$2:$J$27000)/1000 -> 0 | H87: 0 | I87: 0 | J87: =+SUMIF(AUX_2d_pais!$A$2:$A$27000,'5.1'!$A87&'5.1'!J$3&2,AUX_2d_pais!$J$2:$J$27000)/1000 -> 0 | K87: =+SUMIF(AUX_2d_pais!$A$2:$A$27000,'5.1'!$A87&'5.1'!K$3&2,AUX_2d_pais!$J$2:$J$27000)/1000 -> 0 | L87: =+SUMIF(AUX_2d_pais!$A$2:$A$27000,'5.1'!$A87&'5.1'!L$3&2,AUX_2d_pais!$J$2:$J$27000)/1000 -> 0 | M87: =+SUMIF(AUX_2d_pais!$A$2:$A$27000,'5.1'!$A87&'5.1'!M$3&2,AUX_2d_pais!$J$2:$J$27000)/1000 -> 0 | N87: =+SUMIF(AUX_2d_pais!$A$2:$A$27000,'5.1'!$A87&'5.1'!N$3&2,AUX_2d_pais!$J$2:$J$27000)/1000 -> 0 | O87: 0 | P87: 0 | Q87: 0 | S87: =G87-INDEX($C87:$G87,1,aux!$AL$1) -> 0 | T87: 0 | U87: =+IF(INDEX($C87:$G87,1,aux!$AL$1)>0,(G87/INDEX($C87:$G87,1,aux!$AL$1))^(1/($G$3-INDEX($C$3:$G$3,1,aux!$AL$1)))-1,"n.d.") -> n.d. | V87: =IF(INDEX($C87:$G87,1,aux!$AL$1)>0,(G87-INDEX($C87:$G87,1,aux!$AL$1))/INDEX($C87:$G87,1,aux!$AL$1),"n.d.") -> n.d. | X87: =N87-INDEX($J87:$N87,1,aux!$AL$1) -> 0 | Y87: 0 | Z87: =+IF(INDEX($J87:$N87,1,aux!$AL$1)>0,(N87/INDEX($J87:$N87,1,aux!$AL$1))^(1/($N$3-INDEX($J$3:$N$3,1,aux!$AL$1)))-1,"n.d.") -> n.d. | AA87: =IF(INDEX($J87:$N87,1,aux!$AL$1)>0,(N87-INDEX($J87:$N87,1,aux!$AL$1))/INDEX($J87:$N87,1,aux!$AL$1),"n.d.") -> n.d. | AC87: 0 | BS87: =+MATCH('5.1'!A87,AUX_2d_pais!$G$2:$G$20001,0) -> 
A88: 0708 | B88: Filipinas | C88: =+SUMIF(AUX_2d_pais!$A$2:$A$27000,'5.1'!$A88&'5.1'!C$3&1,AUX_2d_pais!$J$2:$J$27000)/1000 -> 0 | D88: =+SUMIF(AUX_2d_pais!$A$2:$A$27000,'5.1'!$A88&'5.1'!D$3&1,AUX_2d_pais!$J$2:$J$27000)/1000 -> 0 | E88: =+SUMIF(AUX_2d_pais!$A$2:$A$27000,'5.1'!$A88&'5.1'!E$3&1,AUX_2d_pais!$J$2:$J$27000)/1000 -> 0 | F88: =+SUMIF(AUX_2d_pais!$A$2:$A$27000,'5.1'!$A88&'5.1'!F$3&1,AUX_2d_pais!$J$2:$J$27000)/1000 -> 0 | G88: =+SUMIF(AUX_2d_pais!$A$2:$A$27000,'5.1'!$A88&'5.1'!G$3&1,AUX_2d_pais!$J$2:$J$27000)/1000 -> 0 | H88: 0 | I88: 0 | J88: =+SUMIF(AUX_2d_pais!$A$2:$A$27000,'5.1'!$A88&'5.1'!J$3&2,AUX_2d_pais!$J$2:$J$27000)/1000 -> 0 | K88: =+SUMIF(AUX_2d_pais!$A$2:$A$27000,'5.1'!$A88&'5.1'!K$3&2,AUX_2d_pais!$J$2:$J$27000)/1000 -> 0 | L88: =+SUMIF(AUX_2d_pais!$A$2:$A$27000,'5.1'!$A88&'5.1'!L$3&2,AUX_2d_pais!$J$2:$J$27000)/1000 -> 0 | M88: =+SUMIF(AUX_2d_pais!$A$2:$A$27000,'5.1'!$A88&'5.1'!M$3&2,AUX_2d_pais!$J$2:$J$27000)/1000 -> 0 | N88: =+SUMIF(AUX_2d_pais!$A$2:$A$27000,'5.1'!$A88&'5.1'!N$3&2,AUX_2d_pais!$J$2:$J$27000)/1000 -> 0 | O88: 0 | P88: 0 | Q88: 0 | S88: =G88-INDEX($C88:$G88,1,aux!$AL$1) -> 0 | T88: 0 | U88: =+IF(INDEX($C88:$G88,1,aux!$AL$1)>0,(G88/INDEX($C88:$G88,1,aux!$AL$1))^(1/($G$3-INDEX($C$3:$G$3,1,aux!$AL$1)))-1,"n.d.") -> n.d. | V88: =IF(INDEX($C88:$G88,1,aux!$AL$1)>0,(G88-INDEX($C88:$G88,1,aux!$AL$1))/INDEX($C88:$G88,1,aux!$AL$1),"n.d.") -> n.d. | X88: =N88-INDEX($J88:$N88,1,aux!$AL$1) -> 0 | Y88: 0 | Z88: =+IF(INDEX($J88:$N88,1,aux!$AL$1)>0,(N88/INDEX($J88:$N88,1,aux!$AL$1))^(1/($N$3-INDEX($J$3:$N$3,1,aux!$AL$1)))-1,"n.d.") -> n.d. | AA88: =IF(INDEX($J88:$N88,1,aux!$AL$1)>0,(N88-INDEX($J88:$N88,1,aux!$AL$1))/INDEX($J88:$N88,1,aux!$AL$1),"n.d.") -> n.d. | AC88: 0 | BS88: =+MATCH('5.1'!A88,AUX_2d_pais!$G$2:$G$20001,0) -> 
A89: 0032 | B89: Finlândia | C89: =+SUMIF(AUX_2d_pais!$A$2:$A$27000,'5.1'!$A89&'5.1'!C$3&1,AUX_2d_pais!$J$2:$J$27000)/1000 -> 0 | D89: =+SUMIF(AUX_2d_pais!$A$2:$A$27000,'5.1'!$A89&'5.1'!D$3&1,AUX_2d_pais!$J$2:$J$27000)/1000 -> 0 | E89: =+SUMIF(AUX_2d_pais!$A$2:$A$27000,'5.1'!$A89&'5.1'!E$3&1,AUX_2d_pais!$J$2:$J$27000)/1000 -> 0 | F89: =+SUMIF(AUX_2d_pais!$A$2:$A$27000,'5.1'!$A89&'5.1'!F$3&1,AUX_2d_pais!$J$2:$J$27000)/1000 -> 0 | G89: =+SUMIF(AUX_2d_pais!$A$2:$A$27000,'5.1'!$A89&'5.1'!G$3&1,AUX_2d_pais!$J$2:$J$27000)/1000 -> 0 | H89: 0 | I89: 0 | J89: =+SUMIF(AUX_2d_pais!$A$2:$A$27000,'5.1'!$A89&'5.1'!J$3&2,AUX_2d_pais!$J$2:$J$27000)/1000 -> 0 | K89: =+SUMIF(AUX_2d_pais!$A$2:$A$27000,'5.1'!$A89&'5.1'!K$3&2,AUX_2d_pais!$J$2:$J$27000)/1000 -> 0 | L89: =+SUMIF(AUX_2d_pais!$A$2:$A$27000,'5.1'!$A89&'5.1'!L$3&2,AUX_2d_pais!$J$2:$J$27000)/1000 -> 0 | M89: =+SUMIF(AUX_2d_pais!$A$2:$A$27000,'5.1'!$A89&'5.1'!M$3&2,AUX_2d_pais!$J$2:$J$27000)/1000 -> 0 | N89: =+SUMIF(AUX_2d_pais!$A$2:$A$27000,'5.1'!$A89&'5.1'!N$3&2,AUX_2d_pais!$J$2:$J$27000)/1000 -> 0 | O89: 0 | P89: 0 | Q89: 0 | S89: =G89-INDEX($C89:$G89,1,aux!$AL$1) -> 0 | T89: 0 | U89: =+IF(INDEX($C89:$G89,1,aux!$AL$1)>0,(G89/INDEX($C89:$G89,1,aux!$AL$1))^(1/($G$3-INDEX($C$3:$G$3,1,aux!$AL$1)))-1,"n.d.") -> n.d. | V89: =IF(INDEX($C89:$G89,1,aux!$AL$1)>0,(G89-INDEX($C89:$G89,1,aux!$AL$1))/INDEX($C89:$G89,1,aux!$AL$1),"n.d.") -> n.d. | X89: =N89-INDEX($J89:$N89,1,aux!$AL$1) -> 0 | Y89: 0 | Z89: =+IF(INDEX($J89:$N89,1,aux!$AL$1)>0,(N89/INDEX($J89:$N89,1,aux!$AL$1))^(1/($N$3-INDEX($J$3:$N$3,1,aux!$AL$1)))-1,"n.d.") -> n.d. | AA89: =IF(INDEX($J89:$N89,1,aux!$AL$1)>0,(N89-INDEX($J89:$N89,1,aux!$AL$1))/INDEX($J89:$N89,1,aux!$AL$1),"n.d.") -> n.d. | AC89: 0 | BS89: =+MATCH('5.1'!A89,AUX_2d_pais!$G$2:$G$20001,0) -> 
A90: 0001 | B90: França | C90: =+SUMIF(AUX_2d_pais!$A$2:$A$27000,'5.1'!$A90&'5.1'!C$3&1,AUX_2d_pais!$J$2:$J$27000)/1000 -> 0 | D90: =+SUMIF(AUX_2d_pais!$A$2:$A$27000,'5.1'!$A90&'5.1'!D$3&1,AUX_2d_pais!$J$2:$J$27000)/1000 -> 0 | E90: =+SUMIF(AUX_2d_pais!$A$2:$A$27000,'5.1'!$A90&'5.1'!E$3&1,AUX_2d_pais!$J$2:$J$27000)/1000 -> 0 | F90: =+SUMIF(AUX_2d_pais!$A$2:$A$27000,'5.1'!$A90&'5.1'!F$3&1,AUX_2d_pais!$J$2:$J$27000)/1000 -> 0 | G90: =+SUMIF(AUX_2d_pais!$A$2:$A$27000,'5.1'!$A90&'5.1'!G$3&1,AUX_2d_pais!$J$2:$J$27000)/1000 -> 0 | H90: 0 | I90: 0 | J90: =+SUMIF(AUX_2d_pais!$A$2:$A$27000,'5.1'!$A90&'5.1'!J$3&2,AUX_2d_pais!$J$2:$J$27000)/1000 -> 0 | K90: =+SUMIF(AUX_2d_pais!$A$2:$A$27000,'5.1'!$A90&'5.1'!K$3&2,AUX_2d_pais!$J$2:$J$27000)/1000 -> 0 | L90: =+SUMIF(AUX_2d_pais!$A$2:$A$27000,'5.1'!$A90&'5.1'!L$3&2,AUX_2d_pais!$J$2:$J$27000)/1000 -> 0 | M90: =+SUMIF(AUX_2d_pais!$A$2:$A$27000,'5.1'!$A90&'5.1'!M$3&2,AUX_2d_pais!$J$2:$J$27000)/1000 -> 0 | N90: =+SUMIF(AUX_2d_pais!$A$2:$A$27000,'5.1'!$A90&'5.1'!N$3&2,AUX_2d_pais!$J$2:$J$27000)/1000 -> 0 | O90: 0 | P90: 0 | Q90: 0 | S90: =G90-INDEX($C90:$G90,1,aux!$AL$1) -> 0 | T90: 0 | U90: =+IF(INDEX($C90:$G90,1,aux!$AL$1)>0,(G90/INDEX($C90:$G90,1,aux!$AL$1))^(1/($G$3-INDEX($C$3:$G$3,1,aux!$AL$1)))-1,"n.d.") -> n.d. | V90: =IF(INDEX($C90:$G90,1,aux!$AL$1)>0,(G90-INDEX($C90:$G90,1,aux!$AL$1))/INDEX($C90:$G90,1,aux!$AL$1),"n.d.") -> n.d. | X90: =N90-INDEX($J90:$N90,1,aux!$AL$1) -> 0 | Y90: 0 | Z90: =+IF(INDEX($J90:$N90,1,aux!$AL$1)>0,(N90/INDEX($J90:$N90,1,aux!$AL$1))^(1/($N$3-INDEX($J$3:$N$3,1,aux!$AL$1)))-1,"n.d.") -> n.d. | AA90: =IF(INDEX($J90:$N90,1,aux!$AL$1)>0,(N90-INDEX($J90:$N90,1,aux!$AL$1))/INDEX($J90:$N90,1,aux!$AL$1),"n.d.") -> n.d. | AC90: 0 | BS90: =+MATCH('5.1'!A90,AUX_2d_pais!$G$2:$G$20001,0) -> 
A91: 0314 | B91: Gabão | C91: =+SUMIF(AUX_2d_pais!$A$2:$A$27000,'5.1'!$A91&'5.1'!C$3&1,AUX_2d_pais!$J$2:$J$27000)/1000 -> 0 | D91: =+SUMIF(AUX_2d_pais!$A$2:$A$27000,'5.1'!$A91&'5.1'!D$3&1,AUX_2d_pais!$J$2:$J$27000)/1000 -> 0 | E91: =+SUMIF(AUX_2d_pais!$A$2:$A$27000,'5.1'!$A91&'5.1'!E$3&1,AUX_2d_pais!$J$2:$J$27000)/1000 -> 0 | F91: =+SUMIF(AUX_2d_pais!$A$2:$A$27000,'5.1'!$A91&'5.1'!F$3&1,AUX_2d_pais!$J$2:$J$27000)/1000 -> 0 | G91: =+SUMIF(AUX_2d_pais!$A$2:$A$27000,'5.1'!$A91&'5.1'!G$3&1,AUX_2d_pais!$J$2:$J$27000)/1000 -> 0 | H91: 0 | I91: 0 | J91: =+SUMIF(AUX_2d_pais!$A$2:$A$27000,'5.1'!$A91&'5.1'!J$3&2,AUX_2d_pais!$J$2:$J$27000)/1000 -> 0 | K91: =+SUMIF(AUX_2d_pais!$A$2:$A$27000,'5.1'!$A91&'5.1'!K$3&2,AUX_2d_pais!$J$2:$J$27000)/1000 -> 0 | L91: =+SUMIF(AUX_2d_pais!$A$2:$A$27000,'5.1'!$A91&'5.1'!L$3&2,AUX_2d_pais!$J$2:$J$27000)/1000 -> 0 | M91: =+SUMIF(AUX_2d_pais!$A$2:$A$27000,'5.1'!$A91&'5.1'!M$3&2,AUX_2d_pais!$J$2:$J$27000)/1000 -> 0 | N91: =+SUMIF(AUX_2d_pais!$A$2:$A$27000,'5.1'!$A91&'5.1'!N$3&2,AUX_2d_pais!$J$2:$J$27000)/1000 -> 0 | O91: 0 | P91: 0 | Q91: 0 | S91: =G91-INDEX($C91:$G91,1,aux!$AL$1) -> 0 | T91: 0 | U91: =+IF(INDEX($C91:$G91,1,aux!$AL$1)>0,(G91/INDEX($C91:$G91,1,aux!$AL$1))^(1/($G$3-INDEX($C$3:$G$3,1,aux!$AL$1)))-1,"n.d.") -> n.d. | V91: =IF(INDEX($C91:$G91,1,aux!$AL$1)>0,(G91-INDEX($C91:$G91,1,aux!$AL$1))/INDEX($C91:$G91,1,aux!$AL$1),"n.d.") -> n.d. | X91: =N91-INDEX($J91:$N91,1,aux!$AL$1) -> 0 | Y91: 0 | Z91: =+IF(INDEX($J91:$N91,1,aux!$AL$1)>0,(N91/INDEX($J91:$N91,1,aux!$AL$1))^(1/($N$3-INDEX($J$3:$N$3,1,aux!$AL$1)))-1,"n.d.") -> n.d. | AA91: =IF(INDEX($J91:$N91,1,aux!$AL$1)>0,(N91-INDEX($J91:$N91,1,aux!$AL$1))/INDEX($J91:$N91,1,aux!$AL$1),"n.d.") -> n.d. | AC91: 0 | BS91: =+MATCH('5.1'!A91,AUX_2d_pais!$G$2:$G$20001,0) -> 
A92: 0252 | B92: Gâmbia | C92: =+SUMIF(AUX_2d_pais!$A$2:$A$27000,'5.1'!$A92&'5.1'!C$3&1,AUX_2d_pais!$J$2:$J$27000)/1000 -> 0 | D92: =+SUMIF(AUX_2d_pais!$A$2:$A$27000,'5.1'!$A92&'5.1'!D$3&1,AUX_2d_pais!$J$2:$J$27000)/1000 -> 0 | E92: =+SUMIF(AUX_2d_pais!$A$2:$A$27000,'5.1'!$A92&'5.1'!E$3&1,AUX_2d_pais!$J$2:$J$27000)/1000 -> 0 | F92: =+SUMIF(AUX_2d_pais!$A$2:$A$27000,'5.1'!$A92&'5.1'!F$3&1,AUX_2d_pais!$J$2:$J$27000)/1000 -> 0 | G92: =+SUMIF(AUX_2d_pais!$A$2:$A$27000,'5.1'!$A92&'5.1'!G$3&1,AUX_2d_pais!$J$2:$J$27000)/1000 -> 0 | H92: 0 | I92: 0 | J92: =+SUMIF(AUX_2d_pais!$A$2:$A$27000,'5.1'!$A92&'5.1'!J$3&2,AUX_2d_pais!$J$2:$J$27000)/1000 -> 0 | K92: =+SUMIF(AUX_2d_pais!$A$2:$A$27000,'5.1'!$A92&'5.1'!K$3&2,AUX_2d_pais!$J$2:$J$27000)/1000 -> 0 | L92: =+SUMIF(AUX_2d_pais!$A$2:$A$27000,'5.1'!$A92&'5.1'!L$3&2,AUX_2d_pais!$J$2:$J$27000)/1000 -> 0 | M92: =+SUMIF(AUX_2d_pais!$A$2:$A$27000,'5.1'!$A92&'5.1'!M$3&2,AUX_2d_pais!$J$2:$J$27000)/1000 -> 0 | N92: =+SUMIF(AUX_2d_pais!$A$2:$A$27000,'5.1'!$A92&'5.1'!N$3&2,AUX_2d_pais!$J$2:$J$27000)/1000 -> 0 | O92: 0 | P92: 0 | Q92: 0 | S92: =G92-INDEX($C92:$G92,1,aux!$AL$1) -> 0 | T92: 0 | U92: =+IF(INDEX($C92:$G92,1,aux!$AL$1)>0,(G92/INDEX($C92:$G92,1,aux!$AL$1))^(1/($G$3-INDEX($C$3:$G$3,1,aux!$AL$1)))-1,"n.d.") -> n.d. | V92: =IF(INDEX($C92:$G92,1,aux!$AL$1)>0,(G92-INDEX($C92:$G92,1,aux!$AL$1))/INDEX($C92:$G92,1,aux!$AL$1),"n.d.") -> n.d. | X92: =N92-INDEX($J92:$N92,1,aux!$AL$1) -> 0 | Y92: 0 | Z92: =+IF(INDEX($J92:$N92,1,aux!$AL$1)>0,(N92/INDEX($J92:$N92,1,aux!$AL$1))^(1/($N$3-INDEX($J$3:$N$3,1,aux!$AL$1)))-1,"n.d.") -> n.d. | AA92: =IF(INDEX($J92:$N92,1,aux!$AL$1)>0,(N92-INDEX($J92:$N92,1,aux!$AL$1))/INDEX($J92:$N92,1,aux!$AL$1),"n.d.") -> n.d. | AC92: 0 | BS92: =+MATCH('5.1'!A92,AUX_2d_pais!$G$2:$G$20001,0) -> 
